Workbook

Sheet Notes
A1: PhasorAnalysis.xlsm; Traders Tip spreadsheet created for the November 2022 Issue
A2: Coded beginning 2022-September-04 by Ronald McAllister (rpmac_xltt@sprynet.com)
A4: This Workbook demonstrates an EXCEL version of the ideas presented
A5: by John F. Ehlers in an article titled "Recurring Phase Of Cycle Analysis", (sub title: "Using Phasor Analysis to Identify Market Trends")
A6: which originally appeared in the November 2022 issue of
A7: "Technical Analysis of Stocks and Commodities" magazine.
A9: Development Notes:
A14: * * * * * * * * * * * * * * * *
A15: March 15 2022 - for the May 2022 traders tip
A16: Built an alternative method to show/hide a series on a chart. This is driven by a user check box settings in the
A17: clutter control area and uses the "visible" property of a given series.
A18: Check box labels change on the fly to reflect changes to indicator parameters as the changes happen.
A19: Set up parallel price charts to contrast indicator settings as Mr. Apirine has done in the May 2022 article.
A20: Chart visibilities controlled by check box settings.
A21: Changed chart window shade logic to show all of the Volume Chart or overlay the upper portion of the
A22: volume chart to provide more vertical space for other charts. This partial overlay leaves the volume chart
A23: date labels visible so that no other chart needs to have labels providing more vertical space of actual charting.
A24: Refined my dynamic horizontal Tick interval and Tick Label placement settings logic.
A26: January 18 2022 - Random "Name of Company" Retrieval Errors
A27: For the last couple of months my data retrievals would randomly get a soft error on the company name.
A28: By soft I mean that the HTML Get request for a summary for the InputPriceData tab target symbol would have a good return code but the company name field would contain garbage.
A29: Simply clicking the get data button on the InputPriceData tab to rerun the data retrieval would fix" it.
A30: Remarkably, the historical pricing data is always retrieved and is correct.
A32: Sunday (Jan 16) while working on this spreadsheet, five out of six tries for the same symbol displayed junk in the company name.
A33: So I set a trap to copy the HTML text to disc for the bad return and the good return so that I could compare them.
A34: (for those with a technical bent Notepad++ has a really nice Compare add in)
A35: As it turns out the correct required data is present in both versions.
A36: But the formatting of the new version does not contain the landmarks I was using to parse out what was needed.
A38: I think Yahoo Finance is experimenting with a new/upgraded HTML generator and perhaps does not have it installed on all of their servers.
A39: So the randomness of the "failure" is probably an artifact of which server answered my HTML request.
A41: The result is that I spent the last day and a half comparing the two formats and have come up with a new set of landmarks
A42: that are common to both formats. It requires a few extra steps to ignore minor internal differences in these landmarks and the result is
A43: code that does not care which HTML format is returned.
A45: The fix - What Changed:
A46: Complete rewrite of:
A47: VBA Procedure: ExtractCompanyIdFromSummaryText as found in VBA Module: InputPriceDataLoader
A49: Retrofitting to older Traders Tips spreadsheets:
A50: For those of you with some familiarity with the EXCEL VBA editor, you can try the following copy and paste steps.
A52: First we need to grab a copy of the corrected ExtractCompanyIdFromSummaryText Sub.
A53: Open the VBA editor in this spreadsheet and navigate to module InputPriceDataLoader and then to procedure ExtractCompanyIdFromSummaryText
A54: Copy all of procedure ExtractCompanyIdFromSummaryText from the beginning Sub statement to and including the closing End Sub statement to a new Notepad or Notepad++ text document.
A55: Close this workbook, but do not close the Notepad or Notepad++ document.
A57: Now for the target of your retrofit attempt.
A58: Make a backup copy of this retrofit target spreadsheet in case you have a problem and need to start over with a fresh copy.
A59: Open the retrofit target.
A60: Open the VBA editor in this target spreadsheet and navigate to module InputPriceDataLoader and then to procedure ExtractCompanyIdFromSummaryText
A62: Delete all of the ExtractCompanyIdFromSummaryText procedure starting with the begining Sub statement to and including the closing End Sub statement.
A64: Do not close the VBA editor or the spread sheet.
A66: Navigate (Alt-Tab) to your Notepad or Notepad++ instance and select all of the text (Ctrl-a). Then Copy the selected text (Ctrl-c).
A67: Navigate (Alt-Tab) back to the VBA editor window. The VBA editor cursor should still be on the line where you just deleted the old version of ExtractCompanyIdFromSummaryText.
A68: This is probably a blank line just above a line that reads "Sub FormatPriceHistory(..."
A69: If there is no blank line above the "Sub FormatPriceHistory(..." line then click on the "S" of Sub and press enter to insert a blank line.
A70: Move your mouse cursor to this blank line and left-click to be sure of the VBA cursor location.
A71: Then (Ctrl-v) to paste the new version of ExtractCompanyIdFromSummaryText that you copied from the Notepad or Notepad++ text document.
A73: You are done with the tricky part. Close the VBA editor and save the now retrofitted spreadsheet.
A75: Go to the inputPriceData tab and retrieve some data to verify that nothing is broken.
A76: Easter egg time: (Curious minds want to know...)
A77: If the data retrieval encounters a new format HTML response, the company name this code will display will have an asterisk(*) as a prefix.
A79: Foot Note: Today (Jan 19 2022) I have not encountered a single instance of the new format HTML while testing this spreadsheet for submission to the editors.
A80: So maybe YahooFinance is not test/using the new version right now?
A82: New for May 2021
A83: Upgraded the data download logic to do a better job of catching the common data download errors and provide a more graceful resolution.
A84: This includes better user notification of the nature of the error and some user control over how the error should be handled.
A85: User notification comes in the form of a MSGbox display that includes the (sometimes cryptic) description of the error and offers the user three options.
A87: Abort - If I could customize the title, I would rename this button to "Debug"
A88: This choice places you in Debug mode at the failing VBA statement.
A89: Unless you are feeling good about your VBA (and Network) debugging skills, this is probably not for you.
A91: Retry
A92: Lets the code retry the failed download request.
A93: This is a reasonable option if the download request timed out (similar to video buffering) or your network connection has dropped out..
A94: Probably a good idea to make sure your internet connection is alive and well before you select Retry.
A96: Ignore
A97: Lets the code fall thru to a (hopefully) graceful error completion with the error indicated at the top of the InputPriceData tab
A99: New for August 2020
A100: Restructured my Symbol-Not-Found detection and now stop further processing in the not found case
A102: New with the May 2020 version of my T-Tips template: VBA to implement a "Perpetual" U.S. Markets Closed Holiday Calendar.
A104: Why we need one: The Yahoo Finance recently has begun having occasional filtration problems where bars for U.S. Market Closed Holidays
A105: make their way onto the Historical Data web page and into the Historical Data download.
A107: While testing this May 2020 spreadsheet with different symbols, I found that I sometimes had bars with the text "null" in the price fields.
A108: My code always translates the "null" text price values to zeros.
A109: The resulting zeros cause real problems with indicator computations and the amount of blank space below price candles on the price chart.
A111: "null" price bars can be valid for very lightly traded penny sheet symbols which may not trade every day the markets are open.
A112: But is definitely not normal for symbols on the big boards.
A114: A closer look determined that these "bars" were for holiday dates when the US markets are normally closed.
A115: I found it interesting that some times the next download for the same symbol would not contain any of these "holiday" bars. Weird!
A117: My approach here was to write code to determine if the DATE on a null price values bar falls on one of the 9 market closed U.S. Holidays.
A118: If the bar date corresponds to one of these market closed holidays, I drop the bar before it reaches the InputPriceData tab.
A119: If the date is not a holiday, I let the bar through with the resulting zero values.
A121: No messy tables to update over the years as there are good solid rules that can be used in VBA or any other programming language to determine
A122: the dates for U.S. Market Closed Holidays for any given calendar year.
A124: This workbook contains and uses VBA macros and may take advantage of user defined VBA Class structures.
A125: Input Data:
A126: The data in this workbook is sorted date-descending (most recent date at the top). All cell formulas and
A127: VBA routines are built assuming this date sequence.
A129: ERROR 9 (already fixed in this spreadsheet)
A130: On or about Jan 29, 2020 Yahoo Finance changed the format of the split factor expression used their historical data downloads.
A131: The Split expression went from using "/" as in "New Share Number/Old Share Number",
A132: to using ":" as in "New Share Number:Old Share Number".
A133: This caused the then current version of my VBA code to fail with a "Runtime Error '9': subscript out of range".
A135: Fix for this ERROR 9
A136: For T-Tip spreadsheets from September 2018 up to present:
A137: Selecting the Debug option takes one into the VBA at the code line which causes the failure:
A138: CellArray(C_A_RowNdx, C_A_ColNdx + 1) = SplitFactors(1)
A139: Two lines above the failing VBA line is a line that reads:
A140: SplitFactors = Split(CsvColumns(CsvColNdx), "/")
A141: Change the / to a :
A142: The corrected line should now read
A143: SplitFactors = Split(CsvColumns(CsvColNdx), ":")
A145: If you are fixing several spreadsheets and do not want to use the failure to find the fix location,
A146: you can use VBA’s FIND dialog (Ctrl F) to look for the substring
A147: SplitFactors =
A148: Do include one space and the equal sign in your FIND string
A149: Select the "Current Project" option
A150: There should only be one instance.
A152: T-Tip spreadsheets prior to the September 2018 spreadsheet do not hard fail.
A154: They just get weird results in the split columns of the Input Price Data tab (soft fail).
A155: These older spreadsheets used different data retrieval and formatting logic.
A157: To fix these older spreadsheets:
A158: In the VBA editor, use find (CTRL-F).
A159: Select the "Current Project" option, and search for the following:
A160: OtherChar:="/"
A161: You are looking for a hit in a line reading:
A162: Other:=True, OtherChar:="/", _
A163: This line is part of a multiline block of code starting with a line that reads:
A164: SplitRange.Offset(0, 1).Resize(SpRows, 1).TextToColumns
A165: Change the / to a : so that the line reads
A166: Other:=True, OtherChar:=":", _
A169: 2019-04-04 Finally came up with a mechanism to align the left location and overall length of the cursor scroll bar so that the left most and right most
A170: scroll bar thumb positions visually align reasonably well with the left and right ends of the price chart horizontal axis.
A171: Makes it a little easier to visually align the Thumb and thus the cursor with points of interest on the charts.
A173: Older:
B174: My sincere apologies to our Macintosh based readers: Neither MSXML nor WinHttpRequest are supported in your environment. So as it stands this version of the spreadsheet will not work for you.
B175: See "Why this approach does not work for Macintosh" below.
B176: I am investigating cURL as a non-Querytable based approach for the Macintosh environment.
A178: The new Yahoo Finance history download interface has changed rather radically. The biggest hurdle being a pseudo-security requirement of adding a
B179: crumb character string to any URL requesting any type of history download. That crumb must match up (by way of some sort of hash algorithm) with
B180: the Yahoo Finance cookie that must also be sent with any request to the new Yahoo History down load interface.
B182: A crumb value is returned, buried in the HTML for any of what I call the "entry level" Yahoo Finance web pages (no crumb security requirement for entry level pages).
B183: A crumb may come with other Yahoo Finance pages. A crumb may even accompany some of the secured pages as well. I have not checked.
B185: Entry level pages are the top level pages of the various Yahoo Finance dialogs and include: Quote Lookup, Stock Summary Quote, and any of the pages
B186: with links in the horizontal row with the "Summary" link on the quote summary page such as Options, Historical Data, and the rest.
B188: To date I have found no way to get at this crumb value using any native EXCEL capabilities.
B190: So this crumb requirement effectively shuts out any solution that attempts to exclusively use built-in facilities of EXCEL, which is to say a purely Querytables solution.
B192: The approach built for this Traders Tip spreadsheet uses WINHTTP calls to Load the InputPriceData worksheet.
B194: First I call to get the HTML text for the Yahoo Summary Quote page using the requested symbol. From this HTML text I extract the full company name,
B195: the market it trades, the market status and time stamp, and finally the associated crumb string. There is a bunch of other useful bits buried in this HTML
B196: text that do not necessarily appear on the web page your browser presents. Perhaps some day I will go after and build a worksheet with these other bits.
B198: Next I add the freshly extracted crumb string to the URLs I use in three separate WINHTTP calls to retrieve Price history, Split history, and Dividend history respectively.
B200: From there VBA code proceeds as in the past to fill in the cell formulas and formatting that make the "prettied up" InputPriceData sheet.
A202: Why this approach works for Windows:
B203: WINHTTP maintains a temporary computer memory cache where cookies are maintained for as long as the WINHTTP object is instantiated.
B204: WINHTTP updates this cache any time a "set cookie" header accompanies a web response.
B205: Subsequent WINHTTP calls automatically search this cache for cookies and add any "appropriate" cookies to the headers
B206: of any web requests that get sent out.
B207: This cookie handling automation means that even if the response to our WINHTTP call for the Summary web page includes a new version of
B208: the Yahoo Finance cookie, the imbedded Crumb value will always match the cookie newly installed in the cache!
A211: Why this approach does not work for Macintosh:
B212: For what it is worth, the Macintosh version of the MS Office suite of products do in fact maintain a special, shared amongst themselves only, cookie cache.
B213: They automate cookie handling into and from this cache JUST for the Office products and any Querytable activity they might originate.
B215: This cache is not tied to, nor shared with, any browser that might be installed on the MAC. And I have not found anything with HTTP capabilities similar to
B216: MSXML that can work with that Office product cookie cache.
B218: When working in the MAC EXCEL environment, I have not yet become conversant with a Mac based WINHTTP like capability.
B219: So l currently have no mechanism to replicate the non-Querytable data retrieval process I am using in Windows environments.
B220: A software product called CURL has been suggested as providing this capability in the MAC environment.
B221: A version of CURL is available for the Windows So some day I may explore its capabilities and how to access those capabilities from VBA.
A223: Calculation and Chart Worksheet Usage Comments:
C224: In General, Items in Bolded BLUE are items you may freely change to play what-if games.
C225: Be sure to have a backup copy of the spreadsheet before you alter anything else.
A227: Features carried forward from the June 2016 version of my T-Tips Template
A228: Added a pair of buttons near cell F12 that will allow the user to step the charting window forward or backward one bar for each click.
A229: I find this to be a good way to test my understanding of the author's ideas as I step through the evolution of the price behavior and the indicators.
B231: First: In the "Help! I would like to plot data" area.
B232: Added button to resolve #NA problems by locating the bar in the input data with a slightly more recent date than what the user actually requested.
B233: I find this particularly useful when I have a general idea of where I want to be date wise. Now I can pick a set of dates "out of the air".
B234: If either (or both) of my date specifications fall between dates that are available in the price history,
B235: this button will resolve them to the dates of the nearest, slightly more recent input bars.
B236: I can then refine my data interval search as necessary from there.
B237: Really great when working with Weekly or Monthly studies!
C238: 2016Jun11 - added logic to the "I would like to chart.." button to detect #N/A values and terminate
C239: gracefully with a message instead of blowing up in the charting logic.
B241: Second: In the "Price Chart Windowing Controls" area. (A11 and A12)
B242: When retrieving data for a new symbol or when changing from daily to weekly or monthly data, there was the possibility that the
B243: residual settings in A11 and A12 would fall outside of the number bars available on the input data tab after the new data retrieval.
B244: In certain combinations, this could create a serious error in the chart sizing logic and crash the spreadsheet.
B245: I have taken this opportunity to update the validity checking logic used in the chart sizing macros
B246: to adjust these values as necessary so that they fall within the boundaries of the newly retrieved input data.
A247: Features carried forward from the October 2015 Traders Tips Template
B248: Improved automation: changes to any of the following will automatically initiate calculations appropriate to reflect a change.
C249: Changing either of cells A11 (pan) or A12 (zoom) will automatically initiate the same chart sizing macros that the manual
C250: "Set Chart" button uses.

Sheet InputPriceData
A1: Raytheon Technologies Corporation (RTX) -NYSE (Daily)
M2: To retrieve data for symbols traded on non US Exchanges, | II2: 241.79
A3: Request Online Yahoo History for: | F3: Market State == > | G3: At close: | H3: 16:00:00 | I3: EDT | M3: you will need to append the dot-suffix for the exchange to the symbol.
A4: Symbol | B4: RTX | D4: Valid | I4: =OFFSET(I4,-2,0,1,1) -> 0 | M4: The following links provide a description of how to use the exchange suffix
A5: From | B5: 1950-10-01 | D5: Data | M5: along with a list of suffixes for the major world exchanges. | AD5: Trailing 12 Div return (Cur Close)
A6: To | B6: =NOW() -> 2022-09-15T10:30:58.080 | D6: Types | E6: =VLOOKUP(B7,D7:E10,2,FALSE) -> d | M6: https://help.yahoo.com/kb/finance/SLN2310.html
A7: Data Type | B7: Daily | D7: Daily | E7: d | M7: And
A8: Crumb | B8: 4DA1BrXuYcx | D8: Weekly | E8: w | M8: https://www.stockmarketeye.com/users-guide/ticker-symbols-and-data-providers/data-providers.html
A9: Available Data | D9: Monthly | E9: m
A10: Bar Count: | B10: 15211 | M10: You may search on “exchange suffixes” for additional discussions | AD10: =OFFSET(AC15,1,0,1,1)/OFFSET(N15,1,0,1,1) -> 0.02420367622
A11: From: | B11: =IF(B10<=0,"",OFFSET(B15,B10,IF(HistReqDataType="v",1,0),1,1)) -> 1962-04-02 | W11: Trailing 12 Month Dividend Returns
A12: To: | B12: =IF(B10<=0,"",IF(HistReqDataType="v",OFFSET(B15,2,1,1,1),OFFSET(B15,1,0,1,1))) -> 2022-09-02 | E12: 43 | F12: Holiday (market closed) dates have been filtered out. | W12: Raw Close price on Dividend date | X12: Div Year and Month | Y12: Looking for year ago Div Year and Month | Z12: Year ago Div Date we found | AA12: row offset to year ago div Date | AB12: Same month flag | AC12: Trailing 12 Div Total | AD12: Trailing 12 Div return
Q13: Split History | S13: 7 | T13: Running | U13: Dividend History
B14: Raw Data Values | H14: Adjusted | I14: Price Adjust | J14: Vol Adjust | K14: Adjusted Values | P14: Last | Q14: Effective | R14: Shares | T14: Vol Adjust | V14: 241
A15: RelRow | B15: Date | C15: Open | D15: High | E15: Low | F15: Close | G15: Volume | H15: Close | I15: Factor | J15: Factor | K15: Open | L15: High | M15: Low | N15: Close | O15: Volume | P15: Trade | Q15: 44811 | R15: New | S15: Old | T15: 1 | U15: Date | V15: $ / Share
A16: 1 | B16: 2022-09-02 | C16: 88.970001 | D16: 89.760002 | E16: 87.290001 | F16: 87.589996 | G16: 4170800 | H16: 87.589996 | I16: =IF(F16=0,1,H16/F16) -> 1 | J16: =INDEX(OFFSET($T$15,0,0,$S$13+1,1),MATCH(B16,OFFSET($Q$15,0,0,$S$13+1,1),-1)) -> 1 | K16: =ROUND($I16*C16,2) -> 88.97 | L16: =ROUND($I16*D16,2) -> 89.76 | M16: 87.29 | N16: 87.59 | O16: =G16*J16 -> 4170800 | Q16: 2020-04-03 | R16: 15890 | S16: 10000 | T16: 1.589 | U16: 2022-08-18 | V16: 0.55 | W16: =(INDEX(OFFSET($F$15,1,0,$B$10,1),MATCH(U16,OFFSET($B$15,1,0,$B$10,1),-1))) -> 94.709999 | X16: =YEAR(U16)&RIGHT("0"&MONTH(U16),2) -> 202208 | Y16: =YEAR(U16)-1&RIGHT("0"&MONTH(U16),2) -> 202108 | Z16: =OFFSET(U15,AA16,0,1,1) -> 2021-08-19 | AA16: =MATCH(Y16,OFFSET($X$15,A16,0,$V$14+1-A16,1),-1) -> 5 | AB16: =IF(OR(AND(YEAR(U16)=YEAR(Z16),MONTH(U16)=MONTH(Z16)),MONTH(U16)=MONTH(Z16)),1,0) -> 1 | AC16: =(V16+IF(AA16-AB16=0,0,IFERROR(SUM(OFFSET(V16,1,0,AA16-AB16-1,1)),0))) -> 2.12 | AD16: =AC16/(INDEX(OFFSET($F$15,1,0,$B$10,1),MATCH(U16,OFFSET($B$15,1,0,$B$10,1),-1))) -> 0.02238412018
A17: 2 | B17: 2022-09-01 | C17: 89.410004 | D17: 89.550003 | E17: 87.480003 | F17: 88.029999 | G17: 6151900 | H17: 88.029999 | I17: =IF(F17=0,1,H17/F17) -> 1 | J17: =INDEX(OFFSET($T$15,0,0,$S$13+1,1),MATCH(B17,OFFSET($Q$15,0,0,$S$13+1,1),-1)) -> 1 | K17: =ROUND($I17*C17,2) -> 89.41 | L17: =ROUND($I17*D17,2) -> 89.55 | M17: =ROUND($I17*E17,2) -> 87.48 | N17: =ROUND($I17*F17,2) -> 88.03 | O17: =G17*J17 -> 6151900 | Q17: 2005-06-13 | R17: 2 | S17: 1 | T17: 3.178 | U17: 2022-05-19 | V17: 0.55 | W17: =(INDEX(OFFSET($F$15,1,0,$B$10,1),MATCH(U17,OFFSET($B$15,1,0,$B$10,1),-1))) -> 90.25 | X17: =YEAR(U17)&RIGHT("0"&MONTH(U17),2) -> 202205 | Y17: =YEAR(U17)-1&RIGHT("0"&MONTH(U17),2) -> 202105 | Z17: =OFFSET(U16,AA17,0,1,1) -> 2021-05-20 | AA17: =MATCH(Y17,OFFSET($X$15,A17,0,$V$14+1-A17,1),-1) -> 5 | AB17: =IF(OR(AND(YEAR(U17)=YEAR(Z17),MONTH(U17)=MONTH(Z17)),MONTH(U17)=MONTH(Z17)),1,0) -> 1 | AC17: =(V17+IF(AA17-AB17=0,0,IFERROR(SUM(OFFSET(V17,1,0,AA17-AB17-1,1)),0))) -> 2.08 | AD17: =AC17/(INDEX(OFFSET($F$15,1,0,$B$10,1),MATCH(U17,OFFSET($B$15,1,0,$B$10,1),-1))) -> 0.02304709141
A18: 3 | B18: 2022-08-31 | C18: 90.989998 | D18: 91.239998 | E18: 89.709999 | F18: 89.75 | G18: 4665700 | H18: 89.75 | I18: 1 | J18: 1 | K18: 90.99 | L18: 91.24 | M18: 89.71 | N18: 89.75 | O18: 4665700 | Q18: 1999-05-18 | R18: 2 | S18: 1 | T18: 6.356 | U18: 2022-02-24 | V18: 0.51 | W18: 94.25 | X18: 202202 | Y18: 202102 | Z18: 2021-02-25 | AA18: 5 | AB18: 1 | AC18: 2.04 | AD18: 0.02164456233
A19: 4 | B19: 2022-08-30 | C19: 92.389999 | D19: 92.510002 | E19: 90.330002 | F19: 90.830002 | G19: 3463000 | H19: 90.830002 | I19: 1 | J19: 1 | K19: 92.39 | L19: 92.51 | M19: 90.33 | N19: 90.83 | O19: 3463000 | Q19: 1996-12-11 | R19: 2 | S19: 1 | T19: 12.712 | U19: 2021-11-18 | V19: 0.51 | W19: 86.910004 | X19: 202111 | Y19: 202011 | Z19: 2020-11-12 | AA19: 5 | AB19: 1 | AC19: 2.005 | AD19: 0.0230698413
A20: 5 | B20: 2022-08-29 | C20: 92.660004 | D20: 92.989998 | E20: 91.279999 | F20: 92.120003 | G20: 3799000 | H20: 92.120003 | I20: 1 | J20: 1 | K20: 92.66 | L20: 92.99 | M20: 91.28 | N20: 92.12 | O20: 3799000 | Q20: 1984-06-11 | R20: 2 | S20: 1 | T20: 25.424 | U20: 2021-08-19 | V20: 0.51 | W20: 83.349998 | X20: 202108 | Y20: 202008 | Z20: 2020-08-13 | AA20: 5 | AB20: 1 | AC20: 1.97 | AD20: 0.02363527351
A21: 6 | B21: 2022-08-26 | C21: 96.620003 | D21: 96.830002 | E21: 93.489998 | F21: 93.519997 | G21: 2805700 | H21: 93.519997 | I21: 1 | J21: 1 | K21: 96.62 | L21: 96.83 | M21: 93.49 | N21: 93.52 | O21: 2805700 | Q21: 1976-05-19 | R21: 2 | S21: 1 | T21: 50.848 | U21: 2021-05-20 | V21: 0.51 | W21: 85.230003 | X21: 202105 | Y21: 202005 | Z21: 2020-05-14 | AA21: 5 | AB21: 1 | AC21: 1.935 | AD21: 0.0227032727
A22: 7 | B22: 2022-08-25 | C22: 93.830002 | D22: 96.220001 | E22: 93.760002 | F22: 96.129997 | G22: 4257700 | H22: 96.129997 | I22: 1 | J22: 1 | K22: 93.83 | L22: 96.22 | M22: 93.76 | N22: 96.13 | O22: 4257700 | Q22: 1965-11-01 | R22: 3 | S22: 2 | T22: 76.272 | U22: 2021-02-25 | V22: 0.475 | W22: 73.32 | X22: 202102 | Y22: 202002 | Z22: 2020-02-13 | AA22: 5 | AB22: 1 | AC22: 1.9 | AD22: 0.02591380251
A23: 8 | B23: 2022-08-24 | C23: 92.970001 | D23: 93.580002 | E23: 92.800003 | F23: 93.309998 | G23: 3065800 | H23: 93.309998 | I23: 1 | J23: 1 | K23: 92.97 | L23: 93.58 | M23: 92.8 | N23: 93.31 | O23: 3065800 | U23: 2020-11-12 | V23: 0.475 | W23: 63.990002 | X23: 202011 | Y23: 201911 | Z23: 2019-11-14 | AA23: 5 | AB23: 1 | AC23: 1.887555 | AD23: 0.02949765496
A24: 9 | B24: 2022-08-23 | C24: 91.93 | D24: 92.650002 | E24: 91.760002 | F24: 92.43 | G24: 2633900 | H24: 92.43 | I24: 1 | J24: 1 | K24: 91.93 | L24: 92.65 | M24: 91.76 | N24: 92.43 | O24: 2633900 | U24: 2020-08-13 | V24: 0.475 | W24: 63.299999 | X24: 202008 | Y24: 201908 | Z24: 2019-08-15 | AA24: 5 | AB24: 1 | AC24: 1.87511 | AD24: 0.02962259131
A25: 10 | B25: 2022-08-22 | C25: 92.309998 | D25: 92.949997 | E25: 91.650002 | F25: 91.779999 | G25: 5769600 | H25: 91.779999 | I25: 1 | J25: 1 | K25: 92.31 | L25: 92.95 | M25: 91.65 | N25: 91.78 | O25: 5769600 | U25: 2020-05-14 | V25: 0.475 | W25: 53.860001 | X25: 202005 | Y25: 201905 | Z25: 2019-05-16 | AA25: 5 | AB25: 1 | AC25: 1.862665 | AD25: 0.03458345647
A26: 11 | B26: 2022-08-19 | C26: 94.25 | D26: 95.010002 | E26: 93.139999 | F26: 93.400002 | G26: 5024700 | H26: 93.400002 | I26: 1 | J26: 1 | K26: 94.25 | L26: 95.01 | M26: 93.14 | N26: 93.4 | O26: 5024700 | U26: 2020-02-13 | V26: 0.462555 | W26: 96.32473 | X26: 202002 | Y26: 201902 | Z26: 2019-02-14 | AA26: 5 | AB26: 1 | AC26: 1.85022 | AD26: 0.01920815143
A27: 12 | B27: 2022-08-18 | C27: 94.849998 | D27: 95.019997 | E27: 94.239998 | F27: 94.709999 | G27: 2694500 | H27: 94.709999 | I27: 1 | J27: 1 | K27: 94.85 | L27: 95.02 | M27: 94.24 | N27: 94.71 | O27: 2694500 | U27: 2019-11-14 | V27: 0.462555 | W27: 93.209564 | X27: 201911 | Y27: 201811 | Z27: 2018-11-15 | AA27: 5 | AB27: 1 | AC27: 1.85022 | AD27: 0.01985010894
A28: 13 | B28: 2022-08-17 | C28: 94.110001 | D28: 95.639999 | E28: 93.809998 | F28: 94.989998 | G28: 3311100 | H28: 94.440002 | I28: 0.9942099588 | J28: 1 | K28: 93.57 | L28: 95.09 | M28: 93.27 | N28: 94.44 | O28: 3311100 | U28: 2019-08-15 | V28: 0.462555 | W28: 77.872879 | X28: 201908 | Y28: 201808 | Z28: 2018-08-16 | AA28: 5 | AB28: 1 | AC28: 1.85022 | AD28: 0.02375949141
A29: 14 | B29: 2022-08-16 | C29: 95.709999 | D29: 96.25 | E29: 94.879997 | F29: 95.050003 | G29: 5851000 | H29: 94.499657 | I29: 0.9942099318 | J29: 1 | K29: 95.16 | L29: 95.69 | M29: 94.33 | N29: 94.5 | O29: 5851000 | U29: 2019-05-16 | V29: 0.462555 | W29: 85.116425 | X29: 201905 | Y29: 201805 | Z29: 2018-05-17 | AA29: 5 | AB29: 1 | AC29: 1.828194 | AD29: 0.02147874514
A30: 15 | B30: 2022-08-15 | C30: 94.339996 | D30: 96.150002 | E30: 93.949997 | F30: 96.129997 | G30: 3376600 | H30: 95.573402 | I30: 0.9942099759 | J30: 1 | K30: 93.79 | L30: 95.59 | M30: 93.41 | N30: 95.57 | O30: 3376600 | U30: 2019-02-14 | V30: 0.462555 | W30: 78.118317 | X30: 201902 | Y30: 201802 | Z30: 2018-02-15 | AA30: 5 | AB30: 1 | AC30: 1.806168 | AD30: 0.02312092822
A31: 16 | B31: 2022-08-12 | C31: 93.279999 | D31: 95.07 | E31: 93.279999 | F31: 95.010002 | G31: 3652200 | H31: 94.459892 | I31: 0.994209978 | J31: 1 | K31: 92.74 | L31: 94.52 | M31: 92.74 | N31: 94.46 | O31: 3652200 | U31: 2018-11-15 | V31: 0.462555 | W31: 81.64254 | X31: 201811 | Y31: 201711 | Z31: 2017-11-16 | AA31: 5 | AB31: 1 | AC31: 1.784142 | AD31: 0.02185309276
A32: 17 | B32: 2022-08-11 | C32: 93.739998 | D32: 94.449997 | E32: 93.059998 | F32: 93.150002 | G32: 3487900 | H32: 92.610657 | I32: 0.9942099303 | J32: 1 | K32: 93.2 | L32: 93.9 | M32: 92.52 | N32: 92.61 | O32: 3487900 | U32: 2018-08-16 | V32: 0.440529 | W32: 83.895531 | X32: 201808 | Y32: 201708 | Z32: 2017-08-16 | AA32: 5 | AB32: 1 | AC32: 1.762116 | AD32: 0.02100369327
A33: 18 | B33: 2022-08-10 | C33: 92.970001 | D33: 93.720001 | E33: 92.449997 | F33: 93.419998 | G33: 3351300 | H33: 92.879089 | I33: 0.9942099228 | J33: 1 | K33: 92.43 | L33: 93.18 | M33: 91.91 | N33: 92.88 | O33: 3351300 | U33: 2018-05-17 | V33: 0.440529 | W33: 78.420387 | X33: 201805 | Y33: 201705 | Z33: 2017-05-17 | AA33: 5 | AB33: 1 | AC33: 1.762116 | AD33: 0.0224701263
A34: 19 | B34: 2022-08-09 | C34: 91.510002 | D34: 92.300003 | E34: 91.059998 | F34: 91.940002 | G34: 3137500 | H34: 91.407661 | I34: 0.9942099088 | J34: 1 | K34: 90.98 | L34: 91.77 | M34: 90.53 | N34: 91.41 | O34: 3137500 | U34: 2018-02-15 | V34: 0.440529 | W34: 81.812462 | X34: 201802 | Y34: 201702 | Z34: 2017-02-15 | AA34: 5 | AB34: 1 | AC34: 1.736943 | AD34: 0.02123078755
A35: 20 | B35: 2022-08-08 | C35: 93.699997 | D35: 93.699997 | E35: 90.959999 | F35: 91.199997 | G35: 4607400 | H35: 90.671944 | I35: 0.994209945 | J35: 1 | K35: 93.16 | L35: 93.16 | M35: 90.43 | N35: 90.67 | O35: 4607400 | U35: 2017-11-16 | V35: 0.440529 | W35: 74.191315 | X35: 201711 | Y35: 201611 | Z35: 2016-11-16 | AA35: 5 | AB35: 1 | AC35: 1.71177 | AD35: 0.02307237714
A36: 21 | B36: 2022-08-05 | C36: 92.160004 | D36: 93.099998 | E36: 91.839996 | F36: 93.029999 | G36: 3320200 | H36: 92.491348 | I36: 0.9942099215 | J36: 1 | K36: 91.63 | L36: 92.56 | M36: 91.31 | N36: 92.49 | O36: 3320200 | U36: 2017-08-16 | V36: 0.440529 | W36: 74.260544 | X36: 201708 | Y36: 201608 | Z36: 2016-08-17 | AA36: 5 | AB36: 1 | AC36: 1.686597 | AD36: 0.02271188587
A37: 22 | B37: 2022-08-04 | C37: 94.639999 | D37: 94.860001 | E37: 92.720001 | F37: 92.779999 | G37: 4443700 | H37: 92.242798 | I37: 0.9942099482 | J37: 1 | K37: 94.09 | L37: 94.31 | M37: 92.18 | N37: 92.24 | O37: 4443700 | U37: 2017-05-17 | V37: 0.415356 | W37: 75.254875 | X37: 201705 | Y37: 201605 | Z37: 2016-05-18 | AA37: 5 | AB37: 1 | AC37: 1.661424 | AD37: 0.022077294
A38: 23 | B38: 2022-08-03 | C38: 93.75 | D38: 94.93 | E38: 92.410004 | F38: 94.529999 | G38: 4491100 | H38: 93.982666 | I38: 0.9942099545 | J38: 1 | K38: 93.21 | L38: 94.38 | M38: 91.87 | N38: 93.98 | O38: 4491100 | U38: 2017-02-15 | V38: 0.415356 | W38: 70.42794 | X38: 201702 | Y38: 201602 | Z38: 2016-02-17 | AA38: 5 | AB38: 1 | AC38: 1.661424 | AD38: 0.02359041028
A39: 24 | B39: 2022-08-02 | C39: 93.739998 | D39: 94.779999 | E39: 92.699997 | F39: 93.75 | G39: 4066800 | H39: 93.207184 | I39: 0.9942099627 | J39: 1 | K39: 93.2 | L39: 94.23 | M39: 92.16 | N39: 93.21 | O39: 4066800 | U39: 2016-11-16 | V39: 0.415356 | W39: 67.312775 | X39: 201611 | Y39: 201511 | Z39: 2015-11-10 | AA39: 5 | AB39: 1 | AC39: 1.648837 | AD39: 0.02449515712
A40: 25 | B40: 2022-08-01 | C40: 93.589996 | D40: 94.959999 | E40: 93.089996 | F40: 93.239998 | G40: 5623100 | H40: 92.700134 | I40: 0.9942099527 | J40: 1 | K40: 93.05 | L40: 94.41 | M40: 92.55 | N40: 92.7 | O40: 5623100 | U40: 2016-08-17 | V40: 0.415356 | W40: 68.558846 | X40: 201608 | Y40: 201508 | Z40: 2015-08-12 | AA40: 5 | AB40: 1 | AC40: 1.63625 | AD40: 0.02386635854
A41: 26 | B41: 2022-07-29 | C41: 91.980003 | D41: 93.389999 | E41: 91.889999 | F41: 93.209999 | G41: 4848400 | H41: 92.670311 | I41: 0.9942099774 | J41: 1 | K41: 91.45 | L41: 92.85 | M41: 91.36 | N41: 92.67 | O41: 4848400 | U41: 2016-05-18 | V41: 0.415356 | W41: 62.48584 | X41: 201605 | Y41: 201505 | Z41: 2015-05-13 | AA41: 5 | AB41: 1 | AC41: 1.623663 | AD41: 0.02598449505
A42: 27 | B42: 2022-07-28 | C42: 90.25 | D42: 92.669998 | E42: 90.25 | F42: 92.389999 | G42: 4490900 | H42: 91.855057 | I42: 0.9942099577 | J42: 1 | K42: 89.73 | L42: 92.13 | M42: 89.73 | N42: 91.86 | O42: 4490900 | U42: 2016-02-17 | V42: 0.402769 | W42: 55.456261 | X42: 201602 | Y42: 201502 | Z42: 2015-02-11 | AA42: 5 | AB42: 1 | AC42: 1.611076 | AD42: 0.02905129143
A43: 28 | B43: 2022-07-27 | C43: 90.830002 | D43: 90.830002 | E43: 89.059998 | F43: 90.269997 | G43: 5558900 | H43: 89.74733 | I43: 0.9942099588 | J43: 1 | K43: 90.3 | L43: 90.3 | M43: 88.54 | N43: 89.75 | O43: 5558900 | U43: 2015-11-10 | V43: 0.402769 | W43: 62.101952 | X43: 201511 | Y43: 201411 | Z43: 2014-11-12 | AA43: 5 | AB43: 1 | AC43: 1.611076 | AD43: 0.02594243736
A44: 29 | B44: 2022-07-26 | C44: 92.510002 | D44: 93.370003 | E44: 90.190002 | F44: 90.239998 | G44: 8253200 | H44: 89.717506 | I44: 0.9942099733 | J44: 1 | K44: 91.97 | L44: 92.83 | M44: 89.67 | N44: 89.72 | O44: 8253200 | U44: 2015-08-12 | V44: 0.402769 | W44: 62.108246 | X44: 201508 | Y44: 201408 | Z44: 2014-08-13 | AA44: 5 | AB44: 1 | AC44: 1.57961 | AD44: 0.02543317678
A45: 30 | B45: 2022-07-25 | C45: 94.610001 | D45: 95.410004 | E45: 94.029999 | F45: 94.57 | G45: 4769200 | H45: 94.02243 | I45: 0.9942098974 | J45: 1 | K45: 94.06 | L45: 94.86 | M45: 93.49 | N45: 94.02 | O45: 4769200 | U45: 2015-05-13 | V45: 0.402769 | W45: 73.864067 | X45: 201505 | Y45: 201405 | Z45: 2014-05-14 | AA45: 5 | AB45: 1 | AC45: 1.548144 | AD45: 0.0209593658
A46: 31 | B46: 2022-07-22 | C46: 95.150002 | D46: 95.709999 | E46: 93.959999 | F46: 94.209999 | G46: 3254200 | H46: 93.66452 | I46: 0.994209967 | J46: 1 | K46: 94.6 | L46: 95.16 | M46: 93.42 | N46: 93.66 | O46: 3254200 | U46: 2015-02-11 | V46: 0.402769 | W46: 74.694778 | X46: 201502 | Y46: 201402 | Z46: 2014-02-12 | AA46: 5 | AB46: 1 | AC46: 1.516678 | AD46: 0.02030500713
A47: 32 | B47: 2022-07-21 | C47: 94.580002 | D47: 95.040001 | E47: 93.580002 | F47: 94.889999 | G47: 3124500 | H47: 94.340584 | I47: 0.9942099799 | J47: 1 | K47: 94.03 | L47: 94.49 | M47: 93.04 | N47: 94.34 | O47: 3124500 | U47: 2014-11-12 | V47: 0.371303 | W47: 68.055382 | X47: 201411 | Y47: 201311 | Z47: 2013-11-13 | AA47: 5 | AB47: 1 | AC47: 1.485212 | AD47: 0.02182357892
A48: 33 | B48: 2022-07-20 | C48: 93.599998 | D48: 95.139999 | E48: 93.129997 | F48: 94.830002 | G48: 3849200 | H48: 94.28093 | I48: 0.9942099337 | J48: 1 | K48: 93.06 | L48: 94.59 | M48: 92.59 | N48: 94.28 | O48: 3849200 | U48: 2014-08-13 | V48: 0.371303 | W48: 66.431717 | X48: 201408 | Y48: 201308 | Z48: 2013-08-14 | AA48: 5 | AB48: 1 | AC48: 1.485212 | AD48: 0.02235697144
A49: 34 | B49: 2022-07-19 | C49: 89.260002 | D49: 94.010002 | E49: 89.209999 | F49: 93.82 | G49: 5027600 | H49: 93.276779 | I49: 0.9942099659 | J49: 1 | K49: 88.74 | L49: 93.47 | M49: 88.69 | N49: 93.28 | O49: 5027600 | U49: 2014-05-14 | V49: 0.371303 | W49: 73.832596 | X49: 201405 | Y49: 201305 | Z49: 2013-05-15 | AA49: 5 | AB49: 1 | AC49: 1.450599 | AD49: 0.01964713526
A50: 35 | B50: 2022-07-18 | C50: 92.239998 | D50: 92.32 | E50: 89.480003 | F50: 89.800003 | G50: 5364300 | H50: 89.28006 | I50: 0.9942099891 | J50: 1 | K50: 91.71 | L50: 91.79 | M50: 88.96 | N50: 89.28 | O50: 5364300 | U50: 2014-02-12 | V50: 0.371303 | W50: 70.975456 | X50: 201402 | Y50: 201302 | Z50: 2013-02-13 | AA50: 5 | AB50: 1 | AC50: 1.415986 | AD50: 0.01995036143
A51: 36 | B51: 2022-07-15 | C51: 91 | D51: 91.459999 | E51: 90.300003 | F51: 91.230003 | G51: 3965200 | H51: 90.701775 | I51: 0.9942099311 | J51: 1 | K51: 90.47 | L51: 90.93 | M51: 89.78 | N51: 90.7 | O51: 3965200 | U51: 2013-11-13 | V51: 0.371303 | W51: 67.627441 | X51: 201311 | Y51: 201211 | Z51: 2012-11-14 | AA51: 5 | AB51: 1 | AC51: 1.381373 | AD51: 0.02042622018
A52: 37 | B52: 2022-07-14 | C52: 90.040001 | D52: 90.699997 | E52: 89.050003 | F52: 90.080002 | G52: 5029700 | H52: 89.558434 | I52: 0.9942099468 | J52: 1 | K52: 89.52 | L52: 90.17 | M52: 88.53 | N52: 89.56 | O52: 5029700 | U52: 2013-08-14 | V52: 0.33669 | W52: 66.117058 | X52: 201308 | Y52: 201208 | Z52: 2012-08-15 | AA52: 5 | AB52: 1 | AC52: 1.34676 | AD52: 0.02036932738
A53: 38 | B53: 2022-07-13 | C53: 92.809998 | D53: 94.330002 | E53: 91.709999 | F53: 91.809998 | G53: 5653700 | H53: 91.278412 | I53: 0.9942099334 | J53: 1 | K53: 92.27 | L53: 93.78 | M53: 91.18 | N53: 91.28 | O53: 5653700 | U53: 2013-05-15 | V53: 0.33669 | W53: 60.295784 | X53: 201305 | Y53: 201205 | Z53: 2012-05-16 | AA53: 5 | AB53: 1 | AC53: 1.34676 | AD53: 0.02233589002
A54: 39 | B54: 2022-07-12 | C54: 94.160004 | D54: 95.25 | E54: 93.809998 | F54: 94.5 | G54: 4667400 | H54: 93.952843 | I54: 0.9942099788 | J54: 1 | K54: 93.61 | L54: 94.7 | M54: 93.27 | N54: 93.95 | O54: 4667400 | U54: 2013-02-13 | V54: 0.33669 | W54: 56.324734 | X54: 201302 | Y54: 201202 | Z54: 2012-02-15 | AA54: 5 | AB54: 1 | AC54: 1.312147 | AD54: 0.02329610647
A55: 40 | B55: 2022-07-11 | C55: 94.290001 | D55: 95.139999 | E55: 94.050003 | F55: 94.709999 | G55: 2501400 | H55: 94.161621 | I55: 0.994209925 | J55: 1 | K55: 93.74 | L55: 94.59 | M55: 93.51 | N55: 94.16 | O55: 2501400 | U55: 2012-11-14 | V55: 0.33669 | W55: 46.979233 | X55: 201211 | Y55: 201111 | Z55: 2011-11-16 | AA55: 5 | AB55: 1 | AC55: 1.277534 | AD55: 0.02719358998
A56: 41 | B56: 2022-07-08 | C56: 94.290001 | D56: 95.720001 | E56: 93.940002 | F56: 95.120003 | G56: 2763200 | H56: 94.569252 | I56: 0.994209935 | J56: 1 | K56: 93.74 | L56: 95.17 | M56: 93.4 | N56: 94.57 | O56: 2763200 | U56: 2012-08-15 | V56: 0.33669 | W56: 49.081184 | X56: 201208 | Y56: 201108 | Z56: 2011-08-17 | AA56: 5 | AB56: 1 | AC56: 1.242921 | AD56: 0.02532377785
A57: 42 | B57: 2022-07-07 | C57: 94.550003 | D57: 95 | E57: 93.809998 | F57: 93.940002 | G57: 3212600 | H57: 93.396088 | I57: 0.9942099852 | J57: 1 | K57: 94 | L57: 94.45 | M57: 93.27 | N57: 93.4 | O57: 3212600 | U57: 2012-05-16 | V57: 0.302077 | W57: 47.0107 | X57: 201205 | Y57: 201105 | Z57: 2011-05-18 | AA57: 5 | AB57: 1 | AC57: 1.208308 | AD57: 0.02570282936
A58: 43 | B58: 2022-07-06 | C58: 93 | D58: 94.720001 | E58: 92.239998 | F58: 93.919998 | G58: 4294700 | H58: 93.376198 | I58: 0.9942099658 | J58: 1 | K58: 92.46 | L58: 94.17 | M58: 91.71 | N58: 93.38 | O58: 4294700 | U58: 2012-02-15 | V58: 0.302077 | W58: 51.98238 | X58: 201202 | Y58: 201102 | Z58: 2011-02-16 | AA58: 5 | AB58: 1 | AC58: 1.208308 | AD58: 0.02324456864
A59: 44 | B59: 2022-07-05 | C59: 94.919998 | D59: 95.449997 | E59: 91.410004 | F59: 92.919998 | G59: 4938700 | H59: 92.381989 | I59: 0.9942099762 | J59: 1 | K59: 94.37 | L59: 94.9 | M59: 90.88 | N59: 92.38 | O59: 4938700 | U59: 2011-11-16 | V59: 0.302077 | W59: 48.741348 | X59: 201111 | Y59: 201011 | Z59: 2010-11-17 | AA59: 5 | AB59: 1 | AC59: 1.173695 | AD59: 0.02408006853
A60: 45 | B60: 2022-07-01 | C60: 96.050003 | D60: 97.32 | E60: 95.339996 | F60: 97.019997 | G60: 4221000 | H60: 96.458244 | I60: 0.9942099256 | J60: 1 | K60: 95.49 | L60: 96.76 | M60: 94.79 | N60: 96.46 | O60: 4221000 | U60: 2011-08-17 | V60: 0.302077 | W60: 45.342983 | X60: 201108 | Y60: 201008 | Z60: 2010-08-18 | AA60: 5 | AB60: 1 | AC60: 1.139082 | AD60: 0.02512146146
A61: 46 | B61: 2022-06-30 | C61: 92.970001 | D61: 96.269997 | E61: 92.709999 | F61: 96.110001 | G61: 6319100 | H61: 95.55352 | I61: 0.9942099574 | J61: 1 | K61: 92.43 | L61: 95.71 | M61: 92.17 | N61: 95.55 | O61: 6319100 | U61: 2011-05-18 | V61: 0.302077 | W61: 54.845814 | X61: 201105 | Y61: 201005 | Z61: 2010-05-12 | AA61: 5 | AB61: 1 | AC61: 1.104469 | AD61: 0.02013770823
A62: 47 | B62: 2022-06-29 | C62: 94.220001 | D62: 94.300003 | E62: 92.300003 | F62: 93.300003 | G62: 2504100 | H62: 92.759789 | I62: 0.9942099252 | J62: 1 | K62: 93.67 | L62: 93.75 | M62: 91.77 | N62: 92.76 | O62: 2504100 | U62: 2011-02-16 | V62: 0.267464 | W62: 53.530521 | X62: 201102 | Y62: 201002 | Z62: 2010-02-17 | AA62: 5 | AB62: 1 | AC62: 1.069856 | AD62: 0.01998590673
A63: 48 | B63: 2022-06-28 | C63: 95.43 | D63: 96.790001 | E63: 93.68 | F63: 93.779999 | G63: 3358800 | H63: 93.237007 | I63: 0.9942099381 | J63: 1 | K63: 94.88 | L63: 96.23 | M63: 93.14 | N63: 93.24 | O63: 3358800 | U63: 2010-11-17 | V63: 0.267464 | W63: 46.343613 | X63: 201011 | Y63: 200911 | Z63: 2009-11-18 | AA63: 5 | AB63: 1 | AC63: 1.069856 | AD63: 0.02308529549
A64: 49 | B64: 2022-06-27 | C64: 94.440002 | D64: 95.050003 | E64: 93.839996 | F64: 94.809998 | G64: 2942600 | H64: 94.26104 | I64: 0.9942099144 | J64: 1 | K64: 93.89 | L64: 94.5 | M64: 93.3 | N64: 94.26 | O64: 2942600 | U64: 2010-08-18 | V64: 0.267464 | W64: 44.008812 | X64: 201008 | Y64: 200908 | Z64: 2009-08-19 | AA64: 5 | AB64: 1 | AC64: 1.044683 | AD64: 0.02373804137
A65: 50 | B65: 2022-06-24 | C65: 92.5 | D65: 94.370003 | E65: 91.879997 | F65: 94.199997 | G65: 4782200 | H65: 93.654572 | I65: 0.9942099255 | J65: 1 | K65: 91.96 | L65: 93.82 | M65: 91.35 | N65: 93.65 | O65: 4782200 | U65: 2010-05-12 | V65: 0.267464 | W65: 46.03524 | X65: 201005 | Y65: 200905 | Z65: 2009-05-13 | AA65: 5 | AB65: 1 | AC65: 1.01951 | AD65: 0.02214629488
A66: 51 | B66: 2022-06-23 | C66: 92.5 | D66: 93.32 | E66: 90.769997 | F66: 91.760002 | G66: 3310500 | H66: 91.228706 | I66: 0.9942099391 | J66: 1 | K66: 91.96 | L66: 92.78 | M66: 90.24 | N66: 91.23 | O66: 3310500 | U66: 2010-02-17 | V66: 0.267464 | W66: 42.385147 | X66: 201002 | Y66: 200902 | Z66: 2009-02-18 | AA66: 5 | AB66: 1 | AC66: 0.994337 | AD66: 0.02345956238
A67: 52 | B67: 2022-06-22 | C67: 91.199997 | D67: 93.82 | E67: 91.080002 | F67: 92.559998 | G67: 4481500 | H67: 92.024071 | I67: 0.9942099502 | J67: 1 | K67: 90.67 | L67: 93.28 | M67: 90.55 | N67: 92.02 | O67: 4481500 | U67: 2009-11-18 | V67: 0.242291 | W67: 43.303967 | X67: 200911 | Y67: 200811 | Z67: 2008-11-12 | AA67: 5 | AB67: 1 | AC67: 0.969164 | AD67: 0.02238048999
A68: 53 | B68: 2022-06-21 | C68: 90.849998 | D68: 93.349998 | E68: 90.110001 | F68: 92.919998 | G68: 5834200 | H68: 92.381989 | I68: 0.9942099762 | J68: 1 | K68: 90.32 | L68: 92.81 | M68: 89.59 | N68: 92.38 | O68: 5834200 | U68: 2009-08-19 | V68: 0.242291 | W68: 35.24229 | X68: 200908 | Y68: 200808 | Z68: 2008-08-13 | AA68: 5 | AB68: 1 | AC68: 0.969164 | AD68: 0.02750002908
A69: 54 | B69: 2022-06-17 | C69: 89.459999 | D69: 90.010002 | E69: 87.610001 | F69: 88.879997 | G69: 7577200 | H69: 88.365379 | I69: 0.9942099683 | J69: 1 | K69: 88.94 | L69: 89.49 | M69: 87.1 | N69: 88.37 | O69: 7577200 | U69: 2009-05-13 | V69: 0.242291 | W69: 31.85022 | X69: 200905 | Y69: 200805 | Z69: 2008-05-14 | AA69: 5 | AB69: 1 | AC69: 0.928258 | AD69: 0.02914447687
A70: 55 | B70: 2022-06-16 | C70: 91.050003 | D70: 91.18 | E70: 89.010002 | F70: 89.519997 | G70: 4517700 | H70: 89.001671 | I70: 0.9942099417 | J70: 1 | K70: 90.52 | L70: 90.65 | M70: 88.49 | N70: 89 | O70: 4517700 | U70: 2009-02-18 | V70: 0.242291 | W70: 28.2253 | X70: 200902 | Y70: 200802 | Z70: 2008-02-13 | AA70: 5 | AB70: 1 | AC70: 0.887352 | AD70: 0.03143817781
A71: 56 | B71: 2022-06-15 | C71: 92.099998 | D71: 93.190002 | E71: 90.800003 | F71: 92.279999 | G71: 4139200 | H71: 91.745689 | I71: 0.9942099046 | J71: 1 | K71: 91.57 | L71: 92.65 | M71: 90.27 | N71: 91.75 | O71: 4139200 | U71: 2008-11-12 | V71: 0.242291 | W71: 30.843298 | X71: 200811 | Y71: 200711 | Z71: 2007-11-14 | AA71: 5 | AB71: 1 | AC71: 0.846446 | AD71: 0.02744343358
A72: 57 | B72: 2022-06-14 | C72: 92.43 | D72: 92.709999 | E72: 90.730003 | F72: 91.32 | G72: 3977900 | H72: 90.791252 | I72: 0.9942099431 | J72: 1 | K72: 91.89 | L72: 92.17 | M72: 90.2 | N72: 90.79 | O72: 3977900 | U72: 2008-08-13 | V72: 0.201385 | W72: 41.598492 | X72: 200808 | Y72: 200708 | Z72: 2007-08-15 | AA72: 5 | AB72: 1 | AC72: 0.80554 | AD72: 0.01936464428
A73: 58 | B73: 2022-06-13 | C73: 93.489998 | D73: 93.529999 | E73: 91.379997 | F73: 91.949997 | G73: 5419200 | H73: 91.417603 | I73: 0.9942099617 | J73: 1 | K73: 92.95 | L73: 92.99 | M73: 90.85 | N73: 91.42 | O73: 5419200 | U73: 2008-05-14 | V73: 0.201385 | W73: 47.30019 | X73: 200805 | Y73: 200705 | Z73: 2007-05-16 | AA73: 5 | AB73: 1 | AC73: 0.80554 | AD73: 0.01703037557
A74: 59 | B74: 2022-06-10 | C74: 95.82 | D74: 96.690002 | E74: 94.449997 | F74: 95.489998 | G74: 5615900 | H74: 94.937103 | I74: 0.9942099171 | J74: 1 | K74: 95.27 | L74: 96.13 | M74: 93.9 | N74: 94.94 | O74: 5615900 | U74: 2008-02-13 | V74: 0.201385 | W74: 46.268093 | X74: 200802 | Y74: 200702 | Z74: 2007-02-14 | AA74: 5 | AB74: 1 | AC74: 0.770927 | AD74: 0.01666217365
A75: 60 | B75: 2022-06-09 | C75: 98.330002 | D75: 99.169998 | E75: 97.32 | F75: 97.379997 | G75: 4566900 | H75: 96.816162 | I75: 0.9942099505 | J75: 1 | K75: 97.76 | L75: 98.6 | M75: 96.76 | N75: 96.82 | O75: 4566900 | U75: 2007-11-14 | V75: 0.201385 | W75: 47.149151 | X75: 200711 | Y75: 200611 | Z75: 2006-11-15 | AA75: 5 | AB75: 1 | AC75: 0.736314 | AD75: 0.01561669689
A76: 61 | B76: 2022-06-08 | C76: 99.730003 | D76: 100.330002 | E76: 98.959999 | F76: 99.230003 | G76: 6666600 | H76: 98.655457 | I76: 0.9942099568 | J76: 1 | K76: 99.15 | L76: 99.75 | M76: 98.39 | N76: 98.66 | O76: 6666600 | U76: 2007-08-15 | V76: 0.201385 | W76: 45.078667 | X76: 200708 | Y76: 200608 | Z76: 2006-08-16 | AA76: 5 | AB76: 1 | AC76: 0.701701 | AD76: 0.01556614352
A77: 62 | B77: 2022-06-07 | C77: 97.18 | D77: 100.68 | E77: 96.660004 | F77: 100.510002 | G77: 5634600 | H77: 99.928047 | I77: 0.9942099792 | J77: 1 | K77: 96.62 | L77: 100.1 | M77: 96.1 | N77: 99.93 | O77: 5634600 | U77: 2007-05-16 | V77: 0.166772 | W77: 43.096287 | X77: 200705 | Y77: 200605 | Z77: 2006-05-17 | AA77: 5 | AB77: 1 | AC77: 0.667088 | AD77: 0.01547901331
A78: 63 | B78: 2022-06-06 | C78: 96.989998 | D78: 97.489998 | E78: 96.389999 | F78: 97.209999 | G78: 3080300 | H78: 96.647148 | I78: 0.9942099475 | J78: 1 | K78: 96.43 | L78: 96.93 | M78: 95.83 | N78: 96.65 | O78: 3080300 | U78: 2007-02-14 | V78: 0.166772 | W78: 42.901196 | X78: 200702 | Y78: 200602 | Z78: 2006-02-15 | AA78: 5 | AB78: 1 | AC78: 0.667088 | AD78: 0.01554940333
A79: 64 | B79: 2022-06-03 | C79: 95.360001 | D79: 96.620003 | E79: 95.290001 | F79: 96.330002 | G79: 2837000 | H79: 95.772247 | I79: 0.9942099555 | J79: 1 | K79: 94.81 | L79: 96.06 | M79: 94.74 | N79: 95.77 | O79: 2837000 | U79: 2006-11-15 | V79: 0.166772 | W79: 41.283825 | X79: 200611 | Y79: 200511 | Z79: 2005-11-16 | AA79: 5 | AB79: 1 | AC79: 0.638768 | AD79: 0.01547259732
A80: 65 | B80: 2022-06-02 | C80: 95.769997 | D80: 96.309998 | E80: 94.059998 | F80: 96.239998 | G80: 3460300 | H80: 95.682762 | I80: 0.9942099334 | J80: 1 | K80: 95.22 | L80: 95.75 | M80: 93.52 | N80: 95.68 | O80: 3460300 | U80: 2006-08-16 | V80: 0.166772 | W80: 39.125237 | X80: 200608 | Y80: 200508 | Z80: 2005-08-17 | AA80: 5 | AB80: 1 | AC80: 0.610448 | AD80: 0.01560241028
A81: 66 | B81: 2022-06-01 | C81: 96.010002 | D81: 96.279999 | E81: 94.099998 | F81: 94.809998 | G81: 4245900 | H81: 94.26104 | I81: =IF(F81=0,1,H81/F81) -> 0.9942099144 | J81: =INDEX(OFFSET($T$15,0,0,$S$13+1,1),MATCH(B81,OFFSET($Q$15,0,0,$S$13+1,1),-1)) -> 1 | K81: =ROUND($I81*C81,2) -> 95.45 | L81: =ROUND($I81*D81,2) -> 95.72 | M81: =ROUND($I81*E81,2) -> 93.56 | N81: =ROUND($I81*F81,2) -> 94.26 | O81: =G81*J81 -> 4245900 | U81: 2006-05-17 | V81: 0.166772 | W81: =(INDEX(OFFSET($F$15,1,0,$B$10,1),MATCH(U81,OFFSET($B$15,1,0,$B$10,1),-1))) -> 40.119572 | X81: =YEAR(U81)&RIGHT("0"&MONTH(U81),2) -> 200605 | Y81: =YEAR(U81)-1&RIGHT("0"&MONTH(U81),2) -> 200505 | Z81: =OFFSET(U80,AA81,0,1,1) -> 2005-05-18 | AA81: =MATCH(Y81,OFFSET($X$15,A81,0,$V$14+1-A81,1),-1) -> 5 | AB81: =IF(OR(AND(YEAR(U81)=YEAR(Z81),MONTH(U81)=MONTH(Z81)),MONTH(U81)=MONTH(Z81)),1,0) -> 1 | AC81: =(V81+IF(AA81-AB81=0,0,IFERROR(SUM(OFFSET(V81,1,0,AA81-AB81-1,1)),0))) -> 0.582128 | AD81: =AC81/(INDEX(OFFSET($F$15,1,0,$B$10,1),MATCH(U81,OFFSET($B$15,1,0,$B$10,1),-1))) -> 0.01450982578
A82: 67 | B82: 2022-05-31 | C82: 95.360001 | D82: 95.970001 | E82: 94.629997 | F82: 95.120003 | G82: 6478700 | H82: 94.569252 | I82: 0.994209935 | J82: 1 | K82: 94.81 | L82: 95.41 | M82: 94.08 | N82: 94.57 | O82: 6478700 | U82: 2006-02-15 | V82: 0.138452 | W82: 36.582756 | X82: 200602 | Y82: 200502 | Z82: 2005-02-16 | AA82: 5 | AB82: 1 | AC82: 0.553808 | AD82: 0.01513849859
A83: 68 | B83: 2022-05-27 | C83: 95.629997 | D83: 96.720001 | E83: 95.199997 | F83: 96.709999 | G83: 3394200 | H83: 96.15004 | I83: 0.9942099162 | J83: 1 | K83: 95.08 | L83: 96.16 | M83: 94.65 | N83: 96.15 | O83: 3394200 | U83: 2005-11-16 | V83: 0.138452 | W83: 33.713028 | X83: 200511 | Y83: 200411 | Z83: 2004-11-17 | AA83: 5 | AB83: 1 | AC83: 0.553808 | AD83: 0.01642712129
A84: 69 | B84: 2022-05-26 | C84: 94.519997 | D84: 95.860001 | E84: 94.110001 | F84: 95 | G84: 5545800 | H84: 94.449944 | I84: 0.9942099368 | J84: 1 | K84: 93.97 | L84: 95.3 | M84: 93.57 | N84: 94.45 | O84: 5545800 | U84: 2005-08-17 | V84: 0.138452 | W84: 32.48584 | X84: 200508 | Y84: 200408 | Z84: 2004-08-18 | AA84: 5 | AB84: 1 | AC84: 0.525488 | AD84: 0.01617590926
A85: 70 | B85: 2022-05-25 | C85: 93.32 | D85: 94.099998 | E85: 92.589996 | F85: 93.559998 | G85: 3742000 | H85: 93.01828 | I85: 0.99420994 | J85: 1 | K85: 92.78 | L85: 93.56 | M85: 92.05 | N85: 93.02 | O85: 3742000 | U85: 2005-05-18 | V85: 0.138452 | W85: 33.275646 | X85: 200505 | Y85: 200405 | Z85: 2004-05-19 | AA85: 5 | AB85: 1 | AC85: 0.497168 | AD85: 0.01494089702
A86: 71 | B86: 2022-05-24 | C86: 91.199997 | D86: 93.419998 | E86: 90.470001 | F86: 93.209999 | G86: 5932000 | H86: 92.670311 | I86: 0.9942099774 | J86: 1 | K86: 90.67 | L86: 92.88 | M86: 89.95 | N86: 92.67 | O86: 5932000 | U86: 2005-02-16 | V86: 0.138452 | W86: 32.363121 | X86: 200502 | Y86: 200402 | Z86: 2004-02-18 | AA86: 5 | AB86: 1 | AC86: 0.468848 | AD86: 0.0144871071
A87: 72 | B87: 2022-05-23 | C87: 90.599998 | D87: 92.019997 | E87: 90 | F87: 91.830002 | G87: 4701300 | H87: 91.298302 | I87: 0.9942099533 | J87: 1 | K87: 90.08 | L87: 91.49 | M87: 89.48 | N87: 91.3 | O87: 4701300 | U87: 2004-11-17 | V87: 0.110132 | W87: 30.63562 | X87: 200411 | Y87: 200311 | Z87: 2003-11-12 | AA87: 5 | AB87: 1 | AC87: 0.440528 | AD87: 0.01437960126
A88: 73 | B88: 2022-05-20 | C88: 90.839996 | D88: 91.169998 | E88: 88.43 | F88: 90.080002 | G88: 6585500 | H88: 89.558434 | I88: 0.9942099468 | J88: 1 | K88: 90.31 | L88: 90.64 | M88: 87.92 | N88: 89.56 | O88: 6585500 | U88: 2004-08-18 | V88: 0.110132 | W88: 29.232222 | X88: 200408 | Y88: 200308 | Z88: 2003-08-20 | AA88: 5 | AB88: 1 | AC88: 0.440528 | AD88: 0.01506994576
A89: 74 | B89: 2022-05-19 | C89: 91.379997 | D89: 92.459999 | E89: 89.540001 | F89: 90.25 | G89: 5234700 | H89: 89.727448 | I89: 0.9942099501 | J89: 1 | K89: 90.85 | L89: 91.92 | M89: 89.02 | N89: 89.73 | O89: 5234700 | U89: 2004-05-19 | V89: 0.110132 | W89: 25.786657 | X89: 200405 | Y89: 200305 | Z89: 2003-05-14 | AA89: 5 | AB89: 1 | AC89: 0.415355 | AD89: 0.01610736126
A90: 75 | B90: 2022-05-18 | C90: 94.330002 | D90: 95.199997 | E90: 92.279999 | F90: 92.610001 | G90: 5843100 | H90: 91.526962 | I90: 0.9883053775 | J90: 1 | K90: 93.23 | L90: 94.09 | M90: 91.2 | N90: 91.53 | O90: 5843100 | U90: 2004-02-18 | V90: 0.110132 | W90: 30.63562 | X90: 200402 | Y90: 200302 | Z90: 2003-02-12 | AA90: 5 | AB90: 1 | AC90: 0.390182 | AD90: 0.01273622013
A91: 76 | B91: 2022-05-17 | C91: 94.330002 | D91: 95.139999 | E91: 93.5 | F91: 94.949997 | G91: 4447200 | H91: 93.8396 | I91: 0.9883054551 | J91: 1 | K91: 93.23 | L91: 94.03 | M91: 92.41 | N91: 93.84 | O91: 4447200 | U91: 2003-11-12 | V91: 0.110132 | W91: 27.123978 | X91: 200311 | Y91: 200211 | Z91: 2002-11-13 | AA91: 5 | AB91: 1 | AC91: 0.357143 | AD91: 0.01316705831
A92: 77 | B92: 2022-05-16 | C92: 91.849998 | D92: 93.540001 | E92: 91.809998 | F92: 92.480003 | G92: 5158500 | H92: 91.398491 | I92: 0.9883054502 | J92: 1 | K92: 90.78 | L92: 92.45 | M92: 90.74 | N92: 91.4 | O92: 5158500 | U92: 2003-08-20 | V92: 0.084959 | W92: 24.424166 | X92: 200308 | Y92: 200208 | Z92: 2002-08-21 | AA92: 5 | AB92: 1 | AC92: 0.324104 | AD92: 0.01326980827
A93: 78 | B93: 2022-05-13 | C93: 92.050003 | D93: 92.610001 | E93: 91.089996 | F93: 91.919998 | G93: 5465600 | H93: 90.845032 | I93: 0.9883054175 | J93: 1 | K93: 90.97 | L93: 91.53 | M93: 90.02 | N93: 90.85 | O93: 5465600 | U93: 2003-05-14 | V93: 0.084959 | W93: 21.211454 | X93: 200305 | Y93: 200205 | Z93: 2002-05-15 | AA93: 5 | AB93: 1 | AC93: 0.316238 | AD93: 0.0149088318
A94: 79 | B94: 2022-05-12 | C94: 90.849998 | D94: 92.470001 | E94: 89.940002 | F94: 91.480003 | G94: 6356200 | H94: 90.410187 | I94: 0.9883054661 | J94: 1 | K94: 89.79 | L94: 91.39 | M94: 88.89 | N94: 90.41 | O94: 6356200 | U94: 2003-02-12 | V94: 0.077093 | W94: 19.03713 | X94: 200302 | Y94: 200202 | Z94: 2002-02-13 | AA94: 5 | AB94: 1 | AC94: 0.308372 | AD94: 0.01619845008
A95: 80 | B95: 2022-05-11 | C95: 91.269997 | D95: 94.129997 | E95: 90.809998 | F95: 91 | G95: 6493900 | H95: 89.935799 | I95: 0.9883054835 | J95: 1 | K95: 90.2 | L95: 93.03 | M95: 89.75 | N95: 89.94 | O95: 6493900 | U95: 2002-11-13 | V95: 0.077093 | W95: 19.524858 | X95: 200211 | Y95: 200111 | Z95: 2001-11-14 | AA95: 5 | AB95: 1 | AC95: 0.308372 | AD95: 0.01579381525
A96: 81 | B96: 2022-05-10 | C96: 92.440002 | D96: 93.860001 | E96: 91.360001 | F96: 91.690002 | G96: 7526300 | H96: 90.617722 | I96: 0.9883053771 | J96: 1 | K96: 91.36 | L96: 92.76 | M96: 90.29 | N96: 90.62 | O96: 7526300 | U96: 2002-08-21 | V96: 0.077093 | W96: 19.276274 | X96: 200208 | Y96: 200108 | Z96: 2001-08-22 | AA96: 5 | AB96: 1 | AC96: 0.302078 | AD96: 0.01567097459
A97: 82 | B97: 2022-05-09 | C97: 94.529999 | D97: 94.790001 | E97: 91.25 | F97: 91.75 | G97: 6071900 | H97: 90.677025 | I97: 0.9883054496 | J97: 1 | K97: 93.42 | L97: 93.68 | M97: 90.18 | N97: 90.68 | O97: 6071900 | U97: 2002-05-15 | V97: 0.077093 | W97: 22.16803 | X97: 200205 | Y97: 200105 | Z97: 2001-05-16 | AA97: 5 | AB97: 1 | AC97: 0.295784 | AD97: 0.01334281846
A98: 83 | B98: 2022-05-06 | C98: 95.709999 | D98: 96.050003 | E98: 93.720001 | F98: 95.300003 | G98: 5295000 | H98: 94.185509 | I98: 0.9883054148 | J98: 1 | K98: 94.59 | L98: 94.93 | M98: 92.62 | N98: 94.19 | O98: 5295000 | U98: 2002-02-13 | V98: 0.077093 | W98: 21.998112 | X98: 200202 | Y98: 200102 | Z98: 2001-02-14 | AA98: 5 | AB98: 1 | AC98: 0.28949 | AD98: 0.01315976571
A99: 84 | B99: 2022-05-05 | C99: 97.800003 | D99: 98.199997 | E99: 95.410004 | F99: 96.32 | G99: 5906500 | H99: 95.193581 | I99: 0.9883054506 | J99: 1 | K99: 96.66 | L99: 97.05 | M99: 94.29 | N99: 95.19 | O99: 5906500 | U99: 2001-11-14 | V99: 0.070799 | W99: 18.307112 | X99: 200111 | Y99: 200011 | Z99: 2000-11-15 | AA99: 5 | AB99: 1 | AC99: 0.283196 | AD99: 0.01546917941
A100: 85 | B100: 2022-05-04 | C100: 94.989998 | D100: 98.019997 | E100: 94.949997 | F100: 97.760002 | G100: 6160800 | H100: 96.616737 | I100: 0.988305391 | J100: 1 | K100: 93.88 | L100: 96.87 | M100: 93.84 | N100: 96.62 | O100: 6160800 | U100: 2001-08-22 | V100: 0.070799 | W100: 22.923222 | X100: 200108 | Y100: 200008 | Z100: 2000-08-23 | AA100: 5 | AB100: 1 | AC100: 0.283196 | AD100: 0.01235410973
A101: 86 | B101: 2022-05-03 | C101: 95.18 | D101: 96.129997 | E101: 94.32 | F101: 95.400002 | G101: 5612200 | H101: 94.284348 | I101: 0.9883055139 | J101: 1 | K101: 94.07 | L101: 95.01 | M101: 93.22 | N101: 94.28 | O101: 5612200 | U101: 2001-05-16 | V101: 0.070799 | W101: 26.085588 | X101: 200105 | Y101: 200005 | Z101: 2000-05-17 | AA101: 5 | AB101: 1 | AC101: 0.27533 | AD101: 0.01055487038
A102: 87 | B102: 2022-05-02 | C102: 94.510002 | D102: 95.330002 | E102: 92.400002 | F102: 94.220001 | G102: 7870600 | H102: 93.118141 | I102: 0.9883054554 | J102: 1 | K102: 93.4 | L102: 94.22 | M102: 91.32 | N102: 93.12 | O102: 7870600 | U102: 2001-02-14 | V102: 0.070799 | W102: 24.229074 | X102: 200102 | Y102: 200002 | Z102: 2000-02-16 | AA102: 5 | AB102: 1 | AC102: 0.267464 | AD102: 0.01103896913
A103: 88 | B103: 2022-04-29 | C103: 98.470001 | D103: 98.889999 | E103: 94.610001 | F103: 94.910004 | G103: 5883000 | H103: 93.800072 | I103: 0.9883054267 | J103: 1 | K103: 97.32 | L103: 97.73 | M103: 93.5 | N103: 93.8 | O103: 5883000 | U103: 2000-11-15 | V103: 0.070799 | W103: 21.102108 | X103: 200011 | Y103: 199911 | Z103: 1999-11-17 | AA103: 5 | AB103: 1 | AC103: 0.259598 | AD103: 0.01230199372
A104: 89 | B104: 2022-04-28 | C104: 99 | D104: 99.260002 | E104: 96.900002 | F104: 98.080002 | G104: 6544200 | H104: 96.932999 | I104: 0.9883054346 | J104: 1 | K104: 97.84 | L104: 98.1 | M104: 95.77 | N104: 96.93 | O104: 6544200 | U104: 2000-08-23 | V104: 0.062933 | W104: 20.167952 | X104: 200008 | Y104: 199908 | Z104: 1999-08-25 | AA104: 5 | AB104: 1 | AC104: 0.251732 | AD104: 0.01248178298
A105: 90 | B105: 2022-04-27 | C105: 99.220001 | D105: 99.910004 | E105: 97.599998 | F105: 98.839996 | G105: 6632100 | H105: 97.684105 | I105: 0.9883054325 | J105: 1 | K105: 98.06 | L105: 98.74 | M105: 96.46 | N105: 97.68 | O105: 6632100 | U105: 2000-05-17 | V105: 0.062933 | W105: 20.512115 | X105: 200005 | Y105: 199905 | Z105: 1999-05-05 | AA105: 5 | AB105: 1 | AC105: 0.245438 | AD105: 0.01196551404
A106: 91 | B106: 2022-04-26 | C106: 96.900002 | D106: 100.949997 | E106: 96.779999 | F106: 99.190002 | G106: 7199200 | H106: 98.030014 | I106: 0.9883053939 | J106: 1 | K106: 95.77 | L106: 99.77 | M106: 95.65 | N106: 98.03 | O106: 7199200 | U106: 2000-02-16 | V106: 0.062933 | W106: 16.401825 | X106: 200002 | Y106: 199902 | Z106: 1999-02-17 | AA106: 5 | AB106: 1 | AC106: 0.239144 | AD106: 0.01458032871
A107: 92 | B107: 2022-04-25 | C107: 99.849998 | D107: 99.919998 | E107: 97.57 | F107: 99.610001 | G107: 5612500 | H107: 98.445107 | I107: 0.9883054514 | J107: 1 | K107: 98.68 | L107: 98.75 | M107: 96.43 | N107: 98.45 | O107: 5612500 | U107: 1999-11-17 | V107: 0.062933 | W107: 17.739143 | X107: 199911 | Y107: 199811 | Z107: 1998-11-18 | AA107: 5 | AB107: 1 | AC107: 0.23285 | AD107: 0.01312633874
A108: 93 | B108: 2022-04-22 | C108: 101.449997 | D108: 102.559998 | E108: 100.370003 | F108: 100.489998 | G108: 4683300 | H108: 99.314812 | I108: 0.9883054431 | J108: 1 | K108: 100.26 | L108: 101.36 | M108: 99.2 | N108: 99.31 | O108: 4683300 | U108: 1999-08-25 | V108: 0.056639 | W108: 22.026432 | X108: 199908 | Y108: 199808 | Z108: 1998-08-19 | AA108: 5 | AB108: 1 | AC108: 0.226556 | AD108: 0.01028564227
A109: 94 | B109: 2022-04-21 | C109: 105.849998 | D109: 106.019997 | E109: 101.400002 | F109: 101.730003 | G109: 5795300 | H109: 100.540314 | I109: 0.9883054265 | J109: 1 | K109: 104.61 | L109: 104.78 | M109: 100.21 | N109: 100.54 | O109: 5795300 | U109: 1999-05-05 | V109: 0.056639 | W109: 22.931089 | X109: 199905 | Y109: 199805 | Z109: 1998-05-20 | AA109: 5 | AB109: 1 | AC109: 0.226556 | AD109: 0.009879862225
A110: 95 | B110: 2022-04-20 | C110: 105.68 | D110: 106.019997 | E110: 104.279999 | F110: 104.970001 | G110: 4232200 | H110: 103.742424 | I110: 0.9883054493 | J110: 1 | K110: 104.44 | L110: 104.78 | M110: 103.06 | N110: 103.74 | O110: 4232200 | U110: 1999-02-17 | V110: 0.056639 | W110: 19.155128 | X110: 199902 | Y110: 199802 | Z110: 1998-02-18 | AA110: 5 | AB110: 1 | AC110: 0.226556 | AD110: 0.01182743336
A111: 96 | B111: 2022-04-19 | C111: 104.440002 | D111: 105.660004 | E111: 104.160004 | F111: 104.550003 | G111: 4572800 | H111: 103.327339 | I111: 0.9883054618 | J111: 1 | K111: 103.22 | L111: 104.42 | M111: 102.94 | N111: 103.33 | O111: 4572800 | U111: 1998-11-18 | V111: 0.056639 | W111: 15.683999 | X111: 199811 | Y111: 199711 | Z111: 1997-11-19 | AA111: 5 | AB111: 1 | AC111: 0.21869 | AD111: 0.0139435102
A112: 97 | B112: 2022-04-18 | C112: 104.260002 | D112: 105.459999 | E112: 103.910004 | F112: 104.300003 | G112: 3873300 | H112: 103.080261 | I112: 0.9883054462 | J112: 1 | K112: 103.04 | L112: 104.23 | M112: 102.69 | N112: 103.08 | O112: 3873300 | U112: 1998-08-19 | V112: 0.056639 | W112: 13.953351 | X112: 199808 | Y112: 199708 | Z112: 1997-08-20 | AA112: 5 | AB112: 1 | AC112: 0.210824 | AD112: 0.01510920208
A113: 98 | B113: 2022-04-14 | C113: 103.889999 | D113: 104.980003 | E113: 103.669998 | F113: 104.269997 | G113: 4027400 | H113: 103.050606 | I113: 0.9883054471 | J113: 1 | K113: 102.68 | L113: 103.75 | M113: 102.46 | N113: 103.05 | O113: 4027400 | U113: 1998-05-20 | V113: 0.056639 | W113: 15.182505 | X113: 199805 | Y113: 199705 | Z113: 1997-05-21 | AA113: 5 | AB113: 1 | AC113: 0.202958 | AD113: 0.01336788626
A114: 99 | B114: 2022-04-13 | C114: 103.32 | D114: 104.449997 | E114: 102.639999 | F114: 103.370003 | G114: 5351900 | H114: 102.16114 | I114: 0.9883054758 | J114: 1 | K114: 102.11 | L114: 103.23 | M114: 101.44 | N114: 102.16 | O114: 5351900 | U114: 1998-02-18 | V114: 0.048773 | W114: 13.569855 | X114: 199802 | Y114: 199702 | Z114: 1997-02-19 | AA114: 5 | AB114: 1 | AC114: 0.195092 | AD114: 0.01437686696
A115: 100 | B115: 2022-04-12 | C115: 102.18 | D115: 103.980003 | E115: 102.07 | F115: 102.599998 | G115: 4839200 | H115: 101.400139 | I115: 0.9883054676 | J115: 1 | K115: 100.99 | L115: 102.76 | M115: 100.88 | N115: 101.4 | O115: 4839200 | U115: 1997-11-19 | V115: 0.048773 | W115: 11.524544 | X115: 199711 | Y115: 199611 | Z115: 1996-11-20 | AA115: 5 | AB115: 1 | AC115: 0.195092 | AD115: 0.01692839213
A116: 101 | B116: 2022-04-11 | C116: 100.639999 | D116: 102.949997 | E116: 100.639999 | F116: 102.110001 | G116: 5707600 | H116: 100.915871 | I116: 0.988305455 | J116: 1 | K116: 99.46 | L116: 101.75 | M116: 99.46 | N116: 100.92 | O116: 5707600 | U116: 1997-08-20 | V116: 0.048773 | W116: 12.82253 | X116: 199708 | Y116: 199608 | Z116: 1996-08-21 | AA116: 5 | AB116: 1 | AC116: 0.189585 | AD116: 0.01478530368
A117: 102 | B117: 2022-04-08 | C117: 101.980003 | D117: 102.739998 | E117: 100.07 | F117: 100.400002 | G117: 4811400 | H117: 99.225868 | I117: 0.9883054385 | J117: 1 | K117: 100.79 | L117: 101.54 | M117: 98.9 | N117: 99.23 | O117: 4811400 | U117: 1997-05-21 | V117: 0.048773 | W117: 12.114537 | X117: 199705 | Y117: 199605 | Z117: 1996-05-22 | AA117: 5 | AB117: 1 | AC117: 0.184078 | AD117: 0.01519480274
A118: 103 | B118: 2022-04-07 | C118: 98.25 | D118: 101.269997 | E118: 97.900002 | F118: 100.980003 | G118: 6151500 | H118: 99.799088 | I118: 0.9883054569 | J118: 1 | K118: 97.1 | L118: 100.09 | M118: 96.76 | N118: 99.8 | O118: 6151500 | U118: 1997-02-19 | V118: 0.048773 | W118: 12.075205 | X118: 199702 | Y118: 199602 | Z118: 1996-02-21 | AA118: 5 | AB118: 1 | AC118: 0.178571 | AD118: 0.01478823755
A119: 104 | B119: 2022-04-06 | C119: 98.32 | D119: 99.279999 | E119: 98.129997 | F119: 98.459999 | G119: 5260800 | H119: 97.308556 | I119: 0.9883054742 | J119: 1 | K119: 97.17 | L119: 98.12 | M119: 96.98 | N119: 97.31 | O119: 5260800 | U119: 1996-11-20 | V119: 0.043266 | W119: 10.492055 | X119: 199611 | Y119: 199511 | Z119: 1995-11-15 | AA119: 5 | AB119: 1 | AC119: 0.173064 | AD119: 0.01649476675
A120: 105 | B120: 2022-04-05 | C120: 99.480003 | D120: 100.510002 | E120: 98.610001 | F120: 98.809998 | G120: 4217100 | H120: 97.654457 | I120: 0.9883054243 | J120: 1 | K120: 98.32 | L120: 99.33 | M120: 97.46 | N120: 97.65 | O120: 4217100 | U120: 1996-08-21 | V120: 0.043266 | W120: 8.899072 | X120: 199608 | Y120: 199508 | Z120: 1995-08-16 | AA120: 5 | AB120: 1 | AC120: 0.173064 | AD120: 0.01944742103
A121: 106 | B121: 2022-04-04 | C121: 100.120003 | D121: 100.400002 | E121: 98.559998 | F121: 99.300003 | G121: 3812300 | H121: 98.138733 | I121: 0.9883054384 | J121: 1 | K121: 98.95 | L121: 99.23 | M121: 97.41 | N121: 98.14 | O121: 3812300 | U121: 1996-05-22 | V121: 0.043266 | W121: 8.77124 | X121: 199605 | Y121: 199505 | Z121: 1995-05-15 | AA121: 5 | AB121: 1 | AC121: 0.169131 | AD121: 0.01928245037
A122: 107 | B122: 2022-04-01 | C122: 99.760002 | D122: 100.449997 | E122: 98.980003 | F122: 100.169998 | G122: 3608600 | H122: 98.99855 | I122: 0.9883054006 | J122: 1 | K122: 98.59 | L122: 99.28 | M122: 97.82 | N122: 99 | O122: 3608600 | U122: 1996-02-21 | V122: 0.043266 | W122: 8.269745 | X122: 199602 | Y122: 199502 | Z122: 1995-02-17 | AA122: 5 | AB122: 1 | AC122: 0.165198 | AD122: 0.01997619032
A123: 108 | B123: 2022-03-31 | C123: 99.279999 | D123: 100.910004 | E123: 99 | F123: 99.07 | G123: 5505600 | H123: 97.911423 | I123: 0.9883054709 | J123: 1 | K123: 98.12 | L123: 99.73 | M123: 97.84 | N123: 97.91 | O123: 5505600 | U123: 1995-11-15 | V123: 0.043266 | W123: 6.961926 | X123: 199511 | Y123: 199411 | Z123: 1994-11-14 | AA123: 5 | AB123: 1 | AC123: 0.161265 | AD123: 0.02316384862
A124: 109 | B124: 2022-03-30 | C124: 101.629997 | D124: 102.379997 | E124: 99.760002 | F124: 100.830002 | G124: 5168100 | H124: 99.650841 | I124: 0.988305455 | J124: 1 | K124: 100.44 | L124: 101.18 | M124: 98.59 | N124: 99.65 | O124: 5168100 | U124: 1995-08-16 | V124: 0.039333 | W124: 6.450598 | X124: 199508 | Y124: 199408 | Z124: 1994-08-15 | AA124: 5 | AB124: 1 | AC124: 0.157332 | AD124: 0.02439029684
A125: 110 | B125: 2022-03-29 | C125: 100.849998 | D125: 101.400002 | E125: 99.370003 | F125: 101.080002 | G125: 5038200 | H125: 99.897919 | I125: 0.9883054711 | J125: 1 | K125: 99.67 | L125: 100.21 | M125: 98.21 | N125: 99.9 | O125: 5038200 | U125: 1995-05-15 | V125: 0.039333 | W125: 5.899937 | X125: 199505 | Y125: 199405 | Z125: 1994-05-16 | AA125: 5 | AB125: 1 | AC125: 0.157332 | AD125: 0.02666672542
A126: 111 | B126: 2022-03-28 | C126: 101.669998 | D126: 102.160004 | E126: 100.919998 | F126: 101.589996 | G126: 4053300 | H126: 100.401947 | I126: 0.9883054528 | J126: 1 | K126: 100.48 | L126: 100.97 | M126: 99.74 | N126: 100.4 | O126: 4053300 | U126: 1995-02-17 | V126: 0.039333 | W126: 5.123112 | X126: 199502 | Y126: 199402 | Z126: 1994-02-23 | AA126: 5 | AB126: 1 | AC126: 0.153399 | AD126: 0.02994254274
A127: 112 | B127: 2022-03-25 | C127: 102 | D127: 102.970001 | E127: 101.919998 | F127: 102.43 | G127: 3521400 | H127: 101.232124 | I127: 0.9883054183 | J127: 1 | K127: 100.81 | L127: 101.77 | M127: 100.73 | N127: 101.23 | O127: 3521400 | U127: 1994-11-14 | V127: 0.039333 | W127: 4.641284 | X127: 199411 | Y127: 199311 | Z127: 1993-11-15 | AA127: 5 | AB127: 1 | AC127: 0.149466 | AD127: 0.03220358849
A128: 113 | B128: 2022-03-24 | C128: 101.660004 | D128: 102.199997 | E128: 101.129997 | F128: 101.709999 | G128: 3894600 | H128: 100.520546 | I128: 0.9883054467 | J128: 1 | K128: 100.47 | L128: 101 | M128: 99.95 | N128: 100.52 | O128: 3894600 | U128: 1994-08-15 | V128: 0.039333 | W128: 4.896948 | X128: 199408 | Y128: 199308 | Z128: 1993-08-16 | AA128: 5 | AB128: 1 | AC128: 0.145533 | AD128: 0.02971912301
A129: 114 | B129: 2022-03-23 | C129: 101.160004 | D129: 102.480003 | E129: 101.110001 | F129: 101.230003 | G129: 4471800 | H129: 100.046158 | I129: 0.988305394 | J129: 1 | K129: 99.98 | L129: 101.28 | M129: 99.93 | N129: 100.05 | O129: 4471800 | U129: 1994-05-16 | V129: 0.0354 | W129: 5.02478 | X129: 199405 | Y129: 199305 | Z129: 1993-05-17 | AA129: 5 | AB129: 1 | AC129: 0.1416 | AD129: 0.02818033824
A130: 115 | B130: 2022-03-22 | C130: 99.800003 | D130: 101.629997 | E130: 98.910004 | F130: 101.379997 | G130: 6048300 | H130: 100.194405 | I130: 0.9883054642 | J130: 1 | K130: 98.63 | L130: 100.44 | M130: 97.75 | N130: 100.19 | O130: 6048300 | U130: 1994-02-23 | V130: 0.0354 | W130: 5.309943 | X130: 199402 | Y130: 199302 | Z130: 1993-02-22 | AA130: 5 | AB130: 1 | AC130: 0.1416 | AD130: 0.02666695292
A131: 116 | B131: 2022-03-21 | C131: 97.839996 | D131: 100.82 | E131: 97.800003 | F131: 99.940002 | G131: 6673700 | H131: 98.771255 | I131: 0.9883055135 | J131: 1 | K131: 96.7 | L131: 99.64 | M131: 96.66 | N131: 98.77 | O131: 6673700 | U131: 1993-11-15 | V131: 0.0354 | W131: 5.02478 | X131: 199311 | Y131: 199211 | Z131: 1992-11-16 | AA131: 5 | AB131: 1 | AC131: 0.1416 | AD131: 0.02818033824
A132: 117 | B132: 2022-03-18 | C132: 98 | D132: 98.279999 | E132: 96.330002 | F132: 97.519997 | G132: 10438500 | H132: 96.379539 | I132: 0.9883053934 | J132: 1 | K132: 96.85 | L132: 97.13 | M132: 95.2 | N132: 96.38 | O132: 10438500 | U132: 1993-08-16 | V132: 0.0354 | W132: 4.621617 | X132: 199308 | Y132: 199208 | Z132: 1992-08-17 | AA132: 5 | AB132: 1 | AC132: 0.1416 | AD132: 0.03063862713
A133: 118 | B133: 2022-03-17 | C133: 96.599998 | D133: 97.790001 | E133: 95.830002 | F133: 97.75 | G133: 6537200 | H133: 96.606857 | I133: 0.9883054425 | J133: 1 | K133: 95.47 | L133: 96.65 | M133: 94.71 | N133: 96.61 | O133: 6537200 | U133: 1993-05-17 | V133: 0.0354 | W133: 4.08079 | X133: 199305 | Y133: 199205 | Z133: 1992-05-18 | AA133: 5 | AB133: 1 | AC133: 0.1416 | AD133: 0.03469916364
A134: 119 | B134: 2022-03-16 | C134: 97.040001 | D134: 97.639999 | E134: 94.07 | F134: 95.800003 | G134: 8813000 | H134: 94.679665 | I134: 0.9883054492 | J134: 1 | K134: 95.91 | L134: 96.5 | M134: 92.97 | N134: 94.68 | O134: 8813000 | U134: 1993-02-22 | V134: 0.0354 | W134: 3.559629 | X134: 199302 | Y134: 199202 | Z134: 1992-02-24 | AA134: 5 | AB134: 1 | AC134: 0.1416 | AD134: 0.03977942645
A135: 120 | B135: 2022-03-15 | C135: 97.879997 | D135: 98.099998 | E135: 96.57 | F135: 97.620003 | G135: 5417600 | H135: 96.478378 | I135: 0.9883054193 | J135: 1 | K135: 96.74 | L135: 96.95 | M135: 95.44 | N135: 96.48 | O135: 5417600 | U135: 1992-11-16 | V135: 0.0354 | W135: 3.343298 | X135: 199211 | Y135: 199111 | Z135: 1991-11-18 | AA135: 5 | AB135: 1 | AC135: 0.108245 | AD135: 0.03237671305
A136: 121 | B136: 2022-03-14 | C136: 97.169998 | D136: 97.660004 | E136: 95.410004 | F136: 97.040001 | G136: 5581700 | H136: 95.905159 | I136: 0.9883054206 | J136: 1 | K136: 96.03 | L136: 96.52 | M136: 94.29 | N136: 95.91 | O136: 5581700 | U136: 1992-08-17 | V136: 0.0354 | W136: 4.395453 | X136: 199208 | Y136: 199108 | Z136: 1991-08-19 | AA136: 5 | AB136: 1 | AC136: 0.108245 | AD136: 0.0246265857
A137: 122 | B137: 2022-03-11 | C137: 98.779999 | D137: 99.75 | E137: 96.800003 | F137: 96.919998 | G137: 4354300 | H137: 95.78656 | I137: 0.9883054269 | J137: 1 | K137: 97.62 | L137: 98.58 | M137: 95.67 | N137: 95.79 | O137: 4354300 | U137: 1992-05-18 | V137: 0.0354 | W137: 4.159456 | X137: 199205 | Y137: 199105 | Z137: 1991-05-20 | AA137: 5 | AB137: 1 | AC137: 0.108245 | AD137: 0.02602383581
A138: 123 | B138: 2022-03-10 | C138: 98.169998 | D138: 99.800003 | E138: 97.660004 | F138: 98.510002 | G138: 5118400 | H138: 97.357971 | I138: 0.9883054413 | J138: 1 | K138: 97.02 | L138: 98.63 | M138: 96.52 | N138: 97.36 | O138: 5118400 | U138: 1992-02-24 | V138: 0.002045 | W138: 3.952958 | X138: 199202 | Y138: 199102 | Z138: 1991-02-19 | AA138: 5 | AB138: 1 | AC138: 0.108245 | AD138: 0.0273832912
A139: 124 | B139: 2022-03-09 | C139: 95.25 | D139: 99.080002 | E139: 95.25 | F139: 98.519997 | G139: 7100500 | H139: 97.367851 | I139: 0.9883054605 | J139: 1 | K139: 94.14 | L139: 97.92 | M139: 94.14 | N139: 97.37 | O139: 7100500 | U139: 1991-11-18 | V139: 0.0354 | W139: 3.815293 | X139: 199111 | Y139: 199011 | Z139: 1990-11-15 | AA139: 5 | AB139: 1 | AC139: 0.1416 | AD139: 0.03711379441
A140: 125 | B140: 2022-03-08 | C140: 98.010002 | D140: 98.400002 | E140: 94.690002 | F140: 94.849998 | G140: 9410600 | H140: 93.740768 | I140: 0.9883054294 | J140: 1 | K140: 96.86 | L140: 97.25 | M140: 93.58 | N140: 93.74 | O140: 9410600 | U140: 1991-08-19 | V140: 0.0354 | W140: 3.451463 | X140: 199108 | Y140: 199008 | Z140: 1990-08-20 | AA140: 5 | AB140: 1 | AC140: 0.1416 | AD140: 0.04102608082
A141: 126 | B141: 2022-03-07 | C141: 101.290001 | D141: 103.099998 | E141: 98.120003 | F141: 98.190002 | G141: 12759000 | H141: 97.041718 | I141: 0.9883054896 | J141: 1 | K141: 100.11 | L141: 101.89 | M141: 96.97 | N141: 97.04 | O141: 12759000 | U141: 1991-05-20 | V141: 0.0354 | W141: 3.431797 | X141: 199105 | Y141: 199005 | Z141: 1990-05-21 | AA141: 5 | AB141: 1 | AC141: 0.1416 | AD141: 0.04126118182
A142: 127 | B142: 2022-03-04 | C142: 99.949997 | D142: 99.949997 | E142: 98.230003 | F142: 99.589996 | G142: 8627200 | H142: 98.425339 | I142: 0.988305482 | J142: 1 | K142: 98.78 | L142: 98.78 | M142: 97.08 | N142: 98.43 | O142: 8627200 | U142: 1991-02-19 | V142: 0.0354 | W142: 3.736627 | X142: 199102 | Y142: 199002 | Z142: 1990-02-16 | AA142: 5 | AB142: 1 | AC142: 0.1416 | AD142: 0.03789513912
A143: 128 | B143: 2022-03-03 | C143: 101.059998 | D143: 101.349998 | E143: 98.629997 | F143: 99.830002 | G143: 8613500 | H143: 98.662537 | I143: 0.9883054695 | J143: 1 | K143: 99.88 | L143: 100.16 | M143: 97.48 | N143: 98.66 | O143: 8613500 | U143: 1990-11-15 | V143: 0.0354 | W143: 3.490796 | X143: 199011 | Y143: 198911 | Z143: 1989-11-16 | AA143: 5 | AB143: 1 | AC143: 0.1416 | AD143: 0.0405638141
A144: 129 | B144: 2022-03-02 | C144: 102.199997 | D144: 102.510002 | E144: 99.779999 | F144: 100.739998 | G144: 12834600 | H144: 99.56189 | I144: 0.9883054594 | J144: 1 | K144: 101 | L144: 101.31 | M144: 98.61 | N144: 99.56 | O144: 12834600 | U144: 1990-08-20 | V144: 0.0354 | W144: 3.903792 | X144: 199008 | Y144: 198908 | Z144: 1989-08-21 | AA144: 5 | AB144: 1 | AC144: 0.137666 | AD144: 0.03526468623
A145: 130 | B145: 2022-03-01 | C145: 102.769997 | D145: 104.339996 | E145: 102.18 | F145: 102.730003 | G145: 12340900 | H145: 101.528625 | I145: =IF(F145=0,1,H145/F145) -> 0.9883054807 | J145: =INDEX(OFFSET($T$15,0,0,$S$13+1,1),MATCH(B145,OFFSET($Q$15,0,0,$S$13+1,1),-1)) -> 1 | K145: =ROUND($I145*C145,2) -> 101.57 | L145: =ROUND($I145*D145,2) -> 103.12 | M145: =ROUND($I145*E145,2) -> 100.99 | N145: =ROUND($I145*F145,2) -> 101.53 | O145: =G145*J145 -> 12340900 | U145: 1990-05-21 | V145: 0.0354 | W145: =(INDEX(OFFSET($F$15,1,0,$B$10,1),MATCH(U145,OFFSET($B$15,1,0,$B$10,1),-1))) -> 4.552785 | X145: =YEAR(U145)&RIGHT("0"&MONTH(U145),2) -> 199005 | Y145: =YEAR(U145)-1&RIGHT("0"&MONTH(U145),2) -> 198905 | Z145: =OFFSET(U144,AA145,0,1,1) -> 1989-05-22 | AA145: =MATCH(Y145,OFFSET($X$15,A145,0,$V$14+1-A145,1),-1) -> 5 | AB145: =IF(OR(AND(YEAR(U145)=YEAR(Z145),MONTH(U145)=MONTH(Z145)),MONTH(U145)=MONTH(Z145)),1,0) -> 1 | AC145: =(V145+IF(AA145-AB145=0,0,IFERROR(SUM(OFFSET(V145,1,0,AA145-AB145-1,1)),0))) -> 0.133732 | AD145: =AC145/(INDEX(OFFSET($F$15,1,0,$B$10,1),MATCH(U145,OFFSET($B$15,1,0,$B$10,1),-1))) -> 0.02937366908
A146: 131 | B146: 2022-02-28 | C146: 99.019997 | D146: 102.959999 | E146: 98.400002 | F146: 102.699997 | G146: 16726100 | H146: 101.498962 | I146: 0.9883054037 | J146: 1 | K146: 97.86 | L146: 101.76 | M146: 97.25 | N146: 101.5 | O146: 16726100 | U146: 1990-02-16 | V146: 0.0354 | W146: 4.02179 | X146: 199002 | Y146: 198902 | Z146: 1989-02-13 | AA146: 5 | AB146: 1 | AC146: 0.129798 | AD146: 0.03227368908
A147: 132 | B147: 2022-02-25 | C147: 94.389999 | D147: 98.269997 | E147: 94.199997 | F147: 98.120003 | G147: 8692300 | H147: 96.972534 | I147: 0.9883054529 | J147: 1 | K147: 93.29 | L147: 97.12 | M147: 93.1 | N147: 96.97 | O147: 8692300 | U147: 1989-11-16 | V147: 0.031466 | W147: 4.257788 | X147: 198911 | Y147: 198811 | Z147: 1988-11-14 | AA147: 5 | AB147: 1 | AC147: 0.125864 | AD147: 0.02956088936
A148: 133 | B148: 2022-02-24 | C148: 93 | D148: 94.650002 | E148: 89.309998 | F148: 94.25 | G148: 9698500 | H148: 93.147789 | I148: 0.9883054536 | J148: 1 | K148: 91.91 | L148: 93.54 | M148: 88.27 | N148: 93.15 | O148: 9698500 | U148: 1989-08-21 | V148: 0.031466 | W148: 4.218455 | X148: 198908 | Y148: 198808 | Z148: 1988-08-22 | AA148: 5 | AB148: 1 | AC148: 0.125864 | AD148: 0.02983651598
A149: 134 | B149: 2022-02-23 | C149: 94.300003 | D149: 94.529999 | E149: 92.050003 | F149: 92.239998 | G149: 6903300 | H149: 90.657249 | I149: 0.9828409688 | J149: 1 | K149: 92.68 | L149: 92.91 | M149: 90.47 | N149: 90.66 | O149: 6903300 | U149: 1989-05-22 | V149: 0.031466 | W149: 4.061123 | X149: 198905 | Y149: 198805 | Z149: 1988-05-16 | AA149: 5 | AB149: 1 | AC149: 0.125864 | AD149: 0.03099241269
A150: 135 | B150: 2022-02-22 | C150: 93.620003 | D150: 94.739998 | E150: 92.790001 | F150: 93.540001 | G150: 5862200 | H150: 91.934952 | I150: 0.9828410414 | J150: 1 | K150: 92.01 | L150: 93.11 | M150: 91.2 | N150: 91.93 | O150: 5862200 | U150: 1989-02-13 | V150: 0.031466 | W150: 3.421963 | X150: 198902 | Y150: 198802 | Z150: 1988-02-12 | AA150: 5 | AB150: 1 | AC150: 0.125864 | AD150: 0.03678122762
A151: 136 | B151: 2022-02-18 | C151: 94.139999 | D151: 95.010002 | E151: 92.989998 | F151: 93.370003 | G151: 6544800 | H151: 91.767868 | I151: 0.9828410094 | J151: 1 | K151: 92.52 | L151: 93.38 | M151: 91.39 | N151: 91.77 | O151: 6544800 | U151: 1988-11-14 | V151: 0.031466 | W151: 3.028634 | X151: 198811 | Y151: 198711 | Z151: 1987-11-16 | AA151: 5 | AB151: 1 | AC151: 0.121931 | AD151: 0.04025940407
A152: 137 | B152: 2022-02-17 | C152: 93.970001 | D152: 95.169998 | E152: 93.440002 | F152: 94.360001 | G152: 5753300 | H152: 92.740883 | I152: 0.9828410557 | J152: 1 | K152: 92.36 | L152: 93.54 | M152: 91.84 | N152: 92.74 | O152: 5753300 | U152: 1988-08-22 | V152: 0.031466 | W152: 2.763137 | X152: 198808 | Y152: 198708 | Z152: 1987-08-17 | AA152: 5 | AB152: 1 | AC152: 0.117998 | AD152: 0.04270436102
A153: 138 | B153: 2022-02-16 | C153: 94.010002 | D153: 95.269997 | E153: 93.919998 | F153: 94.75 | G153: 4560900 | H153: 93.124191 | I153: 0.982841066 | J153: 1 | K153: 92.4 | L153: 93.64 | M153: 92.31 | N153: 93.12 | O153: 4560900 | U153: 1988-05-16 | V153: 0.031466 | W153: 2.959802 | X153: 198805 | Y153: 198705 | Z153: 1987-05-18 | AA153: 5 | AB153: 1 | AC153: 0.114065 | AD153: 0.03853805086
A154: 139 | B154: 2022-02-15 | C154: 93.589996 | D154: 94.900002 | E154: 93.57 | F154: 94.040001 | G154: 4616000 | H154: 92.426376 | I154: 0.9828410784 | J154: 1 | K154: 91.98 | L154: 93.27 | M154: 91.96 | N154: 92.43 | O154: 4616000 | U154: 1988-02-12 | V154: 0.027533 | W154: 2.940135 | X154: 198802 | Y154: 198702 | Z154: 1987-02-13 | AA154: 5 | AB154: 1 | AC154: 0.110132 | AD154: 0.03745814393
A155: 140 | B155: 2022-02-14 | C155: 95.510002 | D155: 95.599998 | E155: 92.889999 | F155: 93.57 | G155: 6419200 | H155: 91.964432 | I155: 0.982840996 | J155: 1 | K155: 93.87 | L155: 93.96 | M155: 91.3 | N155: 91.96 | O155: 6419200 | U155: 1987-11-16 | V155: 0.027533 | W155: 2.694305 | X155: 198711 | Y155: 198611 | Z155: 1986-11-17 | AA155: 5 | AB155: 1 | AC155: 0.110132 | AD155: 0.04087584739
A156: 141 | B156: 2022-02-11 | C156: 95.25 | D156: 96.050003 | E156: 94.080002 | F156: 95.269997 | G156: 6532900 | H156: 93.635269 | I156: 0.9828411037 | J156: 1 | K156: 93.62 | L156: 94.4 | M156: 92.47 | N156: 93.64 | O156: 6532900 | U156: 1987-08-17 | V156: 0.027533 | W156: 4.66095 | X156: 198708 | Y156: 198608 | Z156: 1986-08-18 | AA156: 5 | AB156: 1 | AC156: 0.110132 | AD156: 0.02362865939
A157: 142 | B157: 2022-02-10 | C157: 95.32 | D157: 96.959999 | E157: 94.550003 | F157: 95.059998 | G157: 6534300 | H157: 93.428871 | I157: 0.982841079 | J157: 1 | K157: 93.68 | L157: 95.3 | M157: 92.93 | N157: 93.43 | O157: 6534300 | U157: 1987-05-18 | V157: 0.027533 | W157: 3.638295 | X157: 198705 | Y157: 198605 | Z157: 1986-05-19 | AA157: 5 | AB157: 1 | AC157: 0.110132 | AD157: 0.03027022273
A158: 143 | B158: 2022-02-09 | C158: 96.029999 | D158: 96.32 | E158: 95.480003 | F158: 96 | G158: 5394900 | H158: 94.352745 | I158: 0.9828410937 | J158: 1 | K158: 94.38 | L158: 94.67 | M158: 93.84 | N158: 94.35 | O158: 5394900 | U158: 1987-02-13 | V158: 0.027533 | W158: 4.031624 | X158: 198702 | Y158: 198602 | Z158: 1986-02-14 | AA158: 5 | AB158: 1 | AC158: 0.110132 | AD158: 0.02731703155
A159: 144 | B159: 2022-02-08 | C159: 93.830002 | D159: 95.32 | E159: 92.870003 | F159: 95.07 | G159: 8173200 | H159: 93.438698 | I159: 0.9828410434 | J159: 1 | K159: 92.22 | L159: 93.68 | M159: 91.28 | N159: 93.44 | O159: 8173200 | U159: 1986-11-17 | V159: 0.027533 | W159: 3.569462 | X159: 198611 | Y159: 198511 | Z159: 1985-11-18 | AA159: 5 | AB159: 1 | AC159: 0.110132 | AD159: 0.03085394942
A160: 145 | B160: 2022-02-07 | C160: 93.459999 | D160: 94.730003 | E160: 93.010002 | F160: 94.029999 | G160: 4932700 | H160: 92.416542 | I160: 0.9828410399 | J160: 1 | K160: 91.86 | L160: 93.1 | M160: 91.41 | N160: 92.42 | O160: 4932700 | U160: 1986-08-18 | V160: 0.027533 | W160: 3.618628 | X160: 198608 | Y160: 198508 | Z160: 1985-08-19 | AA160: 5 | AB160: 1 | AC160: 0.110132 | AD160: 0.03043473935
A161: 146 | B161: 2022-02-04 | C161: 92.360001 | D161: 93.900002 | E161: 92.110001 | F161: 93.010002 | G161: 6321400 | H161: 91.414055 | I161: 0.982841125 | J161: 1 | K161: 90.78 | L161: 92.29 | M161: 90.53 | N161: 91.41 | O161: 6321400 | U161: 1986-05-19 | V161: 0.027533 | W161: 3.71696 | X161: 198605 | Y161: 198505 | Z161: 1985-08-19 | AA161: 4 | AB161: 0 | AC161: 0.110132 | AD161: 0.02962958977
A162: 147 | B162: 2022-02-03 | C162: 92.150002 | D162: 92.989998 | E162: 91.620003 | F162: 92.809998 | G162: 7171700 | H162: 91.217484 | I162: 0.9828411374 | J162: 1 | K162: 90.57 | L162: 91.39 | M162: 90.05 | N162: 91.22 | O162: 7171700 | U162: 1986-02-14 | V162: 0.027533 | W162: 4.169289 | X162: 198602 | Y162: 198502 | Z162: 1985-02-15 | AA162: 4 | AB162: 1 | AC162: 0.082599 | AD162: 0.01981129157
A163: 148 | B163: 2022-02-02 | C163: 90.300003 | D163: 92.690002 | E163: 90.25 | F163: 92.540001 | G163: 5978600 | H163: 90.95211 | I163: 0.9828410311 | J163: 1 | K163: 88.75 | L163: 91.1 | M163: 88.7 | N163: 90.95 | O163: 5978600 | U163: 1985-11-18 | V163: 0.027533 | W163: 3.244965 | X163: 198511 | Y163: 198411 | Z163: 1984-11-16 | AA163: 4 | AB163: 1 | AC163: 0.082599 | AD163: 0.02545451184
A164: 149 | B164: 2022-02-01 | C164: 90.099998 | D164: 90.940002 | E164: 89.269997 | F164: 90.730003 | G164: 6558400 | H164: 89.173172 | I164: 0.9828410564 | J164: 1 | K164: 88.55 | L164: 89.38 | M164: 87.74 | N164: 89.17 | O164: 6558400 | U164: 1985-08-19 | V164: 0.027533 | W164: 3.254799 | X164: 198508 | Y164: 198408 | Z164: 1984-08-20 | AA164: 4 | AB164: 1 | AC164: 0.082599 | AD164: 0.02537760396
A165: 150 | B165: 2022-01-31 | C165: 89.610001 | D165: 90.410004 | E165: 89.010002 | F165: 90.190002 | G165: 6419700 | H165: 88.642433 | I165: 0.9828410138 | J165: 1 | K165: 88.07 | L165: 88.86 | M165: 87.48 | N165: 88.64 | O165: 6419700 | U165: 1985-02-15 | V165: 0.027533 | W165: 3.461296 | X165: 198502 | Y165: 198402 | Z165: 1984-02-17 | AA165: 5 | AB165: 1 | AC165: 0.110132 | AD165: 0.0318181398
A166: 151 | B166: 2022-01-28 | C166: 88.970001 | D166: 90.370003 | E166: 87.480003 | F166: 90.330002 | G166: 5877600 | H166: 88.780029 | I166: 0.9828409945 | J166: 1 | K166: 87.44 | L166: 88.82 | M166: 85.98 | N166: 88.78 | O166: 5877600 | U166: 1984-11-16 | V166: 0.027533 | W166: 2.80247 | X166: 198411 | Y166: 198311 | Z166: 1983-11-14 | AA166: 5 | AB166: 1 | AC166: 0.108165 | AD166: 0.03859630968
A167: 152 | B167: 2022-01-27 | C167: 89.919998 | D167: 91.480003 | E167: 88.400002 | F167: 89.279999 | G167: 6998700 | H167: 87.748047 | I167: 0.9828410392 | J167: 1 | K167: 88.38 | L167: 89.91 | M167: 86.88 | N167: 87.75 | O167: 6998700 | U167: 1984-08-20 | V167: 0.027533 | W167: 3.097467 | X167: 198408 | Y167: 198308 | Z167: 1983-08-15 | AA167: 5 | AB167: 1 | AC167: 0.106198 | AD167: 0.03428543387
A168: 153 | B168: 2022-01-26 | C168: 89.980003 | D168: 91.519997 | E168: 87.470001 | F168: 88.980003 | G168: 9829100 | H168: 87.453201 | I168: 0.982841066 | J168: 1 | K168: 88.44 | L168: 89.95 | M168: 85.97 | N168: 87.45 | O168: 9829100 | U168: 1984-05-21 | V168: 0.027533 | W168: 2.561556 | X168: 198405 | Y168: 198305 | Z168: 1983-05-16 | AA168: 5 | AB168: 1 | AC168: 0.104231 | AD168: 0.04069050218
A169: 154 | B169: 2022-01-25 | C169: 85 | D169: 91.290001 | E169: 85 | F169: 90.309998 | G169: 10377400 | H169: 88.760376 | I169: 0.9828410803 | J169: 1 | K169: 83.54 | L169: 89.72 | M169: 83.54 | N169: 88.76 | O169: 10377400 | U169: 1984-02-17 | V169: 0.025566 | W169: 2.409141 | X169: 198402 | Y169: 198302 | Z169: 1983-02-18 | AA169: 5 | AB169: 1 | AC169: 0.102264 | AD169: 0.04244832494
A170: 155 | B170: 2022-01-24 | C170: 85.769997 | D170: 88.300003 | E170: 84.800003 | F170: 88.120003 | G170: 8849700 | H170: 86.607948 | I170: 0.9828409561 | J170: 1 | K170: 84.3 | L170: 86.78 | M170: 83.34 | N170: 86.61 | O170: 8849700 | U170: 1983-11-14 | V170: 0.025566 | W170: 2.630389 | X170: 198311 | Y170: 198211 | Z170: 1982-11-15 | AA170: 5 | AB170: 1 | AC170: 0.100298 | AD170: 0.03813048184
A171: 156 | B171: 2022-01-21 | C171: 88.519997 | D171: 88.809998 | E171: 86.82 | F171: 87.209999 | G171: 5846500 | H171: 85.71357 | I171: 0.9828410845 | J171: 1 | K171: 87 | L171: 87.29 | M171: 85.33 | N171: 85.71 | O171: 5846500 | U171: 1983-08-15 | V171: 0.025566 | W171: 2.694305 | X171: 198308 | Y171: 198208 | Z171: 1982-08-23 | AA171: 5 | AB171: 1 | AC171: 0.098332 | AD171: 0.03649623929
A172: 157 | B172: 2022-01-20 | C172: 89.959999 | D172: 90.830002 | E172: 88.25 | F172: 88.360001 | G172: 5354700 | H172: 86.843842 | I172: 0.9828411161 | J172: 1 | K172: 88.42 | L172: 89.27 | M172: 86.74 | N172: 86.84 | O172: 5354700 | U172: 1983-05-16 | V172: 0.025566 | W172: 2.78772 | X172: 198305 | Y172: 198205 | Z172: 1982-05-17 | AA172: 5 | AB172: 1 | AC172: 0.096366 | AD172: 0.03456803409
A173: 158 | B173: 2022-01-19 | C173: 90.730003 | D173: 91.339996 | E173: 89.580002 | F173: 89.699997 | G173: 4887800 | H173: 88.160843 | I173: 0.982841092 | J173: 1 | K173: 89.17 | L173: 89.77 | M173: 88.04 | N173: 88.16 | O173: 4887800 | U173: 1983-02-18 | V173: 0.0236 | W173: 2.551723 | X173: 198302 | Y173: 198202 | Z173: 1982-02-11 | AA173: 5 | AB173: 1 | AC173: 0.0944 | AD173: 0.03699461109
A174: 159 | B174: 2022-01-18 | C174: 91.330002 | D174: 91.900002 | E174: 90.279999 | F174: 90.75 | G174: 6010200 | H174: 89.192825 | I174: 0.9828410468 | J174: 1 | K174: 89.76 | L174: 90.32 | M174: 88.73 | N174: 89.19 | O174: 6010200 | U174: 1982-11-15 | V174: 0.0236 | W174: 2.217393 | X174: 198211 | Y174: 198111 | Z174: 1981-11-16 | AA174: 5 | AB174: 1 | AC174: 0.0944 | AD174: 0.04257251646
A175: 160 | B175: 2022-01-14 | C175: 91.050003 | D175: 92.480003 | E175: 90.720001 | F175: 92.330002 | G175: 4987400 | H175: 90.74572 | I175: 0.9828410921 | J175: 1 | K175: 89.49 | L175: 90.89 | M175: 89.16 | N175: 90.75 | O175: 4987400 | U175: 1982-08-23 | V175: 0.0236 | W175: 1.82898 | X175: 198208 | Y175: 198108 | Z175: 1981-08-24 | AA175: 5 | AB175: 1 | AC175: 0.0944 | AD175: 0.05161346762
A176: 161 | B176: 2022-01-13 | C176: 91.379997 | D176: 92.459999 | E176: 90.959999 | F176: 91.559998 | G176: 5026300 | H176: 89.988922 | I176: 0.9828410219 | J176: 1 | K176: 89.81 | L176: 90.87 | M176: 89.4 | N176: 89.99 | O176: 5026300 | U176: 1982-05-17 | V176: 0.0236 | W176: 1.5684 | X176: 198205 | Y176: 198105 | Z176: 1981-05-18 | AA176: 5 | AB176: 1 | AC176: 0.0944 | AD176: 0.06018872737
A177: 162 | B177: 2022-01-12 | C177: 91 | D177: 91.550003 | E177: 90.839996 | F177: 91.07 | G177: 4613100 | H177: 89.507332 | I177: 0.9828410234 | J177: 1 | K177: 89.44 | L177: 89.98 | M177: 89.28 | N177: 89.51 | O177: 4613100 | U177: 1982-02-11 | V177: 0.0236 | W177: 1.391402 | X177: 198202 | Y177: 198102 | Z177: 1981-02-13 | AA177: 5 | AB177: 1 | AC177: 0.0944 | AD177: 0.06784523811
A178: 163 | B178: 2022-01-11 | C178: 89.739998 | D178: 90.839996 | E178: 89.269997 | F178: 90.720001 | G178: 4529800 | H178: 89.163345 | I178: 0.9828410937 | J178: 1 | K178: 88.2 | L178: 89.28 | M178: 87.74 | N178: 89.16 | O178: 4529800 | U178: 1981-11-16 | V178: 0.0236 | W178: 1.642149 | X178: 198111 | Y178: 198011 | Z178: 1980-11-17 | AA178: 5 | AB178: 1 | AC178: 0.0944 | AD178: 0.05748564838
A179: 164 | B179: 2022-01-10 | C179: 90.68 | D179: 90.790001 | E179: 89.239998 | F179: 89.730003 | G179: 4884200 | H179: 88.190331 | I179: 0.9828410571 | J179: 1 | K179: 89.12 | L179: 89.23 | M179: 87.71 | N179: 88.19 | O179: 4884200 | U179: 1981-08-24 | V179: 0.0236 | W179: 1.922396 | X179: 198108 | Y179: 198008 | Z179: 1980-08-25 | AA179: 5 | AB179: 1 | AC179: 0.092433 | AD179: 0.04808218494
A180: 165 | B180: 2022-01-07 | C180: 90.260002 | D180: 91.370003 | E180: 90.089996 | F180: 90.440002 | G180: 4835300 | H180: 88.888153 | I180: 0.9828411216 | J180: 1 | K180: 88.71 | L180: 89.8 | M180: 88.54 | N180: 88.89 | O180: 4835300 | U180: 1981-05-18 | V180: 0.0236 | W180: 2.310809 | X180: 198105 | Y180: 198005 | Z180: 1980-05-19 | AA180: 5 | AB180: 1 | AC180: 0.090466 | AD180: 0.03914905992
A181: 166 | B181: 2022-01-06 | C181: 90.400002 | D181: 90.93 | E181: 89.610001 | F181: 90.059998 | G181: 5559000 | H181: 88.514664 | I181: 0.9828410611 | J181: 1 | K181: 88.85 | L181: 89.37 | M181: 88.07 | N181: 88.51 | O181: 5559000 | U181: 1981-02-13 | V181: 0.0236 | W181: 2.069895 | X181: 198102 | Y181: 198002 | Z181: 1980-02-15 | AA181: 5 | AB181: 1 | AC181: 0.088499 | AD181: 0.04275530884
A182: 167 | B182: 2022-01-05 | C182: 90.199997 | D182: 91.529999 | E182: 89.400002 | F182: 89.57 | G182: 6833600 | H182: 88.033073 | I182: 0.9828410517 | J182: 1 | K182: 88.65 | L182: 89.96 | M182: 87.87 | N182: 88.03 | O182: 6833600 | U182: 1980-11-17 | V182: 0.021633 | W182: 2.423891 | X182: 198011 | Y182: 197911 | Z182: 1979-11-16 | AA182: 5 | AB182: 1 | AC182: 0.086532 | AD182: 0.03569962511
A183: 168 | B183: 2022-01-04 | C183: 87.870003 | D183: 90.07 | E183: 87.699997 | F183: 90.019997 | G183: 6044200 | H183: 88.475349 | I183: 0.982841057 | J183: 1 | K183: 86.36 | L183: 88.52 | M183: 86.2 | N183: 88.48 | O183: 6044200 | U183: 1980-08-25 | V183: 0.021633 | W183: 2.005979 | X183: 198008 | Y183: 197908 | Z183: 1979-08-20 | AA183: 5 | AB183: 1 | AC183: 0.086532 | AD183: 0.04313704181
A184: 169 | B184: 2022-01-03 | C184: 86.080002 | D184: 87.139999 | E184: 86.07 | F184: 86.970001 | G184: 5169200 | H184: 85.477692 | I184: 0.9828411063 | J184: 1 | K184: 84.6 | L184: 85.64 | M184: 84.59 | N184: 85.48 | O184: 5169200 | U184: 1980-05-19 | V184: 0.021633 | W184: 1.607733 | X184: 198005 | Y184: 197905 | Z184: 1979-05-21 | AA184: 5 | AB184: 1 | AC184: 0.086532 | AD184: 0.05382236976
A185: 170 | B185: 2021-12-31 | C185: 85.730003 | D185: 86.330002 | E185: 85.5 | F185: 86.059998 | G185: 2667700 | H185: 84.583298 | I185: 0.9828410407 | J185: 1 | K185: 84.26 | L185: 84.85 | M185: 84.03 | N185: 84.58 | O185: 2667700 | U185: 1980-02-15 | V185: 0.021633 | W185: 1.907646 | X185: 198002 | Y185: 197902 | Z185: 1979-02-16 | AA185: 5 | AB185: 1 | AC185: 0.086532 | AD185: 0.04536061722
A186: 171 | B186: 2021-12-30 | C186: 86.040001 | D186: 86.5 | E186: 85.699997 | F186: 85.800003 | G186: 2459400 | H186: 84.327766 | I186: 0.9828410612 | J186: 1 | K186: 84.56 | L186: 85.02 | M186: 84.23 | N186: 84.33 | O186: 2459400 | U186: 1979-11-16 | V186: 0.021633 | W186: 1.450401 | X186: 197911 | Y186: 197811 | Z186: 1978-11-17 | AA186: 5 | AB186: 1 | AC186: 0.086532 | AD186: 0.0596607421
A187: 172 | B187: 2021-12-29 | C187: 85.580002 | D187: 86.07 | E187: 85.220001 | F187: 85.889999 | G187: 2085300 | H187: 84.416214 | I187: 0.9828410174 | J187: 1 | K187: 84.11 | L187: 84.59 | M187: 83.76 | N187: 84.42 | O187: 2085300 | U187: 1979-08-20 | V187: 0.021633 | W187: 1.647066 | X187: 197908 | Y187: 197808 | Z187: 1978-08-21 | AA187: 5 | AB187: 1 | AC187: 0.084565 | AD187: 0.05134281201
A188: 173 | B188: 2021-12-28 | C188: 85.07 | D188: 86.349998 | E188: 84.779999 | F188: 86.019997 | G188: 3220100 | H188: 84.543983 | I188: 0.9828410364 | J188: 1 | K188: 83.61 | L188: 84.87 | M188: 83.33 | N188: 84.54 | O188: 3220100 | U188: 1979-05-21 | V188: 0.021633 | W188: 1.465151 | X188: 197905 | Y188: 197805 | Z188: 1978-05-19 | AA188: 5 | AB188: 1 | AC188: 0.082598 | AD188: 0.0563750767
A189: 174 | B189: 2021-12-27 | C189: 84.720001 | D189: 85.400002 | E189: 84.239998 | F189: 85.239998 | G189: 2743700 | H189: 83.777367 | I189: 0.9828410249 | J189: 1 | K189: 83.27 | L189: 83.93 | M189: 82.79 | N189: 83.78 | O189: 2743700 | U189: 1979-02-16 | V189: 0.021633 | W189: 1.445485 | X189: 197902 | Y189: 197802 | Z189: 1978-02-17 | AA189: 5 | AB189: 1 | AC189: 0.080631 | AD189: 0.05578127756
A190: 175 | B190: 2021-12-23 | C190: 84.559998 | D190: 85.199997 | E190: 84.519997 | F190: 84.900002 | G190: 2650000 | H190: 83.443207 | I190: 0.9828410487 | J190: 1 | K190: 83.11 | L190: 83.74 | M190: 83.07 | N190: 83.44 | O190: 2650000 | U190: 1978-11-17 | V190: 0.019666 | W190: 1.425818 | X190: 197811 | Y190: 197711 | Z190: 1977-11-17 | AA190: 5 | AB190: 1 | AC190: 0.078664 | AD190: 0.05517113685
A191: 176 | B191: 2021-12-22 | C191: 83.480003 | D191: 84.75 | E191: 83.43 | F191: 84.07 | G191: 3852800 | H191: 82.627449 | I191: 0.9828410729 | J191: 1 | K191: 82.05 | L191: 83.3 | M191: 82 | N191: 82.63 | O191: 3852800 | U191: 1978-08-21 | V191: 0.019666 | W191: 1.946979 | X191: 197808 | Y191: 197708 | Z191: 1977-08-23 | AA191: 5 | AB191: 1 | AC191: 0.076698 | AD191: 0.03939333706
A192: 177 | B192: 2021-12-21 | C192: 81.669998 | D192: 83.919998 | E192: 81.669998 | F192: 83.68 | G192: 7301900 | H192: 82.244141 | I192: 0.9828410731 | J192: 1 | K192: 80.27 | L192: 82.48 | M192: 80.27 | N192: 82.24 | O192: 7301900 | U192: 1978-05-19 | V192: 0.019666 | W192: 1.710982 | X192: 197805 | Y192: 197705 | Z192: 1977-05-25 | AA192: 5 | AB192: 1 | AC192: 0.074732 | AD192: 0.04367784115
A193: 178 | B193: 2021-12-20 | C193: 81.029999 | D193: 81.349998 | E193: 79.690002 | F193: 81.029999 | G193: 5828400 | H193: 79.639603 | I193: 0.9828409723 | J193: 1 | K193: 79.64 | L193: 79.95 | M193: 78.32 | N193: 79.64 | O193: 5828400 | U193: 1978-02-17 | V193: 0.019666 | W193: 1.337319 | X193: 197802 | Y193: 197702 | Z193: 1977-02-17 | AA193: 5 | AB193: 1 | AC193: 0.072766 | AD193: 0.05441184938
A194: 179 | B194: 2021-12-17 | C194: 82.699997 | D194: 83.019997 | E194: 81.169998 | F194: 82.279999 | G194: 8892600 | H194: 80.868164 | I194: 0.9828410912 | J194: 1 | K194: 81.28 | L194: 81.6 | M194: 79.78 | N194: 80.87 | O194: 8892600 | U194: 1977-11-17 | V194: 0.0177 | W194: 1.430735 | X194: 197711 | Y194: 197611 | Z194: 1976-11-05 | AA194: 5 | AB194: 1 | AC194: 0.0649 | AD194: 0.04536130031
A195: 180 | B195: 2021-12-16 | C195: 84.260002 | D195: 84.519997 | E195: 82.459999 | F195: 82.699997 | G195: 4546300 | H195: 81.280952 | I195: 0.9828410514 | J195: 1 | K195: 82.81 | L195: 83.07 | M195: 81.05 | N195: 81.28 | O195: 4546300 | U195: 1977-08-23 | V195: 0.0177 | W195: 1.386485 | X195: 197708 | Y195: 197608 | Z195: 1976-08-16 | AA195: 5 | AB195: 1 | AC195: 0.059 | AD195: 0.04255365186
A196: 181 | B196: 2021-12-15 | C196: 83.459999 | D196: 83.720001 | E196: 82.07 | F196: 83.43 | G196: 5388300 | H196: 81.998428 | I196: 0.9828410404 | J196: 1 | K196: 82.03 | L196: 82.28 | M196: 80.66 | N196: 82 | O196: 5388300 | U196: 1977-05-25 | V196: 0.0177 | W196: 1.494651 | X196: 197705 | Y196: 197605 | Z196: 1976-05-26 | AA196: 5 | AB196: 1 | AC196: 0.0531 | AD196: 0.03552668817
A197: 182 | B197: 2021-12-14 | C197: 83.629997 | D197: 84.739998 | E197: 83.230003 | F197: 83.5 | G197: 6144700 | H197: 82.06723 | I197: 0.9828410778 | J197: 1 | K197: 82.19 | L197: 83.29 | M197: 81.8 | N197: 82.07 | O197: 6144700 | U197: 1977-02-17 | V197: 0.0118 | W197: 1.391402 | X197: 197702 | Y197: 197602 | Z197: 1976-02-19 | AA197: 5 | AB197: 1 | AC197: 0.0472 | AD197: 0.03392261906
A198: 183 | B198: 2021-12-13 | C198: 85.449997 | D198: 85.940002 | E198: 84.040001 | F198: 84.330002 | G198: 4173900 | H198: 82.882996 | I198: 0.9828411483 | J198: 1 | K198: 83.98 | L198: 84.47 | M198: 82.6 | N198: 82.88 | O198: 4173900 | U198: 1976-11-05 | V198: 0.0118 | W198: 1.347152 | X198: 197611 | Y198: 197511 | Z198: 1975-11-07 | AA198: 5 | AB198: 1 | AC198: 0.046708 | AD198: 0.03467166289
A199: 184 | B199: 2021-12-10 | C199: 86.910004 | D199: 86.980003 | E199: 85.699997 | F199: 86.160004 | G199: 3294400 | H199: 84.681587 | I199: 0.9828410291 | J199: 1 | K199: 85.42 | L199: 85.49 | M199: 84.23 | N199: 84.68 | O199: 3294400 | U199: 1976-08-16 | V199: 0.0118 | W199: 1.391402 | X199: 197608 | Y199: 197508 | Z199: 1975-08-11 | AA199: 5 | AB199: 1 | AC199: 0.044741 | AD199: 0.03215533685
A200: 185 | B200: 2021-12-09 | C200: 86 | D200: 86.57 | E200: 85.519997 | F200: 86.160004 | G200: 4241900 | H200: 84.681587 | I200: 0.9828410291 | J200: 1 | K200: 84.52 | L200: 85.08 | M200: 84.05 | N200: 84.68 | O200: 4241900 | U200: 1976-05-26 | V200: 0.0118 | W200: 1.297986 | X200: 197605 | Y200: 197505 | Z200: 1975-05-19 | AA200: 5 | AB200: 1 | AC200: 0.042774 | AD200: 0.03295413048
... 4300 more rows

Sheet CalculationsAndCharts
A1: PhasorAnalysis.xlsm
A2: =" " & InputPriceData!A1 -> Raytheon Technologies Corporation (RTX) -NYSE (Daily)
A4: User Charting Controls | E4: Click to Shift Chart One Bar:
A5: Data Control | C5: FALSE
A6: =MIN(InputPriceData!$B$10) -> 15211 | B6: Available Input Data Rows | E6: Earliest: | F6: =OFFSET(InputPriceData!B15,CalculationsAndCharts!A6,0,1,1) -> 1962-04-02
A7: =MAX(A33:A56896) -> 2700 | B7: Available Calculation Rows | E7: Latest: | F7: =OFFSET(InputPriceData!B15,1,0,1,1) -> 2022-09-02
A8: =MIN(AvailableInputRows-DataPanRows,A7) -> 2700 | B8: Logically Available for Calc / Plot | E8: $ Change: | F8: =G33-G34 -> -0.410004
A10: Historical Price Windowing Specifications | F10: Click to Shift
A11: 39 | B11: Input Data Offset (Pan) | F11: Points to Plot
A12: 332 | B12: Data Points to Plot (Zoom)
B13: First: | C13: =OFFSET(B32,A12,0,1,1) -> 2021-03-17
B14: ="Last: " & IF(OFFSET(InputPriceData!P15,1+A11,0,1,1)="","",TEXT(OFFSET(InputPriceData!P15,1+A11,0,1,1),"H:MM AM/PM")) -> Last: | C14: =B33 -> 2022-07-11
A15: User Controls | C15: Calculated Semi-Constants
D17: Step Angle
D18: 360 / Periods
A19: 28 | B19: Periods | D19: =360/A19 -> 12.85714286
A25: Help! I would like to plot data
A26: From | B26: 2021-03-17 | C26: =OFFSET(InputPriceData!$A$15,MATCH(B26,OFFSET(InputPriceData!B15,1,0,InputPriceData!$B$10,1),0),0,1,1)-C27 -> 332 | E26: 119
A27: To | B27: 2022-07-11 | C27: =OFFSET(InputPriceData!$A$15,MATCH(B27,OFFSET(InputPriceData!$B$15,1,0,InputPriceData!$B$10,1),0),0,1,1)-1 -> 39 | E27: =$A$12-$E$26+1 -> 214 | AC27: ="Angle Correlation("&A19 & ") "&TEXT(AC33,"[red]0.00") -> Angle Correlation(28) 59.52 | AI27: ="Cycle Period(" & A19 & ") " & TEXT(AI33,"0.00") -> Cycle Period(28) 32.37
H28: Value @ Cursor => | I28: =OFFSET(A32,$E$27,0,1,1)&"(RR)" -> 214(RR) | J28: =OFFSET($B$32,$E$27,0,1,1) -> 2021-09-02 | K28: =TEXT(OFFSET(D32,$E$27,0,1,1),"#,##0.00")&"(o)" -> 84.20(o) | L28: =TEXT(OFFSET(E32,$E$27,0,1,1),"#,##0.00")&"(h)" -> 84.95(h) | M28: =TEXT(OFFSET(F32,$E$27,0,1,1),"#,##0.00")&"(l)" -> 84.13(l) | N28: =TEXT(OFFSET(G32,$E$27,0,1,1),"#,##0.00")&"(c)" -> 84.54(c) | O28: =TEXT(OFFSET(C32,$E$27,0,1,1),"#,##0.00,,""M""")&"(v)" -> 3.47M(v)
E29: Cursor ==> | Z29: Phasor Angle Calculations | AF29: Frequency from Phase Rate Of Change | AJ29: Trend State | AZ29: Work Area For Chart Cursors
B30: =LogicallyAvailableRows -> 2700 | C30: <== Calculation Rel Row Limits ==> | H30: =A19 -> 28 | L30: =LogicallyAvailableRows-A19+1 -> 2673 | AB30: =L30-1 -> 2672 | AF30: =AB30-1 -> 2671
A31: Rel Row | B31: =InputPriceData!$A$1 -> Raytheon Technologies Corporation (RTX) -NYSE (Daily) | H31: Common to Real and IMAG calcs | M31: Detail Calculations for REAL Phasor Component | Q31: Period*Sxx - Sx*Sx | R31: Period*Syy - Sy*Sy | T31: Detail Calculations for IMAG Phasor Component | X31: Period*Syy - Sy*Sy | AB31: Wrap Adj | AC31: NOT BACKWD | AF31: Delta Angle 1 | AG31: Delta Angle | AH31: Derived Period1 | AI31: Derived | AJ31: ="Trend State("&A19&") "&TEXT(AJ33,"0.00") -> Trend State(28) 0.00 | AX31: Used To Color Vol Bars | BN31: LoopChart Cursor
B32: Date | C32: Volume | D32: Open | E32: High | F32: Low | G32: Close | H32: Step Angle | I32: Step Radians | J32: Sx | K32: Sx * Sx | L32: Sxx | M32: Step COS | N32: Sxy | O32: Syy | P32: Sy | S32: Real | T32: Step SIN | U32: Sxy | V32: Syy | W32: Sy | Y32: IMAG | Z32: Init Angle | AB32: Angle | AC32: Angle | AD32: =+"+90" -> +90 | AE32: ="-90" -> -90 | AI32: Period | AX32: Up Vol | AY32: Dn Vol | AZ32: Volume Cursor | BA32: =MAX(OFFSET(C33,0,0,A12,1)) -> 23128700 | BB32: Price Chart Cursor | BD32: Indicator 01 Cursor | BF32: Indicator 02 Cursor | BH32: Indicator 03 Cursor | BJ32: Indicator 04 Cursor | BL32: Price Chart2 Cursor | BN32: =OFFSET($B$32,$E$27,0,1,1) -> 2021-09-02
A33: 1 | B33: =IF($A33>$B$30,NA(),IF($A33>$A$8,"",OFFSET(InputPriceData!$B$15,$A33+$A$11,0,1,1))) -> 2022-07-11 | C33: =IF($A33>$B$30,NA(),IF($A33>$A$8,"",OFFSET(InputPriceData!$G$15,CalculationsAndCharts!$A33+$A$11,IF($C$5,8,0),1,1))) -> 2501400 | D33: =IF($A33>$B$30,NA(),IF($A33>$A$8,"",OFFSET(InputPriceData!$C$15,CalculationsAndCharts!$A33+$A$11,IF($C$5,8,0),1,1))) -> 94.290001 | E33: =IF($A33>$B$30,NA(),IF($A33>$A$8,"",OFFSET(InputPriceData!$D$15,CalculationsAndCharts!$A33+$A$11,IF($C$5,8,0),1,1))) -> 95.139999 | F33: =IF($A33>$B$30,NA(),IF($A33>$A$8,"",OFFSET(InputPriceData!$E$15,CalculationsAndCharts!$A33+$A$11,IF($C$5,8,0),1,1))) -> 94.050003 | G33: =IF($A33>$B$30,NA(),IF($A33>$A$8,"",OFFSET(InputPriceData!$F$15,CalculationsAndCharts!$A33+$A$11,IF($C$5,8,0),1,1))) -> 94.709999 | H33: =IF($A33>$H$30,NA(),(A33-1)*$D$19) -> 0 | I33: =IF($A33>$H$30+1,NA(),RADIANS(H33)) -> 0 | J33: =IF($A33>$L$30,NA(),SUM(OFFSET(G33,0,0,$A$19,1))) -> 2643.339983 | K33: =IF($A33>$L$30,NA(),J33*J33) -> 6987246.266 | L33: =IF($A33>$L$30,NA(),SUMSQ(OFFSET(G33,0,0,$A$19,1))) -> 249732.5831 | M33: =IF($A33<=$H$30,COS($I33),IF($A33=$H$30+1,"Sum COS",IF($A33=$H$30+2,SUM(OFFSET(M$33,0,0,$H$30,1)),NA()))) -> 1 | N33: =IF($A33>$L$30,NA(),SUMPRODUCT(OFFSET(G33,0,0,$A$19,1),OFFSET($M$33,0,0,$A$19,1))) -> 27.3455547 | O33: =IF($A33>$L$30,NA(),SUMSQ(OFFSET($M$33,0,0,$A$19,1))) -> 14 | P33: =IF($A33>$L$30,NA(),OFFSET($M$33,$A$19+1,0,1,1)) -> 1.33226763e-15 | Q33: =IF($A33>$L$30,NA(),$A$19*L33-K33) -> 5266.060924 | R33: =IF($A33>$L$30,NA(),$A$19*$O$33-$P$33^2) -> 392 | S33: =IF($A33>$L$30,NA(),IF(AND(Q33>0,R33>0),($A$19*N33-J33*$P$33)/SQRT(Q33*R33))) -> 0.5329160443 | T33: =IF($A33<=$H$30,-SIN($I33),IF($A33=$H$30+1,"Sum SIN",IF($A33=$H$30+2,SUM(OFFSET(T$33,0,0,$H$30,1)),NA()))) -> 0 | U33: =IF($A33>$L$30,NA(),SUMPRODUCT(OFFSET(G33,0,0,$A$19,1),OFFSET($T$33,0,0,$A$19,1))) -> 16.09177297 | V33: =IF($A33>$L$30,NA(),SUMSQ(OFFSET($T$33,0,0,$A$19,1))) -> 14 | W33: =IF($A33>$L$30,NA(),OFFSET($T$33,$A$19+1,0,1,1)) -> 1.387778781e-15 | X33: =IF($A33>$L$30,NA(),$A$19*$V$33-$W$33^2) -> 392 | Y33: =IF($A33>$L$30,NA(),IF(AND(Q33>0,R33>0),($A$19*U33-J33*$W$33)/SQRT(Q33*X33))) -> 0.3135999285 | Z33: =IF($A33>$L$30,NA(),IF($S33<>0,90-DEGREES(ATAN($Y33/$S33)))) -> 59.52487879 | AA33: =IF($A33>$L$30,NA(),Z33+IF($S33<0,-180,0)) -> 59.52487879 | AB33: =IF($A33>$AB$30,NA(),IF($A33=$AB$30,AA33,AA33+IF(AND(ABS(AB34)-ABS(AA33-360)<(AA33-AB34),AA33>90,AB34<-90),-360,0))) -> 59.52487879 | AC33: =IF($A33>$AB$30,NA(),IF($A33=$AB$30,AB33,IF(AND(AB33<AC34,OR(AND(AB33>-135,AC34<135),AND(AB33<-90,AC34<-90))),AC34,AB33))) -> 59.52487879 | AD33: 90 | AE33: -90 | AF33: =IF($A33>$AF$30,NA(),AC33-AC34) -> 11.12039007 | AG33: =IF($A33>$AF$30,NA(),IF($A33=$AF$30,AF33,IF(AF33<=0,AG34,AF33))) -> 11.12039007 | AH33: =360/AG33 -> 32.37296514 | AI33: =IF(AH33>60,60,AH33) -> 32.37296514 | AJ33: =IF(AC33-AC34<=6,IF(OR(AC33>=90,AC33<=-90),1,IF(AND(AC33>-90,AC33<90),-1,0)),0) -> 0 | AX33: =IF(G33>=D33,C33,NA()) -> 2501400 | AY33: =IF(G33<D33,C33,NA()) ->  | AZ33: =$E$27 -> 214 | BA33: 0 | BB33: =$E$27 -> 214 | BC33: 74.629997 | BD33: =$E$27 -> 214 | BE33: -180 | BF33: =$E$27 -> 214 | BG33: 0 | BH33: =$E$27 -> 214 | BI33: -1 | BJ33: =$E$27 -> 214 | BL33: =$E$27 -> 214 | BM33: -1 | BO33: =OFFSET($M$32,$E$27,0,1,1) -> 
A34: 2 | B34: =IF(A34>$B$30,NA(),IF($A34>$A$8,"",OFFSET(InputPriceData!$B$15,$A34+$A$11,0,1,1))) -> 2022-07-08 | C34: =IF(A34>$B$30,NA(),IF($A34>$A$8,"",OFFSET(InputPriceData!$G$15,CalculationsAndCharts!$A34+$A$11,IF($C$5,8,0),1,1))) -> 2763200 | D34: =IF(A34>$B$30,NA(),IF(A34>$A$8,"",OFFSET(InputPriceData!$C$15,CalculationsAndCharts!$A34+$A$11,IF($C$5,8,0),1,1))) -> 94.290001 | E34: =IF(A34>$B$30,NA(),IF(A34>$A$8,"",OFFSET(InputPriceData!$D$15,CalculationsAndCharts!$A34+$A$11,IF($C$5,8,0),1,1))) -> 95.720001 | F34: =IF(A34>$B$30,NA(),IF(A34>$A$8,"",OFFSET(InputPriceData!$E$15,CalculationsAndCharts!$A34+$A$11,IF($C$5,8,0),1,1))) -> 93.940002 | G34: =IF(A34>$B$30,NA(),IF(A34>$A$8,"",OFFSET(InputPriceData!$F$15,CalculationsAndCharts!$A34+$A$11,IF($C$5,8,0),1,1))) -> 95.120003 | H34: =IF($A34>$H$30,NA(),(A34-1)*$D$19) -> 12.85714286 | I34: =IF($A34>$H$30+1,NA(),RADIANS(H34)) -> 0.2243994753 | J34: =IF($A34>$L$30,NA(),SUM(OFFSET(G34,0,0,$A$19,1))) -> 2645.339983 | K34: =IF($A34>$L$30,NA(),J34*J34) -> 6997823.626 | L34: =IF($A34>$L$30,NA(),SUMSQ(OFFSET(G34,0,0,$A$19,1))) -> 250115.4231 | M34: =IF($A34<=$H$30,COS($I34),IF($A34=$H$30+1,"Sum COS",IF($A34=$H$30+2,SUM(OFFSET(M$33,0,0,$H$30,1)),NA()))) -> 0.9749279122 | N34: 25.02904402 | Q34: =IF($A34>$L$30,NA(),$A$19*L34-K34) -> 5408.22088 | R34: 392 | S34: 0.4813179405 | T34: -0.222520934 | U34: =IF($A34>$L$30,NA(),SUMPRODUCT(OFFSET(G34,0,0,$A$19,1),OFFSET($T$33,0,0,$A$19,1))) -> 22.21831887 | X34: =IF($A34>$L$30,NA(),$A$19*$V$33-$W$33^2) -> 392 | Y34: =IF($A34>$L$30,NA(),IF(AND(Q34>0,R34>0),($A$19*U34-J34*$W$33)/SQRT(Q34*X34))) -> 0.4272666375 | Z34: =IF($A34>$L$30,NA(),IF($S34<>0,90-DEGREES(ATAN($Y34/$S34)))) -> 48.40448872 | AA34: =IF($A34>$L$30,NA(),Z34+IF($S34<0,-180,0)) -> 48.40448872 | AB34: 48.40448872 | AC34: =IF($A34>$AB$30,NA(),IF($A34=$AB$30,AB34,IF(AND(AB34<AC35,OR(AND(AB34>-135,AC35<135),AND(AB34<-90,AC35<-90))),AC35,AB34))) -> 48.40448872 | AD34: 90 | AE34: -90 | AF34: =IF($A34>$AF$30,NA(),AC34-AC35) -> 12.99389427 | AG34: =IF($A34>$AF$30,NA(),IF($A34=$AF$30,AF34,IF(AF34<=0,AG35,AF34))) -> 12.99389427 | AH34: =360/AG34 -> 27.70532009 | AI34: =IF(AH34>60,60,AH34) -> 27.70532009 | AJ34: 0 | AX34: 2763200 | AZ34: =$E$27 -> 214 | BA34: =CEILING(BA32,10^INT(LOG10(BA32))/8) -> 23750000 | BB34: =$E$27 -> 214 | BC34: 106.019997 | BD34: =$E$27 -> 214 | BE34: 180 | BF34: =$E$27 -> 214 | BG34: 60 | BH34: =$E$27 -> 214 | BI34: 1 | BJ34: =$E$27 -> 214 | BK34: 0 | BL34: =$E$27 -> 214 | BM34: 18288.64657
A35: 3 | B35: =IF(A35>$B$30,NA(),IF($A35>$A$8,"",OFFSET(InputPriceData!$B$15,$A35+$A$11,0,1,1))) -> 2022-07-07 | C35: =IF(A35>$B$30,NA(),IF($A35>$A$8,"",OFFSET(InputPriceData!$G$15,CalculationsAndCharts!$A35+$A$11,IF($C$5,8,0),1,1))) -> 3212600 | D35: =IF(A35>$B$30,NA(),IF(A35>$A$8,"",OFFSET(InputPriceData!$C$15,CalculationsAndCharts!$A35+$A$11,IF($C$5,8,0),1,1))) -> 94.550003 | E35: =IF(A35>$B$30,NA(),IF(A35>$A$8,"",OFFSET(InputPriceData!$D$15,CalculationsAndCharts!$A35+$A$11,IF($C$5,8,0),1,1))) -> 95 | F35: =IF(A35>$B$30,NA(),IF(A35>$A$8,"",OFFSET(InputPriceData!$E$15,CalculationsAndCharts!$A35+$A$11,IF($C$5,8,0),1,1))) -> 93.809998 | G35: =IF(A35>$B$30,NA(),IF(A35>$A$8,"",OFFSET(InputPriceData!$F$15,CalculationsAndCharts!$A35+$A$11,IF($C$5,8,0),1,1))) -> 93.940002 | H35: 25.71428571 | I35: 0.4487989505 | J35: 2645.21998 | K35: 6997188.743 | L35: 250092.6081 | M35: 0.9009688679 | N35: 19.34047829 | Q35: 5404.284767 | R35: 392 | S35: 0.3720600973 | T35: -0.4338837391 | U35: 27.2040423 | X35: 392 | Y35: 0.5233344528 | Z35: 35.41059445 | AA35: 35.41059445 | AB35: 35.41059445 | AC35: 35.41059445 | AD35: 90 | AE35: -90 | AF35: 13.39229389 | AG35: 13.39229389 | AH35: 26.88113052 | AI35: 26.88113052 | AJ35: 0 | AY35: 3212600
A36: 4 | B36: =IF(A36>$B$30,NA(),IF($A36>$A$8,"",OFFSET(InputPriceData!$B$15,$A36+$A$11,0,1,1))) -> 2022-07-06 | C36: =IF(A36>$B$30,NA(),IF($A36>$A$8,"",OFFSET(InputPriceData!$G$15,CalculationsAndCharts!$A36+$A$11,IF($C$5,8,0),1,1))) -> 4294700 | D36: =IF(A36>$B$30,NA(),IF(A36>$A$8,"",OFFSET(InputPriceData!$C$15,CalculationsAndCharts!$A36+$A$11,IF($C$5,8,0),1,1))) -> 93 | E36: =IF(A36>$B$30,NA(),IF(A36>$A$8,"",OFFSET(InputPriceData!$D$15,CalculationsAndCharts!$A36+$A$11,IF($C$5,8,0),1,1))) -> 94.720001 | F36: =IF(A36>$B$30,NA(),IF(A36>$A$8,"",OFFSET(InputPriceData!$E$15,CalculationsAndCharts!$A36+$A$11,IF($C$5,8,0),1,1))) -> 92.239998 | G36: =IF(A36>$B$30,NA(),IF(A36>$A$8,"",OFFSET(InputPriceData!$F$15,CalculationsAndCharts!$A36+$A$11,IF($C$5,8,0),1,1))) -> 93.919998 | H36: 38.57142857 | I36: 0.6731984258 | J36: 2644.839976 | K36: 6995178.499 | L36: 250021.3574 | M36: 0.7818314825 | N36: 12.43162672 | Q36: 5419.507711 | R36: 392 | S36: 0.2388157909 | T36: -0.6234898019 | U36: 30.74108261 | X36: 392 | Y36: 0.5905466858 | Z36: 22.01830056 | AA36: 22.01830056 | AB36: 22.01830056 | AC36: 22.01830056 | AD36: 90 | AE36: -90 | AF36: 14.00350832 | AG36: 14.00350832 | AH36: 25.70784347 | AI36: 25.70784347 | AJ36: 0 | AX36: 4294700
A37: 5 | B37: =IF(A37>$B$30,NA(),IF($A37>$A$8,"",OFFSET(InputPriceData!$B$15,$A37+$A$11,0,1,1))) -> 2022-07-05 | C37: =IF(A37>$B$30,NA(),IF($A37>$A$8,"",OFFSET(InputPriceData!$G$15,CalculationsAndCharts!$A37+$A$11,IF($C$5,8,0),1,1))) -> 4938700 | D37: =IF(A37>$B$30,NA(),IF(A37>$A$8,"",OFFSET(InputPriceData!$C$15,CalculationsAndCharts!$A37+$A$11,IF($C$5,8,0),1,1))) -> 94.919998 | E37: =IF(A37>$B$30,NA(),IF(A37>$A$8,"",OFFSET(InputPriceData!$D$15,CalculationsAndCharts!$A37+$A$11,IF($C$5,8,0),1,1))) -> 95.449997 | F37: =IF(A37>$B$30,NA(),IF(A37>$A$8,"",OFFSET(InputPriceData!$E$15,CalculationsAndCharts!$A37+$A$11,IF($C$5,8,0),1,1))) -> 91.410004 | G37: =IF(A37>$B$30,NA(),IF(A37>$A$8,"",OFFSET(InputPriceData!$F$15,CalculationsAndCharts!$A37+$A$11,IF($C$5,8,0),1,1))) -> 92.919998 | H37: 51.42857143 | I37: 0.897597901 | J37: 2644.129977 | K37: 6991423.335 | L37: 249888.4953 | M37: 0.6234898019 | N37: 4.587207626 | Q37: 5454.531988 | R37: 392 | S37: 0.08783844703 | T37: -0.7818314825 | U37: 32.57864703 | X37: 392 | Y37: 0.6238343662 | Z37: 8.014792239 | AA37: 8.014792239 | AB37: 8.014792239 | AC37: 8.014792239 | AD37: 90 | AE37: -90 | AF37: 14.7448826 | AG37: 14.7448826 | AH37: 24.41525034 | AI37: 24.41525034 | AJ37: 0 | AY37: 4938700
A38: 6 | B38: =IF(A38>$B$30,NA(),IF($A38>$A$8,"",OFFSET(InputPriceData!$B$15,$A38+$A$11,0,1,1))) -> 2022-07-01 | C38: =IF(A38>$B$30,NA(),IF($A38>$A$8,"",OFFSET(InputPriceData!$G$15,CalculationsAndCharts!$A38+$A$11,IF($C$5,8,0),1,1))) -> 4221000 | D38: =IF(A38>$B$30,NA(),IF(A38>$A$8,"",OFFSET(InputPriceData!$C$15,CalculationsAndCharts!$A38+$A$11,IF($C$5,8,0),1,1))) -> 96.050003 | E38: =IF(A38>$B$30,NA(),IF(A38>$A$8,"",OFFSET(InputPriceData!$D$15,CalculationsAndCharts!$A38+$A$11,IF($C$5,8,0),1,1))) -> 97.32 | F38: =IF(A38>$B$30,NA(),IF(A38>$A$8,"",OFFSET(InputPriceData!$E$15,CalculationsAndCharts!$A38+$A$11,IF($C$5,8,0),1,1))) -> 95.339996 | G38: =IF(A38>$B$30,NA(),IF(A38>$A$8,"",OFFSET(InputPriceData!$F$15,CalculationsAndCharts!$A38+$A$11,IF($C$5,8,0),1,1))) -> 97.019997 | H38: 64.28571429 | I38: 1.121997376 | J38: 2643.039981 | K38: 6985660.341 | L38: 249687.1185 | M38: 0.4338837391 | N38: -3.839901736 | Q38: 5578.976785 | R38: 392 | S38: -0.07270392068 | T38: -0.9009688679 | U38: 32.54003513 | X38: 392 | Y38: 0.6161064255 | Z38: 173.2699096 | AA38: -6.730090365 | AB38: -6.730090365 | AC38: -6.730090365 | AD38: 90 | AE38: -90 | AF38: 24.45610736 | AG38: 24.45610736 | AH38: 14.72024941 | AI38: 14.72024941 | AJ38: 0 | AX38: 4221000
A39: 7 | B39: =IF(A39>$B$30,NA(),IF($A39>$A$8,"",OFFSET(InputPriceData!$B$15,$A39+$A$11,0,1,1))) -> 2022-06-30 | C39: =IF(A39>$B$30,NA(),IF($A39>$A$8,"",OFFSET(InputPriceData!$G$15,CalculationsAndCharts!$A39+$A$11,IF($C$5,8,0),1,1))) -> 6319100 | D39: =IF(A39>$B$30,NA(),IF(A39>$A$8,"",OFFSET(InputPriceData!$C$15,CalculationsAndCharts!$A39+$A$11,IF($C$5,8,0),1,1))) -> 92.970001 | E39: =IF(A39>$B$30,NA(),IF(A39>$A$8,"",OFFSET(InputPriceData!$D$15,CalculationsAndCharts!$A39+$A$11,IF($C$5,8,0),1,1))) -> 96.269997 | F39: =IF(A39>$B$30,NA(),IF(A39>$A$8,"",OFFSET(InputPriceData!$E$15,CalculationsAndCharts!$A39+$A$11,IF($C$5,8,0),1,1))) -> 92.709999 | G39: =IF(A39>$B$30,NA(),IF(A39>$A$8,"",OFFSET(InputPriceData!$F$15,CalculationsAndCharts!$A39+$A$11,IF($C$5,8,0),1,1))) -> 96.110001 | H39: 77.14285714 | I39: 1.346396852 | J39: 2636.099986 | K39: 6949023.136 | L39: 248388.6454 | M39: 0.222520934 | N39: -17.75046123 | Q39: 5858.936149 | R39: 392 | S39: -0.3279557559 | T39: -0.9749279122 | U39: 29.32543582 | X39: 392 | Y39: 0.5418138351 | Z39: 148.8138023 | AA39: -31.18619772 | AB39: -31.18619772 | AC39: -31.18619772 | AD39: 90 | AE39: -90 | AF39: 20.50914309 | AG39: 20.50914309 | AH39: 17.55314683 | AI39: 17.55314683 | AJ39: 0 | AX39: 6319100
A40: 8 | B40: =IF(A40>$B$30,NA(),IF($A40>$A$8,"",OFFSET(InputPriceData!$B$15,$A40+$A$11,0,1,1))) -> 2022-06-29 | C40: =IF(A40>$B$30,NA(),IF($A40>$A$8,"",OFFSET(InputPriceData!$G$15,CalculationsAndCharts!$A40+$A$11,IF($C$5,8,0),1,1))) -> 2504100 | D40: =IF(A40>$B$30,NA(),IF(A40>$A$8,"",OFFSET(InputPriceData!$C$15,CalculationsAndCharts!$A40+$A$11,IF($C$5,8,0),1,1))) -> 94.220001 | E40: =IF(A40>$B$30,NA(),IF(A40>$A$8,"",OFFSET(InputPriceData!$D$15,CalculationsAndCharts!$A40+$A$11,IF($C$5,8,0),1,1))) -> 94.300003 | F40: =IF(A40>$B$30,NA(),IF(A40>$A$8,"",OFFSET(InputPriceData!$E$15,CalculationsAndCharts!$A40+$A$11,IF($C$5,8,0),1,1))) -> 92.300003 | G40: =IF(A40>$B$30,NA(),IF(A40>$A$8,"",OFFSET(InputPriceData!$F$15,CalculationsAndCharts!$A40+$A$11,IF($C$5,8,0),1,1))) -> 93.300003 | H40: 90 | I40: 1.570796327 | J40: 2630.239985 | K40: 6918162.379 | L40: 247296.5756 | M40: 6.125742275e-17 | N40: -29.54402201 | Q40: 6141.739463 | R40: 392 | S40: -0.5331371197 | T40: -1 | U40: 23.33636381 | X40: 392 | Y40: 0.4211167248 | Z40: 128.3046592 | AA40: -51.69534081 | AB40: -51.69534081 | AC40: -51.69534081 | AD40: 90 | AE40: -90 | AF40: 13.49877089 | AG40: 13.49877089 | AH40: 26.66909476 | AI40: 26.66909476 | AJ40: 0 | AY40: 2504100
A41: 9 | B41: =IF(A41>$B$30,NA(),IF($A41>$A$8,"",OFFSET(InputPriceData!$B$15,$A41+$A$11,0,1,1))) -> 2022-06-28 | C41: =IF(A41>$B$30,NA(),IF($A41>$A$8,"",OFFSET(InputPriceData!$G$15,CalculationsAndCharts!$A41+$A$11,IF($C$5,8,0),1,1))) -> 3358800 | D41: =IF(A41>$B$30,NA(),IF(A41>$A$8,"",OFFSET(InputPriceData!$C$15,CalculationsAndCharts!$A41+$A$11,IF($C$5,8,0),1,1))) -> 95.43 | E41: =IF(A41>$B$30,NA(),IF(A41>$A$8,"",OFFSET(InputPriceData!$D$15,CalculationsAndCharts!$A41+$A$11,IF($C$5,8,0),1,1))) -> 96.790001 | F41: =IF(A41>$B$30,NA(),IF(A41>$A$8,"",OFFSET(InputPriceData!$E$15,CalculationsAndCharts!$A41+$A$11,IF($C$5,8,0),1,1))) -> 93.68 | G41: =IF(A41>$B$30,NA(),IF(A41>$A$8,"",OFFSET(InputPriceData!$F$15,CalculationsAndCharts!$A41+$A$11,IF($C$5,8,0),1,1))) -> 93.779999 | H41: 102.8571429 | I41: 1.795195802 | J41: 2629.549983 | K41: 6914533.113 | L41: 247168.2974 | M41: -0.222520934 | N41: -34.66882338 | Q41: 6179.213372 | R41: 392 | S41: -0.6237168894 | T41: -0.9749279122 | U41: 16.02356919 | X41: 392 | Y41: 0.2882754521 | Z41: 114.8058883 | AA41: -65.19411169 | AB41: -65.19411169 | AC41: -65.19411169 | AD41: 90 | AE41: -90 | AF41: 12.09973668 | AG41: 12.09973668 | AH41: 29.7527136 | AI41: 29.7527136 | AJ41: 0 | AY41: 3358800
A42: 10 | B42: =IF(A42>$B$30,NA(),IF($A42>$A$8,"",OFFSET(InputPriceData!$B$15,$A42+$A$11,0,1,1))) -> 2022-06-27 | C42: =IF(A42>$B$30,NA(),IF($A42>$A$8,"",OFFSET(InputPriceData!$G$15,CalculationsAndCharts!$A42+$A$11,IF($C$5,8,0),1,1))) -> 2942600 | D42: =IF(A42>$B$30,NA(),IF(A42>$A$8,"",OFFSET(InputPriceData!$C$15,CalculationsAndCharts!$A42+$A$11,IF($C$5,8,0),1,1))) -> 94.440002 | E42: =IF(A42>$B$30,NA(),IF(A42>$A$8,"",OFFSET(InputPriceData!$D$15,CalculationsAndCharts!$A42+$A$11,IF($C$5,8,0),1,1))) -> 95.050003 | F42: =IF(A42>$B$30,NA(),IF(A42>$A$8,"",OFFSET(InputPriceData!$E$15,CalculationsAndCharts!$A42+$A$11,IF($C$5,8,0),1,1))) -> 93.839996 | G42: =IF(A42>$B$30,NA(),IF(A42>$A$8,"",OFFSET(InputPriceData!$F$15,CalculationsAndCharts!$A42+$A$11,IF($C$5,8,0),1,1))) -> 94.809998 | H42: 115.7142857 | I42: 2.019595277 | J42: 2630.719981 | K42: 6920687.618 | L42: 247389.1111 | M42: -0.4338837391 | N42: -36.22451947 | Q42: 6207.492135 | R42: 392 | S42: -0.6502188295 | T42: -0.9009688679 | U42: 8.167634948 | X42: 392 | Y42: 0.1466065006 | Z42: 102.7061516 | AA42: -77.29384837 | AB42: -77.29384837 | AC42: -77.29384837 | AD42: 90 | AE42: -90 | AF42: 13.60223069 | AG42: 13.60223069 | AH42: 26.4662472 | AI42: 26.4662472 | AJ42: 0 | AX42: 2942600
A43: 11 | B43: =IF(A43>$B$30,NA(),IF($A43>$A$8,"",OFFSET(InputPriceData!$B$15,$A43+$A$11,0,1,1))) -> 2022-06-24 | C43: =IF(A43>$B$30,NA(),IF($A43>$A$8,"",OFFSET(InputPriceData!$G$15,CalculationsAndCharts!$A43+$A$11,IF($C$5,8,0),1,1))) -> 4782200 | D43: =IF(A43>$B$30,NA(),IF(A43>$A$8,"",OFFSET(InputPriceData!$C$15,CalculationsAndCharts!$A43+$A$11,IF($C$5,8,0),1,1))) -> 92.5 | E43: =IF(A43>$B$30,NA(),IF(A43>$A$8,"",OFFSET(InputPriceData!$D$15,CalculationsAndCharts!$A43+$A$11,IF($C$5,8,0),1,1))) -> 94.370003 | F43: =IF(A43>$B$30,NA(),IF(A43>$A$8,"",OFFSET(InputPriceData!$E$15,CalculationsAndCharts!$A43+$A$11,IF($C$5,8,0),1,1))) -> 91.879997 | G43: =IF(A43>$B$30,NA(),IF(A43>$A$8,"",OFFSET(InputPriceData!$F$15,CalculationsAndCharts!$A43+$A$11,IF($C$5,8,0),1,1))) -> 94.199997 | H43: 128.5714286 | I43: 2.243994753 | J43: 2628.389986 | K43: 6908433.919 | L43: 246952.7263 | M43: -0.6234898019 | N43: -39.40534205 | Q43: 6242.418618 | R43: 392 | S43: -0.7053321092 | T43: -0.7818314825 | U43: -0.6163312809 | X43: 392 | Y43: -0.01103196216 | Z43: 89.10392094 | AA43: -90.89607906 | AB43: -90.89607906 | AC43: -90.89607906 | AD43: 90 | AE43: -90 | AF43: 12.80813875 | AG43: 12.80813875 | AH43: 28.10712838 | AI43: 28.10712838 | AJ43: 0 | AX43: 4782200
A44: 12 | B44: =IF(A44>$B$30,NA(),IF($A44>$A$8,"",OFFSET(InputPriceData!$B$15,$A44+$A$11,0,1,1))) -> 2022-06-23 | C44: =IF(A44>$B$30,NA(),IF($A44>$A$8,"",OFFSET(InputPriceData!$G$15,CalculationsAndCharts!$A44+$A$11,IF($C$5,8,0),1,1))) -> 3310500 | D44: =IF(A44>$B$30,NA(),IF(A44>$A$8,"",OFFSET(InputPriceData!$C$15,CalculationsAndCharts!$A44+$A$11,IF($C$5,8,0),1,1))) -> 92.5 | E44: =IF(A44>$B$30,NA(),IF(A44>$A$8,"",OFFSET(InputPriceData!$D$15,CalculationsAndCharts!$A44+$A$11,IF($C$5,8,0),1,1))) -> 93.32 | F44: =IF(A44>$B$30,NA(),IF(A44>$A$8,"",OFFSET(InputPriceData!$E$15,CalculationsAndCharts!$A44+$A$11,IF($C$5,8,0),1,1))) -> 90.769997 | G44: =IF(A44>$B$30,NA(),IF(A44>$A$8,"",OFFSET(InputPriceData!$F$15,CalculationsAndCharts!$A44+$A$11,IF($C$5,8,0),1,1))) -> 91.760002 | H44: 141.4285714 | I44: 2.468394228 | J44: 2626.109987 | K44: 6896453.664 | L44: 246528.3729 | M44: -0.7818314825 | N44: -40.50305591 | Q44: 6340.778032 | R44: 392 | S44: -0.7193355337 | T44: -0.6234898019 | U44: -9.876739592 | X44: 392 | Y44: -0.1754112026 | Z44: 76.29578219 | AA44: -103.7042178 | AB44: -103.7042178 | AC44: -103.7042178 | AD44: 90 | AE44: -90 | AF44: 12.76656832 | AG44: 12.76656832 | AH44: 28.19865065 | AI44: 28.19865065 | AJ44: 0 | AY44: 3310500
A45: 13 | B45: =IF(A45>$B$30,NA(),IF($A45>$A$8,"",OFFSET(InputPriceData!$B$15,$A45+$A$11,0,1,1))) -> 2022-06-22 | C45: =IF(A45>$B$30,NA(),IF($A45>$A$8,"",OFFSET(InputPriceData!$G$15,CalculationsAndCharts!$A45+$A$11,IF($C$5,8,0),1,1))) -> 4481500 | D45: =IF(A45>$B$30,NA(),IF(A45>$A$8,"",OFFSET(InputPriceData!$C$15,CalculationsAndCharts!$A45+$A$11,IF($C$5,8,0),1,1))) -> 91.199997 | E45: =IF(A45>$B$30,NA(),IF(A45>$A$8,"",OFFSET(InputPriceData!$D$15,CalculationsAndCharts!$A45+$A$11,IF($C$5,8,0),1,1))) -> 93.82 | F45: =IF(A45>$B$30,NA(),IF(A45>$A$8,"",OFFSET(InputPriceData!$E$15,CalculationsAndCharts!$A45+$A$11,IF($C$5,8,0),1,1))) -> 91.080002 | G45: =IF(A45>$B$30,NA(),IF(A45>$A$8,"",OFFSET(InputPriceData!$F$15,CalculationsAndCharts!$A45+$A$11,IF($C$5,8,0),1,1))) -> 92.559998 | H45: 154.2857143 | I45: 2.692793703 | J45: 2625.829988 | K45: 6894983.126 | L45: 246477.0659 | M45: -0.9009688679 | N45: -37.56275726 | Q45: 6374.719465 | R45: 392 | S45: -0.6653373788 | T45: -0.4338837391 | U45: -18.70419258 | X45: 392 | Y45: -0.331301517 | Z45: 63.52921387 | AA45: -116.4707861 | AB45: -116.4707861 | AC45: -116.4707861 | AD45: 90 | AE45: -90 | AF45: 11.9383472 | AG45: 11.9383472 | AH45: 30.15492799 | AI45: 30.15492799 | AJ45: 0 | AX45: 4481500
A46: 14 | B46: =IF(A46>$B$30,NA(),IF($A46>$A$8,"",OFFSET(InputPriceData!$B$15,$A46+$A$11,0,1,1))) -> 2022-06-21 | C46: =IF(A46>$B$30,NA(),IF($A46>$A$8,"",OFFSET(InputPriceData!$G$15,CalculationsAndCharts!$A46+$A$11,IF($C$5,8,0),1,1))) -> 5834200 | D46: =IF(A46>$B$30,NA(),IF(A46>$A$8,"",OFFSET(InputPriceData!$C$15,CalculationsAndCharts!$A46+$A$11,IF($C$5,8,0),1,1))) -> 90.849998 | E46: =IF(A46>$B$30,NA(),IF(A46>$A$8,"",OFFSET(InputPriceData!$D$15,CalculationsAndCharts!$A46+$A$11,IF($C$5,8,0),1,1))) -> 93.349998 | F46: =IF(A46>$B$30,NA(),IF(A46>$A$8,"",OFFSET(InputPriceData!$E$15,CalculationsAndCharts!$A46+$A$11,IF($C$5,8,0),1,1))) -> 90.110001 | G46: =IF(A46>$B$30,NA(),IF(A46>$A$8,"",OFFSET(InputPriceData!$F$15,CalculationsAndCharts!$A46+$A$11,IF($C$5,8,0),1,1))) -> 92.919998 | H46: 167.1428571 | I46: 2.917193178 | J46: 2624.26999 | K46: 6886792.98 | L46: 246190.7127 | M46: -0.9749279122 | N46: -33.9797917 | Q46: 6546.974497 | R46: 392 | S46: -0.5939028174 | T46: -0.222520934 | U46: -26.94087146 | X46: 392 | Y46: -0.470875737 | Z46: 51.59086668 | AA46: -128.4091333 | AB46: -128.4091333 | AC46: -128.4091333 | AD46: 90 | AE46: -90 | AF46: 11.8695244 | AG46: 11.8695244 | AH46: 30.32977462 | AI46: 30.32977462 | AJ46: 0 | AX46: 5834200
A47: 15 | B47: =IF(A47>$B$30,NA(),IF($A47>$A$8,"",OFFSET(InputPriceData!$B$15,$A47+$A$11,0,1,1))) -> 2022-06-17 | C47: =IF(A47>$B$30,NA(),IF($A47>$A$8,"",OFFSET(InputPriceData!$G$15,CalculationsAndCharts!$A47+$A$11,IF($C$5,8,0),1,1))) -> 7577200 | D47: =IF(A47>$B$30,NA(),IF(A47>$A$8,"",OFFSET(InputPriceData!$C$15,CalculationsAndCharts!$A47+$A$11,IF($C$5,8,0),1,1))) -> 89.459999 | E47: =IF(A47>$B$30,NA(),IF(A47>$A$8,"",OFFSET(InputPriceData!$D$15,CalculationsAndCharts!$A47+$A$11,IF($C$5,8,0),1,1))) -> 90.010002 | F47: =IF(A47>$B$30,NA(),IF(A47>$A$8,"",OFFSET(InputPriceData!$E$15,CalculationsAndCharts!$A47+$A$11,IF($C$5,8,0),1,1))) -> 87.610001 | G47: =IF(A47>$B$30,NA(),IF(A47>$A$8,"",OFFSET(InputPriceData!$F$15,CalculationsAndCharts!$A47+$A$11,IF($C$5,8,0),1,1))) -> 88.879997 | H47: 180 | I47: 3.141592654 | J47: 2623.039994 | K47: 6880338.81 | L47: 245963.6431 | M47: -1 | N47: -28.33209693 | Q47: 6643.197065 | R47: 392 | S47: -0.4915923875 | T47: -1.225148455e-16 | U47: -34.10032241 | X47: 392 | Y47: -0.5916773102 | Z47: 39.72134227 | AA47: -140.2786577 | AB47: -140.2786577 | AC47: -140.2786577 | AD47: 90 | AE47: -90 | AF47: 15.83045336 | AG47: 15.83045336 | AH47: 22.74097854 | AI47: 22.74097854 | AJ47: 0 | AY47: 7577200
A48: 16 | B48: =IF(A48>$B$30,NA(),IF($A48>$A$8,"",OFFSET(InputPriceData!$B$15,$A48+$A$11,0,1,1))) -> 2022-06-16 | C48: =IF(A48>$B$30,NA(),IF($A48>$A$8,"",OFFSET(InputPriceData!$G$15,CalculationsAndCharts!$A48+$A$11,IF($C$5,8,0),1,1))) -> 4517700 | D48: =IF(A48>$B$30,NA(),IF(A48>$A$8,"",OFFSET(InputPriceData!$C$15,CalculationsAndCharts!$A48+$A$11,IF($C$5,8,0),1,1))) -> 91.050003 | E48: =IF(A48>$B$30,NA(),IF(A48>$A$8,"",OFFSET(InputPriceData!$D$15,CalculationsAndCharts!$A48+$A$11,IF($C$5,8,0),1,1))) -> 91.18 | F48: =IF(A48>$B$30,NA(),IF(A48>$A$8,"",OFFSET(InputPriceData!$E$15,CalculationsAndCharts!$A48+$A$11,IF($C$5,8,0),1,1))) -> 89.010002 | G48: =IF(A48>$B$30,NA(),IF(A48>$A$8,"",OFFSET(InputPriceData!$F$15,CalculationsAndCharts!$A48+$A$11,IF($C$5,8,0),1,1))) -> 89.519997 | H48: 192.8571429 | I48: 3.365992129 | J48: 2625.909997 | K48: 6895403.312 | L48: 246482.0517 | M48: -0.9749279122 | N48: -17.23567049 | Q48: 6094.136575 | R48: 392 | S48: -0.312238958 | T48: 0.222520934 | U48: -38.91120505 | X48: 392 | Y48: -0.7049098629 | Z48: 23.89088892 | AA48: -156.1091111 | AB48: -156.1091111 | AC48: -156.1091111 | AD48: 90 | AE48: -90 | AF48: 20.34332422 | AG48: 20.34332422 | AH48: 17.69622291 | AI48: 17.69622291 | AJ48: 0 | AY48: 4517700
A49: 17 | B49: =IF(A49>$B$30,NA(),IF($A49>$A$8,"",OFFSET(InputPriceData!$B$15,$A49+$A$11,0,1,1))) -> 2022-06-15 | C49: =IF(A49>$B$30,NA(),IF($A49>$A$8,"",OFFSET(InputPriceData!$G$15,CalculationsAndCharts!$A49+$A$11,IF($C$5,8,0),1,1))) -> 4139200 | D49: =IF(A49>$B$30,NA(),IF(A49>$A$8,"",OFFSET(InputPriceData!$C$15,CalculationsAndCharts!$A49+$A$11,IF($C$5,8,0),1,1))) -> 92.099998 | E49: =IF(A49>$B$30,NA(),IF(A49>$A$8,"",OFFSET(InputPriceData!$D$15,CalculationsAndCharts!$A49+$A$11,IF($C$5,8,0),1,1))) -> 93.190002 | F49: =IF(A49>$B$30,NA(),IF(A49>$A$8,"",OFFSET(InputPriceData!$E$15,CalculationsAndCharts!$A49+$A$11,IF($C$5,8,0),1,1))) -> 90.800003 | G49: =IF(A49>$B$30,NA(),IF(A49>$A$8,"",OFFSET(InputPriceData!$F$15,CalculationsAndCharts!$A49+$A$11,IF($C$5,8,0),1,1))) -> 92.279999 | H49: 205.7142857 | I49: 3.590391604 | J49: 2631.690003 | K49: 6925792.272 | L49: 247550.3125 | M49: -0.9009688679 | N49: -2.509889372 | Q49: 5616.47688 | R49: 392 | S49: -0.04736282405 | T49: 0.4338837391 | U49: -40.48474506 | X49: 392 | Y49: -0.7639666825 | Z49: 3.5475647 | AA49: -176.4524353 | AB49: -176.4524353 | AC49: -176.4524353 | AD49: 90 | AE49: -90 | AF49: -341.4308418 | AG49: 21.24507687 | AH49: 16.94510226 | AI49: 16.94510226 | AJ49: 1 | AX49: 4139200
A50: 18 | B50: =IF(A50>$B$30,NA(),IF($A50>$A$8,"",OFFSET(InputPriceData!$B$15,$A50+$A$11,0,1,1))) -> 2022-06-14 | C50: =IF(A50>$B$30,NA(),IF($A50>$A$8,"",OFFSET(InputPriceData!$G$15,CalculationsAndCharts!$A50+$A$11,IF($C$5,8,0),1,1))) -> 3977900 | D50: =IF(A50>$B$30,NA(),IF(A50>$A$8,"",OFFSET(InputPriceData!$C$15,CalculationsAndCharts!$A50+$A$11,IF($C$5,8,0),1,1))) -> 92.43 | E50: =IF(A50>$B$30,NA(),IF(A50>$A$8,"",OFFSET(InputPriceData!$D$15,CalculationsAndCharts!$A50+$A$11,IF($C$5,8,0),1,1))) -> 92.709999 | F50: =IF(A50>$B$30,NA(),IF(A50>$A$8,"",OFFSET(InputPriceData!$E$15,CalculationsAndCharts!$A50+$A$11,IF($C$5,8,0),1,1))) -> 90.730003 | G50: =IF(A50>$B$30,NA(),IF(A50>$A$8,"",OFFSET(InputPriceData!$F$15,CalculationsAndCharts!$A50+$A$11,IF($C$5,8,0),1,1))) -> 91.32 | H50: 218.5714286 | I50: 3.814791079 | J50: 2635.730004 | K50: 6947072.654 | L50: 248312.2566 | M50: -0.7818314825 | N50: 10.50045182 | Q50: 5670.531952 | R50: 392 | S50: 0.1972018947 | T50: 0.6234898019 | U50: -39.12922611 | X50: 392 | Y50: -0.7348595719 | Z50: 164.9784065 | AA50: 164.9784065 | AB50: 164.9784065 | AC50: 164.9784065 | AD50: 90 | AE50: -90 | AF50: 21.24507687 | AG50: 21.24507687 | AH50: 16.94510226 | AI50: 16.94510226 | AJ50: 0 | AY50: 3977900
A51: 19 | B51: =IF(A51>$B$30,NA(),IF($A51>$A$8,"",OFFSET(InputPriceData!$B$15,$A51+$A$11,0,1,1))) -> 2022-06-13 | C51: =IF(A51>$B$30,NA(),IF($A51>$A$8,"",OFFSET(InputPriceData!$G$15,CalculationsAndCharts!$A51+$A$11,IF($C$5,8,0),1,1))) -> 5419200 | D51: =IF(A51>$B$30,NA(),IF(A51>$A$8,"",OFFSET(InputPriceData!$C$15,CalculationsAndCharts!$A51+$A$11,IF($C$5,8,0),1,1))) -> 93.489998 | E51: =IF(A51>$B$30,NA(),IF(A51>$A$8,"",OFFSET(InputPriceData!$D$15,CalculationsAndCharts!$A51+$A$11,IF($C$5,8,0),1,1))) -> 93.529999 | F51: =IF(A51>$B$30,NA(),IF(A51>$A$8,"",OFFSET(InputPriceData!$E$15,CalculationsAndCharts!$A51+$A$11,IF($C$5,8,0),1,1))) -> 91.379997 | G51: =IF(A51>$B$30,NA(),IF(A51>$A$8,"",OFFSET(InputPriceData!$F$15,CalculationsAndCharts!$A51+$A$11,IF($C$5,8,0),1,1))) -> 91.949997 | H51: 231.4285714 | I51: 4.039190555 | J51: 2642.170006 | K51: 6981062.341 | L51: 249529.9322 | M51: -0.6234898019 | N51: 25.22279321 | Q51: 5775.76188 | R51: 392 | S51: 0.469357257 | T51: 0.7818314825 | U51: -34.37856911 | X51: 392 | Y51: -0.639732117 | Z51: 143.7333297 | AA51: 143.7333297 | AB51: 143.7333297 | AC51: 143.7333297 | AD51: 90 | AE51: -90 | AF51: 16.4196321 | AG51: 16.4196321 | AH51: 21.92497359 | AI51: 21.92497359 | AJ51: 0 | AY51: 5419200
A52: 20 | B52: =IF(A52>$B$30,NA(),IF($A52>$A$8,"",OFFSET(InputPriceData!$B$15,$A52+$A$11,0,1,1))) -> 2022-06-10 | C52: =IF(A52>$B$30,NA(),IF($A52>$A$8,"",OFFSET(InputPriceData!$G$15,CalculationsAndCharts!$A52+$A$11,IF($C$5,8,0),1,1))) -> 5615900 | D52: =IF(A52>$B$30,NA(),IF(A52>$A$8,"",OFFSET(InputPriceData!$C$15,CalculationsAndCharts!$A52+$A$11,IF($C$5,8,0),1,1))) -> 95.82 | E52: =IF(A52>$B$30,NA(),IF(A52>$A$8,"",OFFSET(InputPriceData!$D$15,CalculationsAndCharts!$A52+$A$11,IF($C$5,8,0),1,1))) -> 96.690002 | F52: =IF(A52>$B$30,NA(),IF(A52>$A$8,"",OFFSET(InputPriceData!$E$15,CalculationsAndCharts!$A52+$A$11,IF($C$5,8,0),1,1))) -> 94.449997 | G52: =IF(A52>$B$30,NA(),IF(A52>$A$8,"",OFFSET(InputPriceData!$F$15,CalculationsAndCharts!$A52+$A$11,IF($C$5,8,0),1,1))) -> 95.489998 | H52: 244.2857143 | I52: 4.26359003 | J52: 2645.620011 | K52: 6999305.243 | L52: 250176.2907 | M52: -0.4338837391 | N52: 35.6038626 | Q52: 5630.896015 | R52: 392 | S52: 0.6710012984 | T52: 0.9009688679 | U52: -27.13632877 | X52: 392 | Y52: -0.5114195626 | Z52: 127.3136976 | AA52: 127.3136976 | AB52: 127.3136976 | AC52: 127.3136976 | AD52: 90 | AE52: -90 | AF52: 11.84918625 | AG52: 11.84918625 | AH52: 30.38183318 | AI52: 30.38183318 | AJ52: 0 | AY52: 5615900
A53: 21 | B53: =IF(A53>$B$30,NA(),IF($A53>$A$8,"",OFFSET(InputPriceData!$B$15,$A53+$A$11,0,1,1))) -> 2022-06-09 | C53: =IF(A53>$B$30,NA(),IF($A53>$A$8,"",OFFSET(InputPriceData!$G$15,CalculationsAndCharts!$A53+$A$11,IF($C$5,8,0),1,1))) -> 4566900 | D53: =IF(A53>$B$30,NA(),IF(A53>$A$8,"",OFFSET(InputPriceData!$C$15,CalculationsAndCharts!$A53+$A$11,IF($C$5,8,0),1,1))) -> 98.330002 | E53: =IF(A53>$B$30,NA(),IF(A53>$A$8,"",OFFSET(InputPriceData!$D$15,CalculationsAndCharts!$A53+$A$11,IF($C$5,8,0),1,1))) -> 99.169998 | F53: =IF(A53>$B$30,NA(),IF(A53>$A$8,"",OFFSET(InputPriceData!$E$15,CalculationsAndCharts!$A53+$A$11,IF($C$5,8,0),1,1))) -> 97.32 | G53: =IF(A53>$B$30,NA(),IF(A53>$A$8,"",OFFSET(InputPriceData!$F$15,CalculationsAndCharts!$A53+$A$11,IF($C$5,8,0),1,1))) -> 97.379997 | H53: 257.1428571 | I53: 4.487989505 | J53: 2644.350014 | K53: 6992586.997 | L53: 249935.3595 | M53: -0.222520934 | N53: 39.51144513 | Q53: 5603.070448 | R53: 392 | S53: 0.7464915063 | T53: 0.9749279122 | U53: -18.81596051 | X53: 392 | Y53: -0.3554907865 | Z53: 115.4645113 | AA53: 115.4645113 | AB53: 115.4645113 | AC53: 115.4645113 | AD53: 90 | AE53: -90 | AF53: 11.39243364 | AG53: 11.39243364 | AH53: 31.59992072 | AI53: 31.59992072 | AJ53: 0 | AY53: 4566900
A54: 22 | B54: =IF(A54>$B$30,NA(),IF($A54>$A$8,"",OFFSET(InputPriceData!$B$15,$A54+$A$11,0,1,1))) -> 2022-06-08 | C54: =IF(A54>$B$30,NA(),IF($A54>$A$8,"",OFFSET(InputPriceData!$G$15,CalculationsAndCharts!$A54+$A$11,IF($C$5,8,0),1,1))) -> 6666600 | D54: =IF(A54>$B$30,NA(),IF(A54>$A$8,"",OFFSET(InputPriceData!$C$15,CalculationsAndCharts!$A54+$A$11,IF($C$5,8,0),1,1))) -> 99.730003 | E54: =IF(A54>$B$30,NA(),IF(A54>$A$8,"",OFFSET(InputPriceData!$D$15,CalculationsAndCharts!$A54+$A$11,IF($C$5,8,0),1,1))) -> 100.330002 | F54: =IF(A54>$B$30,NA(),IF(A54>$A$8,"",OFFSET(InputPriceData!$E$15,CalculationsAndCharts!$A54+$A$11,IF($C$5,8,0),1,1))) -> 98.959999 | G54: =IF(A54>$B$30,NA(),IF(A54>$A$8,"",OFFSET(InputPriceData!$F$15,CalculationsAndCharts!$A54+$A$11,IF($C$5,8,0),1,1))) -> 99.230003 | H54: 270 | I54: 4.71238898 | J54: 2641.880021 | K54: 6979530.045 | L54: 249460.4046 | M54: -1.837722682e-16 | N54: 40.2996907 | Q54: 5361.282851 | R54: 392 | S54: 0.7783632998 | T54: 1 | U54: -10.10170657 | X54: 392 | Y54: -0.1951081392 | Z54: 104.0720777 | AA54: 104.0720777 | AB54: 104.0720777 | AC54: 104.0720777 | AD54: 90 | AE54: -90 | AF54: 12.46090115 | AG54: 12.46090115 | AH54: 28.8903664 | AI54: 28.8903664 | AJ54: 0 | AY54: 6666600
A55: 23 | B55: =IF(A55>$B$30,NA(),IF($A55>$A$8,"",OFFSET(InputPriceData!$B$15,$A55+$A$11,0,1,1))) -> 2022-06-07 | C55: =IF(A55>$B$30,NA(),IF($A55>$A$8,"",OFFSET(InputPriceData!$G$15,CalculationsAndCharts!$A55+$A$11,IF($C$5,8,0),1,1))) -> 5634600 | D55: =IF(A55>$B$30,NA(),IF(A55>$A$8,"",OFFSET(InputPriceData!$C$15,CalculationsAndCharts!$A55+$A$11,IF($C$5,8,0),1,1))) -> 97.18 | E55: =IF(A55>$B$30,NA(),IF(A55>$A$8,"",OFFSET(InputPriceData!$D$15,CalculationsAndCharts!$A55+$A$11,IF($C$5,8,0),1,1))) -> 100.68 | F55: =IF(A55>$B$30,NA(),IF(A55>$A$8,"",OFFSET(InputPriceData!$E$15,CalculationsAndCharts!$A55+$A$11,IF($C$5,8,0),1,1))) -> 96.660004 | G55: =IF(A55>$B$30,NA(),IF(A55>$A$8,"",OFFSET(InputPriceData!$F$15,CalculationsAndCharts!$A55+$A$11,IF($C$5,8,0),1,1))) -> 100.510002 | H55: 282.8571429 | I55: 4.936788456 | J55: 2640.73002 | K55: 6973455.039 | L55: 249233.4979 | M55: 0.222520934 | N55: 40.41596642 | Q55: 5082.901995 | R55: 392 | S55: 0.8017003955 | T55: 0.9749279122 | U55: -1.136810185 | X55: 392 | Y55: -0.02255002801 | Z55: 91.61117653 | AA55: 91.61117653 | AB55: 91.61117653 | AC55: 91.61117653 | AD55: 90 | AE55: -90 | AF55: 12.78773786 | AG55: 12.78773786 | AH55: 28.15196902 | AI55: 28.15196902 | AJ55: 0 | AX55: 5634600
A56: 24 | B56: =IF(A56>$B$30,NA(),IF($A56>$A$8,"",OFFSET(InputPriceData!$B$15,$A56+$A$11,0,1,1))) -> 2022-06-06 | C56: =IF(A56>$B$30,NA(),IF($A56>$A$8,"",OFFSET(InputPriceData!$G$15,CalculationsAndCharts!$A56+$A$11,IF($C$5,8,0),1,1))) -> 3080300 | D56: =IF(A56>$B$30,NA(),IF(A56>$A$8,"",OFFSET(InputPriceData!$C$15,CalculationsAndCharts!$A56+$A$11,IF($C$5,8,0),1,1))) -> 96.989998 | E56: =IF(A56>$B$30,NA(),IF(A56>$A$8,"",OFFSET(InputPriceData!$D$15,CalculationsAndCharts!$A56+$A$11,IF($C$5,8,0),1,1))) -> 97.489998 | F56: =IF(A56>$B$30,NA(),IF(A56>$A$8,"",OFFSET(InputPriceData!$E$15,CalculationsAndCharts!$A56+$A$11,IF($C$5,8,0),1,1))) -> 96.389999 | G56: =IF(A56>$B$30,NA(),IF(A56>$A$8,"",OFFSET(InputPriceData!$F$15,CalculationsAndCharts!$A56+$A$11,IF($C$5,8,0),1,1))) -> 97.209999 | H56: 295.7142857 | I56: 5.161187931 | J56: 2639.060014 | K56: 6964637.757 | L56: 248900.5822 | M56: 0.4338837391 | N56: 38.02748236 | Q56: 4578.543633 | R56: 392 | S56: 0.7947835921 | T56: 0.9009688679 | U56: 7.513479319 | X56: 392 | Y56: 0.1570335376 | Z56: 78.82343867 | AA56: 78.82343867 | AB56: 78.82343867 | AC56: 78.82343867 | AD56: 90 | AE56: -90 | AF56: 12.31694263 | AG56: 12.31694263 | AH56: 29.22803253 | AI56: 29.22803253 | AJ56: 0 | AX56: 3080300
A57: 25 | B57: =IF(A57>$B$30,NA(),IF($A57>$A$8,"",OFFSET(InputPriceData!$B$15,$A57+$A$11,0,1,1))) -> 2022-06-03 | C57: =IF(A57>$B$30,NA(),IF($A57>$A$8,"",OFFSET(InputPriceData!$G$15,CalculationsAndCharts!$A57+$A$11,IF($C$5,8,0),1,1))) -> 2837000 | D57: =IF(A57>$B$30,NA(),IF(A57>$A$8,"",OFFSET(InputPriceData!$C$15,CalculationsAndCharts!$A57+$A$11,IF($C$5,8,0),1,1))) -> 95.360001 | E57: =IF(A57>$B$30,NA(),IF(A57>$A$8,"",OFFSET(InputPriceData!$D$15,CalculationsAndCharts!$A57+$A$11,IF($C$5,8,0),1,1))) -> 96.620003 | F57: =IF(A57>$B$30,NA(),IF(A57>$A$8,"",OFFSET(InputPriceData!$E$15,CalculationsAndCharts!$A57+$A$11,IF($C$5,8,0),1,1))) -> 95.290001 | G57: =IF(A57>$B$30,NA(),IF(A57>$A$8,"",OFFSET(InputPriceData!$F$15,CalculationsAndCharts!$A57+$A$11,IF($C$5,8,0),1,1))) -> 96.330002 | H57: 308.5714286 | I57: 5.385587406 | J57: 2641.040017 | K57: 6975092.371 | L57: 249289.4548 | M57: 0.6234898019 | N57: 37.33250774 | Q57: 5012.362284 | R57: 392 | S57: 0.7457288327 | T57: 0.7818314825 | U57: 16.22760371 | X57: 392 | Y57: 0.3241515962 | Z57: 66.50649603 | AA57: 66.50649603 | AB57: 66.50649603 | AC57: 66.50649603 | AD57: 90 | AE57: -90 | AF57: 11.14388462 | AG57: 11.14388462 | AH57: 32.30471351 | AI57: 32.30471351 | AJ57: 0 | AX57: 2837000
A58: 26 | B58: =IF(A58>$B$30,NA(),IF($A58>$A$8,"",OFFSET(InputPriceData!$B$15,$A58+$A$11,0,1,1))) -> 2022-06-02 | C58: =IF(A58>$B$30,NA(),IF($A58>$A$8,"",OFFSET(InputPriceData!$G$15,CalculationsAndCharts!$A58+$A$11,IF($C$5,8,0),1,1))) -> 3460300 | D58: =IF(A58>$B$30,NA(),IF(A58>$A$8,"",OFFSET(InputPriceData!$C$15,CalculationsAndCharts!$A58+$A$11,IF($C$5,8,0),1,1))) -> 95.769997 | E58: =IF(A58>$B$30,NA(),IF(A58>$A$8,"",OFFSET(InputPriceData!$D$15,CalculationsAndCharts!$A58+$A$11,IF($C$5,8,0),1,1))) -> 96.309998 | F58: =IF(A58>$B$30,NA(),IF(A58>$A$8,"",OFFSET(InputPriceData!$E$15,CalculationsAndCharts!$A58+$A$11,IF($C$5,8,0),1,1))) -> 94.059998 | G58: =IF(A58>$B$30,NA(),IF(A58>$A$8,"",OFFSET(InputPriceData!$F$15,CalculationsAndCharts!$A58+$A$11,IF($C$5,8,0),1,1))) -> 96.239998 | H58: 321.4285714 | I58: 5.609986881 | J58: 2644.320016 | K58: 6992428.347 | L58: 249932.1378 | M58: 0.7818314825 | N58: 35.98328487 | Q58: 5671.511051 | R58: 392 | S58: 0.6757194401 | T58: 0.6234898019 | U58: 24.85787674 | X58: 392 | Y58: 0.4667986987 | Z58: 55.36261142 | AA58: 55.36261142 | AB58: 55.36261142 | AC58: 55.36261142 | AD58: 90 | AE58: -90 | AF58: 9.929333718 | AG58: 9.929333718 | AH58: 36.25620915 | AI58: 36.25620915 | AJ58: 0 | AX58: 3460300
A59: 27 | B59: =IF(A59>$B$30,NA(),IF($A59>$A$8,"",OFFSET(InputPriceData!$B$15,$A59+$A$11,0,1,1))) -> 2022-06-01 | C59: =IF(A59>$B$30,NA(),IF($A59>$A$8,"",OFFSET(InputPriceData!$G$15,CalculationsAndCharts!$A59+$A$11,IF($C$5,8,0),1,1))) -> 4245900 | D59: =IF(A59>$B$30,NA(),IF(A59>$A$8,"",OFFSET(InputPriceData!$C$15,CalculationsAndCharts!$A59+$A$11,IF($C$5,8,0),1,1))) -> 96.010002 | E59: =IF(A59>$B$30,NA(),IF(A59>$A$8,"",OFFSET(InputPriceData!$D$15,CalculationsAndCharts!$A59+$A$11,IF($C$5,8,0),1,1))) -> 96.279999 | F59: =IF(A59>$B$30,NA(),IF(A59>$A$8,"",OFFSET(InputPriceData!$E$15,CalculationsAndCharts!$A59+$A$11,IF($C$5,8,0),1,1))) -> 94.099998 | G59: =IF(A59>$B$30,NA(),IF(A59>$A$8,"",OFFSET(InputPriceData!$F$15,CalculationsAndCharts!$A59+$A$11,IF($C$5,8,0),1,1))) -> 94.809998 | H59: 334.2857143 | I59: 5.834386357 | J59: 2648.570016 | K59: 7014923.13 | L59: 250768.2403 | M59: 0.9009688679 | N59: 33.69315447 | Q59: 6587.597939 | R59: 392 | S59: 0.5870743803 | T59: 0.4338837391 | U59: 33.187386 | X59: 392 | Y59: 0.5782617975 | Z59: 45.4332777 | AA59: 45.4332777 | AB59: 45.4332777 | AC59: 45.4332777 | AD59: 90 | AE59: -90 | AF59: 7.544686667 | AG59: 7.544686667 | AH59: 47.71569926 | AI59: 47.71569926 | AJ59: 0 | AY59: 4245900
A60: 28 | B60: =IF(A60>$B$30,NA(),IF($A60>$A$8,"",OFFSET(InputPriceData!$B$15,$A60+$A$11,0,1,1))) -> 2022-05-31 | C60: =IF(A60>$B$30,NA(),IF($A60>$A$8,"",OFFSET(InputPriceData!$G$15,CalculationsAndCharts!$A60+$A$11,IF($C$5,8,0),1,1))) -> 6478700 | D60: =IF(A60>$B$30,NA(),IF(A60>$A$8,"",OFFSET(InputPriceData!$C$15,CalculationsAndCharts!$A60+$A$11,IF($C$5,8,0),1,1))) -> 95.360001 | E60: =IF(A60>$B$30,NA(),IF(A60>$A$8,"",OFFSET(InputPriceData!$D$15,CalculationsAndCharts!$A60+$A$11,IF($C$5,8,0),1,1))) -> 95.970001 | F60: =IF(A60>$B$30,NA(),IF(A60>$A$8,"",OFFSET(InputPriceData!$E$15,CalculationsAndCharts!$A60+$A$11,IF($C$5,8,0),1,1))) -> 94.629997 | G60: =IF(A60>$B$30,NA(),IF(A60>$A$8,"",OFFSET(InputPriceData!$F$15,CalculationsAndCharts!$A60+$A$11,IF($C$5,8,0),1,1))) -> 95.120003 | H60: 347.1428571 | I60: 6.058785832 | J60: 2655.490021 | K60: 7051627.252 | L60: 252128.2981 | M60: 0.9749279122 | N60: 32.21001464 | Q60: 7965.094072 | R60: 392 | S60: 0.5103997645 | T60: 0.222520934 | U60: 41.39258712 | X60: 392 | Y60: 0.6559067716 | Z60: 37.88859103 | AA60: 37.88859103 | AB60: 37.88859103 | AC60: 37.88859103 | AD60: 90 | AE60: -90 | AF60: 5.287511489 | AG60: 5.287511489 | AH60: 68.08495845 | AI60: 60 | AJ60: -1 | AY60: 6478700
A61: 29 | B61: =IF(A61>$B$30,NA(),IF($A61>$A$8,"",OFFSET(InputPriceData!$B$15,$A61+$A$11,0,1,1))) -> 2022-05-27 | C61: =IF(A61>$B$30,NA(),IF($A61>$A$8,"",OFFSET(InputPriceData!$G$15,CalculationsAndCharts!$A61+$A$11,IF($C$5,8,0),1,1))) -> 3394200 | D61: =IF(A61>$B$30,NA(),IF(A61>$A$8,"",OFFSET(InputPriceData!$C$15,CalculationsAndCharts!$A61+$A$11,IF($C$5,8,0),1,1))) -> 95.629997 | E61: =IF(A61>$B$30,NA(),IF(A61>$A$8,"",OFFSET(InputPriceData!$D$15,CalculationsAndCharts!$A61+$A$11,IF($C$5,8,0),1,1))) -> 96.720001 | F61: =IF(A61>$B$30,NA(),IF(A61>$A$8,"",OFFSET(InputPriceData!$E$15,CalculationsAndCharts!$A61+$A$11,IF($C$5,8,0),1,1))) -> 95.199997 | G61: =IF(A61>$B$30,NA(),IF(A61>$A$8,"",OFFSET(InputPriceData!$F$15,CalculationsAndCharts!$A61+$A$11,IF($C$5,8,0),1,1))) -> 96.709999 | J61: 2665.340019 | K61: 7104037.417 | L61: 254099.1842 | M61: Sum COS | N61: 31.79476317 | Q61: 10739.74072 | R61: 392 | S61: 0.4338840585 | T61: Sum SIN | U61: 49.71402183 | X61: 392 | Y61: 0.6784174314 | Z61: 32.60107954 | AA61: 32.60107954 | AB61: 32.60107954 | AC61: 32.60107954 | AD61: 90 | AE61: -90 | AF61: 6.894432846 | AG61: 6.894432846 | AH61: 52.21604272 | AI61: 52.21604272 | AJ61: 0 | AX61: 3394200
A62: 30 | B62: =IF(A62>$B$30,NA(),IF($A62>$A$8,"",OFFSET(InputPriceData!$B$15,$A62+$A$11,0,1,1))) -> 2022-05-26 | C62: =IF(A62>$B$30,NA(),IF($A62>$A$8,"",OFFSET(InputPriceData!$G$15,CalculationsAndCharts!$A62+$A$11,IF($C$5,8,0),1,1))) -> 5545800 | D62: =IF(A62>$B$30,NA(),IF(A62>$A$8,"",OFFSET(InputPriceData!$C$15,CalculationsAndCharts!$A62+$A$11,IF($C$5,8,0),1,1))) -> 94.519997 | E62: =IF(A62>$B$30,NA(),IF(A62>$A$8,"",OFFSET(InputPriceData!$D$15,CalculationsAndCharts!$A62+$A$11,IF($C$5,8,0),1,1))) -> 95.860001 | F62: =IF(A62>$B$30,NA(),IF(A62>$A$8,"",OFFSET(InputPriceData!$E$15,CalculationsAndCharts!$A62+$A$11,IF($C$5,8,0),1,1))) -> 94.110001 | G62: =IF(A62>$B$30,NA(),IF(A62>$A$8,"",OFFSET(InputPriceData!$F$15,CalculationsAndCharts!$A62+$A$11,IF($C$5,8,0),1,1))) -> 95 | J62: 2673.180023 | K62: 7145891.435 | L62: 255677.0634 | M62: 1.33226763e-15 | N62: 27.57863024 | Q62: 13066.34041 | R62: 392 | S62: 0.3412013223 | T62: 1.387778781e-15 | U62: 57.28715292 | X62: 392 | Y62: 0.7087535588 | Z62: 25.7066467 | AA62: 25.7066467 | AB62: 25.7066467 | AC62: 25.7066467 | AD62: 90 | AE62: -90 | AF62: 5.792360102 | AG62: 5.792360102 | AH62: 62.15083207 | AI62: 60 | AJ62: -1 | AX62: 5545800
A63: 31 | B63: =IF(A63>$B$30,NA(),IF($A63>$A$8,"",OFFSET(InputPriceData!$B$15,$A63+$A$11,0,1,1))) -> 2022-05-25 | C63: =IF(A63>$B$30,NA(),IF($A63>$A$8,"",OFFSET(InputPriceData!$G$15,CalculationsAndCharts!$A63+$A$11,IF($C$5,8,0),1,1))) -> 3742000 | D63: =IF(A63>$B$30,NA(),IF(A63>$A$8,"",OFFSET(InputPriceData!$C$15,CalculationsAndCharts!$A63+$A$11,IF($C$5,8,0),1,1))) -> 93.32 | E63: =IF(A63>$B$30,NA(),IF(A63>$A$8,"",OFFSET(InputPriceData!$D$15,CalculationsAndCharts!$A63+$A$11,IF($C$5,8,0),1,1))) -> 94.099998 | F63: =IF(A63>$B$30,NA(),IF(A63>$A$8,"",OFFSET(InputPriceData!$E$15,CalculationsAndCharts!$A63+$A$11,IF($C$5,8,0),1,1))) -> 92.589996 | G63: =IF(A63>$B$30,NA(),IF(A63>$A$8,"",OFFSET(InputPriceData!$F$15,CalculationsAndCharts!$A63+$A$11,IF($C$5,8,0),1,1))) -> 93.559998 | J63: 2682.480026 | K63: 7195699.09 | L63: 257530.554 | N63: 23.20641813 | Q63: 15156.42341 | R63: 392 | S63: 0.2665782706 | U63: 64.0571123 | X63: 392 | Y63: 0.7358410126 | Z63: 19.91428659 | AA63: 19.91428659 | AB63: 19.91428659 | AC63: 19.91428659 | AD63: 90 | AE63: -90 | AF63: 4.871483917 | AG63: 4.871483917 | AH63: 73.89945366 | AI63: 60 | AJ63: -1 | AX63: 3742000
A64: 32 | B64: =IF(A64>$B$30,NA(),IF($A64>$A$8,"",OFFSET(InputPriceData!$B$15,$A64+$A$11,0,1,1))) -> 2022-05-24 | C64: =IF(A64>$B$30,NA(),IF($A64>$A$8,"",OFFSET(InputPriceData!$G$15,CalculationsAndCharts!$A64+$A$11,IF($C$5,8,0),1,1))) -> 5932000 | D64: =IF(A64>$B$30,NA(),IF(A64>$A$8,"",OFFSET(InputPriceData!$C$15,CalculationsAndCharts!$A64+$A$11,IF($C$5,8,0),1,1))) -> 91.199997 | E64: =IF(A64>$B$30,NA(),IF(A64>$A$8,"",OFFSET(InputPriceData!$D$15,CalculationsAndCharts!$A64+$A$11,IF($C$5,8,0),1,1))) -> 93.419998 | F64: =IF(A64>$B$30,NA(),IF(A64>$A$8,"",OFFSET(InputPriceData!$E$15,CalculationsAndCharts!$A64+$A$11,IF($C$5,8,0),1,1))) -> 90.470001 | G64: =IF(A64>$B$30,NA(),IF(A64>$A$8,"",OFFSET(InputPriceData!$F$15,CalculationsAndCharts!$A64+$A$11,IF($C$5,8,0),1,1))) -> 93.209999 | J64: 2693.190025 | K64: 7253272.511 | L64: 259649.3131 | N64: 18.81201329 | Q64: 16908.2559 | R64: 392 | S64: 0.2045977572 | U64: 69.99817957 | X64: 392 | Y64: 0.7612938778 | Z64: 15.04280268 | AA64: 15.04280268 | AB64: 15.04280268 | AC64: 15.04280268 | AD64: 90 | AE64: -90 | AF64: 5.415442198 | AG64: 5.415442198 | AH64: 66.47656588 | AI64: 60 | AJ64: -1 | AX64: 5932000
A65: 33 | B65: =IF(A65>$B$30,NA(),IF($A65>$A$8,"",OFFSET(InputPriceData!$B$15,$A65+$A$11,0,1,1))) -> 2022-05-23 | C65: =IF(A65>$B$30,NA(),IF($A65>$A$8,"",OFFSET(InputPriceData!$G$15,CalculationsAndCharts!$A65+$A$11,IF($C$5,8,0),1,1))) -> 4701300 | D65: =IF(A65>$B$30,NA(),IF(A65>$A$8,"",OFFSET(InputPriceData!$C$15,CalculationsAndCharts!$A65+$A$11,IF($C$5,8,0),1,1))) -> 90.599998 | E65: =IF(A65>$B$30,NA(),IF(A65>$A$8,"",OFFSET(InputPriceData!$D$15,CalculationsAndCharts!$A65+$A$11,IF($C$5,8,0),1,1))) -> 92.019997 | F65: =IF(A65>$B$30,NA(),IF(A65>$A$8,"",OFFSET(InputPriceData!$E$15,CalculationsAndCharts!$A65+$A$11,IF($C$5,8,0),1,1))) -> 90 | G65: =IF(A65>$B$30,NA(),IF(A65>$A$8,"",OFFSET(InputPriceData!$F$15,CalculationsAndCharts!$A65+$A$11,IF($C$5,8,0),1,1))) -> 91.830002 | J65: 2703.350029 | K65: 7308101.379 | L65: 261646.5667 | N65: 12.66956803 | Q65: 18002.48836 | R65: 392 | S65: 0.1335397431 | U65: 74.69005941 | X65: 392 | Y65: 0.7872479409 | Z65: 9.62736048 | AA65: 9.62736048 | AB65: 9.62736048 | AC65: 9.62736048 | AD65: 90 | AE65: -90 | AF65: 5.061372709 | AG65: 5.061372709 | AH65: 71.12694929 | AI65: 60 | AJ65: -1 | AX65: 4701300
A66: 34 | B66: =IF(A66>$B$30,NA(),IF($A66>$A$8,"",OFFSET(InputPriceData!$B$15,$A66+$A$11,0,1,1))) -> 2022-05-20 | C66: =IF(A66>$B$30,NA(),IF($A66>$A$8,"",OFFSET(InputPriceData!$G$15,CalculationsAndCharts!$A66+$A$11,IF($C$5,8,0),1,1))) -> 6585500 | D66: =IF(A66>$B$30,NA(),IF(A66>$A$8,"",OFFSET(InputPriceData!$C$15,CalculationsAndCharts!$A66+$A$11,IF($C$5,8,0),1,1))) -> 90.839996 | E66: =IF(A66>$B$30,NA(),IF(A66>$A$8,"",OFFSET(InputPriceData!$D$15,CalculationsAndCharts!$A66+$A$11,IF($C$5,8,0),1,1))) -> 91.169998 | F66: =IF(A66>$B$30,NA(),IF(A66>$A$8,"",OFFSET(InputPriceData!$E$15,CalculationsAndCharts!$A66+$A$11,IF($C$5,8,0),1,1))) -> 88.43 | G66: =IF(A66>$B$30,NA(),IF(A66>$A$8,"",OFFSET(InputPriceData!$F$15,CalculationsAndCharts!$A66+$A$11,IF($C$5,8,0),1,1))) -> 90.080002 | J66: 2714.120025 | K66: 7366447.51 | L66: 263740.577 | N66: 6.231783449 | Q66: 18288.64657 | R66: 392 | S66: 0.06516832636 | U66: 78.03321736 | X66: 392 | Y66: 0.8160254954 | Z66: 4.565987771 | AA66: 4.565987771 | AB66: 4.565987771 | AC66: 4.565987771 | AD66: 90 | AE66: -90 | AF66: 4.251489802 | AG66: 4.251489802 | AH66: 84.67619981 | AI66: 60 | AJ66: -1 | AY66: 6585500
A67: 35 | B67: =IF(A67>$B$30,NA(),IF($A67>$A$8,"",OFFSET(InputPriceData!$B$15,$A67+$A$11,0,1,1))) -> 2022-05-19 | C67: =IF(A67>$B$30,NA(),IF($A67>$A$8,"",OFFSET(InputPriceData!$G$15,CalculationsAndCharts!$A67+$A$11,IF($C$5,8,0),1,1))) -> 5234700 | D67: =IF(A67>$B$30,NA(),IF(A67>$A$8,"",OFFSET(InputPriceData!$C$15,CalculationsAndCharts!$A67+$A$11,IF($C$5,8,0),1,1))) -> 91.379997 | E67: =IF(A67>$B$30,NA(),IF(A67>$A$8,"",OFFSET(InputPriceData!$D$15,CalculationsAndCharts!$A67+$A$11,IF($C$5,8,0),1,1))) -> 92.459999 | F67: =IF(A67>$B$30,NA(),IF(A67>$A$8,"",OFFSET(InputPriceData!$E$15,CalculationsAndCharts!$A67+$A$11,IF($C$5,8,0),1,1))) -> 89.540001 | G67: =IF(A67>$B$30,NA(),IF(A67>$A$8,"",OFFSET(InputPriceData!$F$15,CalculationsAndCharts!$A67+$A$11,IF($C$5,8,0),1,1))) -> 90.25 | J67: 2726.150024 | K67: 7431893.953 | L67: 266052.6226 | N67: 0.4398970282 | Q67: 17579.47855 | R67: 392 | S67: 0.004692054323 | U67: 80.14039057 | X67: 392 | Y67: 0.8547979229 | Z67: 0.3144979682 | AA67: 0.3144979682 | AB67: 0.3144979682 | AC67: 0.3144979682 | AD67: 90 | AE67: -90 | AF67: 5.644082738 | AG67: 5.644082738 | AH67: 63.78361493 | AI67: 60 | AJ67: -1 | AY67: 5234700
A68: 36 | B68: =IF(A68>$B$30,NA(),IF($A68>$A$8,"",OFFSET(InputPriceData!$B$15,$A68+$A$11,0,1,1))) -> 2022-05-18 | C68: =IF(A68>$B$30,NA(),IF($A68>$A$8,"",OFFSET(InputPriceData!$G$15,CalculationsAndCharts!$A68+$A$11,IF($C$5,8,0),1,1))) -> 5843100 | D68: =IF(A68>$B$30,NA(),IF(A68>$A$8,"",OFFSET(InputPriceData!$C$15,CalculationsAndCharts!$A68+$A$11,IF($C$5,8,0),1,1))) -> 94.330002 | E68: =IF(A68>$B$30,NA(),IF(A68>$A$8,"",OFFSET(InputPriceData!$D$15,CalculationsAndCharts!$A68+$A$11,IF($C$5,8,0),1,1))) -> 95.199997 | F68: =IF(A68>$B$30,NA(),IF(A68>$A$8,"",OFFSET(InputPriceData!$E$15,CalculationsAndCharts!$A68+$A$11,IF($C$5,8,0),1,1))) -> 92.279999 | G68: =IF(A68>$B$30,NA(),IF(A68>$A$8,"",OFFSET(InputPriceData!$F$15,CalculationsAndCharts!$A68+$A$11,IF($C$5,8,0),1,1))) -> 92.610001 | J68: 2736.300026 | K68: 7487337.832 | L68: 267987.7205 | N68: -7.508526408 | Q68: 16318.34086 | R68: 392 | S68: -0.08312500991 | U68: 80.48757788 | X68: 392 | Y68: 0.8910577584 | Z68: 174.6704152 | AA68: -5.32958477 | AB68: -5.32958477 | AC68: -5.32958477 | AD68: 90 | AE68: -90 | AF68: 6.914332641 | AG68: 6.914332641 | AH68: 52.06576234 | AI68: 52.06576234 | AJ68: 0 | AY68: 5843100
A69: 37 | B69: =IF(A69>$B$30,NA(),IF($A69>$A$8,"",OFFSET(InputPriceData!$B$15,$A69+$A$11,0,1,1))) -> 2022-05-17 | C69: =IF(A69>$B$30,NA(),IF($A69>$A$8,"",OFFSET(InputPriceData!$G$15,CalculationsAndCharts!$A69+$A$11,IF($C$5,8,0),1,1))) -> 4447200 | D69: =IF(A69>$B$30,NA(),IF(A69>$A$8,"",OFFSET(InputPriceData!$C$15,CalculationsAndCharts!$A69+$A$11,IF($C$5,8,0),1,1))) -> 94.330002 | E69: =IF(A69>$B$30,NA(),IF(A69>$A$8,"",OFFSET(InputPriceData!$D$15,CalculationsAndCharts!$A69+$A$11,IF($C$5,8,0),1,1))) -> 95.139999 | F69: =IF(A69>$B$30,NA(),IF(A69>$A$8,"",OFFSET(InputPriceData!$E$15,CalculationsAndCharts!$A69+$A$11,IF($C$5,8,0),1,1))) -> 93.5 | G69: =IF(A69>$B$30,NA(),IF(A69>$A$8,"",OFFSET(InputPriceData!$F$15,CalculationsAndCharts!$A69+$A$11,IF($C$5,8,0),1,1))) -> 94.949997 | J69: 2744.670028 | K69: 7533213.563 | L69: 269608.0692 | N69: -17.0702944 | Q69: 15812.37473 | R69: 392 | S69: -0.1919806511 | U69: 78.66128262 | X69: 392 | Y69: 0.8846622029 | Z69: 167.7560826 | AA69: -12.24391741 | AB69: -12.24391741 | AC69: -12.24391741 | AD69: 90 | AE69: -90 | AF69: 10.39421938 | AG69: 10.39421938 | AH69: 34.63463555 | AI69: 34.63463555 | AJ69: 0 | AX69: 4447200
A70: 38 | B70: =IF(A70>$B$30,NA(),IF($A70>$A$8,"",OFFSET(InputPriceData!$B$15,$A70+$A$11,0,1,1))) -> 2022-05-16 | C70: =IF(A70>$B$30,NA(),IF($A70>$A$8,"",OFFSET(InputPriceData!$G$15,CalculationsAndCharts!$A70+$A$11,IF($C$5,8,0),1,1))) -> 5158500 | D70: =IF(A70>$B$30,NA(),IF(A70>$A$8,"",OFFSET(InputPriceData!$C$15,CalculationsAndCharts!$A70+$A$11,IF($C$5,8,0),1,1))) -> 91.849998 | E70: =IF(A70>$B$30,NA(),IF(A70>$A$8,"",OFFSET(InputPriceData!$D$15,CalculationsAndCharts!$A70+$A$11,IF($C$5,8,0),1,1))) -> 93.540001 | F70: =IF(A70>$B$30,NA(),IF(A70>$A$8,"",OFFSET(InputPriceData!$E$15,CalculationsAndCharts!$A70+$A$11,IF($C$5,8,0),1,1))) -> 91.809998 | G70: =IF(A70>$B$30,NA(),IF(A70>$A$8,"",OFFSET(InputPriceData!$F$15,CalculationsAndCharts!$A70+$A$11,IF($C$5,8,0),1,1))) -> 92.480003 | J70: 2748.18003 | K70: 7552493.477 | L70: 270286.9387 | N70: -30.72408963 | Q70: 15540.80527 | R70: 392 | S70: -0.3485437198 | U70: 73.6716311 | X70: 392 | Y70: 0.8357541153 | Z70: 157.3618632 | AA70: -22.63813679 | AB70: -22.63813679 | AC70: -22.63813679 | AD70: 90 | AE70: -90 | AF70: 8.539706866 | AG70: 8.539706866 | AH70: 42.15601374 | AI70: 42.15601374 | AJ70: 0 | AX70: 5158500
A71: 39 | B71: =IF(A71>$B$30,NA(),IF($A71>$A$8,"",OFFSET(InputPriceData!$B$15,$A71+$A$11,0,1,1))) -> 2022-05-13 | C71: =IF(A71>$B$30,NA(),IF($A71>$A$8,"",OFFSET(InputPriceData!$G$15,CalculationsAndCharts!$A71+$A$11,IF($C$5,8,0),1,1))) -> 5465600 | D71: =IF(A71>$B$30,NA(),IF(A71>$A$8,"",OFFSET(InputPriceData!$C$15,CalculationsAndCharts!$A71+$A$11,IF($C$5,8,0),1,1))) -> 92.050003 | E71: =IF(A71>$B$30,NA(),IF(A71>$A$8,"",OFFSET(InputPriceData!$D$15,CalculationsAndCharts!$A71+$A$11,IF($C$5,8,0),1,1))) -> 92.610001 | F71: =IF(A71>$B$30,NA(),IF(A71>$A$8,"",OFFSET(InputPriceData!$E$15,CalculationsAndCharts!$A71+$A$11,IF($C$5,8,0),1,1))) -> 91.089996 | G71: =IF(A71>$B$30,NA(),IF(A71>$A$8,"",OFFSET(InputPriceData!$F$15,CalculationsAndCharts!$A71+$A$11,IF($C$5,8,0),1,1))) -> 91.919998 | J71: 2754.510025 | K71: 7587325.478 | L71: 271497.8034 | N71: -40.17596391 | Q71: 14613.01774 | R71: 392 | S71: -0.4700145987 | U71: 66.39633277 | X71: 392 | Y71: 0.7767640815 | Z71: 148.8221563 | AA71: -31.17784366 | AB71: -31.17784366 | AC71: -31.17784366 | AD71: 90 | AE71: -90 | AF71: 7.966014717 | AG71: 7.966014717 | AH71: 45.19198279 | AI71: 45.19198279 | AJ71: 0 | AY71: 5465600
A72: 40 | B72: =IF(A72>$B$30,NA(),IF($A72>$A$8,"",OFFSET(InputPriceData!$B$15,$A72+$A$11,0,1,1))) -> 2022-05-12 | C72: =IF(A72>$B$30,NA(),IF($A72>$A$8,"",OFFSET(InputPriceData!$G$15,CalculationsAndCharts!$A72+$A$11,IF($C$5,8,0),1,1))) -> 6356200 | D72: =IF(A72>$B$30,NA(),IF(A72>$A$8,"",OFFSET(InputPriceData!$C$15,CalculationsAndCharts!$A72+$A$11,IF($C$5,8,0),1,1))) -> 90.849998 | E72: =IF(A72>$B$30,NA(),IF(A72>$A$8,"",OFFSET(InputPriceData!$D$15,CalculationsAndCharts!$A72+$A$11,IF($C$5,8,0),1,1))) -> 92.470001 | F72: =IF(A72>$B$30,NA(),IF(A72>$A$8,"",OFFSET(InputPriceData!$E$15,CalculationsAndCharts!$A72+$A$11,IF($C$5,8,0),1,1))) -> 89.940002 | G72: =IF(A72>$B$30,NA(),IF(A72>$A$8,"",OFFSET(InputPriceData!$F$15,CalculationsAndCharts!$A72+$A$11,IF($C$5,8,0),1,1))) -> 91.480003 | J72: 2761.89003 | K72: 7628036.538 | L72: 272909.008 | N72: -46.74826973 | Q72: 13415.68553 | R72: 392 | S72: -0.5707870407 | U72: 57.43385068 | X72: 392 | Y72: 0.701255851 | Z72: 140.8561416 | AA72: -39.14385837 | AB72: -39.14385837 | AC72: -39.14385837 | AD72: 90 | AE72: -90 | AF72: 7.243545479 | AG72: 7.243545479 | AH72: 49.69941875 | AI72: 49.69941875 | AJ72: 0 | AX72: 6356200
A73: 41 | B73: =IF(A73>$B$30,NA(),IF($A73>$A$8,"",OFFSET(InputPriceData!$B$15,$A73+$A$11,0,1,1))) -> 2022-05-11 | C73: =IF(A73>$B$30,NA(),IF($A73>$A$8,"",OFFSET(InputPriceData!$G$15,CalculationsAndCharts!$A73+$A$11,IF($C$5,8,0),1,1))) -> 6493900 | D73: =IF(A73>$B$30,NA(),IF(A73>$A$8,"",OFFSET(InputPriceData!$C$15,CalculationsAndCharts!$A73+$A$11,IF($C$5,8,0),1,1))) -> 91.269997 | E73: =IF(A73>$B$30,NA(),IF(A73>$A$8,"",OFFSET(InputPriceData!$D$15,CalculationsAndCharts!$A73+$A$11,IF($C$5,8,0),1,1))) -> 94.129997 | F73: =IF(A73>$B$30,NA(),IF(A73>$A$8,"",OFFSET(InputPriceData!$E$15,CalculationsAndCharts!$A73+$A$11,IF($C$5,8,0),1,1))) -> 90.809998 | G73: =IF(A73>$B$30,NA(),IF(A73>$A$8,"",OFFSET(InputPriceData!$F$15,CalculationsAndCharts!$A73+$A$11,IF($C$5,8,0),1,1))) -> 91 | J73: 2770.580025 | K73: 7676113.675 | L73: 274574.4455 | N73: -49.88430842 | Q73: 11970.79982 | R73: 392 | S73: -0.6447886279 | U73: 47.5251013 | X73: 392 | Y73: 0.6142942706 | Z73: 133.6125961 | AA73: -46.38740385 | AB73: -46.38740385 | AC73: -46.38740385 | AD73: 90 | AE73: -90 | AF73: 7.812229298 | AG73: 7.812229298 | AH73: 46.08159672 | AI73: 46.08159672 | AJ73: 0 | AY73: 6493900
A74: 42 | B74: =IF(A74>$B$30,NA(),IF($A74>$A$8,"",OFFSET(InputPriceData!$B$15,$A74+$A$11,0,1,1))) -> 2022-05-10 | C74: =IF(A74>$B$30,NA(),IF($A74>$A$8,"",OFFSET(InputPriceData!$G$15,CalculationsAndCharts!$A74+$A$11,IF($C$5,8,0),1,1))) -> 7526300 | D74: =IF(A74>$B$30,NA(),IF(A74>$A$8,"",OFFSET(InputPriceData!$C$15,CalculationsAndCharts!$A74+$A$11,IF($C$5,8,0),1,1))) -> 92.440002 | E74: =IF(A74>$B$30,NA(),IF(A74>$A$8,"",OFFSET(InputPriceData!$D$15,CalculationsAndCharts!$A74+$A$11,IF($C$5,8,0),1,1))) -> 93.860001 | F74: =IF(A74>$B$30,NA(),IF(A74>$A$8,"",OFFSET(InputPriceData!$E$15,CalculationsAndCharts!$A74+$A$11,IF($C$5,8,0),1,1))) -> 91.360001 | G74: =IF(A74>$B$30,NA(),IF(A74>$A$8,"",OFFSET(InputPriceData!$F$15,CalculationsAndCharts!$A74+$A$11,IF($C$5,8,0),1,1))) -> 91.690002 | J74: 2778.650025 | K74: 7720895.961 | L74: 276108.3104 | N74: -51.34126633 | Q74: 10136.73052 | R74: 392 | S74: -0.7211616498 | U74: 37.02898882 | X74: 392 | Y74: 0.5201252049 | Z74: 125.8003669 | AA74: -54.19963315 | AB74: -54.19963315 | AC74: -54.19963315 | AD74: 90 | AE74: -90 | AF74: 7.39256977 | AG74: 7.39256977 | AH74: 48.69754513 | AI74: 48.69754513 | AJ74: 0 | AY74: 7526300
A75: 43 | B75: =IF(A75>$B$30,NA(),IF($A75>$A$8,"",OFFSET(InputPriceData!$B$15,$A75+$A$11,0,1,1))) -> 2022-05-09 | C75: =IF(A75>$B$30,NA(),IF($A75>$A$8,"",OFFSET(InputPriceData!$G$15,CalculationsAndCharts!$A75+$A$11,IF($C$5,8,0),1,1))) -> 6071900 | D75: =IF(A75>$B$30,NA(),IF(A75>$A$8,"",OFFSET(InputPriceData!$C$15,CalculationsAndCharts!$A75+$A$11,IF($C$5,8,0),1,1))) -> 94.529999 | E75: =IF(A75>$B$30,NA(),IF(A75>$A$8,"",OFFSET(InputPriceData!$D$15,CalculationsAndCharts!$A75+$A$11,IF($C$5,8,0),1,1))) -> 94.790001 | F75: =IF(A75>$B$30,NA(),IF(A75>$A$8,"",OFFSET(InputPriceData!$E$15,CalculationsAndCharts!$A75+$A$11,IF($C$5,8,0),1,1))) -> 91.25 | G75: =IF(A75>$B$30,NA(),IF(A75>$A$8,"",OFFSET(InputPriceData!$F$15,CalculationsAndCharts!$A75+$A$11,IF($C$5,8,0),1,1))) -> 91.75 | J75: 2787.790025 | K75: 7771773.223 | L75: 277867.9433 | N75: -49.38291765 | Q75: 8529.187885 | R75: 392 | S75: -0.7562021409 | U75: 26.70992956 | X75: 392 | Y75: 0.4090099751 | Z75: 118.4077971 | AA75: -61.59220292 | AB75: -61.59220292 | AC75: -61.59220292 | AD75: 90 | AE75: -90 | AF75: 7.566964425 | AG75: 7.566964425 | AH75: 47.57522037 | AI75: 47.57522037 | AJ75: 0 | AY75: 6071900
A76: 44 | B76: =IF(A76>$B$30,NA(),IF($A76>$A$8,"",OFFSET(InputPriceData!$B$15,$A76+$A$11,0,1,1))) -> 2022-05-06 | C76: =IF(A76>$B$30,NA(),IF($A76>$A$8,"",OFFSET(InputPriceData!$G$15,CalculationsAndCharts!$A76+$A$11,IF($C$5,8,0),1,1))) -> 5295000 | D76: =IF(A76>$B$30,NA(),IF(A76>$A$8,"",OFFSET(InputPriceData!$C$15,CalculationsAndCharts!$A76+$A$11,IF($C$5,8,0),1,1))) -> 95.709999 | E76: =IF(A76>$B$30,NA(),IF(A76>$A$8,"",OFFSET(InputPriceData!$D$15,CalculationsAndCharts!$A76+$A$11,IF($C$5,8,0),1,1))) -> 96.050003 | F76: =IF(A76>$B$30,NA(),IF(A76>$A$8,"",OFFSET(InputPriceData!$E$15,CalculationsAndCharts!$A76+$A$11,IF($C$5,8,0),1,1))) -> 93.720001 | G76: =IF(A76>$B$30,NA(),IF(A76>$A$8,"",OFFSET(InputPriceData!$F$15,CalculationsAndCharts!$A76+$A$11,IF($C$5,8,0),1,1))) -> 95.300003 | J76: 2797.120027 | K76: 7823880.445 | L76: 279667.0476 | N76: -44.99222391 | Q76: 6796.886451 | R76: 392 | S76: -0.7717869854 | U76: 17.12764367 | X76: 392 | Y76: 0.293803936 | Z76: 110.8408327 | AA76: -69.15916734 | AB76: -69.15916734 | AC76: -69.15916734 | AD76: 90 | AE76: -90 | AF76: 9.826225228 | AG76: 9.826225228 | AH76: 36.6366526 | AI76: 36.6366526 | AJ76: 0 | AY76: 5295000
A77: 45 | B77: =IF(A77>$B$30,NA(),IF($A77>$A$8,"",OFFSET(InputPriceData!$B$15,$A77+$A$11,0,1,1))) -> 2022-05-05 | C77: =IF(A77>$B$30,NA(),IF($A77>$A$8,"",OFFSET(InputPriceData!$G$15,CalculationsAndCharts!$A77+$A$11,IF($C$5,8,0),1,1))) -> 5906500 | D77: =IF(A77>$B$30,NA(),IF(A77>$A$8,"",OFFSET(InputPriceData!$C$15,CalculationsAndCharts!$A77+$A$11,IF($C$5,8,0),1,1))) -> 97.800003 | E77: =IF(A77>$B$30,NA(),IF(A77>$A$8,"",OFFSET(InputPriceData!$D$15,CalculationsAndCharts!$A77+$A$11,IF($C$5,8,0),1,1))) -> 98.199997 | F77: =IF(A77>$B$30,NA(),IF(A77>$A$8,"",OFFSET(InputPriceData!$E$15,CalculationsAndCharts!$A77+$A$11,IF($C$5,8,0),1,1))) -> 95.410004 | G77: =IF(A77>$B$30,NA(),IF(A77>$A$8,"",OFFSET(InputPriceData!$F$15,CalculationsAndCharts!$A77+$A$11,IF($C$5,8,0),1,1))) -> 96.32 | J77: 2803.41002 | K77: 7859107.74 | L77: 280905.4843 | N77: -41.54314444 | Q77: 6245.819693 | R77: 392 | S77: -0.7433950109 | U77: 8.086161313 | X77: 392 | Y77: 0.1446980497 | Z77: 101.0146074 | AA77: -78.98539257 | AB77: -78.98539257 | AC77: -78.98539257 | AD77: 90 | AE77: -90 | AF77: 11.01648664 | AG77: 11.01648664 | AH77: 32.67829499 | AI77: 32.67829499 | AJ77: 0 | AY77: 5906500
A78: 46 | B78: =IF(A78>$B$30,NA(),IF($A78>$A$8,"",OFFSET(InputPriceData!$B$15,$A78+$A$11,0,1,1))) -> 2022-05-04 | C78: =IF(A78>$B$30,NA(),IF($A78>$A$8,"",OFFSET(InputPriceData!$G$15,CalculationsAndCharts!$A78+$A$11,IF($C$5,8,0),1,1))) -> 6160800 | D78: =IF(A78>$B$30,NA(),IF(A78>$A$8,"",OFFSET(InputPriceData!$C$15,CalculationsAndCharts!$A78+$A$11,IF($C$5,8,0),1,1))) -> 94.989998 | E78: =IF(A78>$B$30,NA(),IF(A78>$A$8,"",OFFSET(InputPriceData!$D$15,CalculationsAndCharts!$A78+$A$11,IF($C$5,8,0),1,1))) -> 98.019997 | F78: =IF(A78>$B$30,NA(),IF(A78>$A$8,"",OFFSET(InputPriceData!$E$15,CalculationsAndCharts!$A78+$A$11,IF($C$5,8,0),1,1))) -> 94.949997 | G78: =IF(A78>$B$30,NA(),IF(A78>$A$8,"",OFFSET(InputPriceData!$F$15,CalculationsAndCharts!$A78+$A$11,IF($C$5,8,0),1,1))) -> 97.760002 | J78: 2809.52002 | K78: 7893402.743 | L78: 282119.8468 | N78: -36.3441017 | Q78: 5952.967148 | R78: 392 | S78: -0.6661655869 | U78: -0.001192027047 | X78: 392 | Y78: -2.184914086e-05 | Z78: 89.99812079 | AA78: -90.00187921 | AB78: -90.00187921 | AC78: -90.00187921 | AD78: 90 | AE78: -90 | AF78: 12.857372 | AG78: 12.857372 | AH78: 27.99950099 | AI78: 27.99950099 | AJ78: 0 | AX78: 6160800
A79: 47 | B79: =IF(A79>$B$30,NA(),IF($A79>$A$8,"",OFFSET(InputPriceData!$B$15,$A79+$A$11,0,1,1))) -> 2022-05-03 | C79: =IF(A79>$B$30,NA(),IF($A79>$A$8,"",OFFSET(InputPriceData!$G$15,CalculationsAndCharts!$A79+$A$11,IF($C$5,8,0),1,1))) -> 5612200 | D79: =IF(A79>$B$30,NA(),IF(A79>$A$8,"",OFFSET(InputPriceData!$C$15,CalculationsAndCharts!$A79+$A$11,IF($C$5,8,0),1,1))) -> 95.18 | E79: =IF(A79>$B$30,NA(),IF(A79>$A$8,"",OFFSET(InputPriceData!$D$15,CalculationsAndCharts!$A79+$A$11,IF($C$5,8,0),1,1))) -> 96.129997 | F79: =IF(A79>$B$30,NA(),IF(A79>$A$8,"",OFFSET(InputPriceData!$E$15,CalculationsAndCharts!$A79+$A$11,IF($C$5,8,0),1,1))) -> 94.32 | G79: =IF(A79>$B$30,NA(),IF(A79>$A$8,"",OFFSET(InputPriceData!$F$15,CalculationsAndCharts!$A79+$A$11,IF($C$5,8,0),1,1))) -> 95.400002 | J79: 2813.470017 | K79: 7915613.537 | L79: 282907.7527 | N79: -31.58165161 | Q79: 5803.538726 | R79: 392 | S79: -0.5862777234 | U79: -7.209528572 | X79: 392 | Y79: -0.1338367623 | Z79: 77.14074879 | AA79: -102.8592512 | AB79: -102.8592512 | AC79: -102.8592512 | AD79: 90 | AE79: -90 | AF79: 15.63821191 | AG79: 15.63821191 | AH79: 23.02053471 | AI79: 23.02053471 | AJ79: 0 | AX79: 5612200
A80: 48 | B80: =IF(A80>$B$30,NA(),IF($A80>$A$8,"",OFFSET(InputPriceData!$B$15,$A80+$A$11,0,1,1))) -> 2022-05-02 | C80: =IF(A80>$B$30,NA(),IF($A80>$A$8,"",OFFSET(InputPriceData!$G$15,CalculationsAndCharts!$A80+$A$11,IF($C$5,8,0),1,1))) -> 7870600 | D80: =IF(A80>$B$30,NA(),IF(A80>$A$8,"",OFFSET(InputPriceData!$C$15,CalculationsAndCharts!$A80+$A$11,IF($C$5,8,0),1,1))) -> 94.510002 | E80: =IF(A80>$B$30,NA(),IF(A80>$A$8,"",OFFSET(InputPriceData!$D$15,CalculationsAndCharts!$A80+$A$11,IF($C$5,8,0),1,1))) -> 95.330002 | F80: =IF(A80>$B$30,NA(),IF(A80>$A$8,"",OFFSET(InputPriceData!$E$15,CalculationsAndCharts!$A80+$A$11,IF($C$5,8,0),1,1))) -> 92.400002 | G80: =IF(A80>$B$30,NA(),IF(A80>$A$8,"",OFFSET(InputPriceData!$F$15,CalculationsAndCharts!$A80+$A$11,IF($C$5,8,0),1,1))) -> 94.220001 | J80: 2819.300018 | K80: 7948452.591 | L80: 284054.1058 | N80: -23.50173193 | Q80: 5062.371311 | R80: 392 | S80: -0.4671301167 | U80: -12.75905198 | X80: 392 | Y80: -0.2536041794 | Z80: 61.50253689 | AA80: -118.4974631 | AB80: -118.4974631 | AC80: -118.4974631 | AD80: 90 | AE80: -90 | AF80: 6.26144241 | AG80: 6.26144241 | AH80: 57.49473946 | AI80: 57.49473946 | AJ80: 0 | AY80: 7870600
A81: 49 | B81: =IF(A81>$B$30,NA(),IF($A81>$A$8,"",OFFSET(InputPriceData!$B$15,$A81+$A$11,0,1,1))) -> 2022-04-29 | C81: =IF(A81>$B$30,NA(),IF($A81>$A$8,"",OFFSET(InputPriceData!$G$15,CalculationsAndCharts!$A81+$A$11,IF($C$5,8,0),1,1))) -> 5883000 | D81: =IF(A81>$B$30,NA(),IF(A81>$A$8,"",OFFSET(InputPriceData!$C$15,CalculationsAndCharts!$A81+$A$11,IF($C$5,8,0),1,1))) -> 98.470001 | E81: =IF(A81>$B$30,NA(),IF(A81>$A$8,"",OFFSET(InputPriceData!$D$15,CalculationsAndCharts!$A81+$A$11,IF($C$5,8,0),1,1))) -> 98.889999 | F81: =IF(A81>$B$30,NA(),IF(A81>$A$8,"",OFFSET(InputPriceData!$E$15,CalculationsAndCharts!$A81+$A$11,IF($C$5,8,0),1,1))) -> 94.610001 | G81: =IF(A81>$B$30,NA(),IF(A81>$A$8,"",OFFSET(InputPriceData!$F$15,CalculationsAndCharts!$A81+$A$11,IF($C$5,8,0),1,1))) -> 94.910004 | J81: 2826.460014 | K81: 7988876.211 | L81: 285454.601 | N81: -13.09285833 | Q81: 3852.617757 | R81: 392 | S81: -0.2983125369 | U81: -16.07553425 | X81: 392 | Y81: -0.3662709307 | Z81: 39.16139246 | AA81: -140.8386075 | AB81: -140.8386075 | AC81: -124.7589055 | AD81: 90 | AE81: -90 | AF81: 0 | AG81: 2.006357535 | AH81: 179.429635 | AI81: 60 | AJ81: 1 | AY81: 5883000
A82: 50 | B82: =IF(A82>$B$30,NA(),IF($A82>$A$8,"",OFFSET(InputPriceData!$B$15,$A82+$A$11,0,1,1))) -> 2022-04-28 | C82: =IF(A82>$B$30,NA(),IF($A82>$A$8,"",OFFSET(InputPriceData!$G$15,CalculationsAndCharts!$A82+$A$11,IF($C$5,8,0),1,1))) -> 6544200 | D82: =IF(A82>$B$30,NA(),IF(A82>$A$8,"",OFFSET(InputPriceData!$C$15,CalculationsAndCharts!$A82+$A$11,IF($C$5,8,0),1,1))) -> 99 | E82: =IF(A82>$B$30,NA(),IF(A82>$A$8,"",OFFSET(InputPriceData!$D$15,CalculationsAndCharts!$A82+$A$11,IF($C$5,8,0),1,1))) -> 99.260002 | F82: =IF(A82>$B$30,NA(),IF(A82>$A$8,"",OFFSET(InputPriceData!$E$15,CalculationsAndCharts!$A82+$A$11,IF($C$5,8,0),1,1))) -> 96.900002 | G82: =IF(A82>$B$30,NA(),IF(A82>$A$8,"",OFFSET(InputPriceData!$F$15,CalculationsAndCharts!$A82+$A$11,IF($C$5,8,0),1,1))) -> 98.080002 | J82: 2831.490012 | K82: 8017335.688 | L82: 286434.6962 | N82: -4.283564691 | Q82: 2835.804376 | R82: 392 | S82: -0.1137580644 | U82: -17.46664226 | X82: 392 | Y82: -0.4638593222 | Z82: 13.77941259 | AA82: -166.2205874 | AB82: -166.2205874 | AC82: -124.7589055 | AD82: 90 | AE82: -90 | AF82: 0 | AG82: 2.006357535 | AH82: 179.429635 | AI82: 60 | AJ82: 1 | AY82: 6544200
A83: 51 | B83: =IF(A83>$B$30,NA(),IF($A83>$A$8,"",OFFSET(InputPriceData!$B$15,$A83+$A$11,0,1,1))) -> 2022-04-27 | C83: =IF(A83>$B$30,NA(),IF($A83>$A$8,"",OFFSET(InputPriceData!$G$15,CalculationsAndCharts!$A83+$A$11,IF($C$5,8,0),1,1))) -> 6632100 | D83: =IF(A83>$B$30,NA(),IF(A83>$A$8,"",OFFSET(InputPriceData!$C$15,CalculationsAndCharts!$A83+$A$11,IF($C$5,8,0),1,1))) -> 99.220001 | E83: =IF(A83>$B$30,NA(),IF(A83>$A$8,"",OFFSET(InputPriceData!$D$15,CalculationsAndCharts!$A83+$A$11,IF($C$5,8,0),1,1))) -> 99.910004 | F83: =IF(A83>$B$30,NA(),IF(A83>$A$8,"",OFFSET(InputPriceData!$E$15,CalculationsAndCharts!$A83+$A$11,IF($C$5,8,0),1,1))) -> 97.599998 | G83: =IF(A83>$B$30,NA(),IF(A83>$A$8,"",OFFSET(InputPriceData!$F$15,CalculationsAndCharts!$A83+$A$11,IF($C$5,8,0),1,1))) -> 98.839996 | J83: 2830.930007 | K83: 8014164.705 | L83: 286325.1592 | N83: -0.8354377383 | Q83: 2939.75253 | R83: 392 | S83: -0.02179082639 | U83: -18.10651272 | X83: 392 | Y83: -0.4722744224 | Z83: 2.641763889 | AA83: -177.3582361 | AB83: -177.3582361 | AC83: -124.7589055 | AD83: 90 | AE83: -90 | AF83: 0 | AG83: 2.006357535 | AH83: 179.429635 | AI83: 60 | AJ83: 1 | AY83: 6632100
A84: 52 | B84: =IF(A84>$B$30,NA(),IF($A84>$A$8,"",OFFSET(InputPriceData!$B$15,$A84+$A$11,0,1,1))) -> 2022-04-26 | C84: =IF(A84>$B$30,NA(),IF($A84>$A$8,"",OFFSET(InputPriceData!$G$15,CalculationsAndCharts!$A84+$A$11,IF($C$5,8,0),1,1))) -> 7199200 | D84: =IF(A84>$B$30,NA(),IF(A84>$A$8,"",OFFSET(InputPriceData!$C$15,CalculationsAndCharts!$A84+$A$11,IF($C$5,8,0),1,1))) -> 96.900002 | E84: =IF(A84>$B$30,NA(),IF(A84>$A$8,"",OFFSET(InputPriceData!$D$15,CalculationsAndCharts!$A84+$A$11,IF($C$5,8,0),1,1))) -> 100.949997 | F84: =IF(A84>$B$30,NA(),IF(A84>$A$8,"",OFFSET(InputPriceData!$E$15,CalculationsAndCharts!$A84+$A$11,IF($C$5,8,0),1,1))) -> 96.779999 | G84: =IF(A84>$B$30,NA(),IF(A84>$A$8,"",OFFSET(InputPriceData!$F$15,CalculationsAndCharts!$A84+$A$11,IF($C$5,8,0),1,1))) -> 99.190002 | J84: 2829.840011 | K84: 8007994.488 | L84: 286110.8769 | N84: 2.151919027 | Q84: 3110.064547 | R84: 392 | S84: 0.05457028501 | U84: -18.08099396 | X84: 392 | Y84: -0.4585139967 | Z84: 173.2128385 | AA84: 173.2128385 | AB84: -186.7871615 | AC84: -124.7589055 | AD84: 90 | AE84: -90 | AF84: 0 | AG84: 2.006357535 | AH84: 179.429635 | AI84: 60 | AJ84: 1 | AX84: 7199200
A85: 53 | B85: =IF(A85>$B$30,NA(),IF($A85>$A$8,"",OFFSET(InputPriceData!$B$15,$A85+$A$11,0,1,1))) -> 2022-04-25 | C85: =IF(A85>$B$30,NA(),IF($A85>$A$8,"",OFFSET(InputPriceData!$G$15,CalculationsAndCharts!$A85+$A$11,IF($C$5,8,0),1,1))) -> 5612500 | D85: =IF(A85>$B$30,NA(),IF(A85>$A$8,"",OFFSET(InputPriceData!$C$15,CalculationsAndCharts!$A85+$A$11,IF($C$5,8,0),1,1))) -> 99.849998 | E85: =IF(A85>$B$30,NA(),IF(A85>$A$8,"",OFFSET(InputPriceData!$D$15,CalculationsAndCharts!$A85+$A$11,IF($C$5,8,0),1,1))) -> 99.919998 | F85: =IF(A85>$B$30,NA(),IF(A85>$A$8,"",OFFSET(InputPriceData!$E$15,CalculationsAndCharts!$A85+$A$11,IF($C$5,8,0),1,1))) -> 97.57 | G85: =IF(A85>$B$30,NA(),IF(A85>$A$8,"",OFFSET(InputPriceData!$F$15,CalculationsAndCharts!$A85+$A$11,IF($C$5,8,0),1,1))) -> 99.610001 | J85: 2826.450012 | K85: 7988819.67 | L85: 285449.8609 | N85: 2.816360939 | Q85: 3776.436253 | R85: 392 | S85: 0.06481301595 | U85: -17.9031644 | X85: 392 | Y85: -0.4120061687 | Z85: 171.0600202 | AA85: 171.0600202 | AB85: -188.9399798 | AC85: -124.7589055 | AD85: 90 | AE85: -90 | AF85: 0 | AG85: 2.006357535 | AH85: 179.429635 | AI85: 60 | AJ85: 1 | AY85: 5612500
A86: 54 | B86: =IF(A86>$B$30,NA(),IF($A86>$A$8,"",OFFSET(InputPriceData!$B$15,$A86+$A$11,0,1,1))) -> 2022-04-22 | C86: =IF(A86>$B$30,NA(),IF($A86>$A$8,"",OFFSET(InputPriceData!$G$15,CalculationsAndCharts!$A86+$A$11,IF($C$5,8,0),1,1))) -> 4683300 | D86: =IF(A86>$B$30,NA(),IF(A86>$A$8,"",OFFSET(InputPriceData!$C$15,CalculationsAndCharts!$A86+$A$11,IF($C$5,8,0),1,1))) -> 101.449997 | E86: =IF(A86>$B$30,NA(),IF(A86>$A$8,"",OFFSET(InputPriceData!$D$15,CalculationsAndCharts!$A86+$A$11,IF($C$5,8,0),1,1))) -> 102.559998 | F86: =IF(A86>$B$30,NA(),IF(A86>$A$8,"",OFFSET(InputPriceData!$E$15,CalculationsAndCharts!$A86+$A$11,IF($C$5,8,0),1,1))) -> 100.370003 | G86: =IF(A86>$B$30,NA(),IF(A86>$A$8,"",OFFSET(InputPriceData!$F$15,CalculationsAndCharts!$A86+$A$11,IF($C$5,8,0),1,1))) -> 100.489998 | J86: 2824.460014 | K86: 7977574.371 | L86: 285057.3736 | N86: 4.789473158 | Q86: 4032.091125 | R86: 392 | S86: 0.10666884 | U86: -17.27041164 | X86: 392 | Y86: -0.3846382921 | Z86: 164.5001105 | AA86: 164.5001105 | AB86: -195.4998895 | AC86: -124.7589055 | AD86: 90 | AE86: -90 | AF86: 0 | AG86: 2.006357535 | AH86: 179.429635 | AI86: 60 | AJ86: 1 | AY86: 4683300
A87: 55 | B87: =IF(A87>$B$30,NA(),IF($A87>$A$8,"",OFFSET(InputPriceData!$B$15,$A87+$A$11,0,1,1))) -> 2022-04-21 | C87: =IF(A87>$B$30,NA(),IF($A87>$A$8,"",OFFSET(InputPriceData!$G$15,CalculationsAndCharts!$A87+$A$11,IF($C$5,8,0),1,1))) -> 5795300 | D87: =IF(A87>$B$30,NA(),IF(A87>$A$8,"",OFFSET(InputPriceData!$C$15,CalculationsAndCharts!$A87+$A$11,IF($C$5,8,0),1,1))) -> 105.849998 | E87: =IF(A87>$B$30,NA(),IF(A87>$A$8,"",OFFSET(InputPriceData!$D$15,CalculationsAndCharts!$A87+$A$11,IF($C$5,8,0),1,1))) -> 106.019997 | F87: =IF(A87>$B$30,NA(),IF(A87>$A$8,"",OFFSET(InputPriceData!$E$15,CalculationsAndCharts!$A87+$A$11,IF($C$5,8,0),1,1))) -> 101.400002 | G87: =IF(A87>$B$30,NA(),IF(A87>$A$8,"",OFFSET(InputPriceData!$F$15,CalculationsAndCharts!$A87+$A$11,IF($C$5,8,0),1,1))) -> 101.730003 | J87: 2821.010017 | K87: 7958097.516 | L87: 284375.8957 | N87: 5.148920821 | Q87: 4427.564485 | R87: 392 | S87: 0.1094331155 | U87: -16.53934487 | X87: 392 | Y87: -0.3515206587 | Z87: 162.7079312 | AA87: 162.7079312 | AB87: -197.2920688 | AC87: -124.7589055 | AD87: 90 | AE87: -90 | AF87: 0 | AG87: 2.006357535 | AH87: 179.429635 | AI87: 60 | AJ87: 1 | AY87: 5795300
A88: 56 | B88: =IF(A88>$B$30,NA(),IF($A88>$A$8,"",OFFSET(InputPriceData!$B$15,$A88+$A$11,0,1,1))) -> 2022-04-20 | C88: =IF(A88>$B$30,NA(),IF($A88>$A$8,"",OFFSET(InputPriceData!$G$15,CalculationsAndCharts!$A88+$A$11,IF($C$5,8,0),1,1))) -> 4232200 | D88: =IF(A88>$B$30,NA(),IF(A88>$A$8,"",OFFSET(InputPriceData!$C$15,CalculationsAndCharts!$A88+$A$11,IF($C$5,8,0),1,1))) -> 105.68 | E88: =IF(A88>$B$30,NA(),IF(A88>$A$8,"",OFFSET(InputPriceData!$D$15,CalculationsAndCharts!$A88+$A$11,IF($C$5,8,0),1,1))) -> 106.019997 | F88: =IF(A88>$B$30,NA(),IF(A88>$A$8,"",OFFSET(InputPriceData!$E$15,CalculationsAndCharts!$A88+$A$11,IF($C$5,8,0),1,1))) -> 104.279999 | G88: =IF(A88>$B$30,NA(),IF(A88>$A$8,"",OFFSET(InputPriceData!$F$15,CalculationsAndCharts!$A88+$A$11,IF($C$5,8,0),1,1))) -> 104.970001 | J88: 2816.200012 | K88: 7930982.508 | L88: 283420.3882 | N88: 4.010768962 | Q88: 4788.362965 | R88: 392 | S88: 0.08196890089 | U88: -16.0492531 | X88: 392 | Y88: -0.3280018493 | Z88: 165.9689455 | AA88: 165.9689455 | AB88: -194.0310545 | AC88: -124.7589055 | AD88: 90 | AE88: -90 | AF88: 0 | AG88: 2.006357535 | AH88: 179.429635 | AI88: 60 | AJ88: 1 | AY88: 4232200
A89: 57 | B89: =IF(A89>$B$30,NA(),IF($A89>$A$8,"",OFFSET(InputPriceData!$B$15,$A89+$A$11,0,1,1))) -> 2022-04-19 | C89: =IF(A89>$B$30,NA(),IF($A89>$A$8,"",OFFSET(InputPriceData!$G$15,CalculationsAndCharts!$A89+$A$11,IF($C$5,8,0),1,1))) -> 4572800 | D89: =IF(A89>$B$30,NA(),IF(A89>$A$8,"",OFFSET(InputPriceData!$C$15,CalculationsAndCharts!$A89+$A$11,IF($C$5,8,0),1,1))) -> 104.440002 | E89: =IF(A89>$B$30,NA(),IF(A89>$A$8,"",OFFSET(InputPriceData!$D$15,CalculationsAndCharts!$A89+$A$11,IF($C$5,8,0),1,1))) -> 105.660004 | F89: =IF(A89>$B$30,NA(),IF(A89>$A$8,"",OFFSET(InputPriceData!$E$15,CalculationsAndCharts!$A89+$A$11,IF($C$5,8,0),1,1))) -> 104.160004 | G89: =IF(A89>$B$30,NA(),IF(A89>$A$8,"",OFFSET(InputPriceData!$F$15,CalculationsAndCharts!$A89+$A$11,IF($C$5,8,0),1,1))) -> 104.550003 | J89: 2809.740013 | K89: 7894638.941 | L89: 282105.9076 | N89: 1.183472063 | Q89: 4326.472655 | R89: 392 | S89: 0.02544520925 | U89: -16.19186977 | X89: 392 | Y89: -0.3481328605 | Z89: 175.8196556 | AA89: 175.8196556 | AB89: -184.1803444 | AC89: -124.7589055 | AD89: 90 | AE89: -90 | AF89: 0 | AG89: 2.006357535 | AH89: 179.429635 | AI89: 60 | AJ89: 1 | AX89: 4572800
A90: 58 | B90: =IF(A90>$B$30,NA(),IF($A90>$A$8,"",OFFSET(InputPriceData!$B$15,$A90+$A$11,0,1,1))) -> 2022-04-18 | C90: =IF(A90>$B$30,NA(),IF($A90>$A$8,"",OFFSET(InputPriceData!$G$15,CalculationsAndCharts!$A90+$A$11,IF($C$5,8,0),1,1))) -> 3873300 | D90: =IF(A90>$B$30,NA(),IF(A90>$A$8,"",OFFSET(InputPriceData!$C$15,CalculationsAndCharts!$A90+$A$11,IF($C$5,8,0),1,1))) -> 104.260002 | E90: =IF(A90>$B$30,NA(),IF(A90>$A$8,"",OFFSET(InputPriceData!$D$15,CalculationsAndCharts!$A90+$A$11,IF($C$5,8,0),1,1))) -> 105.459999 | F90: =IF(A90>$B$30,NA(),IF(A90>$A$8,"",OFFSET(InputPriceData!$E$15,CalculationsAndCharts!$A90+$A$11,IF($C$5,8,0),1,1))) -> 103.910004 | G90: =IF(A90>$B$30,NA(),IF(A90>$A$8,"",OFFSET(InputPriceData!$F$15,CalculationsAndCharts!$A90+$A$11,IF($C$5,8,0),1,1))) -> 104.300003 | J90: 2803.710007 | K90: 7860789.803 | L90: 280881.3943 | N90: -1.121991228 | Q90: 3889.237041 | R90: 392 | S90: -0.02544323052 | U90: -16.86436105 | X90: 392 | Y90: -0.3824306421 | Z90: 3.806296872 | AA90: -176.1937031 | AB90: -176.1937031 | AC90: -124.7589055 | AD90: 90 | AE90: -90 | AF90: 0 | AG90: 2.006357535 | AH90: 179.429635 | AI90: 60 | AJ90: 1 | AX90: 3873300
A91: 59 | B91: =IF(A91>$B$30,NA(),IF($A91>$A$8,"",OFFSET(InputPriceData!$B$15,$A91+$A$11,0,1,1))) -> 2022-04-14 | C91: =IF(A91>$B$30,NA(),IF($A91>$A$8,"",OFFSET(InputPriceData!$G$15,CalculationsAndCharts!$A91+$A$11,IF($C$5,8,0),1,1))) -> 4027400 | D91: =IF(A91>$B$30,NA(),IF(A91>$A$8,"",OFFSET(InputPriceData!$C$15,CalculationsAndCharts!$A91+$A$11,IF($C$5,8,0),1,1))) -> 103.889999 | E91: =IF(A91>$B$30,NA(),IF(A91>$A$8,"",OFFSET(InputPriceData!$D$15,CalculationsAndCharts!$A91+$A$11,IF($C$5,8,0),1,1))) -> 104.980003 | F91: =IF(A91>$B$30,NA(),IF(A91>$A$8,"",OFFSET(InputPriceData!$E$15,CalculationsAndCharts!$A91+$A$11,IF($C$5,8,0),1,1))) -> 103.669998 | G91: =IF(A91>$B$30,NA(),IF(A91>$A$8,"",OFFSET(InputPriceData!$F$15,CalculationsAndCharts!$A91+$A$11,IF($C$5,8,0),1,1))) -> 104.269997 | J91: 2794.260002 | K91: 7807888.959 | L91: 278999.4258 | N91: -6.554260838 | Q91: 4094.96347 | R91: 392 | S91: -0.1448484001 | U91: -18.79402679 | X91: 392 | Y91: -0.4153458001 | Z91: 19.22579358 | AA91: -160.7742064 | AB91: -160.7742064 | AC91: -124.7589055 | AD91: 90 | AE91: -90 | AF91: 0 | AG91: 2.006357535 | AH91: 179.429635 | AI91: 60 | AJ91: 1 | AX91: 4027400
A92: 60 | B92: =IF(A92>$B$30,NA(),IF($A92>$A$8,"",OFFSET(InputPriceData!$B$15,$A92+$A$11,0,1,1))) -> 2022-04-13 | C92: =IF(A92>$B$30,NA(),IF($A92>$A$8,"",OFFSET(InputPriceData!$G$15,CalculationsAndCharts!$A92+$A$11,IF($C$5,8,0),1,1))) -> 5351900 | D92: =IF(A92>$B$30,NA(),IF(A92>$A$8,"",OFFSET(InputPriceData!$C$15,CalculationsAndCharts!$A92+$A$11,IF($C$5,8,0),1,1))) -> 103.32 | E92: =IF(A92>$B$30,NA(),IF(A92>$A$8,"",OFFSET(InputPriceData!$D$15,CalculationsAndCharts!$A92+$A$11,IF($C$5,8,0),1,1))) -> 104.449997 | F92: =IF(A92>$B$30,NA(),IF(A92>$A$8,"",OFFSET(InputPriceData!$E$15,CalculationsAndCharts!$A92+$A$11,IF($C$5,8,0),1,1))) -> 102.639999 | G92: =IF(A92>$B$30,NA(),IF(A92>$A$8,"",OFFSET(InputPriceData!$F$15,CalculationsAndCharts!$A92+$A$11,IF($C$5,8,0),1,1))) -> 103.370003 | J92: 2788.180007 | K92: 7773947.751 | L92: 277768.47 | N92: -8.135424273 | Q92: 3569.408927 | R92: 392 | S92: -0.1925737342 | U92: -21.1342077 | X92: 392 | Y92: -0.5002681066 | Z92: 21.05376436 | AA92: -158.9462356 | AB92: -158.9462356 | AC92: -124.7589055 | AD92: 90 | AE92: -90 | AF92: 0 | AG92: 2.006357535 | AH92: 179.429635 | AI92: 60 | AJ92: 1 | AX92: 5351900
A93: 61 | B93: =IF(A93>$B$30,NA(),IF($A93>$A$8,"",OFFSET(InputPriceData!$B$15,$A93+$A$11,0,1,1))) -> 2022-04-12 | C93: =IF(A93>$B$30,NA(),IF($A93>$A$8,"",OFFSET(InputPriceData!$G$15,CalculationsAndCharts!$A93+$A$11,IF($C$5,8,0),1,1))) -> 4839200 | D93: =IF(A93>$B$30,NA(),IF(A93>$A$8,"",OFFSET(InputPriceData!$C$15,CalculationsAndCharts!$A93+$A$11,IF($C$5,8,0),1,1))) -> 102.18 | E93: =IF(A93>$B$30,NA(),IF(A93>$A$8,"",OFFSET(InputPriceData!$D$15,CalculationsAndCharts!$A93+$A$11,IF($C$5,8,0),1,1))) -> 103.980003 | F93: =IF(A93>$B$30,NA(),IF(A93>$A$8,"",OFFSET(InputPriceData!$E$15,CalculationsAndCharts!$A93+$A$11,IF($C$5,8,0),1,1))) -> 102.07 | G93: =IF(A93>$B$30,NA(),IF(A93>$A$8,"",OFFSET(InputPriceData!$F$15,CalculationsAndCharts!$A93+$A$11,IF($C$5,8,0),1,1))) -> 102.599998 | J93: 2784.4 | K93: 7752883.36 | L93: 277001.2798 | N93: -6.913882897 | Q93: 3152.474287 | R93: 392 | S93: -0.1741450927 | U93: -23.25576189 | X93: 392 | Y93: -0.5857601105 | Z93: 16.5570889 | AA93: -163.4429111 | AB93: -163.4429111 | AC93: -124.7589055 | AD93: 90 | AE93: -90 | AF93: 0 | AG93: 2.006357535 | AH93: 179.429635 | AI93: 60 | AJ93: 1 | AX93: 4839200
A94: 62 | B94: =IF(A94>$B$30,NA(),IF($A94>$A$8,"",OFFSET(InputPriceData!$B$15,$A94+$A$11,0,1,1))) -> 2022-04-11 | C94: =IF(A94>$B$30,NA(),IF($A94>$A$8,"",OFFSET(InputPriceData!$G$15,CalculationsAndCharts!$A94+$A$11,IF($C$5,8,0),1,1))) -> 5707600 | D94: =IF(A94>$B$30,NA(),IF(A94>$A$8,"",OFFSET(InputPriceData!$C$15,CalculationsAndCharts!$A94+$A$11,IF($C$5,8,0),1,1))) -> 100.639999 | E94: =IF(A94>$B$30,NA(),IF(A94>$A$8,"",OFFSET(InputPriceData!$D$15,CalculationsAndCharts!$A94+$A$11,IF($C$5,8,0),1,1))) -> 102.949997 | F94: =IF(A94>$B$30,NA(),IF(A94>$A$8,"",OFFSET(InputPriceData!$E$15,CalculationsAndCharts!$A94+$A$11,IF($C$5,8,0),1,1))) -> 100.639999 | G94: =IF(A94>$B$30,NA(),IF(A94>$A$8,"",OFFSET(InputPriceData!$F$15,CalculationsAndCharts!$A94+$A$11,IF($C$5,8,0),1,1))) -> 102.110001 | J94: 2781.630004 | K94: 7737465.479 | L94: 276440.5495 | N94: -4.26618998 | Q94: 2869.907007 | R94: 392 | S94: -0.1126214921 | U94: -24.82755716 | X94: 392 | Y94: -0.6554130373 | Z94: 9.75007937 | AA94: -170.2499206 | AB94: -170.2499206 | AC94: -124.7589055 | AD94: 90 | AE94: -90 | AF94: 0 | AG94: 2.006357535 | AH94: 179.429635 | AI94: 60 | AJ94: 1 | AX94: 5707600
A95: 63 | B95: =IF(A95>$B$30,NA(),IF($A95>$A$8,"",OFFSET(InputPriceData!$B$15,$A95+$A$11,0,1,1))) -> 2022-04-08 | C95: =IF(A95>$B$30,NA(),IF($A95>$A$8,"",OFFSET(InputPriceData!$G$15,CalculationsAndCharts!$A95+$A$11,IF($C$5,8,0),1,1))) -> 4811400 | D95: =IF(A95>$B$30,NA(),IF(A95>$A$8,"",OFFSET(InputPriceData!$C$15,CalculationsAndCharts!$A95+$A$11,IF($C$5,8,0),1,1))) -> 101.980003 | E95: =IF(A95>$B$30,NA(),IF(A95>$A$8,"",OFFSET(InputPriceData!$D$15,CalculationsAndCharts!$A95+$A$11,IF($C$5,8,0),1,1))) -> 102.739998 | F95: =IF(A95>$B$30,NA(),IF(A95>$A$8,"",OFFSET(InputPriceData!$E$15,CalculationsAndCharts!$A95+$A$11,IF($C$5,8,0),1,1))) -> 100.07 | G95: =IF(A95>$B$30,NA(),IF(A95>$A$8,"",OFFSET(InputPriceData!$F$15,CalculationsAndCharts!$A95+$A$11,IF($C$5,8,0),1,1))) -> 100.400002 | J95: 2780.260001 | K95: 7729845.673 | L95: 276162.6444 | N95: 0.02976935244 | Q95: 2708.369998 | R95: 392 | S95: 0.0008089662224 | U95: -25.45924939 | X95: 392 | Y95: -0.6918414785 | Z95: 179.9330044 | AA95: 179.9330044 | AB95: -180.0669956 | AC95: -124.7589055 | AD95: 90 | AE95: -90 | AF95: 0 | AG95: 2.006357535 | AH95: 179.429635 | AI95: 60 | AJ95: 1 | AY95: 4811400
A96: 64 | B96: =IF(A96>$B$30,NA(),IF($A96>$A$8,"",OFFSET(InputPriceData!$B$15,$A96+$A$11,0,1,1))) -> 2022-04-07 | C96: =IF(A96>$B$30,NA(),IF($A96>$A$8,"",OFFSET(InputPriceData!$G$15,CalculationsAndCharts!$A96+$A$11,IF($C$5,8,0),1,1))) -> 6151500 | D96: =IF(A96>$B$30,NA(),IF(A96>$A$8,"",OFFSET(InputPriceData!$C$15,CalculationsAndCharts!$A96+$A$11,IF($C$5,8,0),1,1))) -> 98.25 | E96: =IF(A96>$B$30,NA(),IF(A96>$A$8,"",OFFSET(InputPriceData!$D$15,CalculationsAndCharts!$A96+$A$11,IF($C$5,8,0),1,1))) -> 101.269997 | F96: =IF(A96>$B$30,NA(),IF(A96>$A$8,"",OFFSET(InputPriceData!$E$15,CalculationsAndCharts!$A96+$A$11,IF($C$5,8,0),1,1))) -> 97.900002 | G96: =IF(A96>$B$30,NA(),IF(A96>$A$8,"",OFFSET(InputPriceData!$F$15,CalculationsAndCharts!$A96+$A$11,IF($C$5,8,0),1,1))) -> 100.980003 | J96: 2782.590002 | K96: 7742807.119 | L96: 276635.9375 | N96: 7.965821936 | Q96: 2999.131142 | R96: 392 | S96: 0.2057064284 | U96: -24.29583455 | X96: 392 | Y96: -0.6274066118 | Z96: 161.8473483 | AA96: 161.8473483 | AB96: -198.1526517 | AC96: -124.7589055 | AD96: 90 | AE96: -90 | AF96: 0 | AG96: 2.006357535 | AH96: 179.429635 | AI96: 60 | AJ96: 1 | AX96: 6151500
A97: 65 | B97: =IF(A97>$B$30,NA(),IF($A97>$A$8,"",OFFSET(InputPriceData!$B$15,$A97+$A$11,0,1,1))) -> 2022-04-06 | C97: =IF(A97>$B$30,NA(),IF($A97>$A$8,"",OFFSET(InputPriceData!$G$15,CalculationsAndCharts!$A97+$A$11,IF($C$5,8,0),1,1))) -> 5260800 | D97: =IF(A97>$B$30,NA(),IF(A97>$A$8,"",OFFSET(InputPriceData!$C$15,CalculationsAndCharts!$A97+$A$11,IF($C$5,8,0),1,1))) -> 98.32 | E97: =IF(A97>$B$30,NA(),IF(A97>$A$8,"",OFFSET(InputPriceData!$D$15,CalculationsAndCharts!$A97+$A$11,IF($C$5,8,0),1,1))) -> 99.279999 | F97: =IF(A97>$B$30,NA(),IF(A97>$A$8,"",OFFSET(InputPriceData!$E$15,CalculationsAndCharts!$A97+$A$11,IF($C$5,8,0),1,1))) -> 98.129997 | G97: =IF(A97>$B$30,NA(),IF(A97>$A$8,"",OFFSET(InputPriceData!$F$15,CalculationsAndCharts!$A97+$A$11,IF($C$5,8,0),1,1))) -> 98.459999 | J97: 2784.309996 | K97: 7752382.154 | L97: 276986.2659 | M97: =IF($A97<=$H$30,COS($I97),IF($A97=$H$30+1,"Sum COS",IF($A97=$H$30+2,SUM(OFFSET(M$33,0,0,$H$30,1)),NA()))) ->  | N97: =IF($A97>$L$30,NA(),SUMPRODUCT(OFFSET(G97,0,0,$A$19,1),OFFSET($M$33,0,0,$A$19,1))) -> 14.8493041 | Q97: =IF($A97>$L$30,NA(),$A$19*L97-K97) -> 3233.291129 | R97: =IF($A97>$L$30,NA(),$A$19*$O$33-$P$33^2) -> 392 | S97: =IF($A97>$L$30,NA(),IF(AND(Q97>0,R97>0),($A$19*N97-J97*$P$33)/SQRT(Q97*R97))) -> 0.3693164854 | T97: =IF($A97<=$H$30,-SIN($I97),IF($A97=$H$30+1,"Sum SIN",IF($A97=$H$30+2,SUM(OFFSET(T$33,0,0,$H$30,1)),NA()))) ->  | U97: -21.53139045 | X97: 392 | Y97: -0.5355064042 | Z97: 145.4075863 | AA97: 145.4075863 | AB97: =IF($A97>$AB$30,NA(),IF($A97=$AB$30,AA97,AA97+IF(AND(ABS(AB98)-ABS(AA97-360)<(AA97-AB98),AA97>90,AB98<-90),-360,0))) -> -214.5924137 | AC97: -124.7589055 | AD97: 90 | AE97: -90 | AF97: 0 | AG97: 2.006357535 | AH97: 179.429635 | AI97: 60 | AJ97: =IF(AC97-AC98<=6,IF(OR(AC97>=90,AC97<=-90),1,IF(AND(AC97>-90,AC97<90),-1,0)),0) -> 1 | AX97: =IF(G97>=D97,C97,NA()) -> 5260800 | AY97: =IF(G97<D97,C97,NA()) -> 
A98: 66 | B98: =IF(A98>$B$30,NA(),IF($A98>$A$8,"",OFFSET(InputPriceData!$B$15,$A98+$A$11,0,1,1))) -> 2022-04-05 | C98: =IF(A98>$B$30,NA(),IF($A98>$A$8,"",OFFSET(InputPriceData!$G$15,CalculationsAndCharts!$A98+$A$11,IF($C$5,8,0),1,1))) -> 4217100 | D98: =IF(A98>$B$30,NA(),IF(A98>$A$8,"",OFFSET(InputPriceData!$C$15,CalculationsAndCharts!$A98+$A$11,IF($C$5,8,0),1,1))) -> 99.480003 | E98: =IF(A98>$B$30,NA(),IF(A98>$A$8,"",OFFSET(InputPriceData!$D$15,CalculationsAndCharts!$A98+$A$11,IF($C$5,8,0),1,1))) -> 100.510002 | F98: =IF(A98>$B$30,NA(),IF(A98>$A$8,"",OFFSET(InputPriceData!$E$15,CalculationsAndCharts!$A98+$A$11,IF($C$5,8,0),1,1))) -> 98.610001 | G98: =IF(A98>$B$30,NA(),IF(A98>$A$8,"",OFFSET(InputPriceData!$F$15,CalculationsAndCharts!$A98+$A$11,IF($C$5,8,0),1,1))) -> 98.809998 | H98: =IF($A98>$H$30,NA(),(A98-1)*$D$19) ->  | I98: =IF($A98>$H$30+1,NA(),RADIANS(H98)) ->  | J98: =IF($A98>$L$30,NA(),SUM(OFFSET(G98,0,0,$A$19,1))) -> 2783.97 | K98: =IF($A98>$L$30,NA(),J98*J98) -> 7750488.961 | L98: =IF($A98>$L$30,NA(),SUMSQ(OFFSET(G98,0,0,$A$19,1))) -> 276919.4295 | N98: 18.93671457 | Q98: 3255.064452 | R98: 392 | S98: 0.4693964869 | U98: =IF($A98>$L$30,NA(),SUMPRODUCT(OFFSET(G98,0,0,$A$19,1),OFFSET($T$33,0,0,$A$19,1))) -> -17.76292875 | X98: =IF($A98>$L$30,NA(),$A$19*$V$33-$W$33^2) -> 392 | Y98: =IF($A98>$L$30,NA(),IF(AND(Q98>0,R98>0),($A$19*U98-J98*$W$33)/SQRT(Q98*X98))) -> -0.440301105 | Z98: =IF($A98>$L$30,NA(),IF($S98<>0,90-DEGREES(ATAN($Y98/$S98)))) -> 133.1681006 | AA98: =IF($A98>$L$30,NA(),Z98+IF($S98<0,-180,0)) -> 133.1681006 | AB98: -226.8318994 | AC98: =IF($A98>$AB$30,NA(),IF($A98=$AB$30,AB98,IF(AND(AB98<AC99,OR(AND(AB98>-135,AC99<135),AND(AB98<-90,AC99<-90))),AC99,AB98))) -> -124.7589055 | AD98: 90 | AE98: -90 | AF98: =IF($A98>$AF$30,NA(),AC98-AC99) -> 0 | AG98: =IF($A98>$AF$30,NA(),IF($A98=$AF$30,AF98,IF(AF98<=0,AG99,AF98))) -> 2.006357535 | AH98: =360/AG98 -> 179.429635 | AI98: =IF(AH98>60,60,AH98) -> 60 | AJ98: 1 | AY98: 4217100
A99: 67 | B99: =IF(A99>$B$30,NA(),IF($A99>$A$8,"",OFFSET(InputPriceData!$B$15,$A99+$A$11,0,1,1))) -> 2022-04-04 | C99: =IF(A99>$B$30,NA(),IF($A99>$A$8,"",OFFSET(InputPriceData!$G$15,CalculationsAndCharts!$A99+$A$11,IF($C$5,8,0),1,1))) -> 3812300 | D99: =IF(A99>$B$30,NA(),IF(A99>$A$8,"",OFFSET(InputPriceData!$C$15,CalculationsAndCharts!$A99+$A$11,IF($C$5,8,0),1,1))) -> 100.120003 | E99: =IF(A99>$B$30,NA(),IF(A99>$A$8,"",OFFSET(InputPriceData!$D$15,CalculationsAndCharts!$A99+$A$11,IF($C$5,8,0),1,1))) -> 100.400002 | F99: =IF(A99>$B$30,NA(),IF(A99>$A$8,"",OFFSET(InputPriceData!$E$15,CalculationsAndCharts!$A99+$A$11,IF($C$5,8,0),1,1))) -> 98.559998 | G99: =IF(A99>$B$30,NA(),IF(A99>$A$8,"",OFFSET(InputPriceData!$F$15,CalculationsAndCharts!$A99+$A$11,IF($C$5,8,0),1,1))) -> 99.300003 | J99: 2779.410002 | K99: 7725119.959 | L99: 276039.0763 | N99: 17.96888576 | Q99: 3974.176401 | R99: 392 | S99: 0.4030997933 | U99: -14.11845464 | X99: 392 | Y99: -0.3167222621 | Z99: 128.1573141 | AA99: 128.1573141 | AB99: -231.8426859 | AC99: -124.7589055 | AD99: 90 | AE99: -90 | AF99: 0 | AG99: 2.006357535 | AH99: 179.429635 | AI99: 60 | AJ99: 1 | AY99: 3812300
A100: 68 | B100: =IF(A100>$B$30,NA(),IF($A100>$A$8,"",OFFSET(InputPriceData!$B$15,$A100+$A$11,0,1,1))) -> 2022-04-01 | C100: =IF(A100>$B$30,NA(),IF($A100>$A$8,"",OFFSET(InputPriceData!$G$15,CalculationsAndCharts!$A100+$A$11,IF($C$5,8,0),1,1))) -> 3608600 | D100: =IF(A100>$B$30,NA(),IF(A100>$A$8,"",OFFSET(InputPriceData!$C$15,CalculationsAndCharts!$A100+$A$11,IF($C$5,8,0),1,1))) -> 99.760002 | E100: =IF(A100>$B$30,NA(),IF(A100>$A$8,"",OFFSET(InputPriceData!$D$15,CalculationsAndCharts!$A100+$A$11,IF($C$5,8,0),1,1))) -> 100.449997 | F100: =IF(A100>$B$30,NA(),IF(A100>$A$8,"",OFFSET(InputPriceData!$E$15,CalculationsAndCharts!$A100+$A$11,IF($C$5,8,0),1,1))) -> 98.980003 | G100: =IF(A100>$B$30,NA(),IF(A100>$A$8,"",OFFSET(InputPriceData!$F$15,CalculationsAndCharts!$A100+$A$11,IF($C$5,8,0),1,1))) -> 100.169998 | J100: 2772.349997 | K100: 7685924.506 | L100: 274686.8029 | N100: 13.77702406 | Q100: 5305.97554 | R100: 392 | S100: 0.267477831 | U100: -11.33702117 | X100: 392 | Y100: -0.2201057223 | Z100: 129.4507364 | AA100: 129.4507364 | AB100: -230.5492636 | AC100: -124.7589055 | AD100: 90 | AE100: -90 | AF100: 0 | AG100: 2.006357535 | AH100: 179.429635 | AI100: 60 | AJ100: 1 | AX100: 3608600
A101: 69 | B101: =IF(A101>$B$30,NA(),IF($A101>$A$8,"",OFFSET(InputPriceData!$B$15,$A101+$A$11,0,1,1))) -> 2022-03-31 | C101: =IF(A101>$B$30,NA(),IF($A101>$A$8,"",OFFSET(InputPriceData!$G$15,CalculationsAndCharts!$A101+$A$11,IF($C$5,8,0),1,1))) -> 5505600 | D101: =IF(A101>$B$30,NA(),IF(A101>$A$8,"",OFFSET(InputPriceData!$C$15,CalculationsAndCharts!$A101+$A$11,IF($C$5,8,0),1,1))) -> 99.279999 | E101: =IF(A101>$B$30,NA(),IF(A101>$A$8,"",OFFSET(InputPriceData!$D$15,CalculationsAndCharts!$A101+$A$11,IF($C$5,8,0),1,1))) -> 100.910004 | F101: =IF(A101>$B$30,NA(),IF(A101>$A$8,"",OFFSET(InputPriceData!$E$15,CalculationsAndCharts!$A101+$A$11,IF($C$5,8,0),1,1))) -> 99 | G101: =IF(A101>$B$30,NA(),IF(A101>$A$8,"",OFFSET(InputPriceData!$F$15,CalculationsAndCharts!$A101+$A$11,IF($C$5,8,0),1,1))) -> 99.07 | J101: 2765.72 | K101: 7649207.118 | L101: 273402.5062 | N101: 9.490560707 | Q101: 6063.055063 | R101: 392 | S101: 0.1723697744 | U101: -9.462415241 | X101: 392 | Y101: -0.1718585899 | Z101: 134.9149149 | AA101: 134.9149149 | AB101: -225.0850851 | AC101: -124.7589055 | AD101: 90 | AE101: -90 | AF101: 0 | AG101: 2.006357535 | AH101: 179.429635 | AI101: 60 | AJ101: 1 | AY101: 5505600
A102: 70 | B102: =IF(A102>$B$30,NA(),IF($A102>$A$8,"",OFFSET(InputPriceData!$B$15,$A102+$A$11,0,1,1))) -> 2022-03-30 | C102: =IF(A102>$B$30,NA(),IF($A102>$A$8,"",OFFSET(InputPriceData!$G$15,CalculationsAndCharts!$A102+$A$11,IF($C$5,8,0),1,1))) -> 5168100 | D102: =IF(A102>$B$30,NA(),IF(A102>$A$8,"",OFFSET(InputPriceData!$C$15,CalculationsAndCharts!$A102+$A$11,IF($C$5,8,0),1,1))) -> 101.629997 | E102: =IF(A102>$B$30,NA(),IF(A102>$A$8,"",OFFSET(InputPriceData!$D$15,CalculationsAndCharts!$A102+$A$11,IF($C$5,8,0),1,1))) -> 102.379997 | F102: =IF(A102>$B$30,NA(),IF(A102>$A$8,"",OFFSET(InputPriceData!$E$15,CalculationsAndCharts!$A102+$A$11,IF($C$5,8,0),1,1))) -> 99.760002 | G102: =IF(A102>$B$30,NA(),IF(A102>$A$8,"",OFFSET(InputPriceData!$F$15,CalculationsAndCharts!$A102+$A$11,IF($C$5,8,0),1,1))) -> 100.830002 | J102: 2760.020003 | K102: 7617710.417 | L102: 272305.5988 | N102: 5.801111837 | Q102: 6846.348189 | R102: 392 | S102: 0.09915091918 | U102: -8.381692959 | X102: 392 | Y102: -0.1432574624 | Z102: 145.3122346 | AA102: 145.3122346 | AB102: -214.6877654 | AC102: -124.7589055 | AD102: 90 | AE102: -90 | AF102: 0 | AG102: 2.006357535 | AH102: 179.429635 | AI102: 60 | AJ102: 1 | AY102: 5168100
A103: 71 | B103: =IF(A103>$B$30,NA(),IF($A103>$A$8,"",OFFSET(InputPriceData!$B$15,$A103+$A$11,0,1,1))) -> 2022-03-29 | C103: =IF(A103>$B$30,NA(),IF($A103>$A$8,"",OFFSET(InputPriceData!$G$15,CalculationsAndCharts!$A103+$A$11,IF($C$5,8,0),1,1))) -> 5038200 | D103: =IF(A103>$B$30,NA(),IF(A103>$A$8,"",OFFSET(InputPriceData!$C$15,CalculationsAndCharts!$A103+$A$11,IF($C$5,8,0),1,1))) -> 100.849998 | E103: =IF(A103>$B$30,NA(),IF(A103>$A$8,"",OFFSET(InputPriceData!$D$15,CalculationsAndCharts!$A103+$A$11,IF($C$5,8,0),1,1))) -> 101.400002 | F103: =IF(A103>$B$30,NA(),IF(A103>$A$8,"",OFFSET(InputPriceData!$E$15,CalculationsAndCharts!$A103+$A$11,IF($C$5,8,0),1,1))) -> 99.370003 | G103: =IF(A103>$B$30,NA(),IF(A103>$A$8,"",OFFSET(InputPriceData!$F$15,CalculationsAndCharts!$A103+$A$11,IF($C$5,8,0),1,1))) -> 101.080002 | J103: 2753.550002 | K103: 7582037.614 | L103: 271042.7192 | N103: 1.212983431 | Q103: 7158.525226 | R103: 392 | S103: 0.02027487038 | U103: -8.320388258 | X103: 392 | Y103: -0.1390742769 | Z103: 171.7055962 | AA103: 171.7055962 | AB103: -188.2944038 | AC103: -124.7589055 | AD103: 90 | AE103: -90 | AF103: 0 | AG103: 2.006357535 | AH103: 179.429635 | AI103: 60 | AJ103: 1 | AX103: 5038200
A104: 72 | B104: =IF(A104>$B$30,NA(),IF($A104>$A$8,"",OFFSET(InputPriceData!$B$15,$A104+$A$11,0,1,1))) -> 2022-03-28 | C104: =IF(A104>$B$30,NA(),IF($A104>$A$8,"",OFFSET(InputPriceData!$G$15,CalculationsAndCharts!$A104+$A$11,IF($C$5,8,0),1,1))) -> 4053300 | D104: =IF(A104>$B$30,NA(),IF(A104>$A$8,"",OFFSET(InputPriceData!$C$15,CalculationsAndCharts!$A104+$A$11,IF($C$5,8,0),1,1))) -> 101.669998 | E104: =IF(A104>$B$30,NA(),IF(A104>$A$8,"",OFFSET(InputPriceData!$D$15,CalculationsAndCharts!$A104+$A$11,IF($C$5,8,0),1,1))) -> 102.160004 | F104: =IF(A104>$B$30,NA(),IF(A104>$A$8,"",OFFSET(InputPriceData!$E$15,CalculationsAndCharts!$A104+$A$11,IF($C$5,8,0),1,1))) -> 100.919998 | G104: =IF(A104>$B$30,NA(),IF(A104>$A$8,"",OFFSET(InputPriceData!$F$15,CalculationsAndCharts!$A104+$A$11,IF($C$5,8,0),1,1))) -> 101.589996 | J104: 2747.22 | K104: 7547217.728 | L104: 269803.1149 | N104: -3.137263664 | Q104: 7269.489819 | R104: 392 | S104: -0.05203721568 | U104: -9.250422504 | X104: 392 | Y104: -0.1534350576 | Z104: 18.73427187 | AA104: -161.2657281 | AB104: -161.2657281 | AC104: -124.7589055 | AD104: 90 | AE104: -90 | AF104: 0 | AG104: 2.006357535 | AH104: 179.429635 | AI104: 60 | AJ104: 1 | AY104: 4053300
A105: 73 | B105: =IF(A105>$B$30,NA(),IF($A105>$A$8,"",OFFSET(InputPriceData!$B$15,$A105+$A$11,0,1,1))) -> 2022-03-25 | C105: =IF(A105>$B$30,NA(),IF($A105>$A$8,"",OFFSET(InputPriceData!$G$15,CalculationsAndCharts!$A105+$A$11,IF($C$5,8,0),1,1))) -> 3521400 | D105: =IF(A105>$B$30,NA(),IF(A105>$A$8,"",OFFSET(InputPriceData!$C$15,CalculationsAndCharts!$A105+$A$11,IF($C$5,8,0),1,1))) -> 102 | E105: =IF(A105>$B$30,NA(),IF(A105>$A$8,"",OFFSET(InputPriceData!$D$15,CalculationsAndCharts!$A105+$A$11,IF($C$5,8,0),1,1))) -> 102.970001 | F105: =IF(A105>$B$30,NA(),IF(A105>$A$8,"",OFFSET(InputPriceData!$E$15,CalculationsAndCharts!$A105+$A$11,IF($C$5,8,0),1,1))) -> 101.919998 | G105: =IF(A105>$B$30,NA(),IF(A105>$A$8,"",OFFSET(InputPriceData!$F$15,CalculationsAndCharts!$A105+$A$11,IF($C$5,8,0),1,1))) -> 102.43 | J105: 2739.670005 | K105: 7505791.736 | L105: 268326.1094 | N105: -8.360894121 | Q105: 7339.327945 | R105: 392 | S105: -0.1380192219 | U105: -11.39663388 | X105: 392 | Y105: -0.1881323358 | Z105: 36.26482951 | AA105: -143.7351705 | AB105: -143.7351705 | AC105: -124.7589055 | AD105: 90 | AE105: -90 | AF105: 0 | AG105: 2.006357535 | AH105: 179.429635 | AI105: 60 | AJ105: 1 | AX105: 3521400
A106: 74 | B106: =IF(A106>$B$30,NA(),IF($A106>$A$8,"",OFFSET(InputPriceData!$B$15,$A106+$A$11,0,1,1))) -> 2022-03-24 | C106: =IF(A106>$B$30,NA(),IF($A106>$A$8,"",OFFSET(InputPriceData!$G$15,CalculationsAndCharts!$A106+$A$11,IF($C$5,8,0),1,1))) -> 3894600 | D106: =IF(A106>$B$30,NA(),IF(A106>$A$8,"",OFFSET(InputPriceData!$C$15,CalculationsAndCharts!$A106+$A$11,IF($C$5,8,0),1,1))) -> 101.660004 | E106: =IF(A106>$B$30,NA(),IF(A106>$A$8,"",OFFSET(InputPriceData!$D$15,CalculationsAndCharts!$A106+$A$11,IF($C$5,8,0),1,1))) -> 102.199997 | F106: =IF(A106>$B$30,NA(),IF(A106>$A$8,"",OFFSET(InputPriceData!$E$15,CalculationsAndCharts!$A106+$A$11,IF($C$5,8,0),1,1))) -> 101.129997 | G106: =IF(A106>$B$30,NA(),IF(A106>$A$8,"",OFFSET(InputPriceData!$F$15,CalculationsAndCharts!$A106+$A$11,IF($C$5,8,0),1,1))) -> 101.709999 | J106: 2730.810005 | K106: 7457323.283 | L106: 266589.5494 | N106: -14.25314074 | Q106: 7184.100834 | R106: 392 | S106: -0.2378150644 | U106: -14.94290592 | X106: 392 | Y106: -0.2493238647 | Z106: 43.64662214 | AA106: -136.3533779 | AB106: -136.3533779 | AC106: -124.7589055 | AD106: 90 | AE106: -90 | AF106: 0 | AG106: 2.006357535 | AH106: 179.429635 | AI106: 60 | AJ106: 1 | AX106: 3894600
A107: 75 | B107: =IF(A107>$B$30,NA(),IF($A107>$A$8,"",OFFSET(InputPriceData!$B$15,$A107+$A$11,0,1,1))) -> 2022-03-23 | C107: =IF(A107>$B$30,NA(),IF($A107>$A$8,"",OFFSET(InputPriceData!$G$15,CalculationsAndCharts!$A107+$A$11,IF($C$5,8,0),1,1))) -> 4471800 | D107: =IF(A107>$B$30,NA(),IF(A107>$A$8,"",OFFSET(InputPriceData!$C$15,CalculationsAndCharts!$A107+$A$11,IF($C$5,8,0),1,1))) -> 101.160004 | E107: =IF(A107>$B$30,NA(),IF(A107>$A$8,"",OFFSET(InputPriceData!$D$15,CalculationsAndCharts!$A107+$A$11,IF($C$5,8,0),1,1))) -> 102.480003 | F107: =IF(A107>$B$30,NA(),IF(A107>$A$8,"",OFFSET(InputPriceData!$E$15,CalculationsAndCharts!$A107+$A$11,IF($C$5,8,0),1,1))) -> 101.110001 | G107: =IF(A107>$B$30,NA(),IF(A107>$A$8,"",OFFSET(InputPriceData!$F$15,CalculationsAndCharts!$A107+$A$11,IF($C$5,8,0),1,1))) -> 101.230003 | J107: 2724.370003 | K107: 7422191.913 | L107: 265320.9979 | N107: -16.84921306 | Q107: 6796.027086 | R107: 392 | S107: -0.2890460704 | U107: -19.17291352 | X107: 392 | Y107: -0.328908851 | Z107: 41.30910143 | AA107: -138.6908986 | AB107: -138.6908986 | AC107: -124.7589055 | AD107: 90 | AE107: -90 | AF107: 0 | AG107: 2.006357535 | AH107: 179.429635 | AI107: 60 | AJ107: 1 | AX107: 4471800
A108: 76 | B108: =IF(A108>$B$30,NA(),IF($A108>$A$8,"",OFFSET(InputPriceData!$B$15,$A108+$A$11,0,1,1))) -> 2022-03-22 | C108: =IF(A108>$B$30,NA(),IF($A108>$A$8,"",OFFSET(InputPriceData!$G$15,CalculationsAndCharts!$A108+$A$11,IF($C$5,8,0),1,1))) -> 6048300 | D108: =IF(A108>$B$30,NA(),IF(A108>$A$8,"",OFFSET(InputPriceData!$C$15,CalculationsAndCharts!$A108+$A$11,IF($C$5,8,0),1,1))) -> 99.800003 | E108: =IF(A108>$B$30,NA(),IF(A108>$A$8,"",OFFSET(InputPriceData!$D$15,CalculationsAndCharts!$A108+$A$11,IF($C$5,8,0),1,1))) -> 101.629997 | F108: =IF(A108>$B$30,NA(),IF(A108>$A$8,"",OFFSET(InputPriceData!$E$15,CalculationsAndCharts!$A108+$A$11,IF($C$5,8,0),1,1))) -> 98.910004 | G108: =IF(A108>$B$30,NA(),IF(A108>$A$8,"",OFFSET(InputPriceData!$F$15,CalculationsAndCharts!$A108+$A$11,IF($C$5,8,0),1,1))) -> 101.379997 | J108: 2718.199998 | K108: 7388611.229 | L108: 264109.8876 | N108: -18.17570359 | Q108: 6465.623151 | R108: 392 | S108: -0.3196693774 | U108: -23.81446645 | X108: 392 | Y108: -0.4188424193 | Z108: 37.35163798 | AA108: -142.648362 | AB108: -142.648362 | AC108: -124.7589055 | AD108: 90 | AE108: -90 | AF108: 0 | AG108: 2.006357535 | AH108: 179.429635 | AI108: 60 | AJ108: 1 | AX108: 6048300
A109: 77 | B109: =IF(A109>$B$30,NA(),IF($A109>$A$8,"",OFFSET(InputPriceData!$B$15,$A109+$A$11,0,1,1))) -> 2022-03-21 | C109: =IF(A109>$B$30,NA(),IF($A109>$A$8,"",OFFSET(InputPriceData!$G$15,CalculationsAndCharts!$A109+$A$11,IF($C$5,8,0),1,1))) -> 6673700 | D109: =IF(A109>$B$30,NA(),IF(A109>$A$8,"",OFFSET(InputPriceData!$C$15,CalculationsAndCharts!$A109+$A$11,IF($C$5,8,0),1,1))) -> 97.839996 | E109: =IF(A109>$B$30,NA(),IF(A109>$A$8,"",OFFSET(InputPriceData!$D$15,CalculationsAndCharts!$A109+$A$11,IF($C$5,8,0),1,1))) -> 100.82 | F109: =IF(A109>$B$30,NA(),IF(A109>$A$8,"",OFFSET(InputPriceData!$E$15,CalculationsAndCharts!$A109+$A$11,IF($C$5,8,0),1,1))) -> 97.800003 | G109: =IF(A109>$B$30,NA(),IF(A109>$A$8,"",OFFSET(InputPriceData!$F$15,CalculationsAndCharts!$A109+$A$11,IF($C$5,8,0),1,1))) -> 99.940002 | J109: 2712.820001 | K109: 7359392.358 | L109: 263047.9838 | N109: -17.66589268 | Q109: 5951.188285 | R109: 392 | S109: -0.3238536082 | U109: -28.45902455 | X109: 392 | Y109: -0.5217148069 | Z109: 31.82987441 | AA109: -148.1701256 | AB109: -148.1701256 | AC109: -124.7589055 | AD109: 90 | AE109: -90 | AF109: 0 | AG109: 2.006357535 | AH109: 179.429635 | AI109: 60 | AJ109: 1 | AX109: 6673700
A110: 78 | B110: =IF(A110>$B$30,NA(),IF($A110>$A$8,"",OFFSET(InputPriceData!$B$15,$A110+$A$11,0,1,1))) -> 2022-03-18 | C110: =IF(A110>$B$30,NA(),IF($A110>$A$8,"",OFFSET(InputPriceData!$G$15,CalculationsAndCharts!$A110+$A$11,IF($C$5,8,0),1,1))) -> 10438500 | D110: =IF(A110>$B$30,NA(),IF(A110>$A$8,"",OFFSET(InputPriceData!$C$15,CalculationsAndCharts!$A110+$A$11,IF($C$5,8,0),1,1))) -> 98 | E110: =IF(A110>$B$30,NA(),IF(A110>$A$8,"",OFFSET(InputPriceData!$D$15,CalculationsAndCharts!$A110+$A$11,IF($C$5,8,0),1,1))) -> 98.279999 | F110: =IF(A110>$B$30,NA(),IF(A110>$A$8,"",OFFSET(InputPriceData!$E$15,CalculationsAndCharts!$A110+$A$11,IF($C$5,8,0),1,1))) -> 96.330002 | G110: =IF(A110>$B$30,NA(),IF(A110>$A$8,"",OFFSET(InputPriceData!$F$15,CalculationsAndCharts!$A110+$A$11,IF($C$5,8,0),1,1))) -> 97.519997 | J110: 2707.949999 | K110: 7332993.197 | L110: 262098.2847 | N110: -15.63814402 | Q110: 5758.774233 | R110: 392 | S110: -0.2914306199 | U110: -32.76020572 | X110: 392 | Y110: -0.6105153555 | Z110: 25.51756153 | AA110: -154.4824385 | AB110: -154.4824385 | AC110: -124.7589055 | AD110: 90 | AE110: -90 | AF110: 0 | AG110: 2.006357535 | AH110: 179.429635 | AI110: 60 | AJ110: 1 | AY110: 10438500
A111: 79 | B111: =IF(A111>$B$30,NA(),IF($A111>$A$8,"",OFFSET(InputPriceData!$B$15,$A111+$A$11,0,1,1))) -> 2022-03-17 | C111: =IF(A111>$B$30,NA(),IF($A111>$A$8,"",OFFSET(InputPriceData!$G$15,CalculationsAndCharts!$A111+$A$11,IF($C$5,8,0),1,1))) -> 6537200 | D111: =IF(A111>$B$30,NA(),IF(A111>$A$8,"",OFFSET(InputPriceData!$C$15,CalculationsAndCharts!$A111+$A$11,IF($C$5,8,0),1,1))) -> 96.599998 | E111: =IF(A111>$B$30,NA(),IF(A111>$A$8,"",OFFSET(InputPriceData!$D$15,CalculationsAndCharts!$A111+$A$11,IF($C$5,8,0),1,1))) -> 97.790001 | F111: =IF(A111>$B$30,NA(),IF(A111>$A$8,"",OFFSET(InputPriceData!$E$15,CalculationsAndCharts!$A111+$A$11,IF($C$5,8,0),1,1))) -> 95.830002 | G111: =IF(A111>$B$30,NA(),IF(A111>$A$8,"",OFFSET(InputPriceData!$F$15,CalculationsAndCharts!$A111+$A$11,IF($C$5,8,0),1,1))) -> 97.75 | J111: 2704.460001 | K111: 7314103.897 | L111: 261429.7756 | N111: -11.358728 | Q111: 5929.819426 | R111: 392 | S111: -0.2086046396 | U111: -36.19525099 | X111: 392 | Y111: -0.6647308827 | Z111: 17.42280583 | AA111: -162.5771942 | AB111: -162.5771942 | AC111: -124.7589055 | AD111: 90 | AE111: -90 | AF111: 0 | AG111: 2.006357535 | AH111: 179.429635 | AI111: 60 | AJ111: 1 | AX111: 6537200
A112: 80 | B112: =IF(A112>$B$30,NA(),IF($A112>$A$8,"",OFFSET(InputPriceData!$B$15,$A112+$A$11,0,1,1))) -> 2022-03-16 | C112: =IF(A112>$B$30,NA(),IF($A112>$A$8,"",OFFSET(InputPriceData!$G$15,CalculationsAndCharts!$A112+$A$11,IF($C$5,8,0),1,1))) -> 8813000 | D112: =IF(A112>$B$30,NA(),IF(A112>$A$8,"",OFFSET(InputPriceData!$C$15,CalculationsAndCharts!$A112+$A$11,IF($C$5,8,0),1,1))) -> 97.040001 | E112: =IF(A112>$B$30,NA(),IF(A112>$A$8,"",OFFSET(InputPriceData!$D$15,CalculationsAndCharts!$A112+$A$11,IF($C$5,8,0),1,1))) -> 97.639999 | F112: =IF(A112>$B$30,NA(),IF(A112>$A$8,"",OFFSET(InputPriceData!$E$15,CalculationsAndCharts!$A112+$A$11,IF($C$5,8,0),1,1))) -> 94.07 | G112: =IF(A112>$B$30,NA(),IF(A112>$A$8,"",OFFSET(InputPriceData!$F$15,CalculationsAndCharts!$A112+$A$11,IF($C$5,8,0),1,1))) -> 95.800003 | J112: 2699.720003 | K112: 7288488.095 | L112: 260525.5736 | N112: -7.640896269 | Q112: 6227.965054 | R112: 392 | S112: -0.1369260936 | U112: -38.87006402 | X112: 392 | Y112: -0.6965578168 | Z112: 11.12113743 | AA112: -168.8788626 | AB112: -168.8788626 | AC112: -124.7589055 | AD112: 90 | AE112: -90 | AF112: 0 | AG112: 2.006357535 | AH112: 179.429635 | AI112: 60 | AJ112: 1 | AY112: 8813000
A113: 81 | B113: =IF(A113>$B$30,NA(),IF($A113>$A$8,"",OFFSET(InputPriceData!$B$15,$A113+$A$11,0,1,1))) -> 2022-03-15 | C113: =IF(A113>$B$30,NA(),IF($A113>$A$8,"",OFFSET(InputPriceData!$G$15,CalculationsAndCharts!$A113+$A$11,IF($C$5,8,0),1,1))) -> 5417600 | D113: =IF(A113>$B$30,NA(),IF(A113>$A$8,"",OFFSET(InputPriceData!$C$15,CalculationsAndCharts!$A113+$A$11,IF($C$5,8,0),1,1))) -> 97.879997 | E113: =IF(A113>$B$30,NA(),IF(A113>$A$8,"",OFFSET(InputPriceData!$D$15,CalculationsAndCharts!$A113+$A$11,IF($C$5,8,0),1,1))) -> 98.099998 | F113: =IF(A113>$B$30,NA(),IF(A113>$A$8,"",OFFSET(InputPriceData!$E$15,CalculationsAndCharts!$A113+$A$11,IF($C$5,8,0),1,1))) -> 96.57 | G113: =IF(A113>$B$30,NA(),IF(A113>$A$8,"",OFFSET(InputPriceData!$F$15,CalculationsAndCharts!$A113+$A$11,IF($C$5,8,0),1,1))) -> 97.620003 | J113: 2696.729998 | K113: 7272352.682 | L113: 259961.6287 | N113: -1.71495943 | Q113: 6572.92185 | R113: 392 | S113: -0.0299150418 | U113: -40.26110844 | X113: 392 | Y113: -0.7022980959 | Z113: 2.439092656 | AA113: -177.5609073 | AB113: -177.5609073 | AC113: -124.7589055 | AD113: 90 | AE113: -90 | AF113: 0 | AG113: 2.006357535 | AH113: 179.429635 | AI113: 60 | AJ113: 1 | AY113: 5417600
A114: 82 | B114: =IF(A114>$B$30,NA(),IF($A114>$A$8,"",OFFSET(InputPriceData!$B$15,$A114+$A$11,0,1,1))) -> 2022-03-14 | C114: =IF(A114>$B$30,NA(),IF($A114>$A$8,"",OFFSET(InputPriceData!$G$15,CalculationsAndCharts!$A114+$A$11,IF($C$5,8,0),1,1))) -> 5581700 | D114: =IF(A114>$B$30,NA(),IF(A114>$A$8,"",OFFSET(InputPriceData!$C$15,CalculationsAndCharts!$A114+$A$11,IF($C$5,8,0),1,1))) -> 97.169998 | E114: =IF(A114>$B$30,NA(),IF(A114>$A$8,"",OFFSET(InputPriceData!$D$15,CalculationsAndCharts!$A114+$A$11,IF($C$5,8,0),1,1))) -> 97.660004 | F114: =IF(A114>$B$30,NA(),IF(A114>$A$8,"",OFFSET(InputPriceData!$E$15,CalculationsAndCharts!$A114+$A$11,IF($C$5,8,0),1,1))) -> 95.410004 | G114: =IF(A114>$B$30,NA(),IF(A114>$A$8,"",OFFSET(InputPriceData!$F$15,CalculationsAndCharts!$A114+$A$11,IF($C$5,8,0),1,1))) -> 97.040001 | J114: 2691.649996 | K114: 7244979.701 | L114: 258995.6155 | N114: 2.334341893 | Q114: 6897.533378 | R114: 392 | S114: 0.03974958113 | U114: -40.76369956 | X114: 392 | Y114: -0.69413139 | Z114: 176.7225245 | AA114: 176.7225245 | AB114: -183.2774755 | AC114: -124.7589055 | AD114: 90 | AE114: -90 | AF114: 0 | AG114: 2.006357535 | AH114: 179.429635 | AI114: 60 | AJ114: 1 | AY114: 5581700
A115: 83 | B115: =IF(A115>$B$30,NA(),IF($A115>$A$8,"",OFFSET(InputPriceData!$B$15,$A115+$A$11,0,1,1))) -> 2022-03-11 | C115: =IF(A115>$B$30,NA(),IF($A115>$A$8,"",OFFSET(InputPriceData!$G$15,CalculationsAndCharts!$A115+$A$11,IF($C$5,8,0),1,1))) -> 4354300 | D115: =IF(A115>$B$30,NA(),IF(A115>$A$8,"",OFFSET(InputPriceData!$C$15,CalculationsAndCharts!$A115+$A$11,IF($C$5,8,0),1,1))) -> 98.779999 | E115: =IF(A115>$B$30,NA(),IF(A115>$A$8,"",OFFSET(InputPriceData!$D$15,CalculationsAndCharts!$A115+$A$11,IF($C$5,8,0),1,1))) -> 99.75 | F115: =IF(A115>$B$30,NA(),IF(A115>$A$8,"",OFFSET(InputPriceData!$E$15,CalculationsAndCharts!$A115+$A$11,IF($C$5,8,0),1,1))) -> 96.800003 | G115: =IF(A115>$B$30,NA(),IF(A115>$A$8,"",OFFSET(InputPriceData!$F$15,CalculationsAndCharts!$A115+$A$11,IF($C$5,8,0),1,1))) -> 96.919998 | J115: 2685.339998 | K115: 7211050.905 | L115: 257810.7872 | N115: 5.194798389 | Q115: 7651.135695 | R115: 392 | S115: 0.0839886775 | U115: -40.62633521 | X115: 392 | Y115: -0.6568401525 | Z115: 172.7132586 | AA115: 172.7132586 | AB115: -187.2867414 | AC115: -124.7589055 | AD115: 90 | AE115: -90 | AF115: 0 | AG115: 2.006357535 | AH115: 179.429635 | AI115: 60 | AJ115: 1 | AY115: 4354300
A116: 84 | B116: =IF(A116>$B$30,NA(),IF($A116>$A$8,"",OFFSET(InputPriceData!$B$15,$A116+$A$11,0,1,1))) -> 2022-03-10 | C116: =IF(A116>$B$30,NA(),IF($A116>$A$8,"",OFFSET(InputPriceData!$G$15,CalculationsAndCharts!$A116+$A$11,IF($C$5,8,0),1,1))) -> 5118400 | D116: =IF(A116>$B$30,NA(),IF(A116>$A$8,"",OFFSET(InputPriceData!$C$15,CalculationsAndCharts!$A116+$A$11,IF($C$5,8,0),1,1))) -> 98.169998 | E116: =IF(A116>$B$30,NA(),IF(A116>$A$8,"",OFFSET(InputPriceData!$D$15,CalculationsAndCharts!$A116+$A$11,IF($C$5,8,0),1,1))) -> 99.800003 | F116: =IF(A116>$B$30,NA(),IF(A116>$A$8,"",OFFSET(InputPriceData!$E$15,CalculationsAndCharts!$A116+$A$11,IF($C$5,8,0),1,1))) -> 97.660004 | G116: =IF(A116>$B$30,NA(),IF(A116>$A$8,"",OFFSET(InputPriceData!$F$15,CalculationsAndCharts!$A116+$A$11,IF($C$5,8,0),1,1))) -> 98.510002 | J116: 2678.610002 | K116: 7174951.543 | L116: 256551.5376 | N116: 7.543503053 | Q116: 8491.510295 | R116: 392 | S116: 0.115769884 | U116: -39.94936178 | X116: 392 | Y116: -0.6131014921 | Z116: 169.306934 | AA116: 169.306934 | AB116: -190.693066 | AC116: -124.7589055 | AD116: 90 | AE116: -90 | AF116: 0 | AG116: 2.006357535 | AH116: 179.429635 | AI116: 60 | AJ116: 1 | AX116: 5118400
A117: 85 | B117: =IF(A117>$B$30,NA(),IF($A117>$A$8,"",OFFSET(InputPriceData!$B$15,$A117+$A$11,0,1,1))) -> 2022-03-09 | C117: =IF(A117>$B$30,NA(),IF($A117>$A$8,"",OFFSET(InputPriceData!$G$15,CalculationsAndCharts!$A117+$A$11,IF($C$5,8,0),1,1))) -> 7100500 | D117: =IF(A117>$B$30,NA(),IF(A117>$A$8,"",OFFSET(InputPriceData!$C$15,CalculationsAndCharts!$A117+$A$11,IF($C$5,8,0),1,1))) -> 95.25 | E117: =IF(A117>$B$30,NA(),IF(A117>$A$8,"",OFFSET(InputPriceData!$D$15,CalculationsAndCharts!$A117+$A$11,IF($C$5,8,0),1,1))) -> 99.080002 | F117: =IF(A117>$B$30,NA(),IF(A117>$A$8,"",OFFSET(InputPriceData!$E$15,CalculationsAndCharts!$A117+$A$11,IF($C$5,8,0),1,1))) -> 95.25 | G117: =IF(A117>$B$30,NA(),IF(A117>$A$8,"",OFFSET(InputPriceData!$F$15,CalculationsAndCharts!$A117+$A$11,IF($C$5,8,0),1,1))) -> 98.519997 | J117: 2670.430002 | K117: 7131196.396 | L117: 255006.8264 | N117: 8.269030654 | Q117: 8994.743012 | R117: 392 | S117: 0.1233034476 | U117: -39.08938176 | X117: 392 | Y117: -0.5828803568 | Z117: 168.0556503 | AA117: 168.0556503 | AB117: -191.9443497 | AC117: -124.7589055 | AD117: 90 | AE117: -90 | AF117: 0 | AG117: 2.006357535 | AH117: 179.429635 | AI117: 60 | AJ117: 1 | AX117: 7100500
A118: 86 | B118: =IF(A118>$B$30,NA(),IF($A118>$A$8,"",OFFSET(InputPriceData!$B$15,$A118+$A$11,0,1,1))) -> 2022-03-08 | C118: =IF(A118>$B$30,NA(),IF($A118>$A$8,"",OFFSET(InputPriceData!$G$15,CalculationsAndCharts!$A118+$A$11,IF($C$5,8,0),1,1))) -> 9410600 | D118: =IF(A118>$B$30,NA(),IF(A118>$A$8,"",OFFSET(InputPriceData!$C$15,CalculationsAndCharts!$A118+$A$11,IF($C$5,8,0),1,1))) -> 98.010002 | E118: =IF(A118>$B$30,NA(),IF(A118>$A$8,"",OFFSET(InputPriceData!$D$15,CalculationsAndCharts!$A118+$A$11,IF($C$5,8,0),1,1))) -> 98.400002 | F118: =IF(A118>$B$30,NA(),IF(A118>$A$8,"",OFFSET(InputPriceData!$E$15,CalculationsAndCharts!$A118+$A$11,IF($C$5,8,0),1,1))) -> 94.690002 | G118: =IF(A118>$B$30,NA(),IF(A118>$A$8,"",OFFSET(InputPriceData!$F$15,CalculationsAndCharts!$A118+$A$11,IF($C$5,8,0),1,1))) -> 94.849998 | J118: 2661.190004 | K118: 7081932.237 | L118: 253271.5548 | N118: 7.751582571 | Q118: 9671.296756 | R118: 392 | S118: 0.1114712884 | U118: -38.32538991 | X118: 392 | Y118: -0.5511365649 | Z118: 168.5657728 | AA118: 168.5657728 | AB118: -191.4342272 | AC118: -124.7589055 | AD118: 90 | AE118: -90 | AF118: 0 | AG118: 2.006357535 | AH118: 179.429635 | AI118: 60 | AJ118: 1 | AY118: 9410600
A119: 87 | B119: =IF(A119>$B$30,NA(),IF($A119>$A$8,"",OFFSET(InputPriceData!$B$15,$A119+$A$11,0,1,1))) -> 2022-03-07 | C119: =IF(A119>$B$30,NA(),IF($A119>$A$8,"",OFFSET(InputPriceData!$G$15,CalculationsAndCharts!$A119+$A$11,IF($C$5,8,0),1,1))) -> 12759000 | D119: =IF(A119>$B$30,NA(),IF(A119>$A$8,"",OFFSET(InputPriceData!$C$15,CalculationsAndCharts!$A119+$A$11,IF($C$5,8,0),1,1))) -> 101.290001 | E119: =IF(A119>$B$30,NA(),IF(A119>$A$8,"",OFFSET(InputPriceData!$D$15,CalculationsAndCharts!$A119+$A$11,IF($C$5,8,0),1,1))) -> 103.099998 | F119: =IF(A119>$B$30,NA(),IF(A119>$A$8,"",OFFSET(InputPriceData!$E$15,CalculationsAndCharts!$A119+$A$11,IF($C$5,8,0),1,1))) -> 98.120003 | G119: =IF(A119>$B$30,NA(),IF(A119>$A$8,"",OFFSET(InputPriceData!$F$15,CalculationsAndCharts!$A119+$A$11,IF($C$5,8,0),1,1))) -> 98.190002 | J119: 2655.320009 | K119: 7050724.35 | L119: 252192.4736 | N119: 10.3626138 | Q119: 10664.91072 | R119: 392 | S119: 0.1419076142 | U119: -36.94579975 | X119: 392 | Y119: -0.505942844 | Z119: 164.3321738 | AA119: 164.3321738 | AB119: -195.6678262 | AC119: -124.7589055 | AD119: 90 | AE119: -90 | AF119: 0 | AG119: 2.006357535 | AH119: 179.429635 | AI119: 60 | AJ119: 1 | AY119: 12759000
A120: 88 | B120: =IF(A120>$B$30,NA(),IF($A120>$A$8,"",OFFSET(InputPriceData!$B$15,$A120+$A$11,0,1,1))) -> 2022-03-04 | C120: =IF(A120>$B$30,NA(),IF($A120>$A$8,"",OFFSET(InputPriceData!$G$15,CalculationsAndCharts!$A120+$A$11,IF($C$5,8,0),1,1))) -> 8627200 | D120: =IF(A120>$B$30,NA(),IF(A120>$A$8,"",OFFSET(InputPriceData!$C$15,CalculationsAndCharts!$A120+$A$11,IF($C$5,8,0),1,1))) -> 99.949997 | E120: =IF(A120>$B$30,NA(),IF(A120>$A$8,"",OFFSET(InputPriceData!$D$15,CalculationsAndCharts!$A120+$A$11,IF($C$5,8,0),1,1))) -> 99.949997 | F120: =IF(A120>$B$30,NA(),IF(A120>$A$8,"",OFFSET(InputPriceData!$E$15,CalculationsAndCharts!$A120+$A$11,IF($C$5,8,0),1,1))) -> 98.230003 | G120: =IF(A120>$B$30,NA(),IF(A120>$A$8,"",OFFSET(InputPriceData!$F$15,CalculationsAndCharts!$A120+$A$11,IF($C$5,8,0),1,1))) -> 99.589996 | J120: 2647.440005 | K120: 7008938.58 | L120: 250707.0929 | N120: 10.64157945 | Q120: 10860.01973 | R120: 392 | S120: 0.1444128313 | U120: -35.46705876 | X120: 392 | Y120: -0.4813099781 | Z120: 163.2985893 | AA120: 163.2985893 | AB120: -196.7014107 | AC120: -124.7589055 | AD120: 90 | AE120: -90 | AF120: 0 | AG120: 2.006357535 | AH120: 179.429635 | AI120: 60 | AJ120: 1 | AY120: 8627200
A121: 89 | B121: =IF(A121>$B$30,NA(),IF($A121>$A$8,"",OFFSET(InputPriceData!$B$15,$A121+$A$11,0,1,1))) -> 2022-03-03 | C121: =IF(A121>$B$30,NA(),IF($A121>$A$8,"",OFFSET(InputPriceData!$G$15,CalculationsAndCharts!$A121+$A$11,IF($C$5,8,0),1,1))) -> 8613500 | D121: =IF(A121>$B$30,NA(),IF(A121>$A$8,"",OFFSET(InputPriceData!$C$15,CalculationsAndCharts!$A121+$A$11,IF($C$5,8,0),1,1))) -> 101.059998 | E121: =IF(A121>$B$30,NA(),IF(A121>$A$8,"",OFFSET(InputPriceData!$D$15,CalculationsAndCharts!$A121+$A$11,IF($C$5,8,0),1,1))) -> 101.349998 | F121: =IF(A121>$B$30,NA(),IF(A121>$A$8,"",OFFSET(InputPriceData!$E$15,CalculationsAndCharts!$A121+$A$11,IF($C$5,8,0),1,1))) -> 98.629997 | G121: =IF(A121>$B$30,NA(),IF(A121>$A$8,"",OFFSET(InputPriceData!$F$15,CalculationsAndCharts!$A121+$A$11,IF($C$5,8,0),1,1))) -> 99.830002 | J121: 2635.970012 | K121: 6948337.904 | L121: 248554.0605 | N121: 7.084519551 | Q121: 11175.78915 | R121: 392 | S121: 0.09477336507 | U121: -34.7621649 | X121: 392 | Y121: -0.4650318658 | Z121: 168.4808866 | AA121: 168.4808866 | AB121: -191.5191134 | AC121: -124.7589055 | AD121: 90 | AE121: -90 | AF121: 0 | AG121: 2.006357535 | AH121: 179.429635 | AI121: 60 | AJ121: 1 | AY121: 8613500
A122: 90 | B122: =IF(A122>$B$30,NA(),IF($A122>$A$8,"",OFFSET(InputPriceData!$B$15,$A122+$A$11,0,1,1))) -> 2022-03-02 | C122: =IF(A122>$B$30,NA(),IF($A122>$A$8,"",OFFSET(InputPriceData!$G$15,CalculationsAndCharts!$A122+$A$11,IF($C$5,8,0),1,1))) -> 12834600 | D122: =IF(A122>$B$30,NA(),IF(A122>$A$8,"",OFFSET(InputPriceData!$C$15,CalculationsAndCharts!$A122+$A$11,IF($C$5,8,0),1,1))) -> 102.199997 | E122: =IF(A122>$B$30,NA(),IF(A122>$A$8,"",OFFSET(InputPriceData!$D$15,CalculationsAndCharts!$A122+$A$11,IF($C$5,8,0),1,1))) -> 102.510002 | F122: =IF(A122>$B$30,NA(),IF(A122>$A$8,"",OFFSET(InputPriceData!$E$15,CalculationsAndCharts!$A122+$A$11,IF($C$5,8,0),1,1))) -> 99.779999 | G122: =IF(A122>$B$30,NA(),IF(A122>$A$8,"",OFFSET(InputPriceData!$F$15,CalculationsAndCharts!$A122+$A$11,IF($C$5,8,0),1,1))) -> 100.739998 | J122: 2623.350009 | K122: 6881965.27 | L122: 246193.6151 | N122: 2.338612079 | Q122: 11455.95313 | R122: 392 | S122: 0.03089993546 | U122: -35.1223658 | X122: 392 | Y122: -0.4640696274 | Z122: 176.1906009 | AA122: 176.1906009 | AB122: -183.8093991 | AC122: -124.7589055 | AD122: 90 | AE122: -90 | AF122: 0 | AG122: 2.006357535 | AH122: 179.429635 | AI122: 60 | AJ122: 1 | AY122: 12834600
A123: 91 | B123: =IF(A123>$B$30,NA(),IF($A123>$A$8,"",OFFSET(InputPriceData!$B$15,$A123+$A$11,0,1,1))) -> 2022-03-01 | C123: =IF(A123>$B$30,NA(),IF($A123>$A$8,"",OFFSET(InputPriceData!$G$15,CalculationsAndCharts!$A123+$A$11,IF($C$5,8,0),1,1))) -> 12340900 | D123: =IF(A123>$B$30,NA(),IF(A123>$A$8,"",OFFSET(InputPriceData!$C$15,CalculationsAndCharts!$A123+$A$11,IF($C$5,8,0),1,1))) -> 102.769997 | E123: =IF(A123>$B$30,NA(),IF(A123>$A$8,"",OFFSET(InputPriceData!$D$15,CalculationsAndCharts!$A123+$A$11,IF($C$5,8,0),1,1))) -> 104.339996 | F123: =IF(A123>$B$30,NA(),IF(A123>$A$8,"",OFFSET(InputPriceData!$E$15,CalculationsAndCharts!$A123+$A$11,IF($C$5,8,0),1,1))) -> 102.18 | G123: =IF(A123>$B$30,NA(),IF(A123>$A$8,"",OFFSET(InputPriceData!$F$15,CalculationsAndCharts!$A123+$A$11,IF($C$5,8,0),1,1))) -> 102.730003 | J123: 2610.970012 | K123: 6817164.404 | L123: 243852.5577 | N123: -1.974164796 | Q123: 10707.21152 | R123: 392 | S123: -0.02698113468 | U123: -36.47619311 | X123: 392 | Y123: -0.4985242778 | Z123: 3.097940145 | AA123: -176.9020599 | AB123: -176.9020599 | AC123: -124.7589055 | AD123: 90 | AE123: -90 | AF123: 0 | AG123: 2.006357535 | AH123: 179.429635 | AI123: 60 | AJ123: 1 | AY123: 12340900
A124: 92 | B124: =IF(A124>$B$30,NA(),IF($A124>$A$8,"",OFFSET(InputPriceData!$B$15,$A124+$A$11,0,1,1))) -> 2022-02-28 | C124: =IF(A124>$B$30,NA(),IF($A124>$A$8,"",OFFSET(InputPriceData!$G$15,CalculationsAndCharts!$A124+$A$11,IF($C$5,8,0),1,1))) -> 16726100 | D124: =IF(A124>$B$30,NA(),IF(A124>$A$8,"",OFFSET(InputPriceData!$C$15,CalculationsAndCharts!$A124+$A$11,IF($C$5,8,0),1,1))) -> 99.019997 | E124: =IF(A124>$B$30,NA(),IF(A124>$A$8,"",OFFSET(InputPriceData!$D$15,CalculationsAndCharts!$A124+$A$11,IF($C$5,8,0),1,1))) -> 102.959999 | F124: =IF(A124>$B$30,NA(),IF(A124>$A$8,"",OFFSET(InputPriceData!$E$15,CalculationsAndCharts!$A124+$A$11,IF($C$5,8,0),1,1))) -> 98.400002 | G124: =IF(A124>$B$30,NA(),IF(A124>$A$8,"",OFFSET(InputPriceData!$F$15,CalculationsAndCharts!$A124+$A$11,IF($C$5,8,0),1,1))) -> 102.699997 | J124: 2597.940006 | K124: 6749292.275 | L124: 241345.1936 | N124: -6.511268349 | Q124: 8373.14678 | R124: 392 | S124: -0.1006320315 | U124: -38.90040089 | X124: 392 | Y124: -0.6012079609 | Z124: 9.502254822 | AA124: -170.4977452 | AB124: -170.4977452 | AC124: -124.7589055 | AD124: 90 | AE124: -90 | AF124: 0 | AG124: 2.006357535 | AH124: 179.429635 | AI124: 60 | AJ124: 1 | AX124: 16726100
A125: 93 | B125: =IF(A125>$B$30,NA(),IF($A125>$A$8,"",OFFSET(InputPriceData!$B$15,$A125+$A$11,0,1,1))) -> 2022-02-25 | C125: =IF(A125>$B$30,NA(),IF($A125>$A$8,"",OFFSET(InputPriceData!$G$15,CalculationsAndCharts!$A125+$A$11,IF($C$5,8,0),1,1))) -> 8692300 | D125: =IF(A125>$B$30,NA(),IF(A125>$A$8,"",OFFSET(InputPriceData!$C$15,CalculationsAndCharts!$A125+$A$11,IF($C$5,8,0),1,1))) -> 94.389999 | E125: =IF(A125>$B$30,NA(),IF(A125>$A$8,"",OFFSET(InputPriceData!$D$15,CalculationsAndCharts!$A125+$A$11,IF($C$5,8,0),1,1))) -> 98.269997 | F125: =IF(A125>$B$30,NA(),IF(A125>$A$8,"",OFFSET(InputPriceData!$E$15,CalculationsAndCharts!$A125+$A$11,IF($C$5,8,0),1,1))) -> 94.199997 | G125: =IF(A125>$B$30,NA(),IF(A125>$A$8,"",OFFSET(InputPriceData!$F$15,CalculationsAndCharts!$A125+$A$11,IF($C$5,8,0),1,1))) -> 98.120003 | J125: 2585.990009 | K125: 6687344.327 | L125: 239033.4667 | N125: -9.342249345 | Q125: 5592.742161 | R125: 392 | S125: -0.1766664383 | U125: -42.03310463 | X125: 392 | Y125: -0.7948662694 | Z125: 12.53083333 | AA125: -167.4691667 | AB125: -167.4691667 | AC125: -124.7589055 | AD125: 90 | AE125: -90 | AF125: 0 | AG125: 2.006357535 | AH125: 179.429635 | AI125: 60 | AJ125: 1 | AX125: 8692300
A126: 94 | B126: =IF(A126>$B$30,NA(),IF($A126>$A$8,"",OFFSET(InputPriceData!$B$15,$A126+$A$11,0,1,1))) -> 2022-02-24 | C126: =IF(A126>$B$30,NA(),IF($A126>$A$8,"",OFFSET(InputPriceData!$G$15,CalculationsAndCharts!$A126+$A$11,IF($C$5,8,0),1,1))) -> 9698500 | D126: =IF(A126>$B$30,NA(),IF(A126>$A$8,"",OFFSET(InputPriceData!$C$15,CalculationsAndCharts!$A126+$A$11,IF($C$5,8,0),1,1))) -> 93 | E126: =IF(A126>$B$30,NA(),IF(A126>$A$8,"",OFFSET(InputPriceData!$D$15,CalculationsAndCharts!$A126+$A$11,IF($C$5,8,0),1,1))) -> 94.650002 | F126: =IF(A126>$B$30,NA(),IF(A126>$A$8,"",OFFSET(InputPriceData!$E$15,CalculationsAndCharts!$A126+$A$11,IF($C$5,8,0),1,1))) -> 89.309998 | G126: =IF(A126>$B$30,NA(),IF(A126>$A$8,"",OFFSET(InputPriceData!$F$15,CalculationsAndCharts!$A126+$A$11,IF($C$5,8,0),1,1))) -> 94.25 | J126: 2580.200008 | K126: 6657432.081 | L126: 237930.761 | N126: -5.399607536 | Q126: 4629.227383 | R126: 392 | S126: -0.1122336109 | U126: -44.34648942 | X126: 392 | Y126: -0.9217645186 | Z126: 6.942134945 | AA126: -173.0578651 | AB126: -173.0578651 | AC126: -124.7589055 | AD126: 90 | AE126: -90 | AF126: 0 | AG126: 2.006357535 | AH126: 179.429635 | AI126: 60 | AJ126: 1 | AX126: 9698500
A127: 95 | B127: =IF(A127>$B$30,NA(),IF($A127>$A$8,"",OFFSET(InputPriceData!$B$15,$A127+$A$11,0,1,1))) -> 2022-02-23 | C127: =IF(A127>$B$30,NA(),IF($A127>$A$8,"",OFFSET(InputPriceData!$G$15,CalculationsAndCharts!$A127+$A$11,IF($C$5,8,0),1,1))) -> 6903300 | D127: =IF(A127>$B$30,NA(),IF(A127>$A$8,"",OFFSET(InputPriceData!$C$15,CalculationsAndCharts!$A127+$A$11,IF($C$5,8,0),1,1))) -> 94.300003 | E127: =IF(A127>$B$30,NA(),IF(A127>$A$8,"",OFFSET(InputPriceData!$D$15,CalculationsAndCharts!$A127+$A$11,IF($C$5,8,0),1,1))) -> 94.529999 | F127: =IF(A127>$B$30,NA(),IF(A127>$A$8,"",OFFSET(InputPriceData!$E$15,CalculationsAndCharts!$A127+$A$11,IF($C$5,8,0),1,1))) -> 92.050003 | G127: =IF(A127>$B$30,NA(),IF(A127>$A$8,"",OFFSET(InputPriceData!$F$15,CalculationsAndCharts!$A127+$A$11,IF($C$5,8,0),1,1))) -> 92.239998 | J127: 2577.510006 | K127: 6643557.831 | L127: 237430.9318 | N127: 1.981236109 | Q127: 4508.258181 | R127: 392 | S127: 0.04172985183 | U127: -45.03473781 | X127: 392 | Y127: -0.948545672 | Z127: 177.4809819 | AA127: 177.4809819 | AB127: -182.5190181 | AC127: -124.7589055 | AD127: 90 | AE127: -90 | AF127: 0 | AG127: 2.006357535 | AH127: 179.429635 | AI127: 60 | AJ127: 1 | AY127: 6903300
A128: 96 | B128: =IF(A128>$B$30,NA(),IF($A128>$A$8,"",OFFSET(InputPriceData!$B$15,$A128+$A$11,0,1,1))) -> 2022-02-22 | C128: =IF(A128>$B$30,NA(),IF($A128>$A$8,"",OFFSET(InputPriceData!$G$15,CalculationsAndCharts!$A128+$A$11,IF($C$5,8,0),1,1))) -> 5862200 | D128: =IF(A128>$B$30,NA(),IF(A128>$A$8,"",OFFSET(InputPriceData!$C$15,CalculationsAndCharts!$A128+$A$11,IF($C$5,8,0),1,1))) -> 93.620003 | E128: =IF(A128>$B$30,NA(),IF(A128>$A$8,"",OFFSET(InputPriceData!$D$15,CalculationsAndCharts!$A128+$A$11,IF($C$5,8,0),1,1))) -> 94.739998 | F128: =IF(A128>$B$30,NA(),IF(A128>$A$8,"",OFFSET(InputPriceData!$E$15,CalculationsAndCharts!$A128+$A$11,IF($C$5,8,0),1,1))) -> 92.790001 | G128: =IF(A128>$B$30,NA(),IF(A128>$A$8,"",OFFSET(InputPriceData!$F$15,CalculationsAndCharts!$A128+$A$11,IF($C$5,8,0),1,1))) -> 93.540001 | J128: 2576.340008 | K128: 6637527.837 | L128: 237216.4594 | N128: 10.81207059 | Q128: 4533.027121 | R128: 392 | S128: 0.2271065771 | U128: -43.72510545 | X128: 392 | Y128: -0.9184419345 | Z128: 166.1108651 | AA128: 166.1108651 | AB128: -193.8891349 | AC128: -124.7589055 | AD128: 90 | AE128: -90 | AF128: 0 | AG128: 2.006357535 | AH128: 179.429635 | AI128: 60 | AJ128: 1 | AY128: 5862200
A129: 97 | B129: =IF(A129>$B$30,NA(),IF($A129>$A$8,"",OFFSET(InputPriceData!$B$15,$A129+$A$11,0,1,1))) -> 2022-02-18 | C129: =IF(A129>$B$30,NA(),IF($A129>$A$8,"",OFFSET(InputPriceData!$G$15,CalculationsAndCharts!$A129+$A$11,IF($C$5,8,0),1,1))) -> 6544800 | D129: =IF(A129>$B$30,NA(),IF(A129>$A$8,"",OFFSET(InputPriceData!$C$15,CalculationsAndCharts!$A129+$A$11,IF($C$5,8,0),1,1))) -> 94.139999 | E129: =IF(A129>$B$30,NA(),IF(A129>$A$8,"",OFFSET(InputPriceData!$D$15,CalculationsAndCharts!$A129+$A$11,IF($C$5,8,0),1,1))) -> 95.010002 | F129: =IF(A129>$B$30,NA(),IF(A129>$A$8,"",OFFSET(InputPriceData!$E$15,CalculationsAndCharts!$A129+$A$11,IF($C$5,8,0),1,1))) -> 92.989998 | G129: =IF(A129>$B$30,NA(),IF(A129>$A$8,"",OFFSET(InputPriceData!$F$15,CalculationsAndCharts!$A129+$A$11,IF($C$5,8,0),1,1))) -> 93.370003 | J129: 2573.520008 | K129: 6623005.232 | L129: 236696.8462 | N129: 17.521444 | Q129: 4506.462608 | R129: 392 | S129: 0.3691195153 | U129: -40.85042275 | X129: 392 | Y129: -0.8605847923 | Z129: 156.7846804 | AA129: 156.7846804 | AB129: -203.2153196 | AC129: -124.7589055 | AD129: 90 | AE129: -90 | AF129: 0 | AG129: 2.006357535 | AH129: 179.429635 | AI129: 60 | AJ129: 1 | AY129: 6544800
A130: 98 | B130: =IF(A130>$B$30,NA(),IF($A130>$A$8,"",OFFSET(InputPriceData!$B$15,$A130+$A$11,0,1,1))) -> 2022-02-17 | C130: =IF(A130>$B$30,NA(),IF($A130>$A$8,"",OFFSET(InputPriceData!$G$15,CalculationsAndCharts!$A130+$A$11,IF($C$5,8,0),1,1))) -> 5753300 | D130: =IF(A130>$B$30,NA(),IF(A130>$A$8,"",OFFSET(InputPriceData!$C$15,CalculationsAndCharts!$A130+$A$11,IF($C$5,8,0),1,1))) -> 93.970001 | E130: =IF(A130>$B$30,NA(),IF(A130>$A$8,"",OFFSET(InputPriceData!$D$15,CalculationsAndCharts!$A130+$A$11,IF($C$5,8,0),1,1))) -> 95.169998 | F130: =IF(A130>$B$30,NA(),IF(A130>$A$8,"",OFFSET(InputPriceData!$E$15,CalculationsAndCharts!$A130+$A$11,IF($C$5,8,0),1,1))) -> 93.440002 | G130: =IF(A130>$B$30,NA(),IF(A130>$A$8,"",OFFSET(InputPriceData!$F$15,CalculationsAndCharts!$A130+$A$11,IF($C$5,8,0),1,1))) -> 94.360001 | J130: 2569.880008 | K130: 6604283.256 | L130: 236030.3622 | N130: 22.62348144 | Q130: 4566.886054 | R130: 392 | S130: 0.4734393456 | U130: -36.73730548 | X130: 392 | Y130: -0.7687979373 | Z130: 148.3745049 | AA130: 148.3745049 | AB130: -211.6254951 | AC130: -124.7589055 | AD130: 90 | AE130: -90 | AF130: 0 | AG130: 2.006357535 | AH130: 179.429635 | AI130: 60 | AJ130: 1 | AX130: 5753300
A131: 99 | B131: =IF(A131>$B$30,NA(),IF($A131>$A$8,"",OFFSET(InputPriceData!$B$15,$A131+$A$11,0,1,1))) -> 2022-02-16 | C131: =IF(A131>$B$30,NA(),IF($A131>$A$8,"",OFFSET(InputPriceData!$G$15,CalculationsAndCharts!$A131+$A$11,IF($C$5,8,0),1,1))) -> 4560900 | D131: =IF(A131>$B$30,NA(),IF(A131>$A$8,"",OFFSET(InputPriceData!$C$15,CalculationsAndCharts!$A131+$A$11,IF($C$5,8,0),1,1))) -> 94.010002 | E131: =IF(A131>$B$30,NA(),IF(A131>$A$8,"",OFFSET(InputPriceData!$D$15,CalculationsAndCharts!$A131+$A$11,IF($C$5,8,0),1,1))) -> 95.269997 | F131: =IF(A131>$B$30,NA(),IF(A131>$A$8,"",OFFSET(InputPriceData!$E$15,CalculationsAndCharts!$A131+$A$11,IF($C$5,8,0),1,1))) -> 93.919998 | G131: =IF(A131>$B$30,NA(),IF(A131>$A$8,"",OFFSET(InputPriceData!$F$15,CalculationsAndCharts!$A131+$A$11,IF($C$5,8,0),1,1))) -> 94.75 | J131: 2565.960009 | K131: 6584150.768 | L131: 235305.9464 | N131: 26.40936662 | Q131: 4415.73063 | R131: 392 | S131: 0.5620457874 | U131: -31.65430815 | X131: 392 | Y131: -0.6736689603 | Z131: 140.1615684 | AA131: 140.1615684 | AB131: -219.8384316 | AC131: -124.7589055 | AD131: 90 | AE131: -90 | AF131: 0 | AG131: 2.006357535 | AH131: 179.429635 | AI131: 60 | AJ131: 1 | AX131: 4560900
A132: 100 | B132: =IF(A132>$B$30,NA(),IF($A132>$A$8,"",OFFSET(InputPriceData!$B$15,$A132+$A$11,0,1,1))) -> 2022-02-15 | C132: =IF(A132>$B$30,NA(),IF($A132>$A$8,"",OFFSET(InputPriceData!$G$15,CalculationsAndCharts!$A132+$A$11,IF($C$5,8,0),1,1))) -> 4616000 | D132: =IF(A132>$B$30,NA(),IF(A132>$A$8,"",OFFSET(InputPriceData!$C$15,CalculationsAndCharts!$A132+$A$11,IF($C$5,8,0),1,1))) -> 93.589996 | E132: =IF(A132>$B$30,NA(),IF(A132>$A$8,"",OFFSET(InputPriceData!$D$15,CalculationsAndCharts!$A132+$A$11,IF($C$5,8,0),1,1))) -> 94.900002 | F132: =IF(A132>$B$30,NA(),IF(A132>$A$8,"",OFFSET(InputPriceData!$E$15,CalculationsAndCharts!$A132+$A$11,IF($C$5,8,0),1,1))) -> 93.57 | G132: =IF(A132>$B$30,NA(),IF(A132>$A$8,"",OFFSET(InputPriceData!$F$15,CalculationsAndCharts!$A132+$A$11,IF($C$5,8,0),1,1))) -> 94.040001 | J132: 2561.270007 | K132: 6560104.049 | L132: 234439.1871 | N132: 28.21856101 | Q132: 4193.190373 | R132: 392 | S132: 0.6162792867 | U132: -26.02765526 | X132: 392 | Y132: -0.5684309987 | Z132: 132.687185 | AA132: 132.687185 | AB132: -227.312815 | AC132: -124.7589055 | AD132: 90 | AE132: -90 | AF132: 0 | AG132: 2.006357535 | AH132: 179.429635 | AI132: 60 | AJ132: 1 | AX132: 4616000
A133: 101 | B133: =IF(A133>$B$30,NA(),IF($A133>$A$8,"",OFFSET(InputPriceData!$B$15,$A133+$A$11,0,1,1))) -> 2022-02-14 | C133: =IF(A133>$B$30,NA(),IF($A133>$A$8,"",OFFSET(InputPriceData!$G$15,CalculationsAndCharts!$A133+$A$11,IF($C$5,8,0),1,1))) -> 6419200 | D133: =IF(A133>$B$30,NA(),IF(A133>$A$8,"",OFFSET(InputPriceData!$C$15,CalculationsAndCharts!$A133+$A$11,IF($C$5,8,0),1,1))) -> 95.510002 | E133: =IF(A133>$B$30,NA(),IF(A133>$A$8,"",OFFSET(InputPriceData!$D$15,CalculationsAndCharts!$A133+$A$11,IF($C$5,8,0),1,1))) -> 95.599998 | F133: =IF(A133>$B$30,NA(),IF(A133>$A$8,"",OFFSET(InputPriceData!$E$15,CalculationsAndCharts!$A133+$A$11,IF($C$5,8,0),1,1))) -> 92.889999 | G133: =IF(A133>$B$30,NA(),IF(A133>$A$8,"",OFFSET(InputPriceData!$F$15,CalculationsAndCharts!$A133+$A$11,IF($C$5,8,0),1,1))) -> 93.57 | J133: 2556.800006 | K133: 6537226.271 | L133: 233618.4502 | N133: 28.94483219 | Q133: 4090.335583 | R133: 392 | S133: 0.6400391853 | U133: -20.09053585 | X133: 392 | Y133: -0.4442496026 | Z133: 124.7644185 | AA133: 124.7644185 | AB133: -235.2355815 | AC133: -124.7589055 | AD133: 90 | AE133: -90 | AF133: 0 | AG133: 2.006357535 | AH133: 179.429635 | AI133: 60 | AJ133: 1 | AY133: 6419200
A134: 102 | B134: =IF(A134>$B$30,NA(),IF($A134>$A$8,"",OFFSET(InputPriceData!$B$15,$A134+$A$11,0,1,1))) -> 2022-02-11 | C134: =IF(A134>$B$30,NA(),IF($A134>$A$8,"",OFFSET(InputPriceData!$G$15,CalculationsAndCharts!$A134+$A$11,IF($C$5,8,0),1,1))) -> 6532900 | D134: =IF(A134>$B$30,NA(),IF(A134>$A$8,"",OFFSET(InputPriceData!$C$15,CalculationsAndCharts!$A134+$A$11,IF($C$5,8,0),1,1))) -> 95.25 | E134: =IF(A134>$B$30,NA(),IF(A134>$A$8,"",OFFSET(InputPriceData!$D$15,CalculationsAndCharts!$A134+$A$11,IF($C$5,8,0),1,1))) -> 96.050003 | F134: =IF(A134>$B$30,NA(),IF(A134>$A$8,"",OFFSET(InputPriceData!$E$15,CalculationsAndCharts!$A134+$A$11,IF($C$5,8,0),1,1))) -> 94.080002 | G134: =IF(A134>$B$30,NA(),IF(A134>$A$8,"",OFFSET(InputPriceData!$F$15,CalculationsAndCharts!$A134+$A$11,IF($C$5,8,0),1,1))) -> 95.269997 | J134: 2553.250003 | K134: 6519085.578 | L134: 232966.7052 | N134: 29.2286926 | Q134: 3982.167322 | R134: 392 | S134: 0.6550351955 | U134: -13.93594306 | X134: 392 | Y134: -0.3123141124 | Z134: 115.4913309 | AA134: 115.4913309 | AB134: -244.5086691 | AC134: -124.7589055 | AD134: 90 | AE134: -90 | AF134: 0 | AG134: 2.006357535 | AH134: 179.429635 | AI134: 60 | AJ134: 1 | AX134: 6532900
A135: 103 | B135: =IF(A135>$B$30,NA(),IF($A135>$A$8,"",OFFSET(InputPriceData!$B$15,$A135+$A$11,0,1,1))) -> 2022-02-10 | C135: =IF(A135>$B$30,NA(),IF($A135>$A$8,"",OFFSET(InputPriceData!$G$15,CalculationsAndCharts!$A135+$A$11,IF($C$5,8,0),1,1))) -> 6534300 | D135: =IF(A135>$B$30,NA(),IF(A135>$A$8,"",OFFSET(InputPriceData!$C$15,CalculationsAndCharts!$A135+$A$11,IF($C$5,8,0),1,1))) -> 95.32 | E135: =IF(A135>$B$30,NA(),IF(A135>$A$8,"",OFFSET(InputPriceData!$D$15,CalculationsAndCharts!$A135+$A$11,IF($C$5,8,0),1,1))) -> 96.959999 | F135: =IF(A135>$B$30,NA(),IF(A135>$A$8,"",OFFSET(InputPriceData!$E$15,CalculationsAndCharts!$A135+$A$11,IF($C$5,8,0),1,1))) -> 94.550003 | G135: =IF(A135>$B$30,NA(),IF(A135>$A$8,"",OFFSET(InputPriceData!$F$15,CalculationsAndCharts!$A135+$A$11,IF($C$5,8,0),1,1))) -> 95.059998 | J135: 2544.950007 | K135: 6476770.538 | L135: 231454.1139 | N135: 23.50500955 | Q135: 3944.651888 | R135: 392 | S135: 0.5292624565 | U135: -8.929466758 | X135: 392 | Y135: -0.2010648625 | Z135: 110.8016002 | AA135: 110.8016002 | AB135: -249.1983998 | AC135: -124.7589055 | AD135: 90 | AE135: -90 | AF135: 0 | AG135: 2.006357535 | AH135: 179.429635 | AI135: 60 | AJ135: 1 | AY135: 6534300
A136: 104 | B136: =IF(A136>$B$30,NA(),IF($A136>$A$8,"",OFFSET(InputPriceData!$B$15,$A136+$A$11,0,1,1))) -> 2022-02-09 | C136: =IF(A136>$B$30,NA(),IF($A136>$A$8,"",OFFSET(InputPriceData!$G$15,CalculationsAndCharts!$A136+$A$11,IF($C$5,8,0),1,1))) -> 5394900 | D136: =IF(A136>$B$30,NA(),IF(A136>$A$8,"",OFFSET(InputPriceData!$C$15,CalculationsAndCharts!$A136+$A$11,IF($C$5,8,0),1,1))) -> 96.029999 | E136: =IF(A136>$B$30,NA(),IF(A136>$A$8,"",OFFSET(InputPriceData!$D$15,CalculationsAndCharts!$A136+$A$11,IF($C$5,8,0),1,1))) -> 96.32 | F136: =IF(A136>$B$30,NA(),IF(A136>$A$8,"",OFFSET(InputPriceData!$E$15,CalculationsAndCharts!$A136+$A$11,IF($C$5,8,0),1,1))) -> 95.480003 | G136: =IF(A136>$B$30,NA(),IF(A136>$A$8,"",OFFSET(InputPriceData!$F$15,CalculationsAndCharts!$A136+$A$11,IF($C$5,8,0),1,1))) -> 96 | J136: 2535.950007 | K136: 6431042.438 | L136: 229824.034 | N136: 16.12833196 | Q136: 4030.513022 | R136: 392 | S136: 0.3592727574 | U136: -5.477918112 | X136: 392 | Y136: -0.1220254364 | Z136: 108.7598333 | AA136: 108.7598333 | AB136: -251.2401667 | AC136: -124.7589055 | AD136: 90 | AE136: -90 | AF136: 0 | AG136: 2.006357535 | AH136: 179.429635 | AI136: 60 | AJ136: 1 | AY136: 5394900
A137: 105 | B137: =IF(A137>$B$30,NA(),IF($A137>$A$8,"",OFFSET(InputPriceData!$B$15,$A137+$A$11,0,1,1))) -> 2022-02-08 | C137: =IF(A137>$B$30,NA(),IF($A137>$A$8,"",OFFSET(InputPriceData!$G$15,CalculationsAndCharts!$A137+$A$11,IF($C$5,8,0),1,1))) -> 8173200 | D137: =IF(A137>$B$30,NA(),IF(A137>$A$8,"",OFFSET(InputPriceData!$C$15,CalculationsAndCharts!$A137+$A$11,IF($C$5,8,0),1,1))) -> 93.830002 | E137: =IF(A137>$B$30,NA(),IF(A137>$A$8,"",OFFSET(InputPriceData!$D$15,CalculationsAndCharts!$A137+$A$11,IF($C$5,8,0),1,1))) -> 95.32 | F137: =IF(A137>$B$30,NA(),IF(A137>$A$8,"",OFFSET(InputPriceData!$E$15,CalculationsAndCharts!$A137+$A$11,IF($C$5,8,0),1,1))) -> 92.870003 | G137: =IF(A137>$B$30,NA(),IF(A137>$A$8,"",OFFSET(InputPriceData!$F$15,CalculationsAndCharts!$A137+$A$11,IF($C$5,8,0),1,1))) -> 95.07 | J137: 2525.75001 | K137: 6379413.113 | L137: 227969.6745 | N137: 6.998650676 | Q137: 3737.772424 | R137: 392 | S137: 0.1618910676 | U137: -4.021396637 | X137: 392 | Y137: -0.0930219588 | Z137: 119.8815026 | AA137: 119.8815026 | AB137: -240.1184974 | AC137: -124.7589055 | AD137: 90 | AE137: -90 | AF137: 0 | AG137: 2.006357535 | AH137: 179.429635 | AI137: 60 | AJ137: 1 | AX137: 8173200
A138: 106 | B138: =IF(A138>$B$30,NA(),IF($A138>$A$8,"",OFFSET(InputPriceData!$B$15,$A138+$A$11,0,1,1))) -> 2022-02-07 | C138: =IF(A138>$B$30,NA(),IF($A138>$A$8,"",OFFSET(InputPriceData!$G$15,CalculationsAndCharts!$A138+$A$11,IF($C$5,8,0),1,1))) -> 4932700 | D138: =IF(A138>$B$30,NA(),IF(A138>$A$8,"",OFFSET(InputPriceData!$C$15,CalculationsAndCharts!$A138+$A$11,IF($C$5,8,0),1,1))) -> 93.459999 | E138: =IF(A138>$B$30,NA(),IF(A138>$A$8,"",OFFSET(InputPriceData!$D$15,CalculationsAndCharts!$A138+$A$11,IF($C$5,8,0),1,1))) -> 94.730003 | F138: =IF(A138>$B$30,NA(),IF(A138>$A$8,"",OFFSET(InputPriceData!$E$15,CalculationsAndCharts!$A138+$A$11,IF($C$5,8,0),1,1))) -> 93.010002 | G138: =IF(A138>$B$30,NA(),IF(A138>$A$8,"",OFFSET(InputPriceData!$F$15,CalculationsAndCharts!$A138+$A$11,IF($C$5,8,0),1,1))) -> 94.029999 | J138: 2516.570009 | K138: 6333124.61 | L138: 226308.4615 | N138: -1.231814381 | Q138: 3512.312031 | R138: 392 | S138: -0.02939434061 | U138: -4.405967939 | X138: 392 | Y138: -0.1051380178 | Z138: 15.61985528 | AA138: -164.3801447 | AB138: -164.3801447 | AC138: -124.7589055 | AD138: 90 | AE138: -90 | AF138: 0 | AG138: 2.006357535 | AH138: 179.429635 | AI138: 60 | AJ138: 1 | AX138: 4932700
A139: 107 | B139: =IF(A139>$B$30,NA(),IF($A139>$A$8,"",OFFSET(InputPriceData!$B$15,$A139+$A$11,0,1,1))) -> 2022-02-04 | C139: =IF(A139>$B$30,NA(),IF($A139>$A$8,"",OFFSET(InputPriceData!$G$15,CalculationsAndCharts!$A139+$A$11,IF($C$5,8,0),1,1))) -> 6321400 | D139: =IF(A139>$B$30,NA(),IF(A139>$A$8,"",OFFSET(InputPriceData!$C$15,CalculationsAndCharts!$A139+$A$11,IF($C$5,8,0),1,1))) -> 92.360001 | E139: =IF(A139>$B$30,NA(),IF(A139>$A$8,"",OFFSET(InputPriceData!$D$15,CalculationsAndCharts!$A139+$A$11,IF($C$5,8,0),1,1))) -> 93.900002 | F139: =IF(A139>$B$30,NA(),IF(A139>$A$8,"",OFFSET(InputPriceData!$E$15,CalculationsAndCharts!$A139+$A$11,IF($C$5,8,0),1,1))) -> 92.110001 | G139: =IF(A139>$B$30,NA(),IF(A139>$A$8,"",OFFSET(InputPriceData!$F$15,CalculationsAndCharts!$A139+$A$11,IF($C$5,8,0),1,1))) -> 93.010002 | J139: 2508.560007 | K139: 6292873.309 | L139: 224866.2607 | N139: -8.029684649 | Q139: 3381.990324 | R139: 392 | S139: -0.1952663044 | U139: -6.351998736 | X139: 392 | Y139: -0.1544682479 | Z139: 51.65372877 | AA139: -128.3462712 | AB139: -128.3462712 | AC139: -124.7589055 | AD139: 90 | AE139: -90 | AF139: 0 | AG139: 2.006357535 | AH139: 179.429635 | AI139: 60 | AJ139: 1 | AX139: 6321400
A140: 108 | B140: =IF(A140>$B$30,NA(),IF($A140>$A$8,"",OFFSET(InputPriceData!$B$15,$A140+$A$11,0,1,1))) -> 2022-02-03 | C140: =IF(A140>$B$30,NA(),IF($A140>$A$8,"",OFFSET(InputPriceData!$G$15,CalculationsAndCharts!$A140+$A$11,IF($C$5,8,0),1,1))) -> 7171700 | D140: =IF(A140>$B$30,NA(),IF(A140>$A$8,"",OFFSET(InputPriceData!$C$15,CalculationsAndCharts!$A140+$A$11,IF($C$5,8,0),1,1))) -> 92.150002 | E140: =IF(A140>$B$30,NA(),IF(A140>$A$8,"",OFFSET(InputPriceData!$D$15,CalculationsAndCharts!$A140+$A$11,IF($C$5,8,0),1,1))) -> 92.989998 | F140: =IF(A140>$B$30,NA(),IF(A140>$A$8,"",OFFSET(InputPriceData!$E$15,CalculationsAndCharts!$A140+$A$11,IF($C$5,8,0),1,1))) -> 91.620003 | G140: =IF(A140>$B$30,NA(),IF(A140>$A$8,"",OFFSET(InputPriceData!$F$15,CalculationsAndCharts!$A140+$A$11,IF($C$5,8,0),1,1))) -> 92.809998 | J140: 2500.790003 | K140: 6253950.639 | L140: 223481.2575 | N140: -13.99010478 | Q140: 3524.569975 | R140: 392 | S140: -0.3332597746 | U140: -9.70850234 | X140: 392 | Y140: -0.2312672674 | Z140: 55.24109448 | AA140: -124.7589055 | AB140: -124.7589055 | AC140: -124.7589055 | AD140: 90 | AE140: -90 | AF140: 2.006357535 | AG140: 2.006357535 | AH140: 179.429635 | AI140: 60 | AJ140: 1 | AX140: 7171700
A141: 109 | B141: =IF(A141>$B$30,NA(),IF($A141>$A$8,"",OFFSET(InputPriceData!$B$15,$A141+$A$11,0,1,1))) -> 2022-02-02 | C141: =IF(A141>$B$30,NA(),IF($A141>$A$8,"",OFFSET(InputPriceData!$G$15,CalculationsAndCharts!$A141+$A$11,IF($C$5,8,0),1,1))) -> 5978600 | D141: =IF(A141>$B$30,NA(),IF(A141>$A$8,"",OFFSET(InputPriceData!$C$15,CalculationsAndCharts!$A141+$A$11,IF($C$5,8,0),1,1))) -> 90.300003 | E141: =IF(A141>$B$30,NA(),IF(A141>$A$8,"",OFFSET(InputPriceData!$D$15,CalculationsAndCharts!$A141+$A$11,IF($C$5,8,0),1,1))) -> 92.690002 | F141: =IF(A141>$B$30,NA(),IF(A141>$A$8,"",OFFSET(InputPriceData!$E$15,CalculationsAndCharts!$A141+$A$11,IF($C$5,8,0),1,1))) -> 90.25 | G141: =IF(A141>$B$30,NA(),IF(A141>$A$8,"",OFFSET(InputPriceData!$F$15,CalculationsAndCharts!$A141+$A$11,IF($C$5,8,0),1,1))) -> 92.540001 | J141: 2492.880007 | K141: 6214450.729 | L141: 222075.5721 | N141: -19.19067452 | Q141: 3665.288883 | R141: 392 | S141: -0.4482818264 | U141: -14.3383208 | X141: 392 | Y141: -0.3349339612 | Z141: 53.23473694 | AA141: -126.7652631 | AB141: -126.7652631 | AC141: -126.7652631 | AD141: 90 | AE141: -90 | AF141: 3.492514029 | AG141: 3.492514029 | AH141: 103.0776103 | AI141: 60 | AJ141: 1 | AX141: 5978600
A142: 110 | B142: =IF(A142>$B$30,NA(),IF($A142>$A$8,"",OFFSET(InputPriceData!$B$15,$A142+$A$11,0,1,1))) -> 2022-02-01 | C142: =IF(A142>$B$30,NA(),IF($A142>$A$8,"",OFFSET(InputPriceData!$G$15,CalculationsAndCharts!$A142+$A$11,IF($C$5,8,0),1,1))) -> 6558400 | D142: =IF(A142>$B$30,NA(),IF(A142>$A$8,"",OFFSET(InputPriceData!$C$15,CalculationsAndCharts!$A142+$A$11,IF($C$5,8,0),1,1))) -> 90.099998 | E142: =IF(A142>$B$30,NA(),IF(A142>$A$8,"",OFFSET(InputPriceData!$D$15,CalculationsAndCharts!$A142+$A$11,IF($C$5,8,0),1,1))) -> 90.940002 | F142: =IF(A142>$B$30,NA(),IF(A142>$A$8,"",OFFSET(InputPriceData!$E$15,CalculationsAndCharts!$A142+$A$11,IF($C$5,8,0),1,1))) -> 89.269997 | G142: =IF(A142>$B$30,NA(),IF(A142>$A$8,"",OFFSET(InputPriceData!$F$15,CalculationsAndCharts!$A142+$A$11,IF($C$5,8,0),1,1))) -> 90.730003 | J142: 2484.410006 | K142: 6172293.078 | L142: 220579.6852 | N142: -23.7765881 | Q142: 3938.107488 | R142: 392 | S142: -0.5358222567 | U142: -20.13390851 | X142: 392 | Y142: -0.4537318916 | Z142: 49.74222291 | AA142: -130.2577771 | AB142: -130.2577771 | AC142: -130.2577771 | AD142: 90 | AE142: -90 | AF142: 5.749302501 | AG142: 5.749302501 | AH142: 62.61629127 | AI142: 60 | AJ142: 1 | AX142: 6558400
A143: 111 | B143: =IF(A143>$B$30,NA(),IF($A143>$A$8,"",OFFSET(InputPriceData!$B$15,$A143+$A$11,0,1,1))) -> 2022-01-31 | C143: =IF(A143>$B$30,NA(),IF($A143>$A$8,"",OFFSET(InputPriceData!$G$15,CalculationsAndCharts!$A143+$A$11,IF($C$5,8,0),1,1))) -> 6419700 | D143: =IF(A143>$B$30,NA(),IF(A143>$A$8,"",OFFSET(InputPriceData!$C$15,CalculationsAndCharts!$A143+$A$11,IF($C$5,8,0),1,1))) -> 89.610001 | E143: =IF(A143>$B$30,NA(),IF(A143>$A$8,"",OFFSET(InputPriceData!$D$15,CalculationsAndCharts!$A143+$A$11,IF($C$5,8,0),1,1))) -> 90.410004 | F143: =IF(A143>$B$30,NA(),IF(A143>$A$8,"",OFFSET(InputPriceData!$E$15,CalculationsAndCharts!$A143+$A$11,IF($C$5,8,0),1,1))) -> 89.010002 | G143: =IF(A143>$B$30,NA(),IF(A143>$A$8,"",OFFSET(InputPriceData!$F$15,CalculationsAndCharts!$A143+$A$11,IF($C$5,8,0),1,1))) -> 90.190002 | J143: 2477.360003 | K143: 6137312.584 | L143: 219350.0941 | N143: -25.57348797 | Q143: 4490.051694 | R143: 392 | S143: -0.5397333985 | U143: -26.48867123 | X143: 392 | Y143: -0.5590485177 | Z143: 43.99292041 | AA143: -136.0070796 | AB143: -136.0070796 | AC143: -136.0070796 | AD143: 90 | AE143: -90 | AF143: 4.18015685 | AG143: 4.18015685 | AH143: 86.1211703 | AI143: 60 | AJ143: 1 | AX143: 6419700
A144: 112 | B144: =IF(A144>$B$30,NA(),IF($A144>$A$8,"",OFFSET(InputPriceData!$B$15,$A144+$A$11,0,1,1))) -> 2022-01-28 | C144: =IF(A144>$B$30,NA(),IF($A144>$A$8,"",OFFSET(InputPriceData!$G$15,CalculationsAndCharts!$A144+$A$11,IF($C$5,8,0),1,1))) -> 5877600 | D144: =IF(A144>$B$30,NA(),IF(A144>$A$8,"",OFFSET(InputPriceData!$C$15,CalculationsAndCharts!$A144+$A$11,IF($C$5,8,0),1,1))) -> 88.970001 | E144: =IF(A144>$B$30,NA(),IF(A144>$A$8,"",OFFSET(InputPriceData!$D$15,CalculationsAndCharts!$A144+$A$11,IF($C$5,8,0),1,1))) -> 90.370003 | F144: =IF(A144>$B$30,NA(),IF(A144>$A$8,"",OFFSET(InputPriceData!$E$15,CalculationsAndCharts!$A144+$A$11,IF($C$5,8,0),1,1))) -> 87.480003 | G144: =IF(A144>$B$30,NA(),IF(A144>$A$8,"",OFFSET(InputPriceData!$F$15,CalculationsAndCharts!$A144+$A$11,IF($C$5,8,0),1,1))) -> 90.330002 | J144: 2468.2 | K144: 6092011.24 | L144: 217781.7184 | N144: -27.96836598 | Q144: 5876.87592 | R144: 392 | S144: -0.5159514425 | U144: -33.55347379 | X144: 392 | Y144: -0.6189837196 | Z144: 39.81276356 | AA144: -140.1872364 | AB144: -140.1872364 | AC144: -140.1872364 | AD144: 90 | AE144: -90 | AF144: 5.640794668 | AG144: 5.640794668 | AH144: 63.82079497 | AI144: 60 | AJ144: 1 | AX144: 5877600
A145: 113 | B145: =IF(A145>$B$30,NA(),IF($A145>$A$8,"",OFFSET(InputPriceData!$B$15,$A145+$A$11,0,1,1))) -> 2022-01-27 | C145: =IF(A145>$B$30,NA(),IF($A145>$A$8,"",OFFSET(InputPriceData!$G$15,CalculationsAndCharts!$A145+$A$11,IF($C$5,8,0),1,1))) -> 6998700 | D145: =IF(A145>$B$30,NA(),IF(A145>$A$8,"",OFFSET(InputPriceData!$C$15,CalculationsAndCharts!$A145+$A$11,IF($C$5,8,0),1,1))) -> 89.919998 | E145: =IF(A145>$B$30,NA(),IF(A145>$A$8,"",OFFSET(InputPriceData!$D$15,CalculationsAndCharts!$A145+$A$11,IF($C$5,8,0),1,1))) -> 91.480003 | F145: =IF(A145>$B$30,NA(),IF(A145>$A$8,"",OFFSET(InputPriceData!$E$15,CalculationsAndCharts!$A145+$A$11,IF($C$5,8,0),1,1))) -> 88.400002 | G145: =IF(A145>$B$30,NA(),IF(A145>$A$8,"",OFFSET(InputPriceData!$F$15,CalculationsAndCharts!$A145+$A$11,IF($C$5,8,0),1,1))) -> 89.279999 | J145: 2460.149997 | K145: 6052338.008 | L145: 216392.2074 | N145: -27.64896294 | Q145: 6643.799456 | R145: 392 | S145: -0.4797175278 | U145: -40.72705925 | X145: 392 | Y145: -0.7066262926 | Z145: 34.17196889 | AA145: -145.8280311 | AB145: -145.8280311 | AC145: -145.8280311 | AD145: 90 | AE145: -90 | AF145: 6.983814949 | AG145: 6.983814949 | AH145: 51.54775759 | AI145: 51.54775759 | AJ145: 0 | AY145: 6998700
A146: 114 | B146: =IF(A146>$B$30,NA(),IF($A146>$A$8,"",OFFSET(InputPriceData!$B$15,$A146+$A$11,0,1,1))) -> 2022-01-26 | C146: =IF(A146>$B$30,NA(),IF($A146>$A$8,"",OFFSET(InputPriceData!$G$15,CalculationsAndCharts!$A146+$A$11,IF($C$5,8,0),1,1))) -> 9829100 | D146: =IF(A146>$B$30,NA(),IF(A146>$A$8,"",OFFSET(InputPriceData!$C$15,CalculationsAndCharts!$A146+$A$11,IF($C$5,8,0),1,1))) -> 89.980003 | E146: =IF(A146>$B$30,NA(),IF(A146>$A$8,"",OFFSET(InputPriceData!$D$15,CalculationsAndCharts!$A146+$A$11,IF($C$5,8,0),1,1))) -> 91.519997 | F146: =IF(A146>$B$30,NA(),IF(A146>$A$8,"",OFFSET(InputPriceData!$E$15,CalculationsAndCharts!$A146+$A$11,IF($C$5,8,0),1,1))) -> 87.470001 | G146: =IF(A146>$B$30,NA(),IF(A146>$A$8,"",OFFSET(InputPriceData!$F$15,CalculationsAndCharts!$A146+$A$11,IF($C$5,8,0),1,1))) -> 88.980003 | J146: 2453.569995 | K146: 6020005.72 | L146: 215260.5787 | N146: -24.30815007 | Q146: 7290.482737 | R146: 392 | S146: -0.4026138992 | U146: -47.32260809 | X146: 392 | Y146: -0.783800483 | Z146: 27.18815394 | AA146: -152.8118461 | AB146: -152.8118461 | AC146: -152.8118461 | AD146: 90 | AE146: -90 | AF146: 7.795460489 | AG146: 7.795460489 | AH146: 46.18072281 | AI146: 46.18072281 | AJ146: 0 | AY146: 9829100
A147: 115 | B147: =IF(A147>$B$30,NA(),IF($A147>$A$8,"",OFFSET(InputPriceData!$B$15,$A147+$A$11,0,1,1))) -> 2022-01-25 | C147: =IF(A147>$B$30,NA(),IF($A147>$A$8,"",OFFSET(InputPriceData!$G$15,CalculationsAndCharts!$A147+$A$11,IF($C$5,8,0),1,1))) -> 10377400 | D147: =IF(A147>$B$30,NA(),IF(A147>$A$8,"",OFFSET(InputPriceData!$C$15,CalculationsAndCharts!$A147+$A$11,IF($C$5,8,0),1,1))) -> 85 | E147: =IF(A147>$B$30,NA(),IF(A147>$A$8,"",OFFSET(InputPriceData!$D$15,CalculationsAndCharts!$A147+$A$11,IF($C$5,8,0),1,1))) -> 91.290001 | F147: =IF(A147>$B$30,NA(),IF(A147>$A$8,"",OFFSET(InputPriceData!$E$15,CalculationsAndCharts!$A147+$A$11,IF($C$5,8,0),1,1))) -> 85 | G147: =IF(A147>$B$30,NA(),IF(A147>$A$8,"",OFFSET(InputPriceData!$F$15,CalculationsAndCharts!$A147+$A$11,IF($C$5,8,0),1,1))) -> 90.309998 | J147: 2448.019992 | K147: 5992801.881 | L147: 214303.7026 | N147: -18.57927588 | Q147: 7701.792921 | R147: 392 | S147: -0.2993972884 | U147: -52.78019561 | X147: 392 | Y147: -0.8505308574 | Z147: 19.39269346 | AA147: -160.6073065 | AB147: -160.6073065 | AC147: -160.6073065 | AD147: 90 | AE147: -90 | AF147: 6.560518899 | AG147: 6.560518899 | AH147: 54.87370824 | AI147: 54.87370824 | AJ147: 0 | AX147: 10377400
A148: 116 | B148: =IF(A148>$B$30,NA(),IF($A148>$A$8,"",OFFSET(InputPriceData!$B$15,$A148+$A$11,0,1,1))) -> 2022-01-24 | C148: =IF(A148>$B$30,NA(),IF($A148>$A$8,"",OFFSET(InputPriceData!$G$15,CalculationsAndCharts!$A148+$A$11,IF($C$5,8,0),1,1))) -> 8849700 | D148: =IF(A148>$B$30,NA(),IF(A148>$A$8,"",OFFSET(InputPriceData!$C$15,CalculationsAndCharts!$A148+$A$11,IF($C$5,8,0),1,1))) -> 85.769997 | E148: =IF(A148>$B$30,NA(),IF(A148>$A$8,"",OFFSET(InputPriceData!$D$15,CalculationsAndCharts!$A148+$A$11,IF($C$5,8,0),1,1))) -> 88.300003 | F148: =IF(A148>$B$30,NA(),IF(A148>$A$8,"",OFFSET(InputPriceData!$E$15,CalculationsAndCharts!$A148+$A$11,IF($C$5,8,0),1,1))) -> 84.800003 | G148: =IF(A148>$B$30,NA(),IF(A148>$A$8,"",OFFSET(InputPriceData!$F$15,CalculationsAndCharts!$A148+$A$11,IF($C$5,8,0),1,1))) -> 88.120003 | J148: 2441.209994 | K148: 5959506.235 | L148: 213120.0569 | N148: -13.00801335 | Q148: 7855.358662 | R148: 392 | S148: -0.2075596657 | U148: -57.10653085 | X148: 392 | Y148: -0.9112085087 | Z148: 12.83217456 | AA148: -167.1678254 | AB148: -167.1678254 | AC148: -167.1678254 | AD148: 90 | AE148: -90 | AF148: 9.297952515 | AG148: 9.297952515 | AH148: 38.7182016 | AI148: 38.7182016 | AJ148: 0 | AX148: 8849700
A149: 117 | B149: =IF(A149>$B$30,NA(),IF($A149>$A$8,"",OFFSET(InputPriceData!$B$15,$A149+$A$11,0,1,1))) -> 2022-01-21 | C149: =IF(A149>$B$30,NA(),IF($A149>$A$8,"",OFFSET(InputPriceData!$G$15,CalculationsAndCharts!$A149+$A$11,IF($C$5,8,0),1,1))) -> 5846500 | D149: =IF(A149>$B$30,NA(),IF(A149>$A$8,"",OFFSET(InputPriceData!$C$15,CalculationsAndCharts!$A149+$A$11,IF($C$5,8,0),1,1))) -> 88.519997 | E149: =IF(A149>$B$30,NA(),IF(A149>$A$8,"",OFFSET(InputPriceData!$D$15,CalculationsAndCharts!$A149+$A$11,IF($C$5,8,0),1,1))) -> 88.809998 | F149: =IF(A149>$B$30,NA(),IF(A149>$A$8,"",OFFSET(InputPriceData!$E$15,CalculationsAndCharts!$A149+$A$11,IF($C$5,8,0),1,1))) -> 86.82 | G149: =IF(A149>$B$30,NA(),IF(A149>$A$8,"",OFFSET(InputPriceData!$F$15,CalculationsAndCharts!$A149+$A$11,IF($C$5,8,0),1,1))) -> 87.209999 | J149: 2437.419993 | K149: 5941016.222 | L149: 212466.4712 | N149: -3.669454483 | Q149: 8044.971832 | R149: 392 | S149: -0.05785677726 | U149: -59.41266073 | X149: 392 | Y149: -0.9367673299 | Z149: 3.534222041 | AA149: -176.465778 | AB149: -176.465778 | AC149: -176.465778 | AD149: 90 | AE149: -90 | AF149: -348.1503932 | AG149: 10.75414181 | AH149: 33.47547449 | AI149: 33.47547449 | AJ149: 1 | AY149: 5846500
A150: 118 | B150: =IF(A150>$B$30,NA(),IF($A150>$A$8,"",OFFSET(InputPriceData!$B$15,$A150+$A$11,0,1,1))) -> 2022-01-20 | C150: =IF(A150>$B$30,NA(),IF($A150>$A$8,"",OFFSET(InputPriceData!$G$15,CalculationsAndCharts!$A150+$A$11,IF($C$5,8,0),1,1))) -> 5354700 | D150: =IF(A150>$B$30,NA(),IF(A150>$A$8,"",OFFSET(InputPriceData!$C$15,CalculationsAndCharts!$A150+$A$11,IF($C$5,8,0),1,1))) -> 89.959999 | E150: =IF(A150>$B$30,NA(),IF(A150>$A$8,"",OFFSET(InputPriceData!$D$15,CalculationsAndCharts!$A150+$A$11,IF($C$5,8,0),1,1))) -> 90.830002 | F150: =IF(A150>$B$30,NA(),IF(A150>$A$8,"",OFFSET(InputPriceData!$E$15,CalculationsAndCharts!$A150+$A$11,IF($C$5,8,0),1,1))) -> 88.25 | G150: =IF(A150>$B$30,NA(),IF(A150>$A$8,"",OFFSET(InputPriceData!$F$15,CalculationsAndCharts!$A150+$A$11,IF($C$5,8,0),1,1))) -> 88.360001 | J150: 2436.369998 | K150: 5935898.767 | L150: 212284.4336 | N150: 8.619437724 | Q150: 8065.373137 | R150: 392 | S150: 0.1357318292 | U150: -58.97323759 | X150: 392 | Y150: -0.9286621317 | Z150: 171.6846153 | AA150: 171.6846153 | AB150: 171.6846153 | AC150: 171.6846153 | AD150: 90 | AE150: -90 | AF150: 10.75414181 | AG150: 10.75414181 | AH150: 33.47547449 | AI150: 33.47547449 | AJ150: 0 | AY150: 5354700
A151: 119 | B151: =IF(A151>$B$30,NA(),IF($A151>$A$8,"",OFFSET(InputPriceData!$B$15,$A151+$A$11,0,1,1))) -> 2022-01-19 | C151: =IF(A151>$B$30,NA(),IF($A151>$A$8,"",OFFSET(InputPriceData!$G$15,CalculationsAndCharts!$A151+$A$11,IF($C$5,8,0),1,1))) -> 4887800 | D151: =IF(A151>$B$30,NA(),IF(A151>$A$8,"",OFFSET(InputPriceData!$C$15,CalculationsAndCharts!$A151+$A$11,IF($C$5,8,0),1,1))) -> 90.730003 | E151: =IF(A151>$B$30,NA(),IF(A151>$A$8,"",OFFSET(InputPriceData!$D$15,CalculationsAndCharts!$A151+$A$11,IF($C$5,8,0),1,1))) -> 91.339996 | F151: =IF(A151>$B$30,NA(),IF(A151>$A$8,"",OFFSET(InputPriceData!$E$15,CalculationsAndCharts!$A151+$A$11,IF($C$5,8,0),1,1))) -> 89.580002 | G151: =IF(A151>$B$30,NA(),IF(A151>$A$8,"",OFFSET(InputPriceData!$F$15,CalculationsAndCharts!$A151+$A$11,IF($C$5,8,0),1,1))) -> 89.699997 | J151: 2434.170001 | K151: 5925183.594 | L151: 211900.4901 | N151: 19.38127185 | Q151: 8030.128875 | R151: 392 | S151: 0.3058693875 | U151: -56.06619546 | X151: 392 | Y151: -0.8848197887 | Z151: 160.9304735 | AA151: 160.9304735 | AB151: 160.9304735 | AC151: 160.9304735 | AD151: 90 | AE151: -90 | AF151: 9.886294762 | AG151: 9.886294762 | AH151: 36.41404679 | AI151: 36.41404679 | AJ151: 0 | AY151: 4887800
A152: 120 | B152: =IF(A152>$B$30,NA(),IF($A152>$A$8,"",OFFSET(InputPriceData!$B$15,$A152+$A$11,0,1,1))) -> 2022-01-18 | C152: =IF(A152>$B$30,NA(),IF($A152>$A$8,"",OFFSET(InputPriceData!$G$15,CalculationsAndCharts!$A152+$A$11,IF($C$5,8,0),1,1))) -> 6010200 | D152: =IF(A152>$B$30,NA(),IF(A152>$A$8,"",OFFSET(InputPriceData!$C$15,CalculationsAndCharts!$A152+$A$11,IF($C$5,8,0),1,1))) -> 91.330002 | E152: =IF(A152>$B$30,NA(),IF(A152>$A$8,"",OFFSET(InputPriceData!$D$15,CalculationsAndCharts!$A152+$A$11,IF($C$5,8,0),1,1))) -> 91.900002 | F152: =IF(A152>$B$30,NA(),IF(A152>$A$8,"",OFFSET(InputPriceData!$E$15,CalculationsAndCharts!$A152+$A$11,IF($C$5,8,0),1,1))) -> 90.279999 | G152: =IF(A152>$B$30,NA(),IF(A152>$A$8,"",OFFSET(InputPriceData!$F$15,CalculationsAndCharts!$A152+$A$11,IF($C$5,8,0),1,1))) -> 90.75 | J152: 2430.970004 | K152: 5909615.16 | L152: 211336.6506 | N152: 28.25147868 | Q152: 7811.057365 | R152: 392 | S152: 0.4520653994 | U152: -51.05982649 | X152: 392 | Y152: -0.8170326628 | Z152: 151.0441787 | AA152: 151.0441787 | AB152: 151.0441787 | AC152: 151.0441787 | AD152: 90 | AE152: -90 | AF152: 7.693255361 | AG152: 7.693255361 | AH152: 46.79423509 | AI152: 46.79423509 | AJ152: 0 | AY152: 6010200
A153: 121 | B153: =IF(A153>$B$30,NA(),IF($A153>$A$8,"",OFFSET(InputPriceData!$B$15,$A153+$A$11,0,1,1))) -> 2022-01-14 | C153: =IF(A153>$B$30,NA(),IF($A153>$A$8,"",OFFSET(InputPriceData!$G$15,CalculationsAndCharts!$A153+$A$11,IF($C$5,8,0),1,1))) -> 4987400 | D153: =IF(A153>$B$30,NA(),IF(A153>$A$8,"",OFFSET(InputPriceData!$C$15,CalculationsAndCharts!$A153+$A$11,IF($C$5,8,0),1,1))) -> 91.050003 | E153: =IF(A153>$B$30,NA(),IF(A153>$A$8,"",OFFSET(InputPriceData!$D$15,CalculationsAndCharts!$A153+$A$11,IF($C$5,8,0),1,1))) -> 92.480003 | F153: =IF(A153>$B$30,NA(),IF(A153>$A$8,"",OFFSET(InputPriceData!$E$15,CalculationsAndCharts!$A153+$A$11,IF($C$5,8,0),1,1))) -> 90.720001 | G153: =IF(A153>$B$30,NA(),IF(A153>$A$8,"",OFFSET(InputPriceData!$F$15,CalculationsAndCharts!$A153+$A$11,IF($C$5,8,0),1,1))) -> 92.330002 | J153: 2425.230006 | K153: 5881740.582 | L153: 210327.7886 | N153: 33.30895114 | Q153: 7437.498031 | R153: 392 | S153: 0.5462136178 | U153: -44.77037433 | X153: 392 | Y153: -0.7341626588 | Z153: 143.3509234 | AA153: 143.3509234 | AB153: 143.3509234 | AC153: 143.3509234 | AD153: 90 | AE153: -90 | AF153: 5.13197096 | AG153: 5.13197096 | AH153: 70.14848736 | AI153: 60 | AJ153: 1 | AX153: 4987400
A154: 122 | B154: =IF(A154>$B$30,NA(),IF($A154>$A$8,"",OFFSET(InputPriceData!$B$15,$A154+$A$11,0,1,1))) -> 2022-01-13 | C154: =IF(A154>$B$30,NA(),IF($A154>$A$8,"",OFFSET(InputPriceData!$G$15,CalculationsAndCharts!$A154+$A$11,IF($C$5,8,0),1,1))) -> 5026300 | D154: =IF(A154>$B$30,NA(),IF(A154>$A$8,"",OFFSET(InputPriceData!$C$15,CalculationsAndCharts!$A154+$A$11,IF($C$5,8,0),1,1))) -> 91.379997 | E154: =IF(A154>$B$30,NA(),IF(A154>$A$8,"",OFFSET(InputPriceData!$D$15,CalculationsAndCharts!$A154+$A$11,IF($C$5,8,0),1,1))) -> 92.459999 | F154: =IF(A154>$B$30,NA(),IF(A154>$A$8,"",OFFSET(InputPriceData!$E$15,CalculationsAndCharts!$A154+$A$11,IF($C$5,8,0),1,1))) -> 90.959999 | G154: =IF(A154>$B$30,NA(),IF(A154>$A$8,"",OFFSET(InputPriceData!$F$15,CalculationsAndCharts!$A154+$A$11,IF($C$5,8,0),1,1))) -> 91.559998 | J154: 2416.660006 | K154: 5840245.585 | L154: 208818.6972 | N154: 34.08103949 | Q154: 6677.938074 | R154: 392 | S154: 0.5898025375 | U154: -38.14295306 | X154: 392 | Y154: -0.660097545 | Z154: 138.2189524 | AA154: 138.2189524 | AB154: 138.2189524 | AC154: 138.2189524 | AD154: 90 | AE154: -90 | AF154: 2.855919969 | AG154: 2.855919969 | AH154: 126.0539525 | AI154: 60 | AJ154: 1 | AX154: 5026300
A155: 123 | B155: =IF(A155>$B$30,NA(),IF($A155>$A$8,"",OFFSET(InputPriceData!$B$15,$A155+$A$11,0,1,1))) -> 2022-01-12 | C155: =IF(A155>$B$30,NA(),IF($A155>$A$8,"",OFFSET(InputPriceData!$G$15,CalculationsAndCharts!$A155+$A$11,IF($C$5,8,0),1,1))) -> 4613100 | D155: =IF(A155>$B$30,NA(),IF(A155>$A$8,"",OFFSET(InputPriceData!$C$15,CalculationsAndCharts!$A155+$A$11,IF($C$5,8,0),1,1))) -> 91 | E155: =IF(A155>$B$30,NA(),IF(A155>$A$8,"",OFFSET(InputPriceData!$D$15,CalculationsAndCharts!$A155+$A$11,IF($C$5,8,0),1,1))) -> 91.550003 | F155: =IF(A155>$B$30,NA(),IF(A155>$A$8,"",OFFSET(InputPriceData!$E$15,CalculationsAndCharts!$A155+$A$11,IF($C$5,8,0),1,1))) -> 90.839996 | G155: =IF(A155>$B$30,NA(),IF(A155>$A$8,"",OFFSET(InputPriceData!$F$15,CalculationsAndCharts!$A155+$A$11,IF($C$5,8,0),1,1))) -> 91.07 | J155: 2406.210009 | K155: 5789846.607 | L155: 207014.2963 | N155: 31.52616846 | Q155: 6553.688059 | R155: 392 | S155: 0.550735798 | U155: -31.92822794 | X155: 392 | Y155: -0.5577594409 | Z155: 135.3630324 | AA155: 135.3630324 | AB155: 135.3630324 | AC155: 135.3630324 | AD155: 90 | AE155: -90 | AF155: 1.185921151 | AG155: 1.185921151 | AH155: 303.5614971 | AI155: 60 | AJ155: 1 | AX155: 4613100
A156: 124 | B156: =IF(A156>$B$30,NA(),IF($A156>$A$8,"",OFFSET(InputPriceData!$B$15,$A156+$A$11,0,1,1))) -> 2022-01-11 | C156: =IF(A156>$B$30,NA(),IF($A156>$A$8,"",OFFSET(InputPriceData!$G$15,CalculationsAndCharts!$A156+$A$11,IF($C$5,8,0),1,1))) -> 4529800 | D156: =IF(A156>$B$30,NA(),IF(A156>$A$8,"",OFFSET(InputPriceData!$C$15,CalculationsAndCharts!$A156+$A$11,IF($C$5,8,0),1,1))) -> 89.739998 | E156: =IF(A156>$B$30,NA(),IF(A156>$A$8,"",OFFSET(InputPriceData!$D$15,CalculationsAndCharts!$A156+$A$11,IF($C$5,8,0),1,1))) -> 90.839996 | F156: =IF(A156>$B$30,NA(),IF(A156>$A$8,"",OFFSET(InputPriceData!$E$15,CalculationsAndCharts!$A156+$A$11,IF($C$5,8,0),1,1))) -> 89.269997 | G156: =IF(A156>$B$30,NA(),IF(A156>$A$8,"",OFFSET(InputPriceData!$F$15,CalculationsAndCharts!$A156+$A$11,IF($C$5,8,0),1,1))) -> 90.720001 | J156: 2396.800013 | K156: 5744650.302 | L156: 205388.9076 | N156: 28.66637294 | Q156: 6239.111046 | R156: 392 | S156: 0.5132469613 | U156: -26.20640926 | X156: 392 | Y156: -0.4692034093 | Z156: 132.4331313 | AA156: 132.4331313 | AB156: 132.4331313 | AC156: 134.1771113 | AD156: 90 | AE156: -90 | AF156: 0 | AG156: 6.012344398 | AH156: 59.87680947 | AI156: 59.87680947 | AJ156: 1 | AX156: 4529800
A157: 125 | B157: =IF(A157>$B$30,NA(),IF($A157>$A$8,"",OFFSET(InputPriceData!$B$15,$A157+$A$11,0,1,1))) -> 2022-01-10 | C157: =IF(A157>$B$30,NA(),IF($A157>$A$8,"",OFFSET(InputPriceData!$G$15,CalculationsAndCharts!$A157+$A$11,IF($C$5,8,0),1,1))) -> 4884200 | D157: =IF(A157>$B$30,NA(),IF(A157>$A$8,"",OFFSET(InputPriceData!$C$15,CalculationsAndCharts!$A157+$A$11,IF($C$5,8,0),1,1))) -> 90.68 | E157: =IF(A157>$B$30,NA(),IF(A157>$A$8,"",OFFSET(InputPriceData!$D$15,CalculationsAndCharts!$A157+$A$11,IF($C$5,8,0),1,1))) -> 90.790001 | F157: =IF(A157>$B$30,NA(),IF(A157>$A$8,"",OFFSET(InputPriceData!$E$15,CalculationsAndCharts!$A157+$A$11,IF($C$5,8,0),1,1))) -> 89.239998 | G157: =IF(A157>$B$30,NA(),IF(A157>$A$8,"",OFFSET(InputPriceData!$F$15,CalculationsAndCharts!$A157+$A$11,IF($C$5,8,0),1,1))) -> 89.730003 | J157: 2385.130015 | K157: 5688845.188 | L157: 203407.692 | N157: 22.401715 | Q157: 6570.187909 | R157: 392 | S157: 0.3908475287 | U157: -21.76731064 | X157: 392 | Y157: -0.3797789396 | Z157: 134.1771113 | AA157: 134.1771113 | AB157: 134.1771113 | AC157: 134.1771113 | AD157: 90 | AE157: -90 | AF157: -0.9847090921 | AG157: 6.012344398 | AH157: 59.87680947 | AI157: 59.87680947 | AJ157: 1 | AY157: 4884200
A158: 126 | B158: =IF(A158>$B$30,NA(),IF($A158>$A$8,"",OFFSET(InputPriceData!$B$15,$A158+$A$11,0,1,1))) -> 2022-01-07 | C158: =IF(A158>$B$30,NA(),IF($A158>$A$8,"",OFFSET(InputPriceData!$G$15,CalculationsAndCharts!$A158+$A$11,IF($C$5,8,0),1,1))) -> 4835300 | D158: =IF(A158>$B$30,NA(),IF(A158>$A$8,"",OFFSET(InputPriceData!$C$15,CalculationsAndCharts!$A158+$A$11,IF($C$5,8,0),1,1))) -> 90.260002 | E158: =IF(A158>$B$30,NA(),IF(A158>$A$8,"",OFFSET(InputPriceData!$D$15,CalculationsAndCharts!$A158+$A$11,IF($C$5,8,0),1,1))) -> 91.370003 | F158: =IF(A158>$B$30,NA(),IF(A158>$A$8,"",OFFSET(InputPriceData!$E$15,CalculationsAndCharts!$A158+$A$11,IF($C$5,8,0),1,1))) -> 90.089996 | G158: =IF(A158>$B$30,NA(),IF(A158>$A$8,"",OFFSET(InputPriceData!$F$15,CalculationsAndCharts!$A158+$A$11,IF($C$5,8,0),1,1))) -> 90.440002 | J158: 2376.32001 | K158: 5646896.79 | L158: 201904.2647 | N158: 18.09461975 | Q158: 6422.620299 | R158: 392 | S158: 0.3193069232 | U158: -18.19711871 | X158: 392 | Y158: -0.3211156724 | Z158: 135.1618204 | AA158: 135.1618204 | AB158: 135.1618204 | AC158: 135.1618204 | AD158: 90 | AE158: -90 | AF158: -1.772467692 | AG158: 6.012344398 | AH158: 59.87680947 | AI158: 59.87680947 | AJ158: 1 | AX158: 4835300
A159: 127 | B159: =IF(A159>$B$30,NA(),IF($A159>$A$8,"",OFFSET(InputPriceData!$B$15,$A159+$A$11,0,1,1))) -> 2022-01-06 | C159: =IF(A159>$B$30,NA(),IF($A159>$A$8,"",OFFSET(InputPriceData!$G$15,CalculationsAndCharts!$A159+$A$11,IF($C$5,8,0),1,1))) -> 5559000 | D159: =IF(A159>$B$30,NA(),IF(A159>$A$8,"",OFFSET(InputPriceData!$C$15,CalculationsAndCharts!$A159+$A$11,IF($C$5,8,0),1,1))) -> 90.400002 | E159: =IF(A159>$B$30,NA(),IF(A159>$A$8,"",OFFSET(InputPriceData!$D$15,CalculationsAndCharts!$A159+$A$11,IF($C$5,8,0),1,1))) -> 90.93 | F159: =IF(A159>$B$30,NA(),IF(A159>$A$8,"",OFFSET(InputPriceData!$E$15,CalculationsAndCharts!$A159+$A$11,IF($C$5,8,0),1,1))) -> 89.610001 | G159: =IF(A159>$B$30,NA(),IF(A159>$A$8,"",OFFSET(InputPriceData!$F$15,CalculationsAndCharts!$A159+$A$11,IF($C$5,8,0),1,1))) -> 90.059998 | J159: 2368.82001 | K159: 5611308.24 | L159: 200603.9146 | N159: 14.37823036 | Q159: 5601.369609 | R159: 392 | S159: 0.2716897911 | U159: -15.38335427 | X159: 392 | Y159: -0.2906825251 | Z159: 136.9342881 | AA159: 136.9342881 | AB159: 136.9342881 | AC159: 136.9342881 | AD159: 90 | AE159: -90 | AF159: -4.767010108 | AG159: 6.012344398 | AH159: 59.87680947 | AI159: 59.87680947 | AJ159: 1 | AY159: 5559000
A160: 128 | B160: =IF(A160>$B$30,NA(),IF($A160>$A$8,"",OFFSET(InputPriceData!$B$15,$A160+$A$11,0,1,1))) -> 2022-01-05 | C160: =IF(A160>$B$30,NA(),IF($A160>$A$8,"",OFFSET(InputPriceData!$G$15,CalculationsAndCharts!$A160+$A$11,IF($C$5,8,0),1,1))) -> 6833600 | D160: =IF(A160>$B$30,NA(),IF(A160>$A$8,"",OFFSET(InputPriceData!$C$15,CalculationsAndCharts!$A160+$A$11,IF($C$5,8,0),1,1))) -> 90.199997 | E160: =IF(A160>$B$30,NA(),IF(A160>$A$8,"",OFFSET(InputPriceData!$D$15,CalculationsAndCharts!$A160+$A$11,IF($C$5,8,0),1,1))) -> 91.529999 | F160: =IF(A160>$B$30,NA(),IF(A160>$A$8,"",OFFSET(InputPriceData!$E$15,CalculationsAndCharts!$A160+$A$11,IF($C$5,8,0),1,1))) -> 89.400002 | G160: =IF(A160>$B$30,NA(),IF(A160>$A$8,"",OFFSET(InputPriceData!$F$15,CalculationsAndCharts!$A160+$A$11,IF($C$5,8,0),1,1))) -> 89.57 | J160: 2361.760012 | K160: 5577910.354 | L160: 199382.1114 | N160: 10.55786736 | Q160: 4788.76439 | R160: 392 | S160: 0.2157642382 | U160: -13.36920156 | X160: 392 | Y160: -0.2732176388 | Z160: 141.7012982 | AA160: 141.7012982 | AB160: 141.7012982 | AC160: 141.7012982 | AD160: 90 | AE160: -90 | AF160: 6.012344398 | AG160: 6.012344398 | AH160: 59.87680947 | AI160: 59.87680947 | AJ160: 0 | AY160: 6833600
A161: 129 | B161: =IF(A161>$B$30,NA(),IF($A161>$A$8,"",OFFSET(InputPriceData!$B$15,$A161+$A$11,0,1,1))) -> 2022-01-04 | C161: =IF(A161>$B$30,NA(),IF($A161>$A$8,"",OFFSET(InputPriceData!$G$15,CalculationsAndCharts!$A161+$A$11,IF($C$5,8,0),1,1))) -> 6044200 | D161: =IF(A161>$B$30,NA(),IF(A161>$A$8,"",OFFSET(InputPriceData!$C$15,CalculationsAndCharts!$A161+$A$11,IF($C$5,8,0),1,1))) -> 87.870003 | E161: =IF(A161>$B$30,NA(),IF(A161>$A$8,"",OFFSET(InputPriceData!$D$15,CalculationsAndCharts!$A161+$A$11,IF($C$5,8,0),1,1))) -> 90.07 | F161: =IF(A161>$B$30,NA(),IF(A161>$A$8,"",OFFSET(InputPriceData!$E$15,CalculationsAndCharts!$A161+$A$11,IF($C$5,8,0),1,1))) -> 87.699997 | G161: =IF(A161>$B$30,NA(),IF(A161>$A$8,"",OFFSET(InputPriceData!$F$15,CalculationsAndCharts!$A161+$A$11,IF($C$5,8,0),1,1))) -> 90.019997 | J161: 2359.380014 | K161: 5566674.05 | L161: 198961.4229 | M161: =IF($A161<=$H$30,COS($I161),IF($A161=$H$30+1,"Sum COS",IF($A161=$H$30+2,SUM(OFFSET(M$33,0,0,$H$30,1)),NA()))) ->  | N161: =IF($A161>$L$30,NA(),SUMPRODUCT(OFFSET(G161,0,0,$A$19,1),OFFSET($M$33,0,0,$A$19,1))) -> 10.94776032 | Q161: =IF($A161>$L$30,NA(),$A$19*L161-K161) -> 4245.791575 | R161: =IF($A161>$L$30,NA(),$A$19*$O$33-$P$33^2) -> 392 | S161: =IF($A161>$L$30,NA(),IF(AND(Q161>0,R161>0),($A$19*N161-J161*$P$33)/SQRT(Q161*R161))) -> 0.2376079367 | T161: =IF($A161<=$H$30,-SIN($I161),IF($A161=$H$30+1,"Sum SIN",IF($A161=$H$30+2,SUM(OFFSET(T$33,0,0,$H$30,1)),NA()))) ->  | U161: -11.21426064 | X161: 392 | Y161: -0.2433920048 | Z161: 135.6889538 | AA161: 135.6889538 | AB161: =IF($A161>$AB$30,NA(),IF($A161=$AB$30,AA161,AA161+IF(AND(ABS(AB162)-ABS(AA161-360)<(AA161-AB162),AA161>90,AB162<-90),-360,0))) -> 135.6889538 | AC161: 135.6889538 | AD161: 90 | AE161: -90 | AF161: 4.846322015 | AG161: 4.846322015 | AH161: 74.28313655 | AI161: 60 | AJ161: =IF(AC161-AC162<=6,IF(OR(AC161>=90,AC161<=-90),1,IF(AND(AC161>-90,AC161<90),-1,0)),0) -> 1 | AX161: =IF(G161>=D161,C161,NA()) -> 6044200 | AY161: =IF(G161<D161,C161,NA()) -> 
A162: 130 | B162: =IF(A162>$B$30,NA(),IF($A162>$A$8,"",OFFSET(InputPriceData!$B$15,$A162+$A$11,0,1,1))) -> 2022-01-03 | C162: =IF(A162>$B$30,NA(),IF($A162>$A$8,"",OFFSET(InputPriceData!$G$15,CalculationsAndCharts!$A162+$A$11,IF($C$5,8,0),1,1))) -> 5169200 | D162: =IF(A162>$B$30,NA(),IF(A162>$A$8,"",OFFSET(InputPriceData!$C$15,CalculationsAndCharts!$A162+$A$11,IF($C$5,8,0),1,1))) -> 86.080002 | E162: =IF(A162>$B$30,NA(),IF(A162>$A$8,"",OFFSET(InputPriceData!$D$15,CalculationsAndCharts!$A162+$A$11,IF($C$5,8,0),1,1))) -> 87.139999 | F162: =IF(A162>$B$30,NA(),IF(A162>$A$8,"",OFFSET(InputPriceData!$E$15,CalculationsAndCharts!$A162+$A$11,IF($C$5,8,0),1,1))) -> 86.07 | G162: =IF(A162>$B$30,NA(),IF(A162>$A$8,"",OFFSET(InputPriceData!$F$15,CalculationsAndCharts!$A162+$A$11,IF($C$5,8,0),1,1))) -> 86.970001 | H162: =IF($A162>$H$30,NA(),(A162-1)*$D$19) ->  | I162: =IF($A162>$H$30+1,NA(),RADIANS(H162)) ->  | J162: =IF($A162>$L$30,NA(),SUM(OFFSET(G162,0,0,$A$19,1))) -> 2356.670015 | K162: =IF($A162>$L$30,NA(),J162*J162) -> 5553893.56 | L162: =IF($A162>$L$30,NA(),SUMSQ(OFFSET(G162,0,0,$A$19,1))) -> 198480.8588 | N162: 10.52663119 | Q162: 3570.487382 | R162: 392 | S162: 0.2491383902 | U162: =IF($A162>$L$30,NA(),SUMPRODUCT(OFFSET(G162,0,0,$A$19,1),OFFSET($T$33,0,0,$A$19,1))) -> -9.10002137 | X162: =IF($A162>$L$30,NA(),$A$19*$V$33-$W$33^2) -> 392 | Y162: =IF($A162>$L$30,NA(),IF(AND(Q162>0,R162>0),($A$19*U162-J162*$W$33)/SQRT(Q162*X162))) -> -0.2153741908 | Z162: =IF($A162>$L$30,NA(),IF($S162<>0,90-DEGREES(ATAN($Y162/$S162)))) -> 130.8426318 | AA162: =IF($A162>$L$30,NA(),Z162+IF($S162<0,-180,0)) -> 130.8426318 | AB162: 130.8426318 | AC162: =IF($A162>$AB$30,NA(),IF($A162=$AB$30,AB162,IF(AND(AB162<AC163,OR(AND(AB162>-135,AC163<135),AND(AB162<-90,AC163<-90))),AC163,AB162))) -> 130.8426318 | AD162: 90 | AE162: -90 | AF162: =IF($A162>$AF$30,NA(),AC162-AC163) -> 12.39510134 | AG162: =IF($A162>$AF$30,NA(),IF($A162=$AF$30,AF162,IF(AF162<=0,AG163,AF162))) -> 12.39510134 | AH162: =360/AG162 -> 29.04373188 | AI162: =IF(AH162>60,60,AH162) -> 29.04373188 | AJ162: 0 | AX162: 5169200
A163: 131 | B163: =IF(A163>$B$30,NA(),IF($A163>$A$8,"",OFFSET(InputPriceData!$B$15,$A163+$A$11,0,1,1))) -> 2021-12-31 | C163: =IF(A163>$B$30,NA(),IF($A163>$A$8,"",OFFSET(InputPriceData!$G$15,CalculationsAndCharts!$A163+$A$11,IF($C$5,8,0),1,1))) -> 2667700 | D163: =IF(A163>$B$30,NA(),IF(A163>$A$8,"",OFFSET(InputPriceData!$C$15,CalculationsAndCharts!$A163+$A$11,IF($C$5,8,0),1,1))) -> 85.730003 | E163: =IF(A163>$B$30,NA(),IF(A163>$A$8,"",OFFSET(InputPriceData!$D$15,CalculationsAndCharts!$A163+$A$11,IF($C$5,8,0),1,1))) -> 86.330002 | F163: =IF(A163>$B$30,NA(),IF(A163>$A$8,"",OFFSET(InputPriceData!$E$15,CalculationsAndCharts!$A163+$A$11,IF($C$5,8,0),1,1))) -> 85.5 | G163: =IF(A163>$B$30,NA(),IF(A163>$A$8,"",OFFSET(InputPriceData!$F$15,CalculationsAndCharts!$A163+$A$11,IF($C$5,8,0),1,1))) -> 86.059998 | J163: 2356.500017 | K163: 5553092.33 | L163: 198451.3183 | N163: 12.12191603 | Q163: 3544.581373 | R163: 392 | S163: 0.287941189 | U163: -6.567297144 | X163: 392 | Y163: -0.155998057 | Z163: 118.4475304 | AA163: 118.4475304 | AB163: 118.4475304 | AC163: 118.4475304 | AD163: 90 | AE163: -90 | AF163: 11.55796221 | AG163: 11.55796221 | AH163: 31.14735914 | AI163: 31.14735914 | AJ163: 0 | AX163: 2667700
A164: 132 | B164: =IF(A164>$B$30,NA(),IF($A164>$A$8,"",OFFSET(InputPriceData!$B$15,$A164+$A$11,0,1,1))) -> 2021-12-30 | C164: =IF(A164>$B$30,NA(),IF($A164>$A$8,"",OFFSET(InputPriceData!$G$15,CalculationsAndCharts!$A164+$A$11,IF($C$5,8,0),1,1))) -> 2459400 | D164: =IF(A164>$B$30,NA(),IF(A164>$A$8,"",OFFSET(InputPriceData!$C$15,CalculationsAndCharts!$A164+$A$11,IF($C$5,8,0),1,1))) -> 86.040001 | E164: =IF(A164>$B$30,NA(),IF(A164>$A$8,"",OFFSET(InputPriceData!$D$15,CalculationsAndCharts!$A164+$A$11,IF($C$5,8,0),1,1))) -> 86.5 | F164: =IF(A164>$B$30,NA(),IF(A164>$A$8,"",OFFSET(InputPriceData!$E$15,CalculationsAndCharts!$A164+$A$11,IF($C$5,8,0),1,1))) -> 85.699997 | G164: =IF(A164>$B$30,NA(),IF(A164>$A$8,"",OFFSET(InputPriceData!$F$15,CalculationsAndCharts!$A164+$A$11,IF($C$5,8,0),1,1))) -> 85.800003 | J164: 2355.870019 | K164: 5550123.546 | L164: 198343.2799 | N164: 12.66515274 | Q164: 3488.29111 | R164: 392 | S164: 0.3032627502 | U164: -3.845448961 | X164: 392 | Y164: -0.09207795998 | Z164: 106.8895682 | AA164: 106.8895682 | AB164: 106.8895682 | AC164: 106.8895682 | AD164: 90 | AE164: -90 | AF164: 14.14919241 | AG164: 14.14919241 | AH164: 25.44314824 | AI164: 25.44314824 | AJ164: 0 | AY164: 2459400
A165: 133 | B165: =IF(A165>$B$30,NA(),IF($A165>$A$8,"",OFFSET(InputPriceData!$B$15,$A165+$A$11,0,1,1))) -> 2021-12-29 | C165: =IF(A165>$B$30,NA(),IF($A165>$A$8,"",OFFSET(InputPriceData!$G$15,CalculationsAndCharts!$A165+$A$11,IF($C$5,8,0),1,1))) -> 2085300 | D165: =IF(A165>$B$30,NA(),IF(A165>$A$8,"",OFFSET(InputPriceData!$C$15,CalculationsAndCharts!$A165+$A$11,IF($C$5,8,0),1,1))) -> 85.580002 | E165: =IF(A165>$B$30,NA(),IF(A165>$A$8,"",OFFSET(InputPriceData!$D$15,CalculationsAndCharts!$A165+$A$11,IF($C$5,8,0),1,1))) -> 86.07 | F165: =IF(A165>$B$30,NA(),IF(A165>$A$8,"",OFFSET(InputPriceData!$E$15,CalculationsAndCharts!$A165+$A$11,IF($C$5,8,0),1,1))) -> 85.220001 | G165: =IF(A165>$B$30,NA(),IF(A165>$A$8,"",OFFSET(InputPriceData!$F$15,CalculationsAndCharts!$A165+$A$11,IF($C$5,8,0),1,1))) -> 85.889999 | J165: 2356.98002 | K165: 5555354.815 | L165: 198534.9882 | N165: 14.28547477 | Q165: 3624.854707 | R165: 392 | S165: 0.3355555101 | U165: -0.6837754501 | X165: 392 | Y165: -0.01606139268 | Z165: 92.74037578 | AA165: 92.74037578 | AB165: 92.74037578 | AC165: 92.74037578 | AD165: 90 | AE165: -90 | AF165: 13.12658218 | AG165: 13.12658218 | AH165: 27.42526539 | AI165: 27.42526539 | AJ165: 0 | AX165: 2085300
A166: 134 | B166: =IF(A166>$B$30,NA(),IF($A166>$A$8,"",OFFSET(InputPriceData!$B$15,$A166+$A$11,0,1,1))) -> 2021-12-28 | C166: =IF(A166>$B$30,NA(),IF($A166>$A$8,"",OFFSET(InputPriceData!$G$15,CalculationsAndCharts!$A166+$A$11,IF($C$5,8,0),1,1))) -> 3220100 | D166: =IF(A166>$B$30,NA(),IF(A166>$A$8,"",OFFSET(InputPriceData!$C$15,CalculationsAndCharts!$A166+$A$11,IF($C$5,8,0),1,1))) -> 85.07 | E166: =IF(A166>$B$30,NA(),IF(A166>$A$8,"",OFFSET(InputPriceData!$D$15,CalculationsAndCharts!$A166+$A$11,IF($C$5,8,0),1,1))) -> 86.349998 | F166: =IF(A166>$B$30,NA(),IF(A166>$A$8,"",OFFSET(InputPriceData!$E$15,CalculationsAndCharts!$A166+$A$11,IF($C$5,8,0),1,1))) -> 84.779999 | G166: =IF(A166>$B$30,NA(),IF(A166>$A$8,"",OFFSET(InputPriceData!$F$15,CalculationsAndCharts!$A166+$A$11,IF($C$5,8,0),1,1))) -> 86.019997 | J166: 2358.540018 | K166: 5562711.017 | L166: 198805.3982 | N166: 15.60034804 | Q166: 3840.134197 | R166: 392 | S166: 0.3560213844 | U166: 2.859317629 | X166: 392 | Y166: 0.06525355832 | Z166: 79.6137936 | AA166: 79.6137936 | AB166: 79.6137936 | AC166: 79.6137936 | AD166: 90 | AE166: -90 | AF166: 11.26611561 | AG166: 11.26611561 | AH166: 31.95422562 | AI166: 31.95422562 | AJ166: 0 | AX166: 3220100
A167: 135 | B167: =IF(A167>$B$30,NA(),IF($A167>$A$8,"",OFFSET(InputPriceData!$B$15,$A167+$A$11,0,1,1))) -> 2021-12-27 | C167: =IF(A167>$B$30,NA(),IF($A167>$A$8,"",OFFSET(InputPriceData!$G$15,CalculationsAndCharts!$A167+$A$11,IF($C$5,8,0),1,1))) -> 2743700 | D167: =IF(A167>$B$30,NA(),IF(A167>$A$8,"",OFFSET(InputPriceData!$C$15,CalculationsAndCharts!$A167+$A$11,IF($C$5,8,0),1,1))) -> 84.720001 | E167: =IF(A167>$B$30,NA(),IF(A167>$A$8,"",OFFSET(InputPriceData!$D$15,CalculationsAndCharts!$A167+$A$11,IF($C$5,8,0),1,1))) -> 85.400002 | F167: =IF(A167>$B$30,NA(),IF(A167>$A$8,"",OFFSET(InputPriceData!$E$15,CalculationsAndCharts!$A167+$A$11,IF($C$5,8,0),1,1))) -> 84.239998 | G167: =IF(A167>$B$30,NA(),IF(A167>$A$8,"",OFFSET(InputPriceData!$F$15,CalculationsAndCharts!$A167+$A$11,IF($C$5,8,0),1,1))) -> 85.239998 | J167: 2361.420023 | K167: 5576304.525 | L167: 199309.1687 | N167: 17.38075398 | Q167: 4352.198887 | R167: 392 | S167: 0.3725883259 | U167: 6.899893985 | X167: 392 | Y167: 0.1479118772 | Z167: 68.34767799 | AA167: 68.34767799 | AB167: 68.34767799 | AC167: 68.34767799 | AD167: 90 | AE167: -90 | AF167: 9.004742864 | AG167: 9.004742864 | AH167: 39.97893171 | AI167: 39.97893171 | AJ167: 0 | AX167: 2743700
A168: 136 | B168: =IF(A168>$B$30,NA(),IF($A168>$A$8,"",OFFSET(InputPriceData!$B$15,$A168+$A$11,0,1,1))) -> 2021-12-23 | C168: =IF(A168>$B$30,NA(),IF($A168>$A$8,"",OFFSET(InputPriceData!$G$15,CalculationsAndCharts!$A168+$A$11,IF($C$5,8,0),1,1))) -> 2650000 | D168: =IF(A168>$B$30,NA(),IF(A168>$A$8,"",OFFSET(InputPriceData!$C$15,CalculationsAndCharts!$A168+$A$11,IF($C$5,8,0),1,1))) -> 84.559998 | E168: =IF(A168>$B$30,NA(),IF(A168>$A$8,"",OFFSET(InputPriceData!$D$15,CalculationsAndCharts!$A168+$A$11,IF($C$5,8,0),1,1))) -> 85.199997 | F168: =IF(A168>$B$30,NA(),IF(A168>$A$8,"",OFFSET(InputPriceData!$E$15,CalculationsAndCharts!$A168+$A$11,IF($C$5,8,0),1,1))) -> 84.519997 | G168: =IF(A168>$B$30,NA(),IF(A168>$A$8,"",OFFSET(InputPriceData!$F$15,CalculationsAndCharts!$A168+$A$11,IF($C$5,8,0),1,1))) -> 84.900002 | J168: 2365.530023 | K168: 5595732.29 | L168: 200026.7336 | N168: 19.41656505 | Q168: 5016.250938 | R168: 392 | S168: 0.3877017605 | U168: 11.50904188 | X168: 392 | Y168: 0.2298076816 | Z168: 59.34293513 | AA168: 59.34293513 | AB168: 59.34293513 | AC168: 59.34293513 | AD168: 90 | AE168: -90 | AF168: 8.412599411 | AG168: 8.412599411 | AH168: 42.79295642 | AI168: 42.79295642 | AJ168: 0 | AX168: 2650000
A169: 137 | B169: =IF(A169>$B$30,NA(),IF($A169>$A$8,"",OFFSET(InputPriceData!$B$15,$A169+$A$11,0,1,1))) -> 2021-12-22 | C169: =IF(A169>$B$30,NA(),IF($A169>$A$8,"",OFFSET(InputPriceData!$G$15,CalculationsAndCharts!$A169+$A$11,IF($C$5,8,0),1,1))) -> 3852800 | D169: =IF(A169>$B$30,NA(),IF(A169>$A$8,"",OFFSET(InputPriceData!$C$15,CalculationsAndCharts!$A169+$A$11,IF($C$5,8,0),1,1))) -> 83.480003 | E169: =IF(A169>$B$30,NA(),IF(A169>$A$8,"",OFFSET(InputPriceData!$D$15,CalculationsAndCharts!$A169+$A$11,IF($C$5,8,0),1,1))) -> 84.75 | F169: =IF(A169>$B$30,NA(),IF(A169>$A$8,"",OFFSET(InputPriceData!$E$15,CalculationsAndCharts!$A169+$A$11,IF($C$5,8,0),1,1))) -> 83.43 | G169: =IF(A169>$B$30,NA(),IF(A169>$A$8,"",OFFSET(InputPriceData!$F$15,CalculationsAndCharts!$A169+$A$11,IF($C$5,8,0),1,1))) -> 84.07 | J169: 2369.490022 | K169: 5614482.964 | L169: 200714.823 | N169: 20.22946204 | Q169: 5532.080562 | R169: 392 | S169: 0.3846405647 | U169: 16.42226104 | X169: 392 | Y169: 0.3122509016 | Z169: 50.93033572 | AA169: 50.93033572 | AB169: 50.93033572 | AC169: 50.93033572 | AD169: 90 | AE169: -90 | AF169: 6.869000877 | AG169: 6.869000877 | AH169: 52.40936876 | AI169: 52.40936876 | AJ169: 0 | AX169: 3852800
A170: 138 | B170: =IF(A170>$B$30,NA(),IF($A170>$A$8,"",OFFSET(InputPriceData!$B$15,$A170+$A$11,0,1,1))) -> 2021-12-21 | C170: =IF(A170>$B$30,NA(),IF($A170>$A$8,"",OFFSET(InputPriceData!$G$15,CalculationsAndCharts!$A170+$A$11,IF($C$5,8,0),1,1))) -> 7301900 | D170: =IF(A170>$B$30,NA(),IF(A170>$A$8,"",OFFSET(InputPriceData!$C$15,CalculationsAndCharts!$A170+$A$11,IF($C$5,8,0),1,1))) -> 81.669998 | E170: =IF(A170>$B$30,NA(),IF(A170>$A$8,"",OFFSET(InputPriceData!$D$15,CalculationsAndCharts!$A170+$A$11,IF($C$5,8,0),1,1))) -> 83.919998 | F170: =IF(A170>$B$30,NA(),IF(A170>$A$8,"",OFFSET(InputPriceData!$E$15,CalculationsAndCharts!$A170+$A$11,IF($C$5,8,0),1,1))) -> 81.669998 | G170: =IF(A170>$B$30,NA(),IF(A170>$A$8,"",OFFSET(InputPriceData!$F$15,CalculationsAndCharts!$A170+$A$11,IF($C$5,8,0),1,1))) -> 83.68 | J170: 2374.470025 | K170: 5638107.9 | L170: 201576.9612 | N170: 20.92311425 | Q170: 6047.013056 | R170: 392 | S170: 0.3805142025 | U170: 21.62015437 | X170: 392 | Y170: 0.3931907889 | Z170: 44.06133484 | AA170: 44.06133484 | AB170: 44.06133484 | AC170: 44.06133484 | AD170: 90 | AE170: -90 | AF170: 5.170428819 | AG170: 5.170428819 | AH170: 69.62672007 | AI170: 60 | AJ170: -1 | AX170: 7301900
A171: 139 | B171: =IF(A171>$B$30,NA(),IF($A171>$A$8,"",OFFSET(InputPriceData!$B$15,$A171+$A$11,0,1,1))) -> 2021-12-20 | C171: =IF(A171>$B$30,NA(),IF($A171>$A$8,"",OFFSET(InputPriceData!$G$15,CalculationsAndCharts!$A171+$A$11,IF($C$5,8,0),1,1))) -> 5828400 | D171: =IF(A171>$B$30,NA(),IF(A171>$A$8,"",OFFSET(InputPriceData!$C$15,CalculationsAndCharts!$A171+$A$11,IF($C$5,8,0),1,1))) -> 81.029999 | E171: =IF(A171>$B$30,NA(),IF(A171>$A$8,"",OFFSET(InputPriceData!$D$15,CalculationsAndCharts!$A171+$A$11,IF($C$5,8,0),1,1))) -> 81.349998 | F171: =IF(A171>$B$30,NA(),IF(A171>$A$8,"",OFFSET(InputPriceData!$E$15,CalculationsAndCharts!$A171+$A$11,IF($C$5,8,0),1,1))) -> 79.690002 | G171: =IF(A171>$B$30,NA(),IF(A171>$A$8,"",OFFSET(InputPriceData!$F$15,CalculationsAndCharts!$A171+$A$11,IF($C$5,8,0),1,1))) -> 81.029999 | J171: 2380.970025 | K171: 5669018.26 | L171: 202707.0512 | N171: 21.92462258 | Q171: 6779.172731 | R171: 392 | S171: 0.3765813204 | U171: 27.18030896 | X171: 392 | Y171: 0.4668539493 | Z171: 38.89090602 | AA171: 38.89090602 | AB171: 38.89090602 | AC171: 38.89090602 | AD171: 90 | AE171: -90 | AF171: 2.194255725 | AG171: 2.194255725 | AH171: 164.0647423 | AI171: 60 | AJ171: -1 | AX171: 5828400
A172: 140 | B172: =IF(A172>$B$30,NA(),IF($A172>$A$8,"",OFFSET(InputPriceData!$B$15,$A172+$A$11,0,1,1))) -> 2021-12-17 | C172: =IF(A172>$B$30,NA(),IF($A172>$A$8,"",OFFSET(InputPriceData!$G$15,CalculationsAndCharts!$A172+$A$11,IF($C$5,8,0),1,1))) -> 8892600 | D172: =IF(A172>$B$30,NA(),IF(A172>$A$8,"",OFFSET(InputPriceData!$C$15,CalculationsAndCharts!$A172+$A$11,IF($C$5,8,0),1,1))) -> 82.699997 | E172: =IF(A172>$B$30,NA(),IF(A172>$A$8,"",OFFSET(InputPriceData!$D$15,CalculationsAndCharts!$A172+$A$11,IF($C$5,8,0),1,1))) -> 83.019997 | F172: =IF(A172>$B$30,NA(),IF(A172>$A$8,"",OFFSET(InputPriceData!$E$15,CalculationsAndCharts!$A172+$A$11,IF($C$5,8,0),1,1))) -> 81.169998 | G172: =IF(A172>$B$30,NA(),IF(A172>$A$8,"",OFFSET(InputPriceData!$F$15,CalculationsAndCharts!$A172+$A$11,IF($C$5,8,0),1,1))) -> 82.279999 | J172: 2390.930024 | K172: 5716546.38 | L172: 204420.3702 | N172: 25.03701981 | Q172: 7223.984962 | R172: 392 | S172: 0.4165903582 | U172: 33.59383764 | X172: 392 | Y172: 0.5589670401 | Z172: 36.6966503 | AA172: 36.6966503 | AB172: 36.6966503 | AC172: 36.6966503 | AD172: 90 | AE172: -90 | AF172: 4.662144253 | AG172: 4.662144253 | AH172: 77.21768793 | AI172: 60 | AJ172: -1 | AY172: 8892600
A173: 141 | B173: =IF(A173>$B$30,NA(),IF($A173>$A$8,"",OFFSET(InputPriceData!$B$15,$A173+$A$11,0,1,1))) -> 2021-12-16 | C173: =IF(A173>$B$30,NA(),IF($A173>$A$8,"",OFFSET(InputPriceData!$G$15,CalculationsAndCharts!$A173+$A$11,IF($C$5,8,0),1,1))) -> 4546300 | D173: =IF(A173>$B$30,NA(),IF(A173>$A$8,"",OFFSET(InputPriceData!$C$15,CalculationsAndCharts!$A173+$A$11,IF($C$5,8,0),1,1))) -> 84.260002 | E173: =IF(A173>$B$30,NA(),IF(A173>$A$8,"",OFFSET(InputPriceData!$D$15,CalculationsAndCharts!$A173+$A$11,IF($C$5,8,0),1,1))) -> 84.519997 | F173: =IF(A173>$B$30,NA(),IF(A173>$A$8,"",OFFSET(InputPriceData!$E$15,CalculationsAndCharts!$A173+$A$11,IF($C$5,8,0),1,1))) -> 82.459999 | G173: =IF(A173>$B$30,NA(),IF(A173>$A$8,"",OFFSET(InputPriceData!$F$15,CalculationsAndCharts!$A173+$A$11,IF($C$5,8,0),1,1))) -> 82.699997 | J173: 2399.360024 | K173: 5756928.525 | L173: 205878.6758 | N173: 25.15259963 | Q173: 7674.398985 | R173: 392 | S173: 0.4060464227 | U173: 40.1986825 | X173: 392 | Y173: 0.6489401282 | Z173: 32.03450604 | AA173: 32.03450604 | AB173: 32.03450604 | AC173: 32.03450604 | AD173: 90 | AE173: -90 | AF173: 4.973796804 | AG173: 4.973796804 | AH173: 72.37931387 | AI173: 60 | AJ173: -1 | AY173: 4546300
A174: 142 | B174: =IF(A174>$B$30,NA(),IF($A174>$A$8,"",OFFSET(InputPriceData!$B$15,$A174+$A$11,0,1,1))) -> 2021-12-15 | C174: =IF(A174>$B$30,NA(),IF($A174>$A$8,"",OFFSET(InputPriceData!$G$15,CalculationsAndCharts!$A174+$A$11,IF($C$5,8,0),1,1))) -> 5388300 | D174: =IF(A174>$B$30,NA(),IF(A174>$A$8,"",OFFSET(InputPriceData!$C$15,CalculationsAndCharts!$A174+$A$11,IF($C$5,8,0),1,1))) -> 83.459999 | E174: =IF(A174>$B$30,NA(),IF(A174>$A$8,"",OFFSET(InputPriceData!$D$15,CalculationsAndCharts!$A174+$A$11,IF($C$5,8,0),1,1))) -> 83.720001 | F174: =IF(A174>$B$30,NA(),IF(A174>$A$8,"",OFFSET(InputPriceData!$E$15,CalculationsAndCharts!$A174+$A$11,IF($C$5,8,0),1,1))) -> 82.07 | G174: =IF(A174>$B$30,NA(),IF(A174>$A$8,"",OFFSET(InputPriceData!$F$15,CalculationsAndCharts!$A174+$A$11,IF($C$5,8,0),1,1))) -> 83.43 | J174: 2407.840027 | K174: 5797693.596 | L174: 207353.1787 | N174: 23.84431469 | Q174: 8195.409225 | R174: 392 | S174: 0.3724899164 | U174: 46.67477575 | X174: 392 | Y174: 0.7291416652 | Z174: 27.06070924 | AA174: 27.06070924 | AB174: 27.06070924 | AC174: 27.06070924 | AD174: 90 | AE174: -90 | AF174: 8.532246004 | AG174: 8.532246004 | AH174: 42.19287627 | AI174: 42.19287627 | AJ174: 0 | AY174: 5388300
A175: 143 | B175: =IF(A175>$B$30,NA(),IF($A175>$A$8,"",OFFSET(InputPriceData!$B$15,$A175+$A$11,0,1,1))) -> 2021-12-14 | C175: =IF(A175>$B$30,NA(),IF($A175>$A$8,"",OFFSET(InputPriceData!$G$15,CalculationsAndCharts!$A175+$A$11,IF($C$5,8,0),1,1))) -> 6144700 | D175: =IF(A175>$B$30,NA(),IF(A175>$A$8,"",OFFSET(InputPriceData!$C$15,CalculationsAndCharts!$A175+$A$11,IF($C$5,8,0),1,1))) -> 83.629997 | E175: =IF(A175>$B$30,NA(),IF(A175>$A$8,"",OFFSET(InputPriceData!$D$15,CalculationsAndCharts!$A175+$A$11,IF($C$5,8,0),1,1))) -> 84.739998 | F175: =IF(A175>$B$30,NA(),IF(A175>$A$8,"",OFFSET(InputPriceData!$E$15,CalculationsAndCharts!$A175+$A$11,IF($C$5,8,0),1,1))) -> 83.230003 | G175: =IF(A175>$B$30,NA(),IF(A175>$A$8,"",OFFSET(InputPriceData!$F$15,CalculationsAndCharts!$A175+$A$11,IF($C$5,8,0),1,1))) -> 83.5 | J175: 2412.470025 | K175: 5820011.622 | L175: 208147.1771 | N175: 17.37428753 | Q175: 8109.337062 | R175: 392 | S175: 0.2728533725 | U175: 51.84067232 | X175: 392 | Y175: 0.814128479 | Z175: 18.52846323 | AA175: 18.52846323 | AB175: 18.52846323 | AC175: 18.52846323 | AD175: 90 | AE175: -90 | AF175: 7.882520541 | AG175: 7.882520541 | AH175: 45.67067071 | AI175: 45.67067071 | AJ175: 0 | AY175: 6144700
A176: 144 | B176: =IF(A176>$B$30,NA(),IF($A176>$A$8,"",OFFSET(InputPriceData!$B$15,$A176+$A$11,0,1,1))) -> 2021-12-13 | C176: =IF(A176>$B$30,NA(),IF($A176>$A$8,"",OFFSET(InputPriceData!$G$15,CalculationsAndCharts!$A176+$A$11,IF($C$5,8,0),1,1))) -> 4173900 | D176: =IF(A176>$B$30,NA(),IF(A176>$A$8,"",OFFSET(InputPriceData!$C$15,CalculationsAndCharts!$A176+$A$11,IF($C$5,8,0),1,1))) -> 85.449997 | E176: =IF(A176>$B$30,NA(),IF(A176>$A$8,"",OFFSET(InputPriceData!$D$15,CalculationsAndCharts!$A176+$A$11,IF($C$5,8,0),1,1))) -> 85.940002 | F176: =IF(A176>$B$30,NA(),IF(A176>$A$8,"",OFFSET(InputPriceData!$E$15,CalculationsAndCharts!$A176+$A$11,IF($C$5,8,0),1,1))) -> 84.040001 | G176: =IF(A176>$B$30,NA(),IF(A176>$A$8,"",OFFSET(InputPriceData!$F$15,CalculationsAndCharts!$A176+$A$11,IF($C$5,8,0),1,1))) -> 84.330002 | J176: 2417.640023 | K176: 5844983.281 | L176: 209037.2956 | N176: 10.4434184 | Q176: 8060.997043 | R176: 392 | S176: 0.1644990122 | U176: 55.55749391 | X176: 392 | Y176: 0.8751112445 | Z176: 10.64594269 | AA176: 10.64594269 | AB176: 10.64594269 | AC176: 10.64594269 | AD176: 90 | AE176: -90 | AF176: 9.443504912 | AG176: 9.443504912 | AH176: 38.12143937 | AI176: 38.12143937 | AJ176: 0 | AY176: 4173900
A177: 145 | B177: =IF(A177>$B$30,NA(),IF($A177>$A$8,"",OFFSET(InputPriceData!$B$15,$A177+$A$11,0,1,1))) -> 2021-12-10 | C177: =IF(A177>$B$30,NA(),IF($A177>$A$8,"",OFFSET(InputPriceData!$G$15,CalculationsAndCharts!$A177+$A$11,IF($C$5,8,0),1,1))) -> 3294400 | D177: =IF(A177>$B$30,NA(),IF(A177>$A$8,"",OFFSET(InputPriceData!$C$15,CalculationsAndCharts!$A177+$A$11,IF($C$5,8,0),1,1))) -> 86.910004 | E177: =IF(A177>$B$30,NA(),IF(A177>$A$8,"",OFFSET(InputPriceData!$D$15,CalculationsAndCharts!$A177+$A$11,IF($C$5,8,0),1,1))) -> 86.980003 | F177: =IF(A177>$B$30,NA(),IF(A177>$A$8,"",OFFSET(InputPriceData!$E$15,CalculationsAndCharts!$A177+$A$11,IF($C$5,8,0),1,1))) -> 85.699997 | G177: =IF(A177>$B$30,NA(),IF(A177>$A$8,"",OFFSET(InputPriceData!$F$15,CalculationsAndCharts!$A177+$A$11,IF($C$5,8,0),1,1))) -> 86.160004 | J177: 2421.110024 | K177: 5861773.748 | L177: 209634.5869 | N177: 1.201875492 | Q177: 7994.685647 | R177: 392 | S177: 0.01900963513 | U177: 57.26057862 | X177: 392 | Y177: 0.9056701085 | Z177: 1.202437782 | AA177: 1.202437782 | AB177: 1.202437782 | AC177: 1.202437782 | AD177: 90 | AE177: -90 | AF177: 3.919580002 | AG177: 3.919580002 | AH177: 91.84657535 | AI177: 60 | AJ177: -1 | AY177: 3294400
A178: 146 | B178: =IF(A178>$B$30,NA(),IF($A178>$A$8,"",OFFSET(InputPriceData!$B$15,$A178+$A$11,0,1,1))) -> 2021-12-09 | C178: =IF(A178>$B$30,NA(),IF($A178>$A$8,"",OFFSET(InputPriceData!$G$15,CalculationsAndCharts!$A178+$A$11,IF($C$5,8,0),1,1))) -> 4241900 | D178: =IF(A178>$B$30,NA(),IF(A178>$A$8,"",OFFSET(InputPriceData!$C$15,CalculationsAndCharts!$A178+$A$11,IF($C$5,8,0),1,1))) -> 86 | E178: =IF(A178>$B$30,NA(),IF(A178>$A$8,"",OFFSET(InputPriceData!$D$15,CalculationsAndCharts!$A178+$A$11,IF($C$5,8,0),1,1))) -> 86.57 | F178: =IF(A178>$B$30,NA(),IF(A178>$A$8,"",OFFSET(InputPriceData!$E$15,CalculationsAndCharts!$A178+$A$11,IF($C$5,8,0),1,1))) -> 85.519997 | G178: =IF(A178>$B$30,NA(),IF(A178>$A$8,"",OFFSET(InputPriceData!$F$15,CalculationsAndCharts!$A178+$A$11,IF($C$5,8,0),1,1))) -> 86.160004 | J178: 2423.500023 | K178: 5873352.361 | L178: 210052.1437 | N178: -9.239858734 | Q178: 8107.661255 | R178: 392 | S178: -0.1451217583 | U178: 56.62420363 | X178: 392 | Y178: 0.8893430332 | Z178: 170.7322367 | AA178: -9.267763252 | AB178: -9.267763252 | AC178: -2.717142221 | AD178: 90 | AE178: -90 | AF178: 0 | AG178: 6.257096411 | AH178: 57.53467365 | AI178: 57.53467365 | AJ178: -1 | AX178: 4241900
A179: 147 | B179: =IF(A179>$B$30,NA(),IF($A179>$A$8,"",OFFSET(InputPriceData!$B$15,$A179+$A$11,0,1,1))) -> 2021-12-08 | C179: =IF(A179>$B$30,NA(),IF($A179>$A$8,"",OFFSET(InputPriceData!$G$15,CalculationsAndCharts!$A179+$A$11,IF($C$5,8,0),1,1))) -> 6749500 | D179: =IF(A179>$B$30,NA(),IF(A179>$A$8,"",OFFSET(InputPriceData!$C$15,CalculationsAndCharts!$A179+$A$11,IF($C$5,8,0),1,1))) -> 85.839996 | E179: =IF(A179>$B$30,NA(),IF(A179>$A$8,"",OFFSET(InputPriceData!$D$15,CalculationsAndCharts!$A179+$A$11,IF($C$5,8,0),1,1))) -> 87.650002 | F179: =IF(A179>$B$30,NA(),IF(A179>$A$8,"",OFFSET(InputPriceData!$E$15,CalculationsAndCharts!$A179+$A$11,IF($C$5,8,0),1,1))) -> 85.800003 | G179: =IF(A179>$B$30,NA(),IF(A179>$A$8,"",OFFSET(InputPriceData!$F$15,CalculationsAndCharts!$A179+$A$11,IF($C$5,8,0),1,1))) -> 86.5 | J179: 2426.20002 | K179: 5886446.537 | L179: 210524.6972 | N179: -18.97596442 | Q179: 8244.983365 | R179: 392 | S179: -0.2955452361 | U179: 53.74926048 | X179: 392 | Y179: 0.837129409 | Z179: 160.5546218 | AA179: -19.44537817 | AB179: -19.44537817 | AC179: -2.717142221 | AD179: 90 | AE179: -90 | AF179: 0 | AG179: 6.257096411 | AH179: 57.53467365 | AI179: 57.53467365 | AJ179: -1 | AX179: 6749500
A180: 148 | B180: =IF(A180>$B$30,NA(),IF($A180>$A$8,"",OFFSET(InputPriceData!$B$15,$A180+$A$11,0,1,1))) -> 2021-12-07 | C180: =IF(A180>$B$30,NA(),IF($A180>$A$8,"",OFFSET(InputPriceData!$G$15,CalculationsAndCharts!$A180+$A$11,IF($C$5,8,0),1,1))) -> 5102900 | D180: =IF(A180>$B$30,NA(),IF(A180>$A$8,"",OFFSET(InputPriceData!$C$15,CalculationsAndCharts!$A180+$A$11,IF($C$5,8,0),1,1))) -> 84.43 | E180: =IF(A180>$B$30,NA(),IF(A180>$A$8,"",OFFSET(InputPriceData!$D$15,CalculationsAndCharts!$A180+$A$11,IF($C$5,8,0),1,1))) -> 85.800003 | F180: =IF(A180>$B$30,NA(),IF(A180>$A$8,"",OFFSET(InputPriceData!$E$15,CalculationsAndCharts!$A180+$A$11,IF($C$5,8,0),1,1))) -> 84.050003 | G180: =IF(A180>$B$30,NA(),IF(A180>$A$8,"",OFFSET(InputPriceData!$F$15,CalculationsAndCharts!$A180+$A$11,IF($C$5,8,0),1,1))) -> 85.010002 | J180: 2428.890022 | K180: 5899506.739 | L180: 210997.3036 | N180: -27.83797498 | Q180: 8417.762231 | R180: 392 | S180: -0.4290958466 | U180: 48.77768673 | X180: 392 | Y180: 0.7518615415 | Z180: 150.2861106 | AA180: -29.7138894 | AB180: -29.7138894 | AC180: -2.717142221 | AD180: 90 | AE180: -90 | AF180: 0 | AG180: 6.257096411 | AH180: 57.53467365 | AI180: 57.53467365 | AJ180: -1 | AX180: 5102900
A181: 149 | B181: =IF(A181>$B$30,NA(),IF($A181>$A$8,"",OFFSET(InputPriceData!$B$15,$A181+$A$11,0,1,1))) -> 2021-12-06 | C181: =IF(A181>$B$30,NA(),IF($A181>$A$8,"",OFFSET(InputPriceData!$G$15,CalculationsAndCharts!$A181+$A$11,IF($C$5,8,0),1,1))) -> 4964200 | D181: =IF(A181>$B$30,NA(),IF(A181>$A$8,"",OFFSET(InputPriceData!$C$15,CalculationsAndCharts!$A181+$A$11,IF($C$5,8,0),1,1))) -> 82.25 | E181: =IF(A181>$B$30,NA(),IF(A181>$A$8,"",OFFSET(InputPriceData!$D$15,CalculationsAndCharts!$A181+$A$11,IF($C$5,8,0),1,1))) -> 84.389999 | F181: =IF(A181>$B$30,NA(),IF(A181>$A$8,"",OFFSET(InputPriceData!$E$15,CalculationsAndCharts!$A181+$A$11,IF($C$5,8,0),1,1))) -> 81.669998 | G181: =IF(A181>$B$30,NA(),IF(A181>$A$8,"",OFFSET(InputPriceData!$F$15,CalculationsAndCharts!$A181+$A$11,IF($C$5,8,0),1,1))) -> 83.760002 | J181: 2433.040024 | K181: 5919683.758 | L181: 211720.1095 | N181: -33.94812245 | Q181: 8479.307267 | R181: 392 | S181: -0.5213754423 | U181: 42.28365842 | X181: 392 | Y181: 0.6493926472 | Z181: 141.2401949 | AA181: -38.75980509 | AB181: -38.75980509 | AC181: -2.717142221 | AD181: 90 | AE181: -90 | AF181: 0 | AG181: 6.257096411 | AH181: 57.53467365 | AI181: 57.53467365 | AJ181: -1 | AX181: 4964200
A182: 150 | B182: =IF(A182>$B$30,NA(),IF($A182>$A$8,"",OFFSET(InputPriceData!$B$15,$A182+$A$11,0,1,1))) -> 2021-12-03 | C182: =IF(A182>$B$30,NA(),IF($A182>$A$8,"",OFFSET(InputPriceData!$G$15,CalculationsAndCharts!$A182+$A$11,IF($C$5,8,0),1,1))) -> 6038900 | D182: =IF(A182>$B$30,NA(),IF(A182>$A$8,"",OFFSET(InputPriceData!$C$15,CalculationsAndCharts!$A182+$A$11,IF($C$5,8,0),1,1))) -> 81.610001 | E182: =IF(A182>$B$30,NA(),IF(A182>$A$8,"",OFFSET(InputPriceData!$D$15,CalculationsAndCharts!$A182+$A$11,IF($C$5,8,0),1,1))) -> 82.120003 | F182: =IF(A182>$B$30,NA(),IF(A182>$A$8,"",OFFSET(InputPriceData!$E$15,CalculationsAndCharts!$A182+$A$11,IF($C$5,8,0),1,1))) -> 80.120003 | G182: =IF(A182>$B$30,NA(),IF(A182>$A$8,"",OFFSET(InputPriceData!$F$15,CalculationsAndCharts!$A182+$A$11,IF($C$5,8,0),1,1))) -> 81.110001 | J182: 2438.440026 | K182: 5945989.76 | L182: 212653.8779 | N182: -37.24135863 | Q182: 8318.819845 | R182: 392 | S182: -0.5774437096 | U182: 34.87096439 | X182: 392 | Y182: 0.5406897003 | Z182: 133.1173162 | AA182: -46.8826838 | AB182: -46.8826838 | AC182: -2.717142221 | AD182: 90 | AE182: -90 | AF182: 0 | AG182: 6.257096411 | AH182: 57.53467365 | AI182: 57.53467365 | AJ182: -1 | AY182: 6038900
A183: 151 | B183: =IF(A183>$B$30,NA(),IF($A183>$A$8,"",OFFSET(InputPriceData!$B$15,$A183+$A$11,0,1,1))) -> 2021-12-02 | C183: =IF(A183>$B$30,NA(),IF($A183>$A$8,"",OFFSET(InputPriceData!$G$15,CalculationsAndCharts!$A183+$A$11,IF($C$5,8,0),1,1))) -> 6409100 | D183: =IF(A183>$B$30,NA(),IF(A183>$A$8,"",OFFSET(InputPriceData!$C$15,CalculationsAndCharts!$A183+$A$11,IF($C$5,8,0),1,1))) -> 80.050003 | E183: =IF(A183>$B$30,NA(),IF(A183>$A$8,"",OFFSET(InputPriceData!$D$15,CalculationsAndCharts!$A183+$A$11,IF($C$5,8,0),1,1))) -> 82.230003 | F183: =IF(A183>$B$30,NA(),IF(A183>$A$8,"",OFFSET(InputPriceData!$E$15,CalculationsAndCharts!$A183+$A$11,IF($C$5,8,0),1,1))) -> 79.510002 | G183: =IF(A183>$B$30,NA(),IF(A183>$A$8,"",OFFSET(InputPriceData!$F$15,CalculationsAndCharts!$A183+$A$11,IF($C$5,8,0),1,1))) -> 81.660004 | J183: 2448.630028 | K183: 5995789.014 | L183: 214410.7362 | N183: -34.13264221 | Q183: 7711.598216 | R183: 392 | S183: -0.5496835104 | U183: 27.97718337 | X183: 392 | Y183: 0.4505539381 | Z183: 129.3401244 | AA183: -50.65987564 | AB183: -50.65987564 | AC183: -2.717142221 | AD183: 90 | AE183: -90 | AF183: 0 | AG183: 6.257096411 | AH183: 57.53467365 | AI183: 57.53467365 | AJ183: -1 | AX183: 6409100
A184: 152 | B184: =IF(A184>$B$30,NA(),IF($A184>$A$8,"",OFFSET(InputPriceData!$B$15,$A184+$A$11,0,1,1))) -> 2021-12-01 | C184: =IF(A184>$B$30,NA(),IF($A184>$A$8,"",OFFSET(InputPriceData!$G$15,CalculationsAndCharts!$A184+$A$11,IF($C$5,8,0),1,1))) -> 8499000 | D184: =IF(A184>$B$30,NA(),IF(A184>$A$8,"",OFFSET(InputPriceData!$C$15,CalculationsAndCharts!$A184+$A$11,IF($C$5,8,0),1,1))) -> 82.139999 | E184: =IF(A184>$B$30,NA(),IF(A184>$A$8,"",OFFSET(InputPriceData!$D$15,CalculationsAndCharts!$A184+$A$11,IF($C$5,8,0),1,1))) -> 82.139999 | F184: =IF(A184>$B$30,NA(),IF(A184>$A$8,"",OFFSET(InputPriceData!$E$15,CalculationsAndCharts!$A184+$A$11,IF($C$5,8,0),1,1))) -> 79 | G184: =IF(A184>$B$30,NA(),IF(A184>$A$8,"",OFFSET(InputPriceData!$F$15,CalculationsAndCharts!$A184+$A$11,IF($C$5,8,0),1,1))) -> 79.050003 | J184: 2458.830025 | K184: 6045845.092 | L184: 216180.6397 | N184: -29.5581128 | Q184: 7212.819251 | R184: 392 | S184: -0.4921972415 | U184: 21.95022241 | X184: 392 | Y184: 0.3655117968 | Z184: 126.5980392 | AA184: -53.40196081 | AB184: -53.40196081 | AC184: -2.717142221 | AD184: 90 | AE184: -90 | AF184: 0 | AG184: 6.257096411 | AH184: 57.53467365 | AI184: 57.53467365 | AJ184: -1 | AY184: 8499000
A185: 153 | B185: =IF(A185>$B$30,NA(),IF($A185>$A$8,"",OFFSET(InputPriceData!$B$15,$A185+$A$11,0,1,1))) -> 2021-11-30 | C185: =IF(A185>$B$30,NA(),IF($A185>$A$8,"",OFFSET(InputPriceData!$G$15,CalculationsAndCharts!$A185+$A$11,IF($C$5,8,0),1,1))) -> 7966000 | D185: =IF(A185>$B$30,NA(),IF(A185>$A$8,"",OFFSET(InputPriceData!$C$15,CalculationsAndCharts!$A185+$A$11,IF($C$5,8,0),1,1))) -> 82.120003 | E185: =IF(A185>$B$30,NA(),IF(A185>$A$8,"",OFFSET(InputPriceData!$D$15,CalculationsAndCharts!$A185+$A$11,IF($C$5,8,0),1,1))) -> 82.5 | F185: =IF(A185>$B$30,NA(),IF(A185>$A$8,"",OFFSET(InputPriceData!$E$15,CalculationsAndCharts!$A185+$A$11,IF($C$5,8,0),1,1))) -> 80.279999 | G185: =IF(A185>$B$30,NA(),IF(A185>$A$8,"",OFFSET(InputPriceData!$F$15,CalculationsAndCharts!$A185+$A$11,IF($C$5,8,0),1,1))) -> 80.919998 | J185: 2471.390023 | K185: 6107768.646 | L185: 218324.129 | N185: -21.45632056 | Q185: 5306.965958 | R185: 392 | S185: -0.4165307765 | U185: 17.61744812 | X185: 392 | Y185: 0.3420068844 | Z185: 129.3888809 | AA185: -50.61111914 | AB185: -50.61111914 | AC185: -2.717142221 | AD185: 90 | AE185: -90 | AF185: 0 | AG185: 6.257096411 | AH185: 57.53467365 | AI185: 57.53467365 | AJ185: -1 | AY185: 7966000
A186: 154 | B186: =IF(A186>$B$30,NA(),IF($A186>$A$8,"",OFFSET(InputPriceData!$B$15,$A186+$A$11,0,1,1))) -> 2021-11-29 | C186: =IF(A186>$B$30,NA(),IF($A186>$A$8,"",OFFSET(InputPriceData!$G$15,CalculationsAndCharts!$A186+$A$11,IF($C$5,8,0),1,1))) -> 5835000 | D186: =IF(A186>$B$30,NA(),IF(A186>$A$8,"",OFFSET(InputPriceData!$C$15,CalculationsAndCharts!$A186+$A$11,IF($C$5,8,0),1,1))) -> 84.089996 | E186: =IF(A186>$B$30,NA(),IF(A186>$A$8,"",OFFSET(InputPriceData!$D$15,CalculationsAndCharts!$A186+$A$11,IF($C$5,8,0),1,1))) -> 84.449997 | F186: =IF(A186>$B$30,NA(),IF(A186>$A$8,"",OFFSET(InputPriceData!$E$15,CalculationsAndCharts!$A186+$A$11,IF($C$5,8,0),1,1))) -> 82.519997 | G186: =IF(A186>$B$30,NA(),IF(A186>$A$8,"",OFFSET(InputPriceData!$F$15,CalculationsAndCharts!$A186+$A$11,IF($C$5,8,0),1,1))) -> 82.940002 | J186: 2482.150025 | K186: 6161068.747 | L186: 220181.3053 | N186: -14.34839053 | Q186: 4007.802197 | R186: 392 | S186: -0.3205273161 | U186: 14.79558712 | X186: 392 | Y186: 0.3305171977 | Z186: 135.8790998 | AA186: -44.12090015 | AB186: -44.12090015 | AC186: -2.717142221 | AD186: 90 | AE186: -90 | AF186: 0 | AG186: 6.257096411 | AH186: 57.53467365 | AI186: 57.53467365 | AJ186: -1 | AY186: 5835000
A187: 155 | B187: =IF(A187>$B$30,NA(),IF($A187>$A$8,"",OFFSET(InputPriceData!$B$15,$A187+$A$11,0,1,1))) -> 2021-11-26 | C187: =IF(A187>$B$30,NA(),IF($A187>$A$8,"",OFFSET(InputPriceData!$G$15,CalculationsAndCharts!$A187+$A$11,IF($C$5,8,0),1,1))) -> 7113600 | D187: =IF(A187>$B$30,NA(),IF(A187>$A$8,"",OFFSET(InputPriceData!$C$15,CalculationsAndCharts!$A187+$A$11,IF($C$5,8,0),1,1))) -> 83.559998 | E187: =IF(A187>$B$30,NA(),IF(A187>$A$8,"",OFFSET(InputPriceData!$D$15,CalculationsAndCharts!$A187+$A$11,IF($C$5,8,0),1,1))) -> 83.589996 | F187: =IF(A187>$B$30,NA(),IF(A187>$A$8,"",OFFSET(InputPriceData!$E$15,CalculationsAndCharts!$A187+$A$11,IF($C$5,8,0),1,1))) -> 81.419998 | G187: =IF(A187>$B$30,NA(),IF(A187>$A$8,"",OFFSET(InputPriceData!$F$15,CalculationsAndCharts!$A187+$A$11,IF($C$5,8,0),1,1))) -> 83 | J187: 2490.440026 | K187: 6202291.523 | L187: 221625.1748 | N187: -9.198820925 | Q187: 3213.372139 | R187: 392 | S187: -0.2294915242 | U187: 13.07651236 | X187: 392 | Y187: 0.3262318918 | Z187: 144.8750953 | AA187: -35.1249047 | AB187: -35.1249047 | AC187: -2.717142221 | AD187: 90 | AE187: -90 | AF187: 0 | AG187: 6.257096411 | AH187: 57.53467365 | AI187: 57.53467365 | AJ187: -1 | AY187: 7113600
A188: 156 | B188: =IF(A188>$B$30,NA(),IF($A188>$A$8,"",OFFSET(InputPriceData!$B$15,$A188+$A$11,0,1,1))) -> 2021-11-24 | C188: =IF(A188>$B$30,NA(),IF($A188>$A$8,"",OFFSET(InputPriceData!$G$15,CalculationsAndCharts!$A188+$A$11,IF($C$5,8,0),1,1))) -> 3464500 | D188: =IF(A188>$B$30,NA(),IF(A188>$A$8,"",OFFSET(InputPriceData!$C$15,CalculationsAndCharts!$A188+$A$11,IF($C$5,8,0),1,1))) -> 86.93 | E188: =IF(A188>$B$30,NA(),IF(A188>$A$8,"",OFFSET(InputPriceData!$D$15,CalculationsAndCharts!$A188+$A$11,IF($C$5,8,0),1,1))) -> 87.480003 | F188: =IF(A188>$B$30,NA(),IF(A188>$A$8,"",OFFSET(InputPriceData!$E$15,CalculationsAndCharts!$A188+$A$11,IF($C$5,8,0),1,1))) -> 86.68 | G188: =IF(A188>$B$30,NA(),IF(A188>$A$8,"",OFFSET(InputPriceData!$F$15,CalculationsAndCharts!$A188+$A$11,IF($C$5,8,0),1,1))) -> 87.190002 | J188: 2498.240029 | K188: 6241203.242 | L188: 222980.8154 | N188: -4.273544383 | Q188: 2259.587999 | R188: 392 | S188: -0.1271418677 | U188: 12.43739063 | X188: 392 | Y188: 0.3700237862 | Z188: 161.037044 | AA188: -18.96295602 | AB188: -18.96295602 | AC188: -2.717142221 | AD188: 90 | AE188: -90 | AF188: 0 | AG188: 6.257096411 | AH188: 57.53467365 | AI188: 57.53467365 | AJ188: -1 | AX188: 3464500
A189: 157 | B189: =IF(A189>$B$30,NA(),IF($A189>$A$8,"",OFFSET(InputPriceData!$B$15,$A189+$A$11,0,1,1))) -> 2021-11-23 | C189: =IF(A189>$B$30,NA(),IF($A189>$A$8,"",OFFSET(InputPriceData!$G$15,CalculationsAndCharts!$A189+$A$11,IF($C$5,8,0),1,1))) -> 5950700 | D189: =IF(A189>$B$30,NA(),IF(A189>$A$8,"",OFFSET(InputPriceData!$C$15,CalculationsAndCharts!$A189+$A$11,IF($C$5,8,0),1,1))) -> 87.32 | E189: =IF(A189>$B$30,NA(),IF(A189>$A$8,"",OFFSET(InputPriceData!$D$15,CalculationsAndCharts!$A189+$A$11,IF($C$5,8,0),1,1))) -> 87.739998 | F189: =IF(A189>$B$30,NA(),IF(A189>$A$8,"",OFFSET(InputPriceData!$E$15,CalculationsAndCharts!$A189+$A$11,IF($C$5,8,0),1,1))) -> 86.739998 | G189: =IF(A189>$B$30,NA(),IF(A189>$A$8,"",OFFSET(InputPriceData!$F$15,CalculationsAndCharts!$A189+$A$11,IF($C$5,8,0),1,1))) -> 87.309998 | J189: 2501.970025 | K189: 6259854.006 | L189: 223645.165 | N189: -3.297500268 | Q189: 2210.61295 | R189: 392 | S189: -0.09918442557 | U189: 12.00460838 | X189: 392 | Y189: 0.3610826656 | Z189: 164.6404654 | AA189: -15.35953463 | AB189: -15.35953463 | AC189: -2.717142221 | AD189: 90 | AE189: -90 | AF189: 0 | AG189: 6.257096411 | AH189: 57.53467365 | AI189: 57.53467365 | AJ189: -1 | AY189: 5950700
A190: 158 | B190: =IF(A190>$B$30,NA(),IF($A190>$A$8,"",OFFSET(InputPriceData!$B$15,$A190+$A$11,0,1,1))) -> 2021-11-22 | C190: =IF(A190>$B$30,NA(),IF($A190>$A$8,"",OFFSET(InputPriceData!$G$15,CalculationsAndCharts!$A190+$A$11,IF($C$5,8,0),1,1))) -> 6819800 | D190: =IF(A190>$B$30,NA(),IF(A190>$A$8,"",OFFSET(InputPriceData!$C$15,CalculationsAndCharts!$A190+$A$11,IF($C$5,8,0),1,1))) -> 85.809998 | E190: =IF(A190>$B$30,NA(),IF(A190>$A$8,"",OFFSET(InputPriceData!$D$15,CalculationsAndCharts!$A190+$A$11,IF($C$5,8,0),1,1))) -> 87.639999 | F190: =IF(A190>$B$30,NA(),IF(A190>$A$8,"",OFFSET(InputPriceData!$E$15,CalculationsAndCharts!$A190+$A$11,IF($C$5,8,0),1,1))) -> 85.68 | G190: =IF(A190>$B$30,NA(),IF(A190>$A$8,"",OFFSET(InputPriceData!$F$15,CalculationsAndCharts!$A190+$A$11,IF($C$5,8,0),1,1))) -> 86.800003 | J190: 2503.830025 | K190: 6269164.794 | L190: 223973.4178 | N190: -4.072735804 | Q190: 2090.903049 | R190: 392 | S190: -0.1259604746 | U190: 11.38375388 | X190: 392 | Y190: 0.3520736703 | Z190: 160.3144475 | AA190: -19.68555252 | AB190: -19.68555252 | AC190: -2.717142221 | AD190: 90 | AE190: -90 | AF190: 0 | AG190: 6.257096411 | AH190: 57.53467365 | AI190: 57.53467365 | AJ190: -1 | AX190: 6819800
A191: 159 | B191: =IF(A191>$B$30,NA(),IF($A191>$A$8,"",OFFSET(InputPriceData!$B$15,$A191+$A$11,0,1,1))) -> 2021-11-19 | C191: =IF(A191>$B$30,NA(),IF($A191>$A$8,"",OFFSET(InputPriceData!$G$15,CalculationsAndCharts!$A191+$A$11,IF($C$5,8,0),1,1))) -> 5478200 | D191: =IF(A191>$B$30,NA(),IF(A191>$A$8,"",OFFSET(InputPriceData!$C$15,CalculationsAndCharts!$A191+$A$11,IF($C$5,8,0),1,1))) -> 86.25 | E191: =IF(A191>$B$30,NA(),IF(A191>$A$8,"",OFFSET(InputPriceData!$D$15,CalculationsAndCharts!$A191+$A$11,IF($C$5,8,0),1,1))) -> 86.25 | F191: =IF(A191>$B$30,NA(),IF(A191>$A$8,"",OFFSET(InputPriceData!$E$15,CalculationsAndCharts!$A191+$A$11,IF($C$5,8,0),1,1))) -> 85.059998 | G191: =IF(A191>$B$30,NA(),IF(A191>$A$8,"",OFFSET(InputPriceData!$F$15,CalculationsAndCharts!$A191+$A$11,IF($C$5,8,0),1,1))) -> 85.43 | J191: 2506.710022 | K191: 6283595.134 | L191: 224481.6796 | N191: -3.695957898 | Q191: 1891.895362 | R191: 392 | S191: -0.1201692794 | U191: 10.83293005 | X191: 392 | Y191: 0.3522186763 | Z191: 161.1614856 | AA191: -18.83851436 | AB191: -18.83851436 | AC191: -2.717142221 | AD191: 90 | AE191: -90 | AF191: 0 | AG191: 6.257096411 | AH191: 57.53467365 | AI191: 57.53467365 | AJ191: -1 | AY191: 5478200
A192: 160 | B192: =IF(A192>$B$30,NA(),IF($A192>$A$8,"",OFFSET(InputPriceData!$B$15,$A192+$A$11,0,1,1))) -> 2021-11-18 | C192: =IF(A192>$B$30,NA(),IF($A192>$A$8,"",OFFSET(InputPriceData!$G$15,CalculationsAndCharts!$A192+$A$11,IF($C$5,8,0),1,1))) -> 4376300 | D192: =IF(A192>$B$30,NA(),IF(A192>$A$8,"",OFFSET(InputPriceData!$C$15,CalculationsAndCharts!$A192+$A$11,IF($C$5,8,0),1,1))) -> 87.190002 | E192: =IF(A192>$B$30,NA(),IF(A192>$A$8,"",OFFSET(InputPriceData!$D$15,CalculationsAndCharts!$A192+$A$11,IF($C$5,8,0),1,1))) -> 87.790001 | F192: =IF(A192>$B$30,NA(),IF(A192>$A$8,"",OFFSET(InputPriceData!$E$15,CalculationsAndCharts!$A192+$A$11,IF($C$5,8,0),1,1))) -> 86.339996 | G192: =IF(A192>$B$30,NA(),IF(A192>$A$8,"",OFFSET(InputPriceData!$F$15,CalculationsAndCharts!$A192+$A$11,IF($C$5,8,0),1,1))) -> 86.910004 | J192: 2511.000023 | K192: 6305121.116 | L192: 225233.0733 | N192: -1.831404512 | Q192: 1404.937276 | R192: 392 | S192: -0.06909884848 | U192: 10.69351291 | X192: 392 | Y192: 0.4034659864 | Z192: 170.2816301 | AA192: -9.718369929 | AB192: -9.718369929 | AC192: -2.717142221 | AD192: 90 | AE192: -90 | AF192: 0 | AG192: 6.257096411 | AH192: 57.53467365 | AI192: 57.53467365 | AJ192: -1 | AY192: 4376300
A193: 161 | B193: =IF(A193>$B$30,NA(),IF($A193>$A$8,"",OFFSET(InputPriceData!$B$15,$A193+$A$11,0,1,1))) -> 2021-11-17 | C193: =IF(A193>$B$30,NA(),IF($A193>$A$8,"",OFFSET(InputPriceData!$G$15,CalculationsAndCharts!$A193+$A$11,IF($C$5,8,0),1,1))) -> 3910600 | D193: =IF(A193>$B$30,NA(),IF(A193>$A$8,"",OFFSET(InputPriceData!$C$15,CalculationsAndCharts!$A193+$A$11,IF($C$5,8,0),1,1))) -> 88.760002 | E193: =IF(A193>$B$30,NA(),IF(A193>$A$8,"",OFFSET(InputPriceData!$D$15,CalculationsAndCharts!$A193+$A$11,IF($C$5,8,0),1,1))) -> 89.050003 | F193: =IF(A193>$B$30,NA(),IF(A193>$A$8,"",OFFSET(InputPriceData!$E$15,CalculationsAndCharts!$A193+$A$11,IF($C$5,8,0),1,1))) -> 87.190002 | G193: =IF(A193>$B$30,NA(),IF(A193>$A$8,"",OFFSET(InputPriceData!$F$15,CalculationsAndCharts!$A193+$A$11,IF($C$5,8,0),1,1))) -> 87.449997 | J193: 2513.980018 | K193: 6320095.531 | L193: 225759.9364 | N193: -1.259737553 | Q193: 1182.689377 | R193: 392 | S193: -0.0518035743 | U193: 10.68098964 | X193: 392 | Y193: 0.4392291387 | Z193: 173.2734941 | AA193: -6.726505864 | AB193: -6.726505864 | AC193: -2.717142221 | AD193: 90 | AE193: -90 | AF193: 0 | AG193: 6.257096411 | AH193: 57.53467365 | AI193: 57.53467365 | AJ193: -1 | AY193: 3910600
